Workbook

Sheet Navigation tools
B2: Click these buttons to navigate direcly to the indicated worksheet
B10: Click the check box to Show/Hide the various worksheets
B28: Ctrl-b | D28: This keyboard shortcut is available to quickly navigate to column N of the same row.
B31: Grouping

Sheet Basic Inputs (hidden)
A4: Name of country | B4: ='Basic Input for Tool'!C6 -> Ethiopia
A5: National population (2017)
A6: First year of plan | B6: ='Basic Input for Tool'!C7 -> 2024
A7: Number of years of planning | B7: ='Basic Input for Tool'!C8 -> 5
A8: Exchange rate local currency per USD | B8: ='Basic Input for Tool'!C9 -> 1
A9: Currency of budget | B9: ='Basic Input for Tool'!C10 -> 0
A11: Sources of finance:
A12: 1. Government | B12: 1. Government
A13: 2. GiZ | B13: 2. GiZ
A14: 3. BMGF | B14: 3. BMGF
A15: 4. World Bank | B15: 4. World Bank
A16: 5. WHO | B16: 5. WHO
A17: 6. UNICEF | B17: 6. UNICEF
A18: 7. CDC | B18: 7. CDC
A19: 8. JHPIEGO | B19: 8. JHPEIGO
A20: 9. USAID | B20: 9. USAID
A21: 10. BHT | B21: 10. BHT
A22: 11. Global Fund | B22: 11. Global Fund
A23: 12. Other | B23: 12. Other
A25: Categories of activities
A26: 1. Coordination/leadership | B26: 1. Coordination / leadership
A27: 2. Planning including assessment, design, planning, policy, legislation | B27: 2. Planning including assessment, design, planning, policy, legislation
A28: 3. Strengthening HR capacity | B28: 3. Strengthening HR capacity
A29: 4. Strengthening infrastructure | B29: 4. Strengthening infrastructure
A30: 5. Operations / implementation | B30: 5. Operations / implementation
A31: 6. Analysis including data quality and dissemination | B31: 6. Analysis including data quality and dissemination
A32: 7. Use and review mechanisms | B32: 7. Use and review mechanisms
A34: Implementation scale | B34: Number
A35: ='Basic Input for Tool'!B65 -> National
A36: ='Basic Input for Tool'!B66 -> Central
A37: ='Basic Input for Tool'!B67 -> SNU1 (province/region/etat)
A38: ='Basic Input for Tool'!B68 -> SNU2 (district/county)
A42: Transport
A43: ='Basic Input for Tool'!F27 -> Car rental per day | B43: ='Basic Input for Tool'!G27 -> 0
A44: ='Basic Input for Tool'!F28 -> Service vehicle | B44: ='Basic Input for Tool'!G28 -> 0
A45: ='Basic Input for Tool'!F29 -> 4 x 4 | B45: ='Basic Input for Tool'!G29 -> 2900
A46: ='Basic Input for Tool'!F30 -> Other 2 | B46: ='Basic Input for Tool'!G30 -> 0
A47: ='Basic Input for Tool'!F31 -> Other 3 | B47: ='Basic Input for Tool'!G31 -> 0
A48: ='Basic Input for Tool'!F32 -> Other 4 | B48: ='Basic Input for Tool'!G32 -> 0
A49: ='Basic Input for Tool'!F33 -> Other 5 | B49: ='Basic Input for Tool'!G33 -> 0
A51: Fuel per day | B51: ='Basic Input for Tool'!G35 -> 0
A52: Driver Per diem | B52: ='Basic Input for Tool'!G25 -> 1480
A54: Consultant
A55: International
A56: Per diem | B56: ='Basic Input for Tool'!C27 -> 1900
A57: Daily rate | B57: ='Basic Input for Tool'!C28 -> 11900
A58: International flight | B58: ='Basic Input for Tool'!C29 -> 40000
A59: National
A60: Per diem | B60: ='Basic Input for Tool'!C31 -> 1480
A61: Daily rate | B61: ='Basic Input for Tool'!C32 -> 3500
A62: Travel | B62: ='Basic Input for Tool'!C33 -> 1500
A65: Costs
A66: For meetings/workshops and training | C66: Per diem for participants from outside | D66: Extra days per diem for not local | E66: Supervisor per diem | H66: Printing price per page
A67: Per diem | B67: ='Basic Input for Tool'!C15 -> 0 | C67: ='Basic Input for Tool'!C16 -> 1480 | D67: ='Basic Input for Tool'!C17 -> 0 | E67: ='Basic Input for Tool'!G24 -> 1480 | H67: 0
A68: Rent of venue | B68: ='Basic Input for Tool'!C18 -> 3500
A69: Fee for Trainer (per day) | B69: ='Basic Input for Tool'!C23 -> 0
A70: Trainer per diem | B70: ='Basic Input for Tool'!C22 -> 0 | C70: Stationary | D70: ='Basic Input for Tool'!C21 -> 60
A71: Lunch | B71: ='Basic Input for Tool'!C19 -> 250
A72: Tea break | D72: ='Basic Input for Tool'!C20 -> 80
A78: Annual salaries and benefits | B78: Salary
A79: Select from the list | B79: 0
A80: ='Basic Input for Tool'!B37 -> Pharmacist | B80: ='Basic Input for Tool'!C37 -> 173000
A81: ='Basic Input for Tool'!B38 -> Health worker | B81: ='Basic Input for Tool'!C38 -> 168000
A82: ='Basic Input for Tool'!B39 -> Nurse | B82: ='Basic Input for Tool'!C39 -> 170000
A83: ='Basic Input for Tool'!B40 -> Veterinarian | B83: ='Basic Input for Tool'!C40 -> 180000
A84: ='Basic Input for Tool'!B41 -> Environmentalist | B84: ='Basic Input for Tool'!C41 -> 192000
A85: ='Basic Input for Tool'!B42 -> Laboratory technician | B85: ='Basic Input for Tool'!C42 -> 167000
A86: ='Basic Input for Tool'!B43 -> Other 4 | B86: ='Basic Input for Tool'!C43 -> 0
A87: ='Basic Input for Tool'!B44 -> Other 5 | B87: ='Basic Input for Tool'!C44 -> 0
A88: ='Basic Input for Tool'!B45 -> Other 6 | B88: ='Basic Input for Tool'!C45 -> 0
A89: ='Basic Input for Tool'!B46 -> Other 7 | B89: ='Basic Input for Tool'!C46 -> 0
A90: ='Basic Input for Tool'!B47 -> Other 8 | B90: ='Basic Input for Tool'!C47 -> 0
A91: ='Basic Input for Tool'!B48 -> Other 9 | B91: ='Basic Input for Tool'!C48 -> 0
A92: ='Basic Input for Tool'!B49 -> Other 10 | B92: ='Basic Input for Tool'!C49 -> 0
A93: ='Basic Input for Tool'!B50 -> Other 11 | B93: ='Basic Input for Tool'!C50 -> 0
A94: ='Basic Input for Tool'!B51 -> Other 12 | B94: ='Basic Input for Tool'!C51 -> 0
A95: ='Basic Input for Tool'!B52 -> Other 13 | B95: ='Basic Input for Tool'!C52 -> 0
A96: ='Basic Input for Tool'!B53 -> Other 14 | B96: ='Basic Input for Tool'!C53 -> 0
A97: ='Basic Input for Tool'!B54 -> Other 15 | B97: ='Basic Input for Tool'!C54 -> 0
A98: ='Basic Input for Tool'!B55 -> Other 16 | B98: ='Basic Input for Tool'!C55 -> 0
A99: ='Basic Input for Tool'!B56 -> Other 17 | B99: ='Basic Input for Tool'!C56 -> 0
A100: ='Basic Input for Tool'!B57 -> Other 18 | B100: ='Basic Input for Tool'!C57 -> 0
A101: ='Basic Input for Tool'!B58 -> Other 19 | B101: ='Basic Input for Tool'!C58 -> 0
A102: ='Basic Input for Tool'!B59 -> Other 20 | B102: ='Basic Input for Tool'!C59 -> 0
A114: Output column number of cells
A115: 24

Sheet Basic Input for Tool
B1: User note:
B2: This worksheet for entering basic input data is an essential part of the costing tool in order to ensure its functionality. Additionally, these data must be entered A PRIORI initiating the costing. Without this preliminary step, functionality of the tool may be limited. (On this worksheet, basic inputs to be entered in rows 4-82 as appropriate) Throughout the tool, and wherever the cells are colored in "Orange, Accent 6, Lighter 60%" (same color as this text box), the users should enter the appropriate data. Data may be unit numbers (used in calculations) or text for indications related to each Technical Area.
B4: General information
B6: Country | C6: Ethiopia
B7: First year of NAPHS | C7: 2024
B8: Number of years for NAPHS (1 to 5) | C8: 5
B9: Currency exchange rate | C9: 1
B10: Currency of cost estimations
B12: National standard costs (default values for the cost estimation data entry forms)
B14: Default values for meeting/workshop/training form | D14: Comments and/or clarifications
B15: Resident per diem | C15: 0
B16: Non resident per diem | C16: 1480
B17: Number of additional days for non resident participants (0,1,2) | C17: 0
B18: Venue rental / day | C18: 3500
B19: Lunch | C19: 250
B20: Tea/coffee break | C20: 80
B21: Stationary | C21: 60
B22: Trainer per diem | C22: 0
B23: Trainer/facilitator fees (rate per day) | C23: 0 | F23: Field visits
F24: Supervisor per diem | G24: 1480
B25: Consultant | D25: Comments and/or clarifications | F25: Driver per diem | G25: 1480
B26: International | F26: Vehicle cost (per day)
B27: Per diem | C27: 1900 | F27: Car rental per day | G27: 0
B28: Daily fee rate | C28: 11900 | F28: Service vehicle | G28: 0
B29: International flight cost | C29: 40000 | F29: 4 x 4 | G29: 2900
B30: National | F30: Other 2 | G30: 0
B31: Per diem | C31: 1480 | F31: Other 3 | G31: 0
B32: Daily fee rate | C32: 3500 | F32: Other 4 | G32: 0
B33: Travel cost | C33: 1500 | F33: Other 5 | G33: 0
B35: Human resources | F35: Fuel per day | G35: 0
B36: Job title | C36: Salary (annual or monthly) | D36: Comments and/or clarifications
B37: Pharmacist | C37: 173000
B38: Health worker | C38: 168000
B39: Nurse | C39: 170000
B40: Veterinarian | C40: 180000
B41: Environmentalist | C41: 192000
B42: Laboratory technician | C42: 167000
B43: Other 4 | C43: 0
B44: Other 5 | C44: 0
B45: Other 6 | C45: 0
B46: Other 7 | C46: 0
B47: Other 8 | C47: 0
B48: Other 9 | C48: 0
B49: Other 10 | C49: 0
B50: Other 11 | C50: 0
B51: Other 12 | C51: 0
B52: Other 13 | C52: 0
B53: Other 14 | C53: 0
B54: Other 15 | C54: 0
B55: Other 16 | C55: 0
B56: Other 17 | C56: 0
B57: Other 18 | C57: 0
B58: Other 19 | C58: 0
B59: Other 20 | C59: 0
B62: Categories | E62: Primary budget holder
B63: (column "H") | C63: (column "AA") | D63: (column "Z") | E63: (column "G" on each Technial Area worksheet)
B64: Implementation scale | C64: Priority | D64: Cost category 1 | E64: Name of the institition, department of organisation | F64: Procurement categories
B65: National | C65: Capital | D65: Meeting | E65: Ministry of Health | F65: General
B66: Central | C66: Recurrent | D66: Training | E66: Ministry of Finance | F66: Infrastructure
B67: SNU1 (province/region/etat) | C67: Other 1 | D67: Workshop | E67: Ministry of Agriculture | F67: Goods
B68: SNU2 (district/county) | C68: Other 2 | D68: SOP development | E68: Ministry of Environment | F68: Services
D69: Communication | E69: Other 2 | F69: Logistics
D70: Construction | E70: Other 3 | F70: Processus d'appel d'offre
D71: Consultancy | E71: Other 4 | F71: Other
D72: Evaluation | E72: Other 5 | F72: Other 2
D73: Field visit | E73: Other 6
D74: Human resources | E74: Other 7
D75: Infrastructure | E75: Other 8
D76: Document reproduction/printing | E76: Other 9
D77: Procurement | E77: Other 10
D78: Services | E78: Other 11
D79: Simulation exercises | E79: Other 12
D80: Advocacy | E80: Other 13
D81: Study | E81: Other 14
D82: Campaign | E82: Other 15
D83: Other | E83: Other 16
D84: Other 2 | E84: Other 17
D85: Other 3 | E85: Other 18
D86: Other 4 | E86: Other 19
D87: Other 5 | E87: Other 20

Sheet Internal data
N2: Alphabetical list of WHO Member States | O2: ISO Alpha-3 Code | P2: WHO Region
N3: <<Please select country>> | O3: ISO Alpha-3 Code | P3: WHO Region | XEQ3: =IF($M3="Pending",0,$M3*XEL3) -> 0 | XER3: 0 | XES3: 0 | XET3: 0 | XEU3: 0 | XEV3: 0
N4: Afghanistan | O4: AFG | P4: EMRO
N5: Albania | O5: ALB | P5: EURO
N6: Algeria | O6: DZA | P6: AFRO
N7: Andorra | O7: AND | P7: EURO
D8: Cost cat 1 | N8: Angola | O8: AGO | P8: AFRO
D9: ='Basic Input for Tool'!D65 -> Meeting | N9: Antigua And Barbuda | O9: ATG | P9: PAHO
D10: ='Basic Input for Tool'!D66 -> Training | N10: Argentina | O10: ARG | P10: PAHO
D11: ='Basic Input for Tool'!D67 -> Workshop | N11: Armenia | O11: ARM | P11: EURO
A12: Year | D12: ='Basic Input for Tool'!D68 -> SOP development | N12: Australia | O12: AUS | P12: WPRO
A13: 2017 | D13: ='Basic Input for Tool'!D69 -> Communication | N13: Austria | O13: AUT | P13: EURO
A14: 2018 | D14: ='Basic Input for Tool'!D70 -> Construction | N14: Azerbaijan | O14: AZE | P14: EURO
A15: 2019 | D15: ='Basic Input for Tool'!D71 -> Consultancy | N15: Bahamas | O15: BHS | P15: PAHO
A16: 2020 | D16: ='Basic Input for Tool'!D72 -> Evaluation | N16: Bahrain | O16: BHR | P16: EMRO
A17: 2021 | D17: ='Basic Input for Tool'!D73 -> Field visit | N17: Bangladesh | O17: BGD | P17: SEARO
A18: 2022 | D18: ='Basic Input for Tool'!D74 -> Human resources | N18: Barbados | O18: BRB | P18: PAHO
A19: 2023 | D19: ='Basic Input for Tool'!D75 -> Infrastructure | N19: Belarus | O19: BLR | P19: EURO
A20: 2024 | D20: ='Basic Input for Tool'!D76 -> Document reproduction/printing | N20: Belgium | O20: BEL | P20: EURO
A21: 2025 | D21: ='Basic Input for Tool'!D77 -> Procurement | N21: Belize | O21: BLZ | P21: PAHO
A22: 2026 | D22: ='Basic Input for Tool'!D78 -> Services | N22: Benin | O22: BEN | P22: AFRO
A23: 2027 | D23: ='Basic Input for Tool'!D79 -> Simulation exercises | N23: Bhutan | O23: BTN | P23: SEARO
A24: 2028 | D24: ='Basic Input for Tool'!D80 -> Advocacy | N24: Bolivia | O24: BOL | P24: PAHO
A25: 2029 | D25: ='Basic Input for Tool'!D81 -> Study | N25: Bosnia and Herzegovina | O25: BIH | P25: EURO
A26: 2030 | D26: ='Basic Input for Tool'!D82 -> Campaign | N26: Botswana | O26: BWA | P26: AFRO
D27: ='Basic Input for Tool'!D83 -> Other | N27: Brazil | O27: BRA | P27: PAHO
D28: ='Basic Input for Tool'!D84 -> Other 2 | N28: Brunei Darussalam | O28: BRN | P28: WPRO
D29: ='Basic Input for Tool'!D85 -> Other 3 | N29: Bulgaria | O29: BGR | P29: EURO
D30: ='Basic Input for Tool'!D86 -> Other 4 | N30: Burkina Faso | O30: BFA | P30: AFRO
D31: ='Basic Input for Tool'!D87 -> Other 5 | N31: Burundi | O31: BDI | P31: AFRO
N32: Cambodia | O32: KHM | P32: WPRO
D33: Primary budget holder | N33: Cameroon | O33: CMR | P33: AFRO
D34: ='Basic Input for Tool'!E65 -> Ministry of Health | N34: Canada | O34: CAN | P34: PAHO
D35: ='Basic Input for Tool'!E66 -> Ministry of Finance | N35: Cape Verde | O35: CPV | P35: AFRO
D36: ='Basic Input for Tool'!E67 -> Ministry of Agriculture | N36: Central African Republic | O36: CAF | P36: AFRO
D37: ='Basic Input for Tool'!E68 -> Ministry of Environment | N37: Chad | O37: TCD | P37: AFRO
D38: ='Basic Input for Tool'!E69 -> Other 2 | N38: Chile | O38: CHL | P38: PAHO
D39: ='Basic Input for Tool'!E70 -> Other 3 | N39: China | O39: CHN | P39: WPRO
D40: ='Basic Input for Tool'!E71 -> Other 4 | N40: Colombia | O40: COL | P40: PAHO
D41: ='Basic Input for Tool'!E72 -> Other 5 | N41: Comoros | O41: COM | P41: AFRO
D42: ='Basic Input for Tool'!E73 -> Other 6 | N42: Congo | O42: COG | P42: AFRO
D43: ='Basic Input for Tool'!E74 -> Other 7 | N43: Cook Islands | O43: COK | P43: WPRO
D44: ='Basic Input for Tool'!E75 -> Other 8 | N44: Costa Rica | O44: CRI | P44: PAHO
D45: ='Basic Input for Tool'!E76 -> Other 9 | N45: Côte d'Ivoire | O45: CIV | P45: AFRO
A46: For FTE calculation | D46: ='Basic Input for Tool'!E77 -> Other 10 | N46: Croatia | O46: HRV | P46: EURO
A47: 44390.15667 | D47: ='Basic Input for Tool'!E78 -> Other 11 | N47: Cuba | O47: CUB | P47: PAHO
D48: ='Basic Input for Tool'!E79 -> Other 12 | N48: Cyprus | O48: CYP | P48: EURO
D49: ='Basic Input for Tool'!E80 -> Other 13 | N49: Czech Republic | O49: CZE | P49: EURO
D50: ='Basic Input for Tool'!E81 -> Other 14 | N50: Democratic Peoples Republic of Korea | O50: PRK | P50: SEARO
D51: ='Basic Input for Tool'!E82 -> Other 15 | N51: Democratic Republic of the Congo | O51: COD | P51: AFRO
D52: ='Basic Input for Tool'!E83 -> Other 16 | N52: Denmark | O52: DNK | P52: EURO
D53: ='Basic Input for Tool'!E84 -> Other 17 | N53: Djibouti | O53: DJI | P53: EMRO
D54: ='Basic Input for Tool'!E85 -> Other 18 | N54: Dominica | O54: DMA | P54: PAHO
D55: ='Basic Input for Tool'!E86 -> Other 19 | N55: Dominican Republic | O55: DOM | P55: PAHO
D56: ='Basic Input for Tool'!E87 -> Other 20 | N56: Ecuador | O56: ECU | P56: PAHO
N57: Egypt | O57: EGY | P57: EMRO
N58: El Salvador | O58: SLV | P58: PAHO
N59: Equatorial Guinea | O59: GNQ | P59: AFRO
N60: Eritrea | O60: ERI | P60: AFRO
N61: Estonia | O61: EST | P61: EURO
N62: Ethiopia | O62: ETH | P62: AFRO
N63: Fiji | O63: FJI | P63: WPRO
N64: Finland | O64: FIN | P64: EURO
N65: France | O65: FRA | P65: EURO
N66: Gabon | O66: GAB | P66: AFRO
N67: Gambia | O67: GMB | P67: AFRO
N68: Georgia | O68: GEO | P68: EURO
N69: Germany | O69: DEU | P69: EURO
N70: Ghana | O70: GHA | P70: AFRO
N71: Greece | O71: GRC | P71: EURO
N72: Grenada | O72: GRD | P72: PAHO
N73: Guatemala | O73: GTM | P73: PAHO
N74: Guinea | O74: GIN | P74: AFRO
N75: Guinea-Bissau | O75: GNB | P75: AFRO
N76: Guyana | O76: GUY | P76: PAHO
N77: Haiti | O77: HTI | P77: PAHO
N78: Honduras | O78: HND | P78: PAHO
N79: Hungary | O79: HUN | P79: EURO
N80: Iceland | O80: ISL | P80: EURO
N81: India | O81: IND | P81: SEARO
N82: Indonesia | O82: IDN | P82: SEARO
N83: Iran, Islamic Republic of | O83: IRN | P83: EMRO
N84: Iraq | O84: IRQ | P84: EMRO
N85: Ireland | O85: IRL | P85: EURO
N86: Israel | O86: ISR | P86: EURO
N87: Italy | O87: ITA | P87: EURO
N88: Jamaica | O88: JAM | P88: PAHO
N89: Japan | O89: JPN | P89: WPRO
N90: Jordan | O90: JOR | P90: EMRO
N91: Kazakhstan | O91: KAZ | P91: EURO
N92: Kenya | O92: KEN | P92: AFRO
N93: Kiribati | O93: KIR | P93: WPRO
N94: Korea, Republic of | O94: KOR | P94: WPRO
N95: Kuwait | O95: KWT | P95: EMRO
N96: Kyrgyzstan | O96: KGZ | P96: EURO
N97: Lao People's Democratic Republic | O97: LAO | P97: WPRO
N98: Latvia | O98: LVA | P98: EURO
N99: Lebanon | O99: LBN | P99: EMRO
N100: Lesotho | O100: LSO | P100: AFRO
N101: Liberia | O101: LBR | P101: AFRO
N102: Libya | O102: LBY | P102: EMRO
N103: Lithuania | O103: LTU | P103: EURO
N104: Luxembourg | O104: LUX | P104: EURO
N105: Macedonia, the former Yugoslav Republic of | O105: MKD | P105: EURO
N106: Madagascar | O106: MDG | P106: AFRO
N107: Malawi | O107: MWI | P107: AFRO
N108: Malaysia | O108: MYS | P108: WPRO
N109: Maldives | O109: MDV | P109: SEARO
N110: Mali | O110: MLI | P110: AFRO
N111: Malta | O111: MLT | P111: EURO
N112: Marshall Islands | O112: MHL | P112: WPRO
N113: Mauritania | O113: MRT | P113: AFRO
N114: Mauritius | O114: MUS | P114: AFRO
N115: Mexico | O115: MEX | P115: PAHO
N116: Micronesia, Federated States of | O116: FSM | P116: WPRO
N117: Moldova, Republic of | O117: MDA | P117: EURO
N118: Monaco | O118: MCO | P118: EURO
N119: Mongolia | O119: MNG | P119: WPRO
N120: Montenegro | O120: MNE | P120: EURO
N121: Morocco | O121: MAR | P121: EMRO
N122: Mozambique | O122: MOZ | P122: AFRO
N123: Myanmar | O123: MMR | P123: SEARO
N124: Namibia | O124: NAM | P124: AFRO
N125: Nauru | O125: NRU | P125: WPRO
N126: Nepal | O126: NPL | P126: SEARO
N127: Netherlands | O127: NLD | P127: EURO
N128: New Zealand | O128: NZL | P128: WPRO
N129: Nicaragua | O129: NIC | P129: PAHO
N130: Niger | O130: NER | P130: AFRO
N131: Nigeria | O131: NGA | P131: AFRO
N132: Niue | O132: NIU | P132: WPRO
N133: Norway | O133: NOR | P133: EURO
N134: Oman | O134: OMN | P134: EMRO
N135: Pakistan | O135: PAK | P135: EMRO
N136: Palau | O136: PLW | P136: WPRO
N137: Panama | O137: PAN | P137: PAHO
N138: Papua New Guinea | O138: PNG | P138: WPRO
N139: Paraguay | O139: PRY | P139: PAHO
N140: Peru | O140: PER | P140: PAHO
N141: Philippines | O141: PHL | P141: WPRO
N142: Poland | O142: POL | P142: EURO
N143: Portugal | O143: PRT | P143: EURO
N144: Qatar | O144: QAT | P144: EMRO
N145: Romania | O145: ROU | P145: EURO
N146: Russian Federation | O146: RUS | P146: EURO
N147: Rwanda | O147: RWA | P147: AFRO
N148: Saint Kitts and Nevis | O148: KNA | P148: PAHO
N149: Saint Lucia | O149: LCA | P149: PAHO
N150: Saint Vincent and the Grenadines | O150: VCT | P150: PAHO
N151: Samoa | O151: WSM | P151: WPRO
N152: San Marino | O152: SMR | P152: EURO
N153: Sao Tome And Principe | O153: STP | P153: AFRO
N154: Saudi Arabia | O154: SAU | P154: EMRO
N155: Senegal | O155: SEN | P155: AFRO
N156: Serbia | O156: SRB | P156: EURO
N157: Seychelles | O157: SYC | P157: AFRO
N158: Sierra Leone | O158: SLE | P158: AFRO
N159: Singapore | O159: SGP | P159: WPRO
N160: Slovakia | O160: SVK | P160: EURO
N161: Slovenia | O161: SVN | P161: EURO
N162: Somalia | O162: SOM | P162: EMRO
N163: Solomon Islands | O163: SLB | P163: WPRO
N164: South Africa | O164: ZAF | P164: AFRO
N165: Spain | O165: ESP | P165: EURO
N166: Sri Lanka | O166: LKA | P166: SEARO
N167: Sudan | O167: SDN | P167: EMRO
N168: South Sudan | O168: SSD | P168: EMRO
N169: Suriname | O169: SUR | P169: PAHO
N170: Swaziland | O170: SWZ | P170: AFRO
N171: Sweden | O171: SWE | P171: EURO
N172: Switzerland | O172: CHE | P172: EURO
N173: Syrian Arab Republic | O173: SYR | P173: EMRO
N174: Tanzania, United Republic of | O174: TZA | P174: AFRO
N175: Tanzania, United Republic of (Zanzibar) | O175: ZAN | P175: AFRO
N176: Tajikistan | O176: TJK | P176: EURO
N177: Thailand | O177: THA | P177: SEARO
N178: Timor-Leste | O178: TLS | P178: SEARO
N179: Togo | O179: TGO | P179: AFRO
N180: Tonga | O180: TON | P180: WPRO
N181: Trinidad and Tobago | O181: TTO | P181: PAHO
N182: Tunisia | O182: TUN | P182: EMRO
N183: Turkey | O183: TUR | P183: EURO
N184: Turkmenistan | O184: TKM | P184: EURO
N185: Tuvalu | O185: TUV | P185: WPRO
N186: Uganda | O186: UGA | P186: AFRO
N187: Ukraine | O187: UKR | P187: EURO
N188: United Arab Emirates | O188: ARE | P188: EMRO
N189: United Kingdom | O189: GBR | P189: EURO
N190: United States of America | O190: USA | P190: PAHO
N191: Uruguay | O191: URY | P191: PAHO
N192: Uzbekistan | O192: UZB | P192: EURO
N193: Vanuatu | O193: VUT | P193: WPRO
N194: Venezuela | O194: VEN | P194: PAHO
N195: Viet Nam | O195: VNM | P195: WPRO
N196: Yemen | O196: YEM | P196: EMRO
N197: Zambia | O197: ZMB | P197: AFRO
N198: Zimbabwe | O198: ZWE | P198: AFRO

Sheet P1. Legal instruments
A1: =IF(ISNA(VLOOKUP(CountryName,CountriesCodes,2,FALSE))=TRUE,"",VLOOKUP(CountryName,CountriesCodes,2,FALSE)& "NLF") -> ETH NLF | B1: ="PLANNING AND COSTING MATRIX FOR THE DEVELOPMENT OF NATIONAL ACTION PLAN FOR HEALTH SECURITY " & O6 &" - " & S6 -> PLANNING AND COSTING MATRIX FOR THE DEVELOPMENT OF NATIONAL ACTION PLAN FOR HEALTH SECURITY 2024 - 2028 | AM1: 1 | AN1: 2 | AO1: 3 | AP1: 4 | AQ1: 5 | AR1: 6 | AS1: 7 | AT1: 8 | AU1: 9 | AV1: 10 | AW1: 11 | AX1: 12 | AY1: 13 | AZ1: 14 | BA1: 15 | BB1: 16 | BC1: 17 | BD1: 18 | BE1: 19 | BF1: 20 | BG1: 21 | BH1: 22 | BI1: 23 | BJ1: 24 | BK1: 25 | BL1: 26 | BM1: 27 | BN1: 28 | BO1: 29 | BP1: 30 | BQ1: 31 | BR1: 32 | BS1: 33 | BT1: 34 | BU1: 35 | BV1: 36 | BW1: 37 | BX1: 38 | BY1: 39 | BZ1: 40 | CA1: 41 | CB1: 42 | CC1: 43 | CD1: 44 | CE1: 45 | CF1: 46 | CG1: 47 | CH1: 48 | CI1: 49 | CJ1: 50 | CK1: 51 | CL1: 52 | CM1: 53 | CN1: 54 | CO1: 55 | CP1: 56 | CQ1: 57 | CR1: 58 | CS1: 59 | CT1: 60 | CU1: 61 | CV1: 62 | CW1: 63 | CX1: 64 | CY1: 65 | CZ1: 66 | DA1: 67 | DB1: 68 | DC1: 69 | DD1: 70 | DE1: 71 | DF1: 72 | DG1: 73 | DH1: 74 | DI1: 75 | DJ1: 76 | DK1: 77 | DL1: 78 | DM1: 79 | DN1: 80 | DO1: 81 | DP1: 82 | DQ1: 83 | DR1: 84 | DS1: 85 | DT1: 86 | DU1: 87 | DV1: 88 | DW1: 89 | DX1: 90 | DY1: 91 | DZ1: 92 | EA1: 93 | EB1: 94 | EC1: 95 | ED1: 96 | EE1: 97 | EF1: 98 | EG1: 99 | EH1: 100 | EI1: 101 | EJ1: 102 | EK1: 103 | EL1: 104 | EM1: 105 | EN1: 106 | EO1: 107 | EP1: 108 | EQ1: 109 | ER1: 110 | ES1: 111 | ET1: 112 | EU1: 113 | EV1: 114 | EW1: 115 | EX1: 116 | EY1: 117 | EZ1: 118 | FA1: 119 | FB1: 120 | FC1: 121 | FD1: 122 | FE1: 123 | FF1: 124 | FG1: 125 | FH1: 126 | FI1: 127 | FJ1: 128 | FK1: 129 | FL1: 130 | FM1: 131 | FN1: 132 | FO1: 133 | FP1: 134 | FQ1: 135 | FR1: 136 | FS1: 137 | FT1: 138 | FU1: 139 | FV1: 140 | FW1: 141 | FX1: 142 | FY1: 143 | FZ1: 144 | GA1: 145 | GB1: 146 | GC1: 147 | GD1: 148 | GE1: 149 | GF1: 150 | GG1: 151 | GH1: 152 | GI1: 153 | GJ1: 154 | GK1: 155 | XEQ1: Formula for meeting | XER1: Consultant | XES1: Field Visit
A2: 103 | B2: PREVENT | AN2: Meeting DATA | BJ2: FIELD VISITS | CA2: CONSULTANT | CN2: =+CL2+1 -> 1 | CS2: =CN2+1 -> 2 | CX2: =CS2+1 -> 3 | DC2: =CX2+1 -> 4 | DH2: =DC2+1 -> 5 | DM2: =DH2+1 -> 6 | DR2: =DM2+1 -> 7 | EG2: PROCUREMENT | EI2: 1 | EK2: =+EG2 -> PROCUREMENT | EL2: =+EI2+1 -> 2 | EO2: =+EK2 -> PROCUREMENT | EP2: =EL2+1 -> 3 | ES2: =+EO2 -> PROCUREMENT | ET2: =EP2+1 -> 4 | EW2: =+ES2 -> PROCUREMENT | EX2: =ET2+1 -> 5 | FA2: =+EW2 -> PROCUREMENT | FB2: =EX2+1 -> 6 | FE2: =+FA2 -> PROCUREMENT | FF2: =FB2+1 -> 7 | FI2: =+FE2 -> PROCUREMENT | FJ2: =FF2+1 -> 8 | FM2: =+FI2 -> PROCUREMENT | FN2: =FJ2+1 -> 9 | FQ2: =+FM2 -> PROCUREMENT | FR2: =FN2+1 -> 10 | GE2: Other | XEQ2: =(((($AN2-$AO2)*$AP2*$AQ2+$AO2*($AP2+ExtraDaysFar)*$AR2)+($AS2*$AP2)+($AT2+$AU2)*$AP2*$AN2+$AV2*$AN2))+($AW2*$AZ2*$AX2+$AW2*$BA2*$AZ2+$AY2+$AN2*$BB2)+$BC2*$AP2+$BH2+$BI2 ->  | XER2: =$CB2*$CC2*$CD2+$CB2*$CC2*$CE2+$CB2*$CF2 -> 0 | XES2: =$BJ2*$BK2*$BL2 + $BN2*$BK2*($BO2 + $BP2) + $BQ2*$BK2*$BR2 + $BS2 -> 
B3: General Objective: To prevent and reduce the likelihood of outbreaks and other public health hazards and events defined by IHR (2005). | AK3: Unique ID | AL3: Category | AM3: Total cost | AN3: Participants | AO3: Away participants | AP3: No of days | AQ3: Per diem | AR3: Per diem away | AS3: Rent of venue | AT3: Lunch | AU3: Tea break | AV3: Stationary | AW3: No of trainers | AX3: Trainer fee | AY3: Extra for trainer | AZ3: No of days for trainer | BA3: Trainer per diem | BB3: Extra pp | BC3: Extra per day | BD3: List 1 | BE3: List 2 | BF3: List 3 | BG3: For later | BH3: For later | BI3: For later | BJ3: No of supervisors | BK3: No of days | BL3: Per diem | BM3: Vehicle category | BN3: No of vehicles | BO3: Cost per day per vehicle | BP3: Fuel cost per day | BQ3: No of drivers | BR3: Driver per diem | BS3: Extra per field visit | BT3: Total costs | BU3: List 1 | BV3: List 2 | BW3: List 3 | BX3: List4 | BY3: For later | BZ3: For later | CA3: International national | CB3: No of consultants | CC3: Number of days consultants | CD3: Per diem consultant | CE3: Consultant rate | CF3: Consultant travel | CG3: Total consult | CH3: List 1 | CI3: List 2 | CJ3: List 3 | CK3: List4 | CL3: For later | CM3: For later | CN3: ="HR" &CN2 -> HR1 | CO3: ="no. of " & CN3 -> no. of HR1 | CP3: ="Salary " & CN3 -> Salary HR1 | CQ3: ="Month " & CO3 & " TRUE/FALSE" -> Month no. of HR1 TRUE/FALSE | CR3: ="Months " & CN3 -> Months HR1 | CS3: ="HR" &CS2 -> HR2 | CT3: ="no. of " & CS3 -> no. of HR2 | CU3: ="Salary " & CS3 -> Salary HR2 | CV3: ="Month " & CT3 & " TRUE/FALSE" -> Month no. of HR2 TRUE/FALSE | CW3: ="Months " & CS3 -> Months HR2 | CX3: ="HR" &CX2 -> HR3 | CY3: ="no. of " & CX3 -> no. of HR3 | CZ3: ="Salary " & CX3 -> Salary HR3 | DA3: ="Month " & CY3 & " TRUE/FALSE" -> Month no. of HR3 TRUE/FALSE | DB3: ="Months " & CX3 -> Months HR3 | DC3: ="HR" &DC2 -> HR4 | DD3: ="no. of " & DC3 -> no. of HR4 | DE3: ="Salary " & DC3 -> Salary HR4 | DF3: ="Month " & DD3 & " TRUE/FALSE" -> Month no. of HR4 TRUE/FALSE | DG3: ="Months " & DC3 -> Months HR4 | DH3: ="HR" &DH2 -> HR5 | DI3: ="no. of " & DH3 -> no. of HR5 | DJ3: ="Salary " & DH3 -> Salary HR5 | DK3: ="Month " & DI3 & " TRUE/FALSE" -> Month no. of HR5 TRUE/FALSE | DL3: ="Months " & DH3 -> Months HR5 | DM3: ="HR" &DM2 -> HR6 | DN3: ="no. of " & DM3 -> no. of HR6 | DO3: ="Salary " & DM3 -> Salary HR6 | DP3: ="Month " & DN3 & " TRUE/FALSE" -> Month no. of HR6 TRUE/FALSE | DQ3: ="Months " & DM3 -> Months HR6 | DR3: ="HR" &DR2 -> HR7 | DS3: ="no. of " & DR3 -> no. of HR7 | DT3: ="Salary " & DR3 -> Salary HR7 | DU3: ="Month " & DS3 & " TRUE/FALSE" -> Month no. of HR7 TRUE/FALSE | DV3: ="Months " & DR3 -> Months HR7 | DW3: HR Extra 1 | DX3: HR Extra 2 | DY3: Total costs HR | DZ3: List 1 | EA3: List 2 | EB3: List 3 | EC3: List 4 | ED3: For later | EE3: For later | EF3: For later | EG3: Descripion1 | EH3: Quantity 1 | EI3: Price 1 | EJ3: Cost proc 1 | EK3: Descripion 2 | EL3: Quantity 2 | EM3: Price 2 | EN3: Cost proc 2 | EO3: ="Description " & EP2 -> Description 3 | EP3: ="Quantity " & EP2 -> Quantity 3 | EQ3: ="Price " & EP2 -> Price 3 | ER3: ="Cost proc " & EP2 -> Cost proc 3 | ES3: ="Description " & ET2 -> Description 4 | ET3: ="Quantity " & ET2 -> Quantity 4 | EU3: ="Price " & ET2 -> Price 4 | EV3: ="Cost proc " & ET2 -> Cost proc 4 | EW3: ="Description " & EX2 -> Description 5 | EX3: ="Quantity " & EX2 -> Quantity 5 | EY3: ="Price " & EX2 -> Price 5 | EZ3: ="Cost proc " & EX2 -> Cost proc 5 | FA3: ="Description " & FB2 -> Description 6 | FB3: ="Quantity " & FB2 -> Quantity 6 | FC3: ="Price " & FB2 -> Price 6 | FD3: ="Cost proc " & FB2 -> Cost proc 6 | FE3: ="Description " & FF2 -> Description 7 | FF3: ="Quantity " & FF2 -> Quantity 7 | FG3: ="Price " & FF2 -> Price 7 | FH3: ="Cost proc " & FF2 -> Cost proc 7 | FI3: ="Description " & FJ2 -> Description 8 | FJ3: ="Quantity " & FJ2 -> Quantity 8 | FK3: ="Price " & FJ2 -> Price 8 | FL3: ="Cost proc " & FJ2 -> Cost proc 8 | FM3: ="Description " & FN2 -> Description 9 | FN3: ="Quantity " & FN2 -> Quantity 9 | FO3: ="Price " & FN2 -> Price 9 | FP3: ="Cost proc " & FN2 -> Cost proc 9 | FQ3: ="Description " & FR2 -> Description 10 | FR3: ="Quantity " & FR2 -> Quantity 10 | FS3: ="Price " & FR2 -> Price 10 | FT3: ="Cost proc " & FR2 -> Cost proc 10 | FU3: Total cost procurement | FV3: List 1 | FW3: List 2 | FX3: List 3 | FY3: List 4 | FZ3: Procurement category | GA3: For later | GB3: For later | GC3: For later | GD3: For later | GE3: Description other | GF3: Cost other | GG3: List 1 | GH3: List 2 | GI3: List 3 | GJ3: List 4
B4: Assessment recommendations: | C4: Please enter the list of recommendations in this single merged cell
B5: TECHNICAL AREA | C5: P1. Legal instruments | O5: Frequency per year of implementation | T5: Annual Cost Estimates | AB5: Monitoring and Evaluation | AG5: comptage category2 (colonne AA) | AH5: comptage coût(colonne N) | AI5: .
A6: UniqueID | B6: Indicator | C6: Objectives | D6: Summary of Key Activities (Strategic actions) | E6: Detailed activity description (input description for costing) | F6: Detailed cost assumptions (including units, unit costs, quantities, frequency, etc) | G6: Responsible authority for Implementation (budget holder) | H6: Implementation scale (National, regional, district, sub-national?) | I6: Comments1 (Potential challenges, comments on implementation arrangements, other) | J6: Comments2 (Potential challenges, comments on implementation arrangements, other) | K6: Related existing plan/ framework / Programme or on-going activities | L6: Existing budget(y/n) | M6: Existing budget source (government, donor?) | N6: Estimated cost (Local currency) | O6: =IF('Basic Input for Tool'!$C$7="","Year 1",'Basic Input for Tool'!$C$7) -> 2024 | P6: =IF('Basic Input for Tool'!$C$7="","Year 2",O6+1) -> 2025 | Q6: =IF('Basic Input for Tool'!$C$7="","Year 3",P6+1) -> 2026 | R6: =IF('Basic Input for Tool'!$C$7="","Year 4",Q6+1) -> 2027 | S6: =IF('Basic Input for Tool'!$C$7="","Year 5",R6+1) -> 2028 | T6: ="Cost estimate " & O6 -> Cost estimate 2024 | U6: ="Cost estimate " & P6 -> Cost estimate 2025 | V6: Cost estimate 2026 | W6: Cost estimate 2027 | X6: Cost estimate 2028 | Y6: TotalOver5Years | Z6: CostCategory1 | AA6: CostCategory2 | AB6: Output/Process | AC6: Outcome | AD6: Frequency of collection (monthly, six monthly, yearly..) | AE6: Source of verification | AG6: =COUNTA($AA7:$AA106) -> 4 | AH6: =COUNTA($N7:$N106) -> 4
B7: 1 | C7: 1.1 | D7: 1.1.1 | E7: 1.1.1.1 | F7: 3 days meeting for 30 non residents | G7: Ministry of Health | H7: National | K7: NHSSP | L7: Y | M7: Government | N7: =(((($AN7-$AO7)*$AP7*$AQ7+$AO7*($AP7+ExtraDaysFar)*$AR7)+($AS7*$AP7)+($AT7+$AU7)*$AP7*$AN7+$AV7*$AN7))+($AW7*$AZ7*$AX7+$AW7*$BA7*$AZ7+$AY7+$AN7*$BB7)+$BC7*$AP7+$BH7+$BI7 -> 175200 | O7: 1 | P7: 2 | Q7: 1 | T7: =IF($N7="Pending",0,$N7*O7) -> 175200 | U7: 350400 | V7: 175200 | W7: 0 | X7: 0 | Y7: =SUM(T7:X7) -> 700800 | Z7: Meeting | AA7: Capital | AB7: Indicator linked to Strategic action | AC7: Indicator linked to Objective | AD7: Year | AE7: Report of your legal analysis | AL7: Meeting | AN7: 30 | AO7: 30 | AP7: 3 | AQ7: 0 | AR7: 1480 | AS7: 3500 | AT7: 250 | AU7: 80 | AV7: 60 | AW7: 0 | AX7: 0 | AY7: 0 | AZ7: 0 | BA7: 0 | BB7: 0 | BC7: 0 | BD7: National | BE7: Capital | BF7: Meeting | BG7: Ministry of Health | BH7: 0 | BI7: 0
E8: 1.1.1.2 | F8: 5 days workshop for 30 non residents | G8: Ministry of Health | H8: National | K8: NHSSP | L8: N | N8: =(((($AN8-$AO8)*$AP8*$AQ8+$AO8*($AP8+ExtraDaysFar)*$AR8)+($AS8*$AP8)+($AT8+$AU8)*$AP8*$AN8+$AV8*$AN8))+($AW8*$AZ8*$AX8+$AW8*$BA8*$AZ8+$AY8+$AN8*$BB8)+$BC8*$AP8+$BH8+$BI8 -> 290800 | O8: 1 | T8: 290800 | U8: 0 | V8: 0 | W8: 0 | X8: 0 | Y8: =SUM(T8:X8) -> 290800 | Z8: Workshop | AA8: Capital | AL8: Workshop | AN8: 30 | AO8: 30 | AP8: 5 | AQ8: 0 | AR8: 1480 | AS8: 3500 | AT8: 250 | AU8: 80 | AV8: 60 | AW8: 0 | AX8: 0 | AY8: 0 | AZ8: 0 | BA8: 0 | BB8: 0 | BC8: 0 | BD8: National | BE8: Capital | BF8: Workshop | BG8: Ministry of Health | BH8: 0 | BI8: 0
E9: 1.1.1.3 | F9: Engage 2 international consultants for 15 days | G9: Ministry of Health | H9: National | K9: Pandmic Fund | L9: y | M9: Pandemic Fund | N9: =$CB9*$CC9*$CD9+$CB9*$CC9*$CE9+$CB9*$CF9 -> 247000 | P9: 1 | T9: =IF($N9="Pending",0,$N9*O9) -> 0 | U9: =IF($N9="Pending",0,$N9*P9) -> 247000 | V9: =IF($N9="Pending",0,$N9*Q9) -> 0 | W9: =IF($N9="Pending",0,$N9*R9) -> 0 | X9: =IF($N9="Pending",0,$N9*S9) -> 0 | Y9: =SUM(T9:X9) -> 247000 | Z9: Consultancy | AA9: Capital | AL9: Technical assistance | CA9: International | CB9: 1 | CC9: 15 | CD9: 1900 | CE9: 11900 | CF9: 40000 | CG9: 247000 | CH9: National | CI9: Capital | CJ9: Consultancy | CK9: Ministry of Health
D10: 1.1.2 | F10: Engage 2 national consultants for 15 days | G10: Ministry of Environment | H10: National | L10: y | M10: Government | N10: =$CB10*$CC10*$CD10+$CB10*$CC10*$CE10+$CB10*$CF10 -> 76200 | Q10: 1 | T10: 0 | U10: 0 | V10: 76200 | W10: 0 | X10: 0 | Y10: =SUM(T10:X10) -> 76200 | Z10: Consultancy | AA10: Capital | AL10: Technical assistance | CA10: National | CB10: 1 | CC10: 15 | CD10: 1480 | CE10: 3500 | CF10: 1500 | CG10: 76200 | CH10: National | CI10: Capital | CJ10: Consultancy | CK10: Ministry of Environment
T11: 0 | U11: 0 | V11: 0 | W11: 0 | X11: 0 | Y11: 0
T12: 0 | U12: 0 | V12: 0 | W12: 0 | X12: 0 | Y12: 0
D13: 1.1.3 | T13: 0 | U13: 0 | V13: 0 | W13: 0 | X13: 0 | Y13: 0
T14: 0 | U14: 0 | V14: 0 | W14: 0 | X14: 0 | Y14: 0
T15: 0 | U15: 0 | V15: 0 | W15: 0 | X15: 0 | Y15: 0
T16: =IF($N16="Pending",0,$N16*O16) -> 0 | U16: 0 | V16: 0 | W16: 0 | X16: 0 | Y16: =SUM(T16:X16) -> 0
C17: 1.2 | T17: =IF($N17="Pending",0,$N17*O17) -> 0 | U17: =IF($N17="Pending",0,$N17*P17) -> 0 | V17: =IF($N17="Pending",0,$N17*Q17) -> 0 | W17: =IF($N17="Pending",0,$N17*R17) -> 0 | X17: =IF($N17="Pending",0,$N17*S17) -> 0 | Y17: =SUM(T17:X17) -> 0
T18: 0 | U18: 0 | V18: 0 | W18: 0 | X18: 0 | Y18: 0
T19: 0 | U19: 0 | V19: 0 | W19: 0 | X19: 0 | Y19: 0
T20: 0 | U20: 0 | V20: 0 | W20: 0 | X20: 0 | Y20: 0
T21: 0 | U21: 0 | V21: 0 | W21: 0 | X21: 0 | Y21: 0
T22: 0 | U22: 0 | V22: 0 | W22: 0 | X22: 0 | Y22: 0
T23: 0 | U23: 0 | V23: 0 | W23: 0 | X23: 0 | Y23: 0
T24: 0 | U24: 0 | V24: 0 | W24: 0 | X24: 0 | Y24: 0
T25: 0 | U25: 0 | V25: 0 | W25: 0 | X25: 0 | Y25: 0
T26: 0 | U26: 0 | V26: 0 | W26: 0 | X26: 0 | Y26: 0
T27: 0 | U27: 0 | V27: 0 | W27: 0 | X27: 0 | Y27: 0
T28: 0 | U28: 0 | V28: 0 | W28: 0 | X28: 0 | Y28: 0
T29: 0 | U29: 0 | V29: 0 | W29: 0 | X29: 0 | Y29: 0
T30: 0 | U30: 0 | V30: 0 | W30: 0 | X30: 0 | Y30: 0
T31: 0 | U31: 0 | V31: 0 | W31: 0 | X31: 0 | Y31: 0
T32: 0 | U32: 0 | V32: 0 | W32: 0 | X32: 0 | Y32: 0
T33: 0 | U33: 0 | V33: 0 | W33: 0 | X33: 0 | Y33: 0
T34: 0 | U34: 0 | V34: 0 | W34: 0 | X34: 0 | Y34: 0
T35: 0 | U35: 0 | V35: 0 | W35: 0 | X35: 0 | Y35: 0
T36: 0 | U36: 0 | V36: 0 | W36: 0 | X36: 0 | Y36: 0
T37: 0 | U37: 0 | V37: 0 | W37: 0 | X37: 0 | Y37: 0
T38: 0 | U38: 0 | V38: 0 | W38: 0 | X38: 0 | Y38: 0
T39: 0 | U39: 0 | V39: 0 | W39: 0 | X39: 0 | Y39: 0
T40: 0 | U40: 0 | V40: 0 | W40: 0 | X40: 0 | Y40: 0
T41: 0 | U41: 0 | V41: 0 | W41: 0 | X41: 0 | Y41: 0
T42: 0 | U42: 0 | V42: 0 | W42: 0 | X42: 0 | Y42: 0
T43: 0 | U43: 0 | V43: 0 | W43: 0 | X43: 0 | Y43: 0
T44: 0 | U44: 0 | V44: 0 | W44: 0 | X44: 0 | Y44: 0
T45: 0 | U45: 0 | V45: 0 | W45: 0 | X45: 0 | Y45: 0
T46: 0 | U46: 0 | V46: 0 | W46: 0 | X46: 0 | Y46: 0
T47: 0 | U47: 0 | V47: 0 | W47: 0 | X47: 0 | Y47: 0
T48: 0 | U48: 0 | V48: 0 | W48: 0 | X48: 0 | Y48: 0
T49: 0 | U49: 0 | V49: 0 | W49: 0 | X49: 0 | Y49: 0
T50: 0 | U50: 0 | V50: 0 | W50: 0 | X50: 0 | Y50: 0
T51: 0 | U51: 0 | V51: 0 | W51: 0 | X51: 0 | Y51: 0
T52: 0 | U52: 0 | V52: 0 | W52: 0 | X52: 0 | Y52: 0
T53: 0 | U53: 0 | V53: 0 | W53: 0 | X53: 0 | Y53: 0
T54: 0 | U54: 0 | V54: 0 | W54: 0 | X54: 0 | Y54: 0
T55: 0 | U55: 0 | V55: 0 | W55: 0 | X55: 0 | Y55: 0
T56: 0 | U56: 0 | V56: 0 | W56: 0 | X56: 0 | Y56: 0
T57: 0 | U57: 0 | V57: 0 | W57: 0 | X57: 0 | Y57: 0
T58: 0 | U58: 0 | V58: 0 | W58: 0 | X58: 0 | Y58: 0
T59: 0 | U59: 0 | V59: 0 | W59: 0 | X59: 0 | Y59: 0
T60: 0 | U60: 0 | V60: 0 | W60: 0 | X60: 0 | Y60: 0
T61: 0 | U61: 0 | V61: 0 | W61: 0 | X61: 0 | Y61: 0
T62: 0 | U62: 0 | V62: 0 | W62: 0 | X62: 0 | Y62: 0
T63: 0 | U63: 0 | V63: 0 | W63: 0 | X63: 0 | Y63: 0
T64: 0 | U64: 0 | V64: 0 | W64: 0 | X64: 0 | Y64: 0
T65: 0 | U65: 0 | V65: 0 | W65: 0 | X65: 0 | Y65: 0
T66: 0 | U66: 0 | V66: 0 | W66: 0 | X66: 0 | Y66: 0
T67: 0 | U67: 0 | V67: 0 | W67: 0 | X67: 0 | Y67: 0
T68: 0 | U68: 0 | V68: 0 | W68: 0 | X68: 0 | Y68: 0
T69: 0 | U69: 0 | V69: 0 | W69: 0 | X69: 0 | Y69: 0
T70: 0 | U70: 0 | V70: 0 | W70: 0 | X70: 0 | Y70: 0
T71: 0 | U71: 0 | V71: 0 | W71: 0 | X71: 0 | Y71: 0
T72: =IF($N72="Pending",0,$N72*O72) -> 0 | U72: =IF($N72="Pending",0,$N72*P72) -> 0 | V72: =IF($N72="Pending",0,$N72*Q72) -> 0 | W72: =IF($N72="Pending",0,$N72*R72) -> 0 | X72: =IF($N72="Pending",0,$N72*S72) -> 0 | Y72: =SUM(T72:X72) -> 0
T73: 0 | U73: 0 | V73: 0 | W73: 0 | X73: 0 | Y73: 0
T74: 0 | U74: 0 | V74: 0 | W74: 0 | X74: 0 | Y74: 0
T75: 0 | U75: 0 | V75: 0 | W75: 0 | X75: 0 | Y75: 0
T76: 0 | U76: 0 | V76: 0 | W76: 0 | X76: 0 | Y76: 0
T77: 0 | U77: 0 | V77: 0 | W77: 0 | X77: 0 | Y77: 0
T78: 0 | U78: 0 | V78: 0 | W78: 0 | X78: 0 | Y78: 0
T79: 0 | U79: 0 | V79: 0 | W79: 0 | X79: 0 | Y79: 0
T80: 0 | U80: 0 | V80: 0 | W80: 0 | X80: 0 | Y80: 0
T81: 0 | U81: 0 | V81: 0 | W81: 0 | X81: 0 | Y81: 0
T82: 0 | U82: 0 | V82: 0 | W82: 0 | X82: 0 | Y82: 0
T83: 0 | U83: 0 | V83: 0 | W83: 0 | X83: 0 | Y83: 0
T84: 0 | U84: 0 | V84: 0 | W84: 0 | X84: 0 | Y84: 0
T85: 0 | U85: 0 | V85: 0 | W85: 0 | X85: 0 | Y85: 0
T86: 0 | U86: 0 | V86: 0 | W86: 0 | X86: 0 | Y86: 0
T87: 0 | U87: 0 | V87: 0 | W87: 0 | X87: 0 | Y87: 0
T88: 0 | U88: 0 | V88: 0 | W88: 0 | X88: 0 | Y88: 0
T89: 0 | U89: 0 | V89: 0 | W89: 0 | X89: 0 | Y89: 0
T90: 0 | U90: 0 | V90: 0 | W90: 0 | X90: 0 | Y90: 0
T91: =IF($N91="Pending",0,$N91*O91) -> 0 | U91: =IF($N91="Pending",0,$N91*P91) -> 0 | V91: =IF($N91="Pending",0,$N91*Q91) -> 0 | W91: =IF($N91="Pending",0,$N91*R91) -> 0 | X91: =IF($N91="Pending",0,$N91*S91) -> 0 | Y91: =SUM(T91:X91) -> 0
T92: 0 | U92: 0 | V92: 0 | W92: 0 | X92: 0 | Y92: 0
T93: 0 | U93: 0 | V93: 0 | W93: 0 | X93: 0 | Y93: 0
T94: 0 | U94: 0 | V94: 0 | W94: 0 | X94: 0 | Y94: 0
T95: 0 | U95: 0 | V95: 0 | W95: 0 | X95: 0 | Y95: 0
T96: 0 | U96: 0 | V96: 0 | W96: 0 | X96: 0 | Y96: 0
T97: 0 | U97: 0 | V97: 0 | W97: 0 | X97: 0 | Y97: 0
T98: 0 | U98: 0 | V98: 0 | W98: 0 | X98: 0 | Y98: 0
T99: 0 | U99: 0 | V99: 0 | W99: 0 | X99: 0 | Y99: 0
T100: 0 | U100: 0 | V100: 0 | W100: 0 | X100: 0 | Y100: 0
T101: =IF($N101="Pending",0,$N101*O101) -> 0 | U101: =IF($N101="Pending",0,$N101*P101) -> 0 | V101: =IF($N101="Pending",0,$N101*Q101) -> 0 | W101: =IF($N101="Pending",0,$N101*R101) -> 0 | X101: =IF($N101="Pending",0,$N101*S101) -> 0 | Y101: =SUM(T101:X101) -> 0
T102: 0 | U102: 0 | V102: 0 | W102: 0 | X102: 0 | Y102: 0
T103: 0 | U103: 0 | V103: 0 | W103: 0 | X103: 0 | Y103: 0
T104: 0 | U104: 0 | V104: 0 | W104: 0 | X104: 0 | Y104: 0
T105: 0 | U105: 0 | V105: 0 | W105: 0 | X105: 0 | Y105: 0
T106: 0 | U106: 0 | V106: 0 | W106: 0 | X106: 0 | Y106: 0
S108: TOTALS | T108: =SUM(T7:T106) -> 466000 | U108: 597400 | V108: 251400 | W108: 0 | X108: 0 | Y108: 1314800
T110: =T6 -> Cost estimate 2024 | U110: Cost estimate 2025 | V110: Cost estimate 2026 | W110: Cost estimate 2027 | X110: Cost estimate 2028 | Y110: TotalOver5Years | Z110: =SUM(Y111:Y133) -> 1314800
S111: ='Basic Input for Tool'!$D65 -> Meeting | T111: =SUMIF($Z$7:$Z$106,$S111,T$7:T$106) -> 175200 | U111: 350400 | V111: 175200 | W111: 0 | X111: 0 | Y111: 700800
S112: ='Basic Input for Tool'!$D66 -> Training | T112: 0 | U112: 0 | V112: 0 | W112: 0 | X112: 0 | Y112: 0
S113: ='Basic Input for Tool'!$D67 -> Workshop | T113: 290800 | U113: 0 | V113: 0 | W113: 0 | X113: 0 | Y113: 290800
S114: ='Basic Input for Tool'!$D68 -> SOP development | T114: 0 | U114: 0 | V114: 0 | W114: 0 | X114: 0 | Y114: 0
S115: ='Basic Input for Tool'!$D69 -> Communication | T115: 0 | U115: 0 | V115: 0 | W115: 0 | X115: 0 | Y115: 0
S116: ='Basic Input for Tool'!$D70 -> Construction | T116: 0 | U116: 0 | V116: 0 | W116: 0 | X116: 0 | Y116: 0
S117: ='Basic Input for Tool'!$D71 -> Consultancy | T117: 0 | U117: 247000 | V117: 76200 | W117: 0 | X117: 0 | Y117: 323200
S118: ='Basic Input for Tool'!$D72 -> Evaluation | T118: 0 | U118: 0 | V118: 0 | W118: 0 | X118: 0 | Y118: 0
S119: ='Basic Input for Tool'!$D73 -> Field visit | T119: 0 | U119: 0 | V119: 0 | W119: 0 | X119: 0 | Y119: 0
S120: ='Basic Input for Tool'!$D74 -> Human resources | T120: 0 | U120: 0 | V120: 0 | W120: 0 | X120: 0 | Y120: 0
S121: ='Basic Input for Tool'!$D75 -> Infrastructure | T121: =SUMIF($Z$7:$Z$106,$S121,T$7:T$106) -> 0 | U121: 0 | V121: 0 | W121: 0 | X121: 0 | Y121: 0
S122: ='Basic Input for Tool'!$D76 -> Document reproduction/printing | T122: 0 | U122: 0 | V122: 0 | W122: 0 | X122: 0 | Y122: 0
S123: ='Basic Input for Tool'!$D77 -> Procurement | T123: 0 | U123: 0 | V123: 0 | W123: 0 | X123: 0 | Y123: 0
S124: ='Basic Input for Tool'!$D78 -> Services | T124: 0 | U124: 0 | V124: 0 | W124: 0 | X124: 0 | Y124: 0
S125: ='Basic Input for Tool'!$D79 -> Simulation exercises | T125: 0 | U125: 0 | V125: 0 | W125: 0 | X125: 0 | Y125: 0
S126: ='Basic Input for Tool'!$D80 -> Advocacy | T126: 0 | U126: 0 | V126: 0 | W126: 0 | X126: 0 | Y126: 0
S127: ='Basic Input for Tool'!$D81 -> Study | T127: 0 | U127: 0 | V127: 0 | W127: 0 | X127: 0 | Y127: 0
S128: ='Basic Input for Tool'!$D82 -> Campaign | T128: 0 | U128: 0 | V128: 0 | W128: 0 | X128: 0 | Y128: 0
S129: ='Basic Input for Tool'!$D83 -> Other | T129: 0 | U129: 0 | V129: 0 | W129: 0 | X129: 0 | Y129: 0
S130: ='Basic Input for Tool'!$D84 -> Other 2 | T130: 0 | U130: 0 | V130: 0 | W130: 0 | X130: 0 | Y130: 0
S131: ='Basic Input for Tool'!$D85 -> Other 3 | T131: 0 | U131: 0 | V131: 0 | W131: 0 | X131: 0 | Y131: 0
S132: ='Basic Input for Tool'!$D86 -> Other 4 | T132: 0 | U132: 0 | V132: 0 | W132: 0 | X132: 0 | Y132: 0
S133: ='Basic Input for Tool'!$D87 -> Other 5 | T133: 0 | U133: 0 | V133: 0 | W133: 0 | X133: 0 | Y133: 0
T136: =T6 -> Cost estimate 2024 | U136: Cost estimate 2025 | V136: Cost estimate 2026 | W136: Cost estimate 2027 | X136: Cost estimate 2028 | Y136: TotalOver5Years | Z136: =SUM(Y137:Y146) -> 1314800
S137: ='Basic Input for Tool'!$C$65 -> Capital | T137: =SUMIF($AA$7:$AA$106,$S137,T$7:T$106) -> 466000 | U137: 597400 | V137: 251400 | W137: 0 | X137: 0 | Y137: 1314800
S138: ='Basic Input for Tool'!$C$66 -> Recurrent | T138: 0 | U138: 0 | V138: 0 | W138: 0 | X138: 0 | Y138: 0
S139: ='Basic Input for Tool'!$C$67 -> Other 1 | T139: 0 | U139: 0 | V139: 0 | W139: 0 | X139: 0 | Y139: 0
S140: ='Basic Input for Tool'!$C$68 -> Other 2 | T140: 0 | U140: 0 | V140: 0 | W140: 0 | X140: 0 | Y140: 0
S141: ='Basic Input for Tool'!$C$69 -> 0 | T141: 0 | U141: 0 | V141: 0 | W141: 0 | X141: 0 | Y141: 0
S142: ='Basic Input for Tool'!$C$70 -> 0 | T142: 0 | U142: 0 | V142: 0 | W142: 0 | X142: 0 | Y142: 0
S143: ='Basic Input for Tool'!$C$71 -> 0 | T143: 0 | U143: 0 | V143: 0 | W143: 0 | X143: 0 | Y143: 0
S144: ='Basic Input for Tool'!$C$72 -> 0 | T144: 0 | U144: 0 | V144: 0 | W144: 0 | X144: 0 | Y144: 0
S145: ='Basic Input for Tool'!$C$73 -> 0 | T145: 0 | U145: 0 | V145: 0 | W145: 0 | X145: 0 | Y145: 0
S146: ='Basic Input for Tool'!$C$74 -> 0 | T146: 0 | U146: 0 | V146: 0 | W146: 0 | X146: 0 | Y146: 0
T149: =T6 -> Cost estimate 2024 | U149: Cost estimate 2025 | V149: Cost estimate 2026 | W149: Cost estimate 2027 | X149: Cost estimate 2028 | Y149: TotalOver5Years | Z149: =SUM(Y150:Y153) -> 1314800
S150: ='Basic Input for Tool'!$B$65 -> National | T150: =SUMIF($H$7:$H$106,$S150,T$7:T$106) -> 466000 | U150: 597400 | V150: 251400 | W150: 0 | X150: 0 | Y150: 1314800
S151: ='Basic Input for Tool'!$B$66 -> Central | T151: 0 | U151: 0 | V151: 0 | W151: 0 | X151: 0 | Y151: 0
S152: ='Basic Input for Tool'!$B$67 -> SNU1 (province/region/etat) | T152: 0 | U152: 0 | V152: 0 | W152: 0 | X152: 0 | Y152: 0
S153: ='Basic Input for Tool'!$B$68 -> SNU2 (district/county) | T153: 0 | U153: 0 | V153: 0 | W153: 0 | X153: 0 | Y153: 0
T156: =T6 -> Cost estimate 2024 | U156: Cost estimate 2025 | V156: Cost estimate 2026 | W156: Cost estimate 2027 | X156: Cost estimate 2028 | Y156: TotalOver5Years | Z156: =SUM(Y157:Y179) -> 1314800
S157: ='Basic Input for Tool'!$E$65 -> Ministry of Health | T157: =SUMIF($G$7:$G$106,$S157,T$7:T$106) -> 466000 | U157: 597400 | V157: 175200 | W157: 0 | X157: 0 | Y157: 1238600
S158: ='Basic Input for Tool'!$E$66 -> Ministry of Finance | T158: 0 | U158: 0 | V158: 0 | W158: 0 | X158: 0 | Y158: 0
S159: ='Basic Input for Tool'!$E$67 -> Ministry of Agriculture | T159: 0 | U159: 0 | V159: 0 | W159: 0 | X159: 0 | Y159: 0
S160: ='Basic Input for Tool'!$E$68 -> Ministry of Environment | T160: 0 | U160: 0 | V160: 76200 | W160: 0 | X160: 0 | Y160: 76200
S161: ='Basic Input for Tool'!$E$69 -> Other 2 | T161: 0 | U161: 0 | V161: 0 | W161: 0 | X161: 0 | Y161: 0
S162: ='Basic Input for Tool'!$E$70 -> Other 3 | T162: 0 | U162: 0 | V162: 0 | W162: 0 | X162: 0 | Y162: 0
S163: ='Basic Input for Tool'!$E$71 -> Other 4 | T163: 0 | U163: 0 | V163: 0 | W163: 0 | X163: 0 | Y163: 0
S164: ='Basic Input for Tool'!$E$72 -> Other 5 | T164: 0 | U164: 0 | V164: 0 | W164: 0 | X164: 0 | Y164: 0
S165: ='Basic Input for Tool'!$E$73 -> Other 6 | T165: 0 | U165: 0 | V165: 0 | W165: 0 | X165: 0 | Y165: 0
S166: ='Basic Input for Tool'!$E74 -> Other 7 | T166: 0 | U166: 0 | V166: 0 | W166: 0 | X166: 0 | Y166: 0
S167: ='Basic Input for Tool'!$E75 -> Other 8 | T167: =SUMIF($G$7:$G$106,$S167,T$7:T$106) -> 0 | U167: 0 | V167: 0 | W167: 0 | X167: 0 | Y167: 0
S168: ='Basic Input for Tool'!$E76 -> Other 9 | T168: 0 | U168: 0 | V168: 0 | W168: 0 | X168: 0 | Y168: 0
S169: ='Basic Input for Tool'!$E77 -> Other 10 | T169: 0 | U169: 0 | V169: 0 | W169: 0 | X169: 0 | Y169: 0
S170: ='Basic Input for Tool'!$E78 -> Other 11 | T170: 0 | U170: 0 | V170: 0 | W170: 0 | X170: 0 | Y170: 0
S171: ='Basic Input for Tool'!$E79 -> Other 12 | T171: 0 | U171: 0 | V171: 0 | W171: 0 | X171: 0 | Y171: 0
S172: ='Basic Input for Tool'!$E80 -> Other 13 | T172: 0 | U172: 0 | V172: 0 | W172: 0 | X172: 0 | Y172: 0
S173: ='Basic Input for Tool'!$E81 -> Other 14 | T173: 0 | U173: 0 | V173: 0 | W173: 0 | X173: 0 | Y173: 0
S174: ='Basic Input for Tool'!$E82 -> Other 15 | T174: 0 | U174: 0 | V174: 0 | W174: 0 | X174: 0 | Y174: 0
S175: ='Basic Input for Tool'!$E83 -> Other 16 | T175: 0 | U175: 0 | V175: 0 | W175: 0 | X175: 0 | Y175: 0
S176: ='Basic Input for Tool'!$E84 -> Other 17 | T176: 0 | U176: 0 | V176: 0 | W176: 0 | X176: 0 | Y176: 0
S177: ='Basic Input for Tool'!$E85 -> Other 18 | T177: 0 | U177: 0 | V177: 0 | W177: 0 | X177: 0 | Y177: 0
S178: ='Basic Input for Tool'!$E86 -> Other 19 | T178: 0 | U178: 0 | V178: 0 | W178: 0 | X178: 0 | Y178: 0
S179: ='Basic Input for Tool'!$E87 -> Other 20 | T179: 0 | U179: 0 | V179: 0 | W179: 0 | X179: 0 | Y179: 0
T182: =T6 -> Cost estimate 2024 | U182: =U6 -> Cost estimate 2025 | V182: Cost estimate 2026 | W182: Cost estimate 2027 | X182: Cost estimate 2028 | Y182: TotalOver5Years | Z182: =SUM(Y183:Y184) -> 1314800
R183: Yes | S183: Funded | T183: =SUM(SUMIFS(T$7:T$106,$L7:$L106,{"yes","y","funded"})) -> 175200 | U183: =SUM(SUMIFS(U$7:U$106,$L7:$L106,{"yes","y","funded"})) -> 597400 | V183: =SUM(SUMIFS(V$7:V$106,$L7:$L106,{"yes","y","funded"})) -> 251400 | W183: =SUM(SUMIFS(W$7:W$106,$L7:$L106,{"yes","y","funded"})) -> 0 | X183: =SUM(SUMIFS(X$7:X$106,$L7:$L106,{"yes","y","funded"})) -> 0 | Y183: =SUM(SUMIFS(Y$7:Y$106,$L7:$L106,{"yes","y","funded"})) -> 1024000
R184: No | S184: Not funded | T184: =SUM(SUMIFS(T$7:T$106,$L7:$L106,{"no","n","not funded"})) -> 290800 | U184: =SUM(SUMIFS(U$7:U$106,$L7:$L106,{"no","n","not funded"})) -> 0 | V184: =SUM(SUMIFS(V$7:V$106,$L7:$L106,{"no","n","not funded"})) -> 0 | W184: =SUM(SUMIFS(W$7:W$106,$L7:$L106,{"no","n","not funded"})) -> 0 | X184: =SUM(SUMIFS(X$7:X$106,$L7:$L106,{"no","n","not funded"})) -> 0 | Y184: =SUM(SUMIFS(Y$7:Y$106,$L7:$L106,{"no","n","not funded"})) -> 290800

Sheet P2. Financing
A1: =IF(ISNA(VLOOKUP(CountryName,CountriesCodes,2,FALSE))=TRUE,"",VLOOKUP(CountryName,CountriesCodes,2,FALSE)& "IHR") -> ETH IHR | B1: ="PLANNING AND COSTING MATRIX FOR THE DEVELOPMENT OF NATIONAL ACTION PLAN FOR HEALTH SECURITY " & O6 &" - " & S6 -> PLANNING AND COSTING MATRIX FOR THE DEVELOPMENT OF NATIONAL ACTION PLAN FOR HEALTH SECURITY 2024 - 2028 | AM1: 1 | AN1: 2 | AO1: 3 | AP1: 4 | AQ1: 5 | AR1: 6 | AS1: 7 | AT1: 8 | AU1: 9 | AV1: 10 | AW1: 11 | AX1: 12 | AY1: 13 | AZ1: 14 | BA1: 15 | BB1: 16 | BC1: 17 | BD1: 18 | BE1: 19 | BF1: 20 | BG1: 21 | BH1: 22 | BI1: 23 | BJ1: 24 | BK1: 25 | BL1: 26 | BM1: 27 | BN1: 28 | BO1: 29 | BP1: 30 | BQ1: 31 | BR1: 32 | BS1: 33 | BT1: 34 | BU1: 35 | BV1: 36 | BW1: 37 | BX1: 38 | BY1: 39 | BZ1: 40 | CA1: 41 | CB1: 42 | CC1: 43 | CD1: 44 | CE1: 45 | CF1: 46 | CG1: 47 | CH1: 48 | CI1: 49 | CJ1: 50 | CK1: 51 | CL1: 52 | CM1: 53 | CN1: 54 | CO1: 55 | CP1: 56 | CQ1: 57 | CR1: 58 | CS1: 59 | CT1: 60 | CU1: 61 | CV1: 62 | CW1: 63 | CX1: 64 | CY1: 65 | CZ1: 66 | DA1: 67 | DB1: 68 | DC1: 69 | DD1: 70 | DE1: 71 | DF1: 72 | DG1: 73 | DH1: 74 | DI1: 75 | DJ1: 76 | DK1: 77 | DL1: 78 | DM1: 79 | DN1: 80 | DO1: 81 | DP1: 82 | DQ1: 83 | DR1: 84 | DS1: 85 | DT1: 86 | DU1: 87 | DV1: 88 | DW1: 89 | DX1: 90 | DY1: 91 | DZ1: 92 | EA1: 93 | EB1: 94 | EC1: 95 | ED1: 96 | EE1: 97 | EF1: 98 | EG1: 99 | EH1: 100 | EI1: 101 | EJ1: 102 | EK1: 103 | EL1: 104 | EM1: 105 | EN1: 106 | EO1: 107 | EP1: 108 | EQ1: 109 | ER1: 110 | ES1: 111 | ET1: 112 | EU1: 113 | EV1: 114 | EW1: 115 | EX1: 116 | EY1: 117 | EZ1: 118 | FA1: 119 | FB1: 120 | FC1: 121 | FD1: 122 | FE1: 123 | FF1: 124 | FG1: 125 | FH1: 126 | FI1: 127 | FJ1: 128 | FK1: 129 | FL1: 130 | FM1: 131 | FN1: 132 | FO1: 133 | FP1: 134 | FQ1: 135 | FR1: 136 | FS1: 137 | FT1: 138 | FU1: 139 | FV1: 140 | FW1: 141 | FX1: 142 | FY1: 143 | FZ1: 144 | GA1: 145 | GB1: 146 | GC1: 147 | GD1: 148 | GE1: 149 | GF1: 150 | GG1: 151 | GH1: 152 | GI1: 153 | GJ1: 154 | GK1: 155 | XEQ1: Formula for meeting | XER1: Consultant | XES1: Field Visit
A2: 101 | B2: PREVENT | AN2: Meeting DATA | BJ2: FIELD VISITS | CA2: CONSULTANT | CN2: =+CL2+1 -> 1 | CS2: =CN2+1 -> 2 | CX2: =CS2+1 -> 3 | DC2: =CX2+1 -> 4 | DH2: =DC2+1 -> 5 | DM2: =DH2+1 -> 6 | DR2: =DM2+1 -> 7 | EG2: PROCUREMENT | EI2: 1 | EK2: =+EG2 -> PROCUREMENT | EL2: =+EI2+1 -> 2 | EO2: =+EK2 -> PROCUREMENT | EP2: =EL2+1 -> 3 | ES2: =+EO2 -> PROCUREMENT | ET2: =EP2+1 -> 4 | EW2: =+ES2 -> PROCUREMENT | EX2: =ET2+1 -> 5 | FA2: =+EW2 -> PROCUREMENT | FB2: =EX2+1 -> 6 | FE2: =+FA2 -> PROCUREMENT | FF2: =FB2+1 -> 7 | FI2: =+FE2 -> PROCUREMENT | FJ2: =FF2+1 -> 8 | FM2: =+FI2 -> PROCUREMENT | FN2: =FJ2+1 -> 9 | FQ2: =+FM2 -> PROCUREMENT | FR2: =FN2+1 -> 10 | GE2: Other | XEQ2: =(((($AN2-$AO2)*$AP2*$AQ2+$AO2*($AP2+ExtraDaysFar)*$AR2)+($AS2*$AP2)+($AT2+$AU2)*$AP2*$AN2+$AV2*$AN2))+($AW2*$AZ2*$AX2+$AW2*$BA2*$AZ2+$AY2+$AN2*$BB2)+$BC2*$AP2+$BH2+$BI2 ->  | XER2: =$CB2*$CC2*$CD2+$CB2*$CC2*$CE2+$CB2*$CF2 -> 0 | XES2: =$BJ2*$BK2*$BL2+$BN2*$BK2*($BO2+$BP2)+$BQ2*$BK2*$BR2+$BS2 -> 
B3: General Objective: To prevent and reduce the likelihood of outbreaks and other public health hazards and events defined by IHR (2005). | AK3: Unique ID | AL3: Category | AM3: Total cost | AN3: Participants | AO3: Away participants | AP3: No of days | AQ3: Per diem | AR3: Per diem away | AS3: Rent of venue | AT3: Lunch | AU3: Tea break | AV3: Stationary | AW3: No of trainers | AX3: Trainer fee | AY3: Extra for trainer | AZ3: No of days for trainer | BA3: Trainer per diem | BB3: Extra pp | BC3: Extra on top | BD3: List 1 | BE3: List 2 | BF3: List 3 | BG3: For later | BH3: For later | BI3: For later | BJ3: No of supervisors | BK3: No of days | BL3: Per diem | BM3: Vehicle category | BN3: No of vehicles | BO3: Cost per day per vehicle | BP3: Fuel cost per day | BQ3: No of drivers | BR3: Driver per diem | BS3: Extra per field visit | BT3: Total costs | BU3: List 1 | BV3: List 2 | BW3: List 3 | BX3: List4 | BY3: For later | BZ3: For later | CA3: International national | CB3: No of consultants | CC3: Number of days consultants | CD3: Per diem consultant | CE3: Consultant rate | CF3: Consultant travel | CG3: Total consult | CH3: List 1 | CI3: List 2 | CJ3: List 3 | CK3: List4 | CL3: For later | CM3: For later | CN3: ="HR" &CN2 -> HR1 | CO3: ="no. of " & CN3 -> no. of HR1 | CP3: ="Salary " & CN3 -> Salary HR1 | CQ3: ="Month " & CO3 & " TRUE/FALSE" -> Month no. of HR1 TRUE/FALSE | CR3: ="Months " & CN3 -> Months HR1 | CS3: ="HR" &CS2 -> HR2 | CT3: ="no. of " & CS3 -> no. of HR2 | CU3: ="Salary " & CS3 -> Salary HR2 | CV3: ="Month " & CT3 & " TRUE/FALSE" -> Month no. of HR2 TRUE/FALSE | CW3: ="Months " & CS3 -> Months HR2 | CX3: ="HR" &CX2 -> HR3 | CY3: ="no. of " & CX3 -> no. of HR3 | CZ3: ="Salary " & CX3 -> Salary HR3 | DA3: ="Month " & CY3 & " TRUE/FALSE" -> Month no. of HR3 TRUE/FALSE | DB3: ="Months " & CX3 -> Months HR3 | DC3: ="HR" &DC2 -> HR4 | DD3: ="no. of " & DC3 -> no. of HR4 | DE3: ="Salary " & DC3 -> Salary HR4 | DF3: ="Month " & DD3 & " TRUE/FALSE" -> Month no. of HR4 TRUE/FALSE | DG3: ="Months " & DC3 -> Months HR4 | DH3: ="HR" &DH2 -> HR5 | DI3: ="no. of " & DH3 -> no. of HR5 | DJ3: ="Salary " & DH3 -> Salary HR5 | DK3: ="Month " & DI3 & " TRUE/FALSE" -> Month no. of HR5 TRUE/FALSE | DL3: ="Months " & DH3 -> Months HR5 | DM3: ="HR" &DM2 -> HR6 | DN3: ="no. of " & DM3 -> no. of HR6 | DO3: ="Salary " & DM3 -> Salary HR6 | DP3: ="Month " & DN3 & " TRUE/FALSE" -> Month no. of HR6 TRUE/FALSE | DQ3: ="Months " & DM3 -> Months HR6 | DR3: ="HR" &DR2 -> HR7 | DS3: ="no. of " & DR3 -> no. of HR7 | DT3: ="Salary " & DR3 -> Salary HR7 | DU3: ="Month " & DS3 & " TRUE/FALSE" -> Month no. of HR7 TRUE/FALSE | DV3: ="Months " & DR3 -> Months HR7 | DW3: HR Extra 1 | DX3: HR Extra 2 | DY3: Total costs HR | DZ3: List 1 | EA3: List 2 | EB3: List 3 | EC3: List 4 | ED3: For later | EE3: For later | EF3: For later | EG3: Descripion1 | EH3: Quantity 1 | EI3: Price 1 | EJ3: Cost proc 1 | EK3: Descripion 2 | EL3: Quantity 2 | EM3: Price 2 | EN3: Cost proc 2 | EO3: ="Description " & EP2 -> Description 3 | EP3: ="Quantity " & EP2 -> Quantity 3 | EQ3: ="Price " & EP2 -> Price 3 | ER3: ="Cost proc " & EP2 -> Cost proc 3 | ES3: ="Description " & ET2 -> Description 4 | ET3: ="Quantity " & ET2 -> Quantity 4 | EU3: ="Price " & ET2 -> Price 4 | EV3: ="Cost proc " & ET2 -> Cost proc 4 | EW3: ="Description " & EX2 -> Description 5 | EX3: ="Quantity " & EX2 -> Quantity 5 | EY3: ="Price " & EX2 -> Price 5 | EZ3: ="Cost proc " & EX2 -> Cost proc 5 | FA3: ="Description " & FB2 -> Description 6 | FB3: ="Quantity " & FB2 -> Quantity 6 | FC3: ="Price " & FB2 -> Price 6 | FD3: ="Cost proc " & FB2 -> Cost proc 6 | FE3: ="Description " & FF2 -> Description 7 | FF3: ="Quantity " & FF2 -> Quantity 7 | FG3: ="Price " & FF2 -> Price 7 | FH3: ="Cost proc " & FF2 -> Cost proc 7 | FI3: ="Description " & FJ2 -> Description 8 | FJ3: ="Quantity " & FJ2 -> Quantity 8 | FK3: ="Price " & FJ2 -> Price 8 | FL3: ="Cost proc " & FJ2 -> Cost proc 8 | FM3: ="Description " & FN2 -> Description 9 | FN3: ="Quantity " & FN2 -> Quantity 9 | FO3: ="Price " & FN2 -> Price 9 | FP3: ="Cost proc " & FN2 -> Cost proc 9 | FQ3: ="Description " & FR2 -> Description 10 | FR3: ="Quantity " & FR2 -> Quantity 10 | FS3: ="Price " & FR2 -> Price 10 | FT3: ="Cost proc " & FR2 -> Cost proc 10 | FU3: Total cost procurement | FV3: List 1 | FW3: List 2 | FX3: List 3 | FY3: List 4 | FZ3: Procurement category | GA3: For later | GB3: For later | GC3: For later | GD3: For later | GE3: Description other | GF3: Cost other | GG3: List 1 | GH3: List 2 | GI3: List 3 | GJ3: List 4
B4: Assessment recommendations: | C4: Please enter the list of recommendations in this single merged cell
B5: TECHNICAL AREA | C5: P2. Financing | O5: Frequency per year of implementation | T5: Annual Cost Estimates | AB5: Monitoring and Evaluation | AG5: comptage category2 (colonne AA) | AH5: comptage coût(colonne N) | AI5: . | AJ5: .
A6: UniqueID | B6: Indicator | C6: Objectives | D6: Summary of Key Activities (Strategic actions) | E6: Detailed activity description (input description for costing) | F6: Detailed cost assumptions (including units, unit costs, quantities, frequency, etc) | G6: Responsible authority for Implementation (budget holder) | H6: Implementation scale (National, regional, district, sub-national?) | I6: Comments1 (Potential challenges, comments on implementation arrangements, other) | J6: Comments2 (Potential challenges, comments on implementation arrangements, other) | K6: Related existing plan/ framework / Programme or on-going activities | L6: Existing budget(y/n) | M6: Existing budget source (government, donor?) | N6: Estimated cost (Local currency) | O6: =IF('Basic Input for Tool'!$C$7="","Year 1",'Basic Input for Tool'!$C$7) -> 2024 | P6: =IF('Basic Input for Tool'!$C$7="","Year 2",O6+1) -> 2025 | Q6: =IF('Basic Input for Tool'!$C$7="","Year 3",P6+1) -> 2026 | R6: =IF('Basic Input for Tool'!$C$7="","Year 4",Q6+1) -> 2027 | S6: =IF('Basic Input for Tool'!$C$7="","Year 5",R6+1) -> 2028 | T6: ="Cost estimate " & O6 -> Cost estimate 2024 | U6: ="Cost estimate " & P6 -> Cost estimate 2025 | V6: Cost estimate 2026 | W6: Cost estimate 2027 | X6: Cost estimate 2028 | Y6: TotalOver5Years | Z6: CostCategory1 | AA6: CostCategory2 | AB6: Output/Process | AC6: Outcome | AD6: Frequency of collection (monthly, six monthly, yearly) | AE6: Source of verification | AG6: =COUNTA($AA7:$AA106) -> 3 | AH6: =COUNTA($N7:$N106) -> 3
F7: Develop SOP with 20 non residents for 5 days | G7: Ministry of Finance | H7: Central | I7: Poor turn over | K7: On-going | L7: N | M7: Government | N7: =(((($AN7-$AO7)*$AP7*$AQ7+$AO7*($AP7+ExtraDaysFar)*$AR7)+($AS7*$AP7)+($AT7+$AU7)*$AP7*$AN7+$AV7*$AN7))+($AW7*$AZ7*$AX7+$AW7*$BA7*$AZ7+$AY7+$AN7*$BB7)+$BC7*$AP7+$BH7+$BI7 -> 199700 | P7: 1 | T7: =IF($N7="Pending",0,$N7*O7) -> 0 | U7: 199700 | V7: 0 | W7: 0 | X7: 0 | Y7: =SUM(T7:X7) -> 199700 | Z7: SOP development | AA7: Recurrent | AL7: Workshop | AN7: 20 | AO7: 20 | AP7: 5 | AQ7: 0 | AR7: 1480 | AS7: 3500 | AT7: 250 | AU7: 80 | AV7: 60 | AW7: 0 | AX7: 0 | AY7: 0 | AZ7: 0 | BA7: 0 | BB7: 0 | BC7: 0 | BD7: Central | BE7: Recurrent | BF7: SOP development | BG7: Ministry of Finance | BH7: 0 | BI7: 0
F8: Field visit with 3 officers for 5 days | G8: Ministry of Finance | H8: Central | I8: Poor turn over | K8: On-going | L8: N | M8: Government | N8: =$BJ8*$BK8*$BL8+$BN8*$BK8*($BO8+$BP8)+$BQ8*$BK8*$BR8+$BS8 -> 44100 | Q8: 1 | R8: 1 | T8: 0 | U8: 0 | V8: 44100 | W8: 44100 | X8: 0 | Y8: 88200 | Z8: Field visit | AA8: Recurrent | AL8: Field visit | BJ8: 3 | BK8: 5 | BL8: 1480 | BM8: 4 x 4 | BN8: 1 | BO8: 2900 | BP8: 0 | BQ8: 1 | BR8: 1480 | BS8: 0 | BT8: 44100 | BU8: Central | BV8: Recurrent | BW8: Field visit | BX8: Ministry of Finance
F9: Procurement of 2 generaors each costing R45000 | G9: Ministry of Finance | H9: Central | I9: Poor turn over | K9: On-going | L9: N | M9: Government | N9: 90000 | S9: 1 | T9: 0 | U9: 0 | V9: 0 | W9: 0 | X9: 90000 | Y9: 90000 | Z9: Procurement | AA9: Recurrent | AL9: Procurement | EG9: generators | EH9: 2 | EI9: 45000 | EJ9: 90000 | EK9: Not used | EL9: 0 | EM9: 0 | EN9: 0 | EO9: Not used | EP9: 0 | EQ9: 0 | ER9: 0 | ES9: Not used | ET9: 0 | EU9: 0 | EV9: 0 | EW9: Not used | EX9: 0 | EY9: 0 | EZ9: 0 | FA9: Not used | FB9: 0 | FC9: 0 | FD9: 0 | FE9: Not used | FF9: 0 | FG9: 0 | FH9: 0 | FI9: Not used | FJ9: 0 | FK9: 0 | FL9: 0 | FM9: Not used | FN9: 0 | FO9: 0 | FP9: 0 | FQ9: Not used | FR9: 0 | FS9: 0 | FT9: 0 | FU9: 90000 | FV9: Central | FW9: Recurrent | FX9: Procurement | FY9: Ministry of Finance | FZ9: Goods
T10: 0 | U10: 0 | V10: 0 | W10: 0 | X10: 0 | Y10: 0
T11: 0 | U11: 0 | V11: 0 | W11: 0 | X11: 0 | Y11: 0
T12: 0 | U12: 0 | V12: 0 | W12: 0 | X12: 0 | Y12: 0
T13: 0 | U13: 0 | V13: 0 | W13: 0 | X13: 0 | Y13: 0
T14: 0 | U14: 0 | V14: 0 | W14: 0 | X14: 0 | Y14: =SUM(T14:X14) -> 0
T15: 0 | U15: 0 | V15: 0 | W15: 0 | X15: 0 | Y15: =SUM(T15:X15) -> 0
T16: 0 | U16: 0 | V16: 0 | W16: 0 | X16: 0 | Y16: =SUM(T16:X16) -> 0
T17: =IF($N17="Pending",0,$N17*O17) -> 0 | U17: 0 | V17: 0 | W17: 0 | X17: 0 | Y17: =SUM(T17:X17) -> 0
T18: 0 | U18: 0 | V18: 0 | W18: 0 | X18: 0 | Y18: =SUM(T18:X18) -> 0
T19: 0 | U19: 0 | V19: 0 | W19: 0 | X19: 0 | Y19: 0
T20: =IF($N20="Pending",0,$N20*O20) -> 0 | U20: 0 | V20: 0 | W20: 0 | X20: 0 | Y20: =SUM(T20:X20) -> 0
T21: 0 | U21: 0 | V21: 0 | W21: 0 | X21: 0 | Y21: 0
T22: 0 | U22: 0 | V22: 0 | W22: 0 | X22: 0 | Y22: 0
T23: =IF($N23="Pending",0,$N23*O23) -> 0 | U23: =IF($N23="Pending",0,$N23*P23) -> 0 | V23: =IF($N23="Pending",0,$N23*Q23) -> 0 | W23: =IF($N23="Pending",0,$N23*R23) -> 0 | X23: =IF($N23="Pending",0,$N23*S23) -> 0 | Y23: =SUM(T23:X23) -> 0
T24: 0 | U24: 0 | V24: 0 | W24: 0 | X24: 0 | Y24: 0
T25: 0 | U25: 0 | V25: 0 | W25: 0 | X25: 0 | Y25: 0
T26: 0 | U26: 0 | V26: 0 | W26: 0 | X26: 0 | Y26: 0
T27: 0 | U27: 0 | V27: 0 | W27: 0 | X27: 0 | Y27: 0
T28: 0 | U28: 0 | V28: 0 | W28: 0 | X28: 0 | Y28: 0
T29: 0 | U29: 0 | V29: 0 | W29: 0 | X29: 0 | Y29: 0
T30: 0 | U30: 0 | V30: 0 | W30: 0 | X30: 0 | Y30: 0
T31: 0 | U31: 0 | V31: 0 | W31: 0 | X31: 0 | Y31: 0
T32: 0 | U32: 0 | V32: 0 | W32: 0 | X32: 0 | Y32: 0
T33: 0 | U33: 0 | V33: 0 | W33: 0 | X33: 0 | Y33: 0
T34: 0 | U34: 0 | V34: 0 | W34: 0 | X34: 0 | Y34: 0
T35: 0 | U35: 0 | V35: 0 | W35: 0 | X35: 0 | Y35: 0
T36: 0 | U36: 0 | V36: 0 | W36: 0 | X36: 0 | Y36: 0
T37: 0 | U37: 0 | V37: 0 | W37: 0 | X37: 0 | Y37: 0
T38: 0 | U38: 0 | V38: 0 | W38: 0 | X38: 0 | Y38: 0
T39: 0 | U39: 0 | V39: 0 | W39: 0 | X39: 0 | Y39: 0
T40: 0 | U40: 0 | V40: 0 | W40: 0 | X40: 0 | Y40: 0
T41: 0 | U41: 0 | V41: 0 | W41: 0 | X41: 0 | Y41: 0
T42: 0 | U42: 0 | V42: 0 | W42: 0 | X42: 0 | Y42: 0
T43: 0 | U43: 0 | V43: 0 | W43: 0 | X43: 0 | Y43: 0
T44: 0 | U44: 0 | V44: 0 | W44: 0 | X44: 0 | Y44: 0
T45: 0 | U45: 0 | V45: 0 | W45: 0 | X45: 0 | Y45: 0
T46: 0 | U46: 0 | V46: 0 | W46: 0 | X46: 0 | Y46: 0
T47: 0 | U47: 0 | V47: 0 | W47: 0 | X47: 0 | Y47: 0
T48: 0 | U48: 0 | V48: 0 | W48: 0 | X48: 0 | Y48: 0
T49: 0 | U49: 0 | V49: 0 | W49: 0 | X49: 0 | Y49: 0
T50: 0 | U50: 0 | V50: 0 | W50: 0 | X50: 0 | Y50: 0
T51: 0 | U51: 0 | V51: 0 | W51: 0 | X51: 0 | Y51: 0
T52: 0 | U52: 0 | V52: 0 | W52: 0 | X52: 0 | Y52: 0
T53: 0 | U53: 0 | V53: 0 | W53: 0 | X53: 0 | Y53: 0
T54: 0 | U54: 0 | V54: 0 | W54: 0 | X54: 0 | Y54: 0
T55: 0 | U55: 0 | V55: 0 | W55: 0 | X55: 0 | Y55: 0
T56: 0 | U56: 0 | V56: 0 | W56: 0 | X56: 0 | Y56: 0
T57: 0 | U57: 0 | V57: 0 | W57: 0 | X57: 0 | Y57: 0
T58: 0 | U58: 0 | V58: 0 | W58: 0 | X58: 0 | Y58: 0
T59: 0 | U59: 0 | V59: 0 | W59: 0 | X59: 0 | Y59: 0
T60: 0 | U60: 0 | V60: 0 | W60: 0 | X60: 0 | Y60: 0
T61: 0 | U61: 0 | V61: 0 | W61: 0 | X61: 0 | Y61: 0
T62: 0 | U62: 0 | V62: 0 | W62: 0 | X62: 0 | Y62: 0
T63: 0 | U63: 0 | V63: 0 | W63: 0 | X63: 0 | Y63: 0
T64: 0 | U64: 0 | V64: 0 | W64: 0 | X64: 0 | Y64: 0
T65: 0 | U65: 0 | V65: 0 | W65: 0 | X65: 0 | Y65: 0
T66: 0 | U66: 0 | V66: 0 | W66: 0 | X66: 0 | Y66: 0
T67: 0 | U67: 0 | V67: 0 | W67: 0 | X67: 0 | Y67: 0
T68: 0 | U68: 0 | V68: 0 | W68: 0 | X68: 0 | Y68: 0
T69: 0 | U69: 0 | V69: 0 | W69: 0 | X69: 0 | Y69: 0
T70: 0 | U70: 0 | V70: 0 | W70: 0 | X70: 0 | Y70: 0
T71: 0 | U71: 0 | V71: 0 | W71: 0 | X71: 0 | Y71: 0
T72: 0 | U72: 0 | V72: 0 | W72: 0 | X72: 0 | Y72: 0
T73: 0 | U73: 0 | V73: 0 | W73: 0 | X73: 0 | Y73: 0
T74: =IF($N74="Pending",0,$N74*O74) -> 0 | U74: =IF($N74="Pending",0,$N74*P74) -> 0 | V74: =IF($N74="Pending",0,$N74*Q74) -> 0 | W74: =IF($N74="Pending",0,$N74*R74) -> 0 | X74: =IF($N74="Pending",0,$N74*S74) -> 0 | Y74: 0
T75: 0 | U75: 0 | V75: 0 | W75: 0 | X75: 0 | Y75: 0
T76: 0 | U76: 0 | V76: 0 | W76: 0 | X76: 0 | Y76: 0
T77: 0 | U77: 0 | V77: 0 | W77: 0 | X77: 0 | Y77: 0
T78: 0 | U78: 0 | V78: 0 | W78: 0 | X78: 0 | Y78: 0
T79: 0 | U79: 0 | V79: 0 | W79: 0 | X79: 0 | Y79: 0
T80: 0 | U80: 0 | V80: 0 | W80: 0 | X80: 0 | Y80: 0
T81: 0 | U81: 0 | V81: 0 | W81: 0 | X81: 0 | Y81: 0
T82: 0 | U82: 0 | V82: 0 | W82: 0 | X82: 0 | Y82: 0
T83: 0 | U83: 0 | V83: 0 | W83: 0 | X83: 0 | Y83: 0
T84: 0 | U84: 0 | V84: 0 | W84: 0 | X84: 0 | Y84: =SUM(T84:X84) -> 0
T85: 0 | U85: 0 | V85: 0 | W85: 0 | X85: 0 | Y85: 0
T86: 0 | U86: 0 | V86: 0 | W86: 0 | X86: 0 | Y86: 0
T87: 0 | U87: 0 | V87: 0 | W87: 0 | X87: 0 | Y87: 0
T88: 0 | U88: 0 | V88: 0 | W88: 0 | X88: 0 | Y88: 0
T89: 0 | U89: 0 | V89: 0 | W89: 0 | X89: 0 | Y89: 0
T90: 0 | U90: 0 | V90: 0 | W90: 0 | X90: 0 | Y90: 0
T91: 0 | U91: 0 | V91: 0 | W91: 0 | X91: 0 | Y91: 0
T92: 0 | U92: 0 | V92: 0 | W92: 0 | X92: 0 | Y92: 0
T93: 0 | U93: 0 | V93: 0 | W93: 0 | X93: 0 | Y93: 0
T94: 0 | U94: 0 | V94: 0 | W94: 0 | X94: 0 | Y94: 0
T95: 0 | U95: 0 | V95: 0 | W95: 0 | X95: 0 | Y95: 0
T96: 0 | U96: 0 | V96: 0 | W96: 0 | X96: 0 | Y96: 0
T97: 0 | U97: 0 | V97: 0 | W97: 0 | X97: 0 | Y97: 0
T98: 0 | U98: 0 | V98: 0 | W98: 0 | X98: 0 | Y98: 0
T99: 0 | U99: 0 | V99: 0 | W99: 0 | X99: 0 | Y99: 0
T100: 0 | U100: 0 | V100: 0 | W100: 0 | X100: 0 | Y100: 0
T101: 0 | U101: 0 | V101: 0 | W101: 0 | X101: 0 | Y101: 0
T102: 0 | U102: 0 | V102: 0 | W102: 0 | X102: 0 | Y102: 0
T103: 0 | U103: 0 | V103: 0 | W103: 0 | X103: 0 | Y103: 0
T104: 0 | U104: 0 | V104: 0 | W104: 0 | X104: 0 | Y104: 0
T105: 0 | U105: 0 | V105: 0 | W105: 0 | X105: 0 | Y105: 0
T106: 0 | U106: 0 | V106: 0 | W106: 0 | X106: 0 | Y106: 0
S108: TOTALS | T108: =SUM(T7:T106) -> 0 | U108: 199700 | V108: 44100 | W108: 44100 | X108: 90000 | Y108: 377900
T110: =T6 -> Cost estimate 2024 | U110: Cost estimate 2025 | V110: Cost estimate 2026 | W110: Cost estimate 2027 | X110: Cost estimate 2028 | Y110: TotalOver5Years | Z110: =SUM(Y111:Y133) -> 377900
S111: ='Basic Input for Tool'!$D65 -> Meeting | T111: =SUMIF($Z$7:$Z$106,$S111,T$7:T$106) -> 0 | U111: 0 | V111: 0 | W111: 0 | X111: 0 | Y111: 0
S112: ='Basic Input for Tool'!$D66 -> Training | T112: 0 | U112: 0 | V112: 0 | W112: 0 | X112: 0 | Y112: 0
S113: ='Basic Input for Tool'!$D67 -> Workshop | T113: 0 | U113: 0 | V113: 0 | W113: 0 | X113: 0 | Y113: 0
S114: ='Basic Input for Tool'!$D68 -> SOP development | T114: 0 | U114: 199700 | V114: 0 | W114: 0 | X114: 0 | Y114: 199700
S115: ='Basic Input for Tool'!$D69 -> Communication | T115: 0 | U115: 0 | V115: 0 | W115: 0 | X115: 0 | Y115: 0
S116: ='Basic Input for Tool'!$D70 -> Construction | T116: 0 | U116: 0 | V116: 0 | W116: 0 | X116: 0 | Y116: 0
S117: ='Basic Input for Tool'!$D71 -> Consultancy | T117: 0 | U117: 0 | V117: 0 | W117: 0 | X117: 0 | Y117: 0
S118: ='Basic Input for Tool'!$D72 -> Evaluation | T118: 0 | U118: 0 | V118: 0 | W118: 0 | X118: 0 | Y118: 0
S119: ='Basic Input for Tool'!$D73 -> Field visit | T119: 0 | U119: 0 | V119: 44100 | W119: 44100 | X119: 0 | Y119: 88200
S120: ='Basic Input for Tool'!$D74 -> Human resources | T120: 0 | U120: 0 | V120: 0 | W120: 0 | X120: 0 | Y120: 0
S121: ='Basic Input for Tool'!$D75 -> Infrastructure | T121: =SUMIF($Z$7:$Z$106,$S121,T$7:T$106) -> 0 | U121: 0 | V121: 0 | W121: 0 | X121: 0 | Y121: 0
S122: ='Basic Input for Tool'!$D76 -> Document reproduction/printing | T122: 0 | U122: 0 | V122: 0 | W122: 0 | X122: 0 | Y122: 0
S123: ='Basic Input for Tool'!$D77 -> Procurement | T123: 0 | U123: 0 | V123: 0 | W123: 0 | X123: 90000 | Y123: 90000
S124: ='Basic Input for Tool'!$D78 -> Services | T124: 0 | U124: 0 | V124: 0 | W124: 0 | X124: 0 | Y124: 0
S125: ='Basic Input for Tool'!$D79 -> Simulation exercises | T125: 0 | U125: 0 | V125: 0 | W125: 0 | X125: 0 | Y125: 0
S126: ='Basic Input for Tool'!$D80 -> Advocacy | T126: 0 | U126: 0 | V126: 0 | W126: 0 | X126: 0 | Y126: 0
S127: ='Basic Input for Tool'!$D81 -> Study | T127: 0 | U127: 0 | V127: 0 | W127: 0 | X127: 0 | Y127: 0
S128: ='Basic Input for Tool'!$D82 -> Campaign | T128: 0 | U128: 0 | V128: 0 | W128: 0 | X128: 0 | Y128: 0
S129: ='Basic Input for Tool'!$D83 -> Other | T129: 0 | U129: 0 | V129: 0 | W129: 0 | X129: 0 | Y129: 0
S130: ='Basic Input for Tool'!$D84 -> Other 2 | T130: 0 | U130: 0 | V130: 0 | W130: 0 | X130: 0 | Y130: 0
S131: ='Basic Input for Tool'!$D85 -> Other 3 | T131: 0 | U131: 0 | V131: 0 | W131: 0 | X131: 0 | Y131: 0
S132: ='Basic Input for Tool'!$D86 -> Other 4 | T132: 0 | U132: 0 | V132: 0 | W132: 0 | X132: 0 | Y132: 0
S133: ='Basic Input for Tool'!$D87 -> Other 5 | T133: 0 | U133: 0 | V133: 0 | W133: 0 | X133: 0 | Y133: 0
T136: =T6 -> Cost estimate 2024 | U136: Cost estimate 2025 | V136: Cost estimate 2026 | W136: Cost estimate 2027 | X136: Cost estimate 2028 | Y136: TotalOver5Years | Z136: =SUM(Y137:Y146) -> 377900
S137: ='Basic Input for Tool'!$C$65 -> Capital | T137: =SUMIF($AA$7:$AA$106,$S137,T$7:T$106) -> 0 | U137: 0 | V137: 0 | W137: 0 | X137: 0 | Y137: 0
S138: ='Basic Input for Tool'!$C$66 -> Recurrent | T138: 0 | U138: 199700 | V138: 44100 | W138: 44100 | X138: 90000 | Y138: 377900
S139: ='Basic Input for Tool'!$C$67 -> Other 1 | T139: 0 | U139: 0 | V139: 0 | W139: 0 | X139: 0 | Y139: 0
S140: ='Basic Input for Tool'!$C$68 -> Other 2 | T140: 0 | U140: 0 | V140: 0 | W140: 0 | X140: 0 | Y140: 0
S141: ='Basic Input for Tool'!$C$69 -> 0 | T141: 0 | U141: 0 | V141: 0 | W141: 0 | X141: 0 | Y141: 0
S142: ='Basic Input for Tool'!$C$70 -> 0 | T142: 0 | U142: 0 | V142: 0 | W142: 0 | X142: 0 | Y142: 0
S143: ='Basic Input for Tool'!$C$71 -> 0 | T143: 0 | U143: 0 | V143: 0 | W143: 0 | X143: 0 | Y143: 0
S144: ='Basic Input for Tool'!$C$72 -> 0 | T144: 0 | U144: 0 | V144: 0 | W144: 0 | X144: 0 | Y144: 0
S145: ='Basic Input for Tool'!$C$73 -> 0 | T145: 0 | U145: 0 | V145: 0 | W145: 0 | X145: 0 | Y145: 0
S146: ='Basic Input for Tool'!$C$74 -> 0 | T146: 0 | U146: 0 | V146: 0 | W146: 0 | X146: 0 | Y146: 0
T149: =T6 -> Cost estimate 2024 | U149: Cost estimate 2025 | V149: Cost estimate 2026 | W149: Cost estimate 2027 | X149: Cost estimate 2028 | Y149: TotalOver5Years | Z149: =SUM(Y150:Y153) -> 377900
S150: ='Basic Input for Tool'!$B$65 -> National | T150: =SUMIF($H$7:$H$106,$S150,T$7:T$106) -> 0 | U150: 0 | V150: 0 | W150: 0 | X150: 0 | Y150: 0
S151: ='Basic Input for Tool'!$B$66 -> Central | T151: 0 | U151: 199700 | V151: 44100 | W151: 44100 | X151: 90000 | Y151: 377900
S152: ='Basic Input for Tool'!$B$67 -> SNU1 (province/region/etat) | T152: 0 | U152: 0 | V152: 0 | W152: 0 | X152: 0 | Y152: 0
S153: ='Basic Input for Tool'!$B$68 -> SNU2 (district/county) | T153: 0 | U153: 0 | V153: 0 | W153: 0 | X153: 0 | Y153: 0
T156: =T6 -> Cost estimate 2024 | U156: Cost estimate 2025 | V156: Cost estimate 2026 | W156: Cost estimate 2027 | X156: Cost estimate 2028 | Y156: TotalOver5Years | Z156: =SUM(Y157:Y179) -> 377900
S157: ='Basic Input for Tool'!$E$65 -> Ministry of Health | T157: =SUMIF($G$7:$G$106,$S157,T$7:T$106) -> 0 | U157: 0 | V157: 0 | W157: 0 | X157: 0 | Y157: 0
S158: ='Basic Input for Tool'!$E$66 -> Ministry of Finance | T158: 0 | U158: 199700 | V158: 44100 | W158: 44100 | X158: 90000 | Y158: 377900
S159: ='Basic Input for Tool'!$E$67 -> Ministry of Agriculture | T159: 0 | U159: 0 | V159: 0 | W159: 0 | X159: 0 | Y159: 0
S160: ='Basic Input for Tool'!$E$68 -> Ministry of Environment | T160: 0 | U160: 0 | V160: 0 | W160: 0 | X160: 0 | Y160: 0
S161: ='Basic Input for Tool'!$E$69 -> Other 2 | T161: 0 | U161: 0 | V161: 0 | W161: 0 | X161: 0 | Y161: 0
S162: ='Basic Input for Tool'!$E$70 -> Other 3 | T162: 0 | U162: 0 | V162: 0 | W162: 0 | X162: 0 | Y162: 0
S163: ='Basic Input for Tool'!$E$71 -> Other 4 | T163: 0 | U163: 0 | V163: 0 | W163: 0 | X163: 0 | Y163: 0
S164: ='Basic Input for Tool'!$E$72 -> Other 5 | T164: 0 | U164: 0 | V164: 0 | W164: 0 | X164: 0 | Y164: 0
S165: ='Basic Input for Tool'!$E$73 -> Other 6 | T165: 0 | U165: 0 | V165: 0 | W165: 0 | X165: 0 | Y165: 0
S166: ='Basic Input for Tool'!$E74 -> Other 7 | T166: 0 | U166: 0 | V166: 0 | W166: 0 | X166: 0 | Y166: 0
S167: ='Basic Input for Tool'!$E75 -> Other 8 | T167: =SUMIF($G$7:$G$106,$S167,T$7:T$106) -> 0 | U167: 0 | V167: 0 | W167: 0 | X167: 0 | Y167: 0
S168: ='Basic Input for Tool'!$E76 -> Other 9 | T168: 0 | U168: 0 | V168: 0 | W168: 0 | X168: 0 | Y168: 0
S169: ='Basic Input for Tool'!$E77 -> Other 10 | T169: 0 | U169: 0 | V169: 0 | W169: 0 | X169: 0 | Y169: 0
S170: ='Basic Input for Tool'!$E78 -> Other 11 | T170: 0 | U170: 0 | V170: 0 | W170: 0 | X170: 0 | Y170: 0
S171: ='Basic Input for Tool'!$E79 -> Other 12 | T171: 0 | U171: 0 | V171: 0 | W171: 0 | X171: 0 | Y171: 0
S172: ='Basic Input for Tool'!$E80 -> Other 13 | T172: 0 | U172: 0 | V172: 0 | W172: 0 | X172: 0 | Y172: 0
S173: ='Basic Input for Tool'!$E81 -> Other 14 | T173: 0 | U173: 0 | V173: 0 | W173: 0 | X173: 0 | Y173: 0
S174: ='Basic Input for Tool'!$E82 -> Other 15 | T174: 0 | U174: 0 | V174: 0 | W174: 0 | X174: 0 | Y174: 0
S175: ='Basic Input for Tool'!$E83 -> Other 16 | T175: 0 | U175: 0 | V175: 0 | W175: 0 | X175: 0 | Y175: 0
S176: ='Basic Input for Tool'!$E84 -> Other 17 | T176: 0 | U176: 0 | V176: 0 | W176: 0 | X176: 0 | Y176: 0
S177: ='Basic Input for Tool'!$E85 -> Other 18 | T177: 0 | U177: 0 | V177: 0 | W177: 0 | X177: 0 | Y177: 0
S178: ='Basic Input for Tool'!$E86 -> Other 19 | T178: 0 | U178: 0 | V178: 0 | W178: 0 | X178: 0 | Y178: 0
S179: ='Basic Input for Tool'!$E87 -> Other 20 | T179: 0 | U179: 0 | V179: 0 | W179: 0 | X179: 0 | Y179: 0
T182: =T6 -> Cost estimate 2024 | U182: =U6 -> Cost estimate 2025 | V182: Cost estimate 2026 | W182: Cost estimate 2027 | X182: Cost estimate 2028 | Y182: TotalOver5Years | Z182: =SUM(Y183:Y184) -> 377900
R183: Yes | S183: Funded | T183: =SUM(SUMIFS(T$7:T$106,$L7:$L106,{"yes","y","funded"})) -> 0 | U183: =SUM(SUMIFS(U$7:U$106,$L7:$L106,{"yes","y","funded"})) -> 0 | V183: =SUM(SUMIFS(V$7:V$106,$L7:$L106,{"yes","y","funded"})) -> 0 | W183: =SUM(SUMIFS(W$7:W$106,$L7:$L106,{"yes","y","funded"})) -> 0 | X183: =SUM(SUMIFS(X$7:X$106,$L7:$L106,{"yes","y","funded"})) -> 0 | Y183: =SUM(SUMIFS(Y$7:Y$106,$L7:$L106,{"yes","y","funded"})) -> 0
R184: No | S184: Not funded | T184: =SUM(SUMIFS(T$7:T$106,$L7:$L106,{"no","n","not funded"})) -> 0 | U184: =SUM(SUMIFS(U$7:U$106,$L7:$L106,{"no","n","not funded"})) -> 199700 | V184: =SUM(SUMIFS(V$7:V$106,$L7:$L106,{"no","n","not funded"})) -> 44100 | W184: =SUM(SUMIFS(W$7:W$106,$L7:$L106,{"no","n","not funded"})) -> 44100 | X184: =SUM(SUMIFS(X$7:X$106,$L7:$L106,{"no","n","not funded"})) -> 90000 | Y184: =SUM(SUMIFS(Y$7:Y$106,$L7:$L106,{"no","n","not funded"})) -> 377900

Sheet P3. IHR coordination IHR NFP
A1: =IF(ISNA(VLOOKUP(CountryName,CountriesCodes,2,FALSE))=TRUE,"",VLOOKUP(CountryName,CountriesCodes,2,FALSE)& "AMR") -> ETH AMR | B1: ="PLANNING AND COSTING MATRIX FOR THE DEVELOPMENT OF NATIONAL ACTION PLAN FOR HEALTH SECURITY " & O6 &" - " & S6 -> PLANNING AND COSTING MATRIX FOR THE DEVELOPMENT OF NATIONAL ACTION PLAN FOR HEALTH SECURITY 2024 - 2028 | AM1: 1 | AN1: 2 | AO1: 3 | AP1: 4 | AQ1: 5 | AR1: 6 | AS1: 7 | AT1: 8 | AU1: 9 | AV1: 10 | AW1: 11 | AX1: 12 | AY1: 13 | AZ1: 14 | BA1: 15 | BB1: 16 | BC1: 17 | BD1: 18 | BE1: 19 | BF1: 20 | BG1: 21 | BH1: 22 | BI1: 23 | BJ1: 24 | BK1: 25 | BL1: 26 | BM1: 27 | BN1: 28 | BO1: 29 | BP1: 30 | BQ1: 31 | BR1: 32 | BS1: 33 | BT1: 34 | BU1: 35 | BV1: 36 | BW1: 37 | BX1: 38 | BY1: 39 | BZ1: 40 | CA1: 41 | CB1: 42 | CC1: 43 | CD1: 44 | CE1: 45 | CF1: 46 | CG1: 47 | CH1: 48 | CI1: 49 | CJ1: 50 | CK1: 51 | CL1: 52 | CM1: 53 | CN1: 54 | CO1: 55 | CP1: 56 | CQ1: 57 | CR1: 58 | CS1: 59 | CT1: 60 | CU1: 61 | CV1: 62 | CW1: 63 | CX1: 64 | CY1: 65 | CZ1: 66 | DA1: 67 | DB1: 68 | DC1: 69 | DD1: 70 | DE1: 71 | DF1: 72 | DG1: 73 | DH1: 74 | DI1: 75 | DJ1: 76 | DK1: 77 | DL1: 78 | DM1: 79 | DN1: 80 | DO1: 81 | DP1: 82 | DQ1: 83 | DR1: 84 | DS1: 85 | DT1: 86 | DU1: 87 | DV1: 88 | DW1: 89 | DX1: 90 | DY1: 91 | DZ1: 92 | EA1: 93 | EB1: 94 | EC1: 95 | ED1: 96 | EE1: 97 | EF1: 98 | EG1: 99 | EH1: 100 | EI1: 101 | EJ1: 102 | EK1: 103 | EL1: 104 | EM1: 105 | EN1: 106 | EO1: 107 | EP1: 108 | EQ1: 109 | ER1: 110 | ES1: 111 | ET1: 112 | EU1: 113 | EV1: 114 | EW1: 115 | EX1: 116 | EY1: 117 | EZ1: 118 | FA1: 119 | FB1: 120 | FC1: 121 | FD1: 122 | FE1: 123 | FF1: 124 | FG1: 125 | FH1: 126 | FI1: 127 | FJ1: 128 | FK1: 129 | FL1: 130 | FM1: 131 | FN1: 132 | FO1: 133 | FP1: 134 | FQ1: 135 | FR1: 136 | FS1: 137 | FT1: 138 | FU1: 139 | FV1: 140 | FW1: 141 | FX1: 142 | FY1: 143 | FZ1: 144 | GA1: 145 | GB1: 146 | GC1: 147 | GD1: 148 | GE1: 149 | GF1: 150 | GG1: 151 | GH1: 152 | GI1: 153 | GJ1: 154 | GK1: 155 | XEQ1: Formula for meeting | XER1: Consultant | XES1: Field Visit
A2: 101 | B2: PREVENT | AN2: Meeting DATA | BJ2: FIELD VISITS | CA2: CONSULTANT | CN2: =+CL2+1 -> 1 | CS2: =CN2+1 -> 2 | CX2: =CS2+1 -> 3 | DC2: =CX2+1 -> 4 | DH2: =DC2+1 -> 5 | DM2: =DH2+1 -> 6 | DR2: =DM2+1 -> 7 | EG2: PROCUREMENT | EI2: 1 | EK2: =+EG2 -> PROCUREMENT | EL2: =+EI2+1 -> 2 | EO2: =+EK2 -> PROCUREMENT | EP2: =EL2+1 -> 3 | ES2: =+EO2 -> PROCUREMENT | ET2: =EP2+1 -> 4 | EW2: =+ES2 -> PROCUREMENT | EX2: =ET2+1 -> 5 | FA2: =+EW2 -> PROCUREMENT | FB2: =EX2+1 -> 6 | FE2: =+FA2 -> PROCUREMENT | FF2: =FB2+1 -> 7 | FI2: =+FE2 -> PROCUREMENT | FJ2: =FF2+1 -> 8 | FM2: =+FI2 -> PROCUREMENT | FN2: =FJ2+1 -> 9 | FQ2: =+FM2 -> PROCUREMENT | FR2: =FN2+1 -> 10 | GE2: Other | XEQ2: =(((($AN2-$AO2)*$AP2*$AQ2+$AO2*($AP2+ExtraDaysFar)*$AR2)+($AS2*$AP2)+($AT2+$AU2)*$AP2*$AN2+$AV2*$AN2))+($AW2*$AZ2*$AX2+$AW2*$BA2*$AZ2+$AY2+$AN2*$BB2)+$BC2*$AP2+$BH2+$BI2 ->  | XER2: =$CB2*$CC2*$CD2+$CB2*$CC2*$CE2+$CB2*$CF2 -> 0 | XES2: =$BJ2*$BK2*$BL2+$BN2*$BK2*($BO2+$BP2)+$BQ2*$BK2*$BR2+$BS2 -> 
B3: General Objective: To prevent and reduce the likelihood of outbreaks and other public health hazards and events defined by IHR (2005). | AK3: Unique ID | AL3: Category | AM3: Total cost | AN3: Participants | AO3: Away participants | AP3: No of days | AQ3: Per diem | AR3: Per diem away | AS3: Rent of venue | AT3: Lunch | AU3: Tea break | AV3: Stationary | AW3: No of trainers | AX3: Trainer fee | AY3: Extra for trainer | AZ3: No of days for trainer | BA3: Trainer per diem | BB3: Extra pp | BC3: Extra on top | BD3: List 1 | BE3: List 2 | BF3: List 3 | BG3: For later | BH3: For later | BI3: For later | BJ3: No of supervisors | BK3: No of days | BL3: Per diem | BM3: Vehicle category | BN3: No of vehicles | BO3: Cost per day per vehicle | BP3: Fuel cost per day | BQ3: No of drivers | BR3: Driver per diem | BS3: Extra per field visit | BT3: Total costs | BU3: List 1 | BV3: List 2 | BW3: List 3 | BX3: List4 | BY3: For later | BZ3: For later | CA3: International national | CB3: No of consultants | CC3: Number of days consultants | CD3: Per diem consultant | CE3: Consultant rate | CF3: Consultant travel | CG3: Total consult | CH3: List 1 | CI3: List 2 | CJ3: List 3 | CK3: List4 | CL3: For later | CM3: For later | CN3: ="HR" &CN2 -> HR1 | CO3: ="no. of " & CN3 -> no. of HR1 | CP3: ="Salary " & CN3 -> Salary HR1 | CQ3: ="Month " & CO3 & " TRUE/FALSE" -> Month no. of HR1 TRUE/FALSE | CR3: ="Months " & CN3 -> Months HR1 | CS3: ="HR" &CS2 -> HR2 | CT3: ="no. of " & CS3 -> no. of HR2 | CU3: ="Salary " & CS3 -> Salary HR2 | CV3: ="Month " & CT3 & " TRUE/FALSE" -> Month no. of HR2 TRUE/FALSE | CW3: ="Months " & CS3 -> Months HR2 | CX3: ="HR" &CX2 -> HR3 | CY3: ="no. of " & CX3 -> no. of HR3 | CZ3: ="Salary " & CX3 -> Salary HR3 | DA3: ="Month " & CY3 & " TRUE/FALSE" -> Month no. of HR3 TRUE/FALSE | DB3: ="Months " & CX3 -> Months HR3 | DC3: ="HR" &DC2 -> HR4 | DD3: ="no. of " & DC3 -> no. of HR4 | DE3: ="Salary " & DC3 -> Salary HR4 | DF3: ="Month " & DD3 & " TRUE/FALSE" -> Month no. of HR4 TRUE/FALSE | DG3: ="Months " & DC3 -> Months HR4 | DH3: ="HR" &DH2 -> HR5 | DI3: ="no. of " & DH3 -> no. of HR5 | DJ3: ="Salary " & DH3 -> Salary HR5 | DK3: ="Month " & DI3 & " TRUE/FALSE" -> Month no. of HR5 TRUE/FALSE | DL3: ="Months " & DH3 -> Months HR5 | DM3: ="HR" &DM2 -> HR6 | DN3: ="no. of " & DM3 -> no. of HR6 | DO3: ="Salary " & DM3 -> Salary HR6 | DP3: ="Month " & DN3 & " TRUE/FALSE" -> Month no. of HR6 TRUE/FALSE | DQ3: ="Months " & DM3 -> Months HR6 | DR3: ="HR" &DR2 -> HR7 | DS3: ="no. of " & DR3 -> no. of HR7 | DT3: ="Salary " & DR3 -> Salary HR7 | DU3: ="Month " & DS3 & " TRUE/FALSE" -> Month no. of HR7 TRUE/FALSE | DV3: ="Months " & DR3 -> Months HR7 | DW3: HR Extra 1 | DX3: HR Extra 2 | DY3: Total costs HR | DZ3: List 1 | EA3: List 2 | EB3: List 3 | EC3: List 4 | ED3: For later | EE3: For later | EF3: For later | EG3: Descripion1 | EH3: Quantity 1 | EI3: Price 1 | EJ3: Cost proc 1 | EK3: Descripion 2 | EL3: Quantity 2 | EM3: Price 2 | EN3: Cost proc 2 | EO3: ="Description " & EP2 -> Description 3 | EP3: ="Quantity " & EP2 -> Quantity 3 | EQ3: ="Price " & EP2 -> Price 3 | ER3: ="Cost proc " & EP2 -> Cost proc 3 | ES3: ="Description " & ET2 -> Description 4 | ET3: ="Quantity " & ET2 -> Quantity 4 | EU3: ="Price " & ET2 -> Price 4 | EV3: ="Cost proc " & ET2 -> Cost proc 4 | EW3: ="Description " & EX2 -> Description 5 | EX3: ="Quantity " & EX2 -> Quantity 5 | EY3: ="Price " & EX2 -> Price 5 | EZ3: ="Cost proc " & EX2 -> Cost proc 5 | FA3: ="Description " & FB2 -> Description 6 | FB3: ="Quantity " & FB2 -> Quantity 6 | FC3: ="Price " & FB2 -> Price 6 | FD3: ="Cost proc " & FB2 -> Cost proc 6 | FE3: ="Description " & FF2 -> Description 7 | FF3: ="Quantity " & FF2 -> Quantity 7 | FG3: ="Price " & FF2 -> Price 7 | FH3: ="Cost proc " & FF2 -> Cost proc 7 | FI3: ="Description " & FJ2 -> Description 8 | FJ3: ="Quantity " & FJ2 -> Quantity 8 | FK3: ="Price " & FJ2 -> Price 8 | FL3: ="Cost proc " & FJ2 -> Cost proc 8 | FM3: ="Description " & FN2 -> Description 9 | FN3: ="Quantity " & FN2 -> Quantity 9 | FO3: ="Price " & FN2 -> Price 9 | FP3: ="Cost proc " & FN2 -> Cost proc 9 | FQ3: ="Description " & FR2 -> Description 10 | FR3: ="Quantity " & FR2 -> Quantity 10 | FS3: ="Price " & FR2 -> Price 10 | FT3: ="Cost proc " & FR2 -> Cost proc 10 | FU3: Total cost procurement | FV3: List 1 | FW3: List 2 | FX3: List 3 | FY3: List 4 | FZ3: Procurement category | GA3: For later | GB3: For later | GC3: For later | GD3: For later | GE3: Description other | GF3: Cost other | GG3: List 1 | GH3: List 2 | GI3: List 3 | GJ3: List 4
B4: Assessment recommendations: | C4: Please enter the list of recommendations in this single merged cell
B5: TECHNICAL AREA | C5: P3. IHR coordination, National IHR Focal Point functions and advocacy | O5: Frequency per year of implementation | T5: Annual Cost Estimates | AB5: Monitoring and Evaluation | AG5: comptage category2 (colonne AA) | AH5: comptage coût(colonne N) | AI5: .
A6: UniqueID | B6: Indicator | C6: Objectives | D6: Summary of Key Activities (Strategic actions) | E6: Detailed activity description (input description for costing) | F6: Detailed cost assumptions (including units, unit costs, quantities, frequency, etc) | G6: Responsible authority for Implementation (budget holder) | H6: Implementation scale (National, regional, district, sub-national?) | I6: Comments1 (Potential challenges, comments on implementation arrangements, other) | J6: Comments2 (Potential challenges, comments on implementation arrangements, other) | K6: Related existing plan/ framework / Programme or on-going activities | L6: Existing budget(y/n) | M6: Existing budget source (government, donor?) | N6: Estimated cost (Local currency) | O6: =IF('Basic Input for Tool'!$C$7="","Year 1",'Basic Input for Tool'!$C$7) -> 2024 | P6: =IF('Basic Input for Tool'!$C$7="","Year 2",O6+1) -> 2025 | Q6: =IF('Basic Input for Tool'!$C$7="","Year 3",P6+1) -> 2026 | R6: =IF('Basic Input for Tool'!$C$7="","Year 4",Q6+1) -> 2027 | S6: =IF('Basic Input for Tool'!$C$7="","Year 5",R6+1) -> 2028 | T6: ="Cost estimate " & O6 -> Cost estimate 2024 | U6: ="Cost estimate " & P6 -> Cost estimate 2025 | V6: Cost estimate 2026 | W6: Cost estimate 2027 | X6: Cost estimate 2028 | Y6: TotalOver5Years | Z6: CostCategory1 | AA6: CostCategory2 | AB6: Output/Process | AC6: Outcome | AD6: Frequency of collection (monthly, six monthly, yearly) | AE6: Source of verification | AG6: =COUNTA($AA7:$AA106) -> 3 | AH6: =COUNTA($N7:$N106) -> 3
F7: 5 days training for 15 non residents | G7: Ministry of Agriculture | H7: Central | I7: staff turn over | L7: N | M7: Government | N7: =(((($AN7-$AO7)*$AP7*$AQ7+$AO7*($AP7+ExtraDaysFar)*$AR7)+($AS7*$AP7)+($AT7+$AU7)*$AP7*$AN7+$AV7*$AN7))+($AW7*$AZ7*$AX7+$AW7*$BA7*$AZ7+$AY7+$AN7*$BB7)+$BC7*$AP7+$BH7+$BI7 -> 154150 | Q7: 1 | T7: =IF($N7="Pending",0,$N7*O7) -> 0 | U7: 0 | V7: 154150 | W7: 0 | X7: 0 | Y7: =SUM(T7:X7) -> 154150 | Z7: Training | AA7: Recurrent | AL7: Training | AN7: 15 | AO7: 15 | AP7: 5 | AQ7: 0 | AR7: 1480 | AS7: 3500 | AT7: 250 | AU7: 80 | AV7: 60 | AW7: 0 | AX7: 0 | AY7: 0 | AZ7: 0 | BA7: 0 | BB7: 0 | BC7: 0 | BD7: Central | BE7: Recurrent | BF7: Training | BG7: Ministry of Agriculture | BH7: 0 | BI7: 0
F8: Procure 12 cellphone @ M3000.00 each | G8: Ministry of Agriculture | H8: Central | I8: staff turn over | L8: N | M8: Government | N8: 6000 | P8: 1 | T8: 0 | U8: 6000 | V8: 0 | W8: 0 | X8: 0 | Y8: 6000 | Z8: Communication | AA8: Recurrent | AL8: Procurement | EG8: Cell phones | EH8: 2 | EI8: 3000 | EJ8: 6000 | EK8: Not used | EL8: 0 | EM8: 0 | EN8: 0 | EO8: Not used | EP8: 0 | EQ8: 0 | ER8: 0 | ES8: Not used | ET8: 0 | EU8: 0 | EV8: 0 | EW8: Not used | EX8: 0 | EY8: 0 | EZ8: 0 | FA8: Not used | FB8: 0 | FC8: 0 | FD8: 0 | FE8: Not used | FF8: 0 | FG8: 0 | FH8: 0 | FI8: Not used | FJ8: 0 | FK8: 0 | FL8: 0 | FM8: Not used | FN8: 0 | FO8: 0 | FP8: 0 | FQ8: Not used | FR8: 0 | FS8: 0 | FT8: 0 | FU8: 6000 | FV8: Central | FW8: Recurrent | FX8: Communication | FY8: Ministry of Agriculture | FZ8: Services
F9: Construct 2 laboratories @ M1000000 | G9: Ministry of Environment | H9: Central | I9: staff turn over | L9: N | M9: Government | N9: 2000000 | Q9: 1 | T9: 0 | U9: 0 | V9: 2000000 | W9: 0 | X9: 0 | Y9: 2000000 | Z9: Construction | AA9: Capital | AL9: Other | GF9: 2000000 | GG9: Central | GH9: Capital | GI9: Construction
T10: 0 | U10: 0 | V10: 0 | W10: 0 | X10: 0 | Y10: 0
T11: 0 | U11: 0 | V11: 0 | W11: 0 | X11: 0 | Y11: 0
T12: 0 | U12: 0 | V12: 0 | W12: 0 | X12: 0 | Y12: 0
T13: 0 | U13: 0 | V13: 0 | W13: 0 | X13: 0 | Y13: 0
T14: 0 | U14: 0 | V14: 0 | W14: 0 | X14: 0 | Y14: 0
T15: 0 | U15: 0 | V15: 0 | W15: 0 | X15: 0 | Y15: 0
T16: 0 | U16: 0 | V16: 0 | W16: 0 | X16: 0 | Y16: 0
T17: 0 | U17: 0 | V17: 0 | W17: 0 | X17: 0 | Y17: 0
T18: 0 | U18: 0 | V18: 0 | W18: 0 | X18: 0 | Y18: 0
T19: 0 | U19: 0 | V19: 0 | W19: 0 | X19: 0 | Y19: 0
T20: 0 | U20: 0 | V20: 0 | W20: 0 | X20: 0 | Y20: 0
T21: 0 | U21: 0 | V21: 0 | W21: 0 | X21: 0 | Y21: 0
T22: 0 | U22: 0 | V22: 0 | W22: 0 | X22: 0 | Y22: 0
T23: 0 | U23: 0 | V23: 0 | W23: 0 | X23: 0 | Y23: 0
T24: 0 | U24: 0 | V24: 0 | W24: 0 | X24: 0 | Y24: 0
T25: 0 | U25: 0 | V25: 0 | W25: 0 | X25: 0 | Y25: 0
T26: 0 | U26: 0 | V26: 0 | W26: 0 | X26: 0 | Y26: 0
T27: 0 | U27: 0 | V27: 0 | W27: 0 | X27: 0 | Y27: 0
T28: 0 | U28: 0 | V28: 0 | W28: 0 | X28: 0 | Y28: 0
T29: 0 | U29: 0 | V29: 0 | W29: 0 | X29: 0 | Y29: 0
T30: 0 | U30: 0 | V30: 0 | W30: 0 | X30: 0 | Y30: 0
T31: =IF($N31="Pending",0,$N31*O31) -> 0 | U31: 0 | V31: 0 | W31: 0 | X31: 0 | Y31: 0
T32: 0 | U32: 0 | V32: 0 | W32: 0 | X32: 0 | Y32: 0
T33: 0 | U33: 0 | V33: 0 | W33: 0 | X33: 0 | Y33: 0
T34: 0 | U34: 0 | V34: 0 | W34: 0 | X34: 0 | Y34: 0
T35: 0 | U35: 0 | V35: 0 | W35: 0 | X35: 0 | Y35: 0
T36: =IF($N36="Pending",0,$N36*O36) -> 0 | U36: 0 | V36: 0 | W36: 0 | X36: 0 | Y36: 0
T37: 0 | U37: 0 | V37: 0 | W37: 0 | X37: 0 | Y37: 0
T38: 0 | U38: 0 | V38: 0 | W38: 0 | X38: 0 | Y38: 0
T39: 0 | U39: 0 | V39: 0 | W39: 0 | X39: 0 | Y39: 0
T40: 0 | U40: 0 | V40: 0 | W40: 0 | X40: 0 | Y40: 0
T41: 0 | U41: 0 | V41: 0 | W41: 0 | X41: 0 | Y41: 0
T42: 0 | U42: 0 | V42: 0 | W42: 0 | X42: 0 | Y42: 0
T43: 0 | U43: 0 | V43: 0 | W43: 0 | X43: 0 | Y43: 0
T44: 0 | U44: 0 | V44: 0 | W44: 0 | X44: 0 | Y44: 0
T45: 0 | U45: 0 | V45: 0 | W45: 0 | X45: 0 | Y45: 0
T46: 0 | U46: 0 | V46: 0 | W46: 0 | X46: 0 | Y46: 0
T47: 0 | U47: 0 | V47: 0 | W47: 0 | X47: 0 | Y47: 0
T48: 0 | U48: 0 | V48: 0 | W48: 0 | X48: 0 | Y48: 0
T49: 0 | U49: 0 | V49: 0 | W49: 0 | X49: 0 | Y49: 0
T50: 0 | U50: 0 | V50: 0 | W50: 0 | X50: 0 | Y50: 0
T51: 0 | U51: 0 | V51: 0 | W51: 0 | X51: 0 | Y51: 0
T52: =IF($N52="Pending",0,$N52*O52) -> 0 | U52: 0 | V52: 0 | W52: 0 | X52: 0 | Y52: 0
T53: 0 | U53: 0 | V53: 0 | W53: 0 | X53: 0 | Y53: 0
T54: 0 | U54: 0 | V54: 0 | W54: 0 | X54: 0 | Y54: 0
T55: 0 | U55: 0 | V55: 0 | W55: 0 | X55: 0 | Y55: 0
T56: 0 | U56: 0 | V56: 0 | W56: 0 | X56: 0 | Y56: 0
T57: 0 | U57: 0 | V57: 0 | W57: 0 | X57: 0 | Y57: 0
T58: 0 | U58: 0 | V58: 0 | W58: 0 | X58: 0 | Y58: 0
T59: 0 | U59: 0 | V59: 0 | W59: 0 | X59: 0 | Y59: =SUM(T59:X59) -> 0
T60: 0 | U60: 0 | V60: 0 | W60: 0 | X60: 0 | Y60: 0
T61: 0 | U61: 0 | V61: 0 | W61: 0 | X61: 0 | Y61: 0
T62: 0 | U62: 0 | V62: 0 | W62: 0 | X62: 0 | Y62: 0
T63: 0 | U63: 0 | V63: 0 | W63: 0 | X63: 0 | Y63: 0
T64: 0 | U64: 0 | V64: 0 | W64: 0 | X64: 0 | Y64: 0
T65: 0 | U65: 0 | V65: 0 | W65: 0 | X65: 0 | Y65: 0
T66: 0 | U66: 0 | V66: 0 | W66: 0 | X66: 0 | Y66: 0
T67: 0 | U67: 0 | V67: 0 | W67: 0 | X67: 0 | Y67: 0
T68: =IF($N68="Pending",0,$N68*O68) -> 0 | U68: 0 | V68: 0 | W68: 0 | X68: 0 | Y68: 0
T69: 0 | U69: 0 | V69: 0 | W69: 0 | X69: 0 | Y69: 0
V70: 0
T71: 0 | U71: 0 | V71: 0 | W71: 0 | X71: 0 | Y71: 0
V72: 0
T73: 0 | U73: 0 | V73: 0 | W73: 0 | X73: 0 | Y73: 0
T74: 0 | U74: 0 | V74: 0 | W74: 0 | X74: 0 | Y74: 0
T75: 0 | U75: 0 | V75: 0 | W75: 0 | X75: 0 | Y75: 0
T76: 0 | U76: 0 | V76: 0 | W76: 0 | X76: 0 | Y76: 0
T77: 0 | U77: 0 | V77: 0 | W77: 0 | X77: 0 | Y77: 0
T78: 0 | U78: 0 | V78: 0 | W78: 0 | X78: 0 | Y78: 0
T79: 0 | U79: 0 | V79: 0 | W79: 0 | X79: 0 | Y79: 0
T80: 0 | U80: 0 | V80: 0 | W80: 0 | X80: 0 | Y80: 0
T81: =IF($N81="Pending",0,$N81*O81) -> 0 | U81: 0 | V81: 0 | W81: 0 | X81: 0 | Y81: =SUM(T81:X81) -> 0
T82: 0 | U82: 0 | V82: 0 | W82: 0 | X82: 0 | Y82: 0
T83: 0 | U83: 0 | V83: 0 | W83: 0 | X83: 0 | Y83: 0
T84: 0 | U84: 0 | V84: 0 | W84: 0 | X84: 0 | Y84: 0
T85: 0 | U85: 0 | V85: 0 | W85: 0 | X85: 0 | Y85: 0
T86: 0 | U86: 0 | V86: 0 | W86: 0 | X86: 0 | Y86: 0
T87: 0 | U87: 0 | V87: 0 | W87: 0 | X87: 0 | Y87: 0
T88: 0 | U88: 0 | V88: 0 | W88: 0 | X88: 0 | Y88: 0
T89: 0 | U89: 0 | V89: 0 | W89: 0 | X89: 0 | Y89: 0
T90: 0 | U90: 0 | V90: 0 | W90: 0 | X90: 0 | Y90: 0
T91: 0 | U91: 0 | V91: 0 | W91: 0 | X91: 0 | Y91: 0
T92: 0 | U92: 0 | V92: 0 | W92: 0 | X92: 0 | Y92: 0
T93: 0 | U93: 0 | V93: 0 | W93: 0 | X93: 0 | Y93: 0
T94: 0 | U94: 0 | V94: 0 | W94: 0 | X94: 0 | Y94: 0
T95: 0 | U95: 0 | V95: 0 | W95: 0 | X95: 0 | Y95: 0
T96: 0 | U96: 0 | V96: 0 | W96: 0 | X96: 0 | Y96: 0
T97: 0 | U97: 0 | V97: 0 | W97: 0 | X97: 0 | Y97: 0
T98: 0 | U98: 0 | V98: 0 | W98: 0 | X98: 0 | Y98: 0
T99: 0 | U99: 0 | V99: 0 | W99: 0 | X99: 0 | Y99: 0
T100: 0 | U100: 0 | V100: 0 | W100: 0 | X100: 0 | Y100: 0
T101: 0 | U101: 0 | V101: 0 | W101: 0 | X101: 0 | Y101: 0
T102: 0 | U102: 0 | V102: 0 | W102: 0 | X102: 0 | Y102: 0
T103: 0 | U103: 0 | V103: 0 | W103: 0 | X103: 0 | Y103: 0
T104: 0 | U104: 0 | V104: 0 | W104: 0 | X104: 0 | Y104: 0
T105: 0 | U105: 0 | V105: 0 | W105: 0 | X105: 0 | Y105: 0
T106: 0 | U106: 0 | V106: 0 | W106: 0 | X106: 0 | Y106: 0
S108: TOTALS | T108: =SUM(T7:T106) -> 0 | U108: 6000 | V108: 2154150 | W108: 0 | X108: 0 | Y108: 2160150
T110: =T6 -> Cost estimate 2024 | U110: Cost estimate 2025 | V110: Cost estimate 2026 | W110: Cost estimate 2027 | X110: Cost estimate 2028 | Y110: TotalOver5Years | Z110: =SUM(Y111:Y133) -> 2160150
S111: ='Basic Input for Tool'!$D65 -> Meeting | T111: =SUMIF($Z$7:$Z$106,$S111,T$7:T$106) -> 0 | U111: =SUMIF($Z$7:$Z$106,$S111,U$7:U$106) -> 0 | V111: 0 | W111: 0 | X111: 0 | Y111: 0
S112: ='Basic Input for Tool'!$D66 -> Training | T112: =SUMIF($Z$7:$Z$106,$S112,T$7:T$106) -> 0 | U112: 0 | V112: 154150 | W112: 0 | X112: 0 | Y112: 154150
S113: ='Basic Input for Tool'!$D67 -> Workshop | T113: 0 | U113: 0 | V113: 0 | W113: 0 | X113: 0 | Y113: 0
S114: ='Basic Input for Tool'!$D68 -> SOP development | T114: 0 | U114: 0 | V114: 0 | W114: 0 | X114: 0 | Y114: 0
S115: ='Basic Input for Tool'!$D69 -> Communication | T115: 0 | U115: 6000 | V115: 0 | W115: 0 | X115: 0 | Y115: 6000
S116: ='Basic Input for Tool'!$D70 -> Construction | T116: 0 | U116: 0 | V116: 2000000 | W116: 0 | X116: 0 | Y116: 2000000
S117: ='Basic Input for Tool'!$D71 -> Consultancy | T117: 0 | U117: 0 | V117: 0 | W117: 0 | X117: 0 | Y117: 0
S118: ='Basic Input for Tool'!$D72 -> Evaluation | T118: 0 | U118: 0 | V118: 0 | W118: 0 | X118: 0 | Y118: 0
S119: ='Basic Input for Tool'!$D73 -> Field visit | T119: 0 | U119: 0 | V119: 0 | W119: 0 | X119: 0 | Y119: 0
S120: ='Basic Input for Tool'!$D74 -> Human resources | T120: 0 | U120: 0 | V120: 0 | W120: 0 | X120: 0 | Y120: 0
S121: ='Basic Input for Tool'!$D75 -> Infrastructure | T121: 0 | U121: 0 | V121: 0 | W121: 0 | X121: 0 | Y121: 0
S122: ='Basic Input for Tool'!$D76 -> Document reproduction/printing | T122: 0 | U122: 0 | V122: 0 | W122: 0 | X122: 0 | Y122: 0
S123: ='Basic Input for Tool'!$D77 -> Procurement | T123: 0 | U123: 0 | V123: 0 | W123: 0 | X123: 0 | Y123: 0
S124: ='Basic Input for Tool'!$D78 -> Services | T124: 0 | U124: 0 | V124: 0 | W124: 0 | X124: 0 | Y124: 0
S125: ='Basic Input for Tool'!$D79 -> Simulation exercises | T125: 0 | U125: 0 | V125: 0 | W125: 0 | X125: 0 | Y125: 0
S126: ='Basic Input for Tool'!$D80 -> Advocacy | T126: 0 | U126: 0 | V126: 0 | W126: 0 | X126: 0 | Y126: 0
S127: ='Basic Input for Tool'!$D81 -> Study | T127: 0 | U127: 0 | V127: 0 | W127: 0 | X127: 0 | Y127: 0
S128: ='Basic Input for Tool'!$D82 -> Campaign | T128: 0 | U128: 0 | V128: 0 | W128: 0 | X128: 0 | Y128: 0
S129: ='Basic Input for Tool'!$D83 -> Other | T129: 0 | U129: 0 | V129: 0 | W129: 0 | X129: 0 | Y129: 0
S130: ='Basic Input for Tool'!$D84 -> Other 2 | T130: 0 | U130: 0 | V130: 0 | W130: 0 | X130: 0 | Y130: 0
S131: ='Basic Input for Tool'!$D85 -> Other 3 | T131: 0 | U131: 0 | V131: 0 | W131: 0 | X131: 0 | Y131: 0
S132: ='Basic Input for Tool'!$D86 -> Other 4 | T132: 0 | U132: 0 | V132: 0 | W132: 0 | X132: 0 | Y132: 0
S133: ='Basic Input for Tool'!$D87 -> Other 5 | T133: 0 | U133: 0 | V133: 0 | W133: 0 | X133: 0 | Y133: 0
T136: =T6 -> Cost estimate 2024 | U136: Cost estimate 2025 | V136: Cost estimate 2026 | W136: Cost estimate 2027 | X136: Cost estimate 2028 | Y136: TotalOver5Years | Z136: =SUM(Y137:Y146) -> 2160150
S137: ='Basic Input for Tool'!$C$65 -> Capital | T137: =SUMIF($AA$7:$AA$106,$S137,T$7:T$106) -> 0 | U137: =SUMIF($AA$7:$AA$106,$S137,U$7:U$106) -> 0 | V137: 2000000 | W137: 0 | X137: 0 | Y137: 2000000
S138: ='Basic Input for Tool'!$C$66 -> Recurrent | T138: =SUMIF($AA$7:$AA$106,$S138,T$7:T$106) -> 0 | U138: 6000 | V138: 154150 | W138: 0 | X138: 0 | Y138: 160150
S139: ='Basic Input for Tool'!$C$67 -> Other 1 | T139: 0 | U139: 0 | V139: 0 | W139: 0 | X139: 0 | Y139: 0
S140: ='Basic Input for Tool'!$C$68 -> Other 2 | T140: 0 | U140: 0 | V140: 0 | W140: 0 | X140: 0 | Y140: 0
S141: ='Basic Input for Tool'!$C$69 -> 0 | T141: 0 | U141: 0 | V141: 0 | W141: 0 | X141: 0 | Y141: 0
S142: ='Basic Input for Tool'!$C$70 -> 0 | T142: 0 | U142: 0 | V142: 0 | W142: 0 | X142: 0 | Y142: 0
S143: ='Basic Input for Tool'!$C$71 -> 0 | T143: 0 | U143: 0 | V143: 0 | W143: 0 | X143: 0 | Y143: 0
S144: ='Basic Input for Tool'!$C$72 -> 0 | T144: 0 | U144: 0 | V144: 0 | W144: 0 | X144: 0 | Y144: 0
S145: ='Basic Input for Tool'!$C$73 -> 0 | T145: 0 | U145: 0 | V145: 0 | W145: 0 | X145: 0 | Y145: 0
S146: ='Basic Input for Tool'!$C$74 -> 0 | T146: 0 | U146: 0 | V146: 0 | W146: 0 | X146: 0 | Y146: 0
T149: =T6 -> Cost estimate 2024 | U149: Cost estimate 2025 | V149: Cost estimate 2026 | W149: Cost estimate 2027 | X149: Cost estimate 2028 | Y149: TotalOver5Years | Z149: =SUM(Y150:Y153) -> 2160150
S150: ='Basic Input for Tool'!$B$65 -> National | T150: =SUMIF($H$7:$H$106,$S150,T$7:T$106) -> 0 | U150: =SUMIF($H$7:$H$106,$S150,U$7:U$106) -> 0 | V150: 0 | W150: 0 | X150: 0 | Y150: 0
S151: ='Basic Input for Tool'!$B$66 -> Central | T151: =SUMIF($H$7:$H$106,$S151,T$7:T$106) -> 0 | U151: 6000 | V151: 2154150 | W151: 0 | X151: 0 | Y151: 2160150
S152: ='Basic Input for Tool'!$B$67 -> SNU1 (province/region/etat) | T152: =SUMIF($H$7:$H$106,$S152,T$7:T$106) -> 0 | U152: 0 | V152: 0 | W152: 0 | X152: 0 | Y152: 0
S153: ='Basic Input for Tool'!$B$68 -> SNU2 (district/county) | T153: =SUMIF($H$7:$H$106,$S153,T$7:T$106) -> 0 | U153: 0 | V153: 0 | W153: 0 | X153: 0 | Y153: 0
T156: =T6 -> Cost estimate 2024 | U156: Cost estimate 2025 | V156: Cost estimate 2026 | W156: Cost estimate 2027 | X156: Cost estimate 2028 | Y156: TotalOver5Years | Z156: =SUM(Y157:Y179) -> 2160150
S157: ='Basic Input for Tool'!$E$65 -> Ministry of Health | T157: =SUMIF($G$7:$G$106,$S157,T$7:T$106) -> 0 | U157: =SUMIF($G$7:$G$106,$S157,U$7:U$106) -> 0 | V157: 0 | W157: 0 | X157: 0 | Y157: 0
S158: ='Basic Input for Tool'!$E$66 -> Ministry of Finance | T158: 0 | U158: 0 | V158: 0 | W158: 0 | X158: 0 | Y158: 0
S159: ='Basic Input for Tool'!$E$67 -> Ministry of Agriculture | T159: 0 | U159: 6000 | V159: 154150 | W159: 0 | X159: 0 | Y159: 160150
S160: ='Basic Input for Tool'!$E$68 -> Ministry of Environment | T160: 0 | U160: 0 | V160: 2000000 | W160: 0 | X160: 0 | Y160: 2000000
S161: ='Basic Input for Tool'!$E$69 -> Other 2 | T161: 0 | U161: 0 | V161: 0 | W161: 0 | X161: 0 | Y161: 0
S162: ='Basic Input for Tool'!$E$70 -> Other 3 | T162: 0 | U162: 0 | V162: 0 | W162: 0 | X162: 0 | Y162: 0
S163: ='Basic Input for Tool'!$E$71 -> Other 4 | T163: 0 | U163: 0 | V163: 0 | W163: 0 | X163: 0 | Y163: 0
S164: ='Basic Input for Tool'!$E$72 -> Other 5 | T164: 0 | U164: 0 | V164: 0 | W164: 0 | X164: 0 | Y164: 0
S165: ='Basic Input for Tool'!$E$73 -> Other 6 | T165: 0 | U165: 0 | V165: 0 | W165: 0 | X165: 0 | Y165: 0
S166: ='Basic Input for Tool'!$E74 -> Other 7 | T166: 0 | U166: 0 | V166: 0 | W166: 0 | X166: 0 | Y166: 0
S167: ='Basic Input for Tool'!$E75 -> Other 8 | T167: 0 | U167: 0 | V167: 0 | W167: 0 | X167: 0 | Y167: 0
S168: ='Basic Input for Tool'!$E76 -> Other 9 | T168: 0 | U168: 0 | V168: 0 | W168: 0 | X168: 0 | Y168: 0
S169: ='Basic Input for Tool'!$E77 -> Other 10 | T169: 0 | U169: 0 | V169: 0 | W169: 0 | X169: 0 | Y169: 0
S170: ='Basic Input for Tool'!$E78 -> Other 11 | T170: 0 | U170: 0 | V170: 0 | W170: 0 | X170: 0 | Y170: 0
S171: ='Basic Input for Tool'!$E79 -> Other 12 | T171: 0 | U171: 0 | V171: 0 | W171: 0 | X171: 0 | Y171: 0
S172: ='Basic Input for Tool'!$E80 -> Other 13 | T172: 0 | U172: 0 | V172: 0 | W172: 0 | X172: 0 | Y172: 0
S173: ='Basic Input for Tool'!$E81 -> Other 14 | T173: 0 | U173: =SUMIF($G$7:$G$106,$S173,U$7:U$106) -> 0 | V173: =SUMIF($G$7:$G$106,$S173,V$7:V$106) -> 0 | W173: =SUMIF($G$7:$G$106,$S173,W$7:W$106) -> 0 | X173: =SUMIF($G$7:$G$106,$S173,X$7:X$106) -> 0 | Y173: =SUMIF($G$7:$G$106,$S173,Y$7:Y$106) -> 0
S174: ='Basic Input for Tool'!$E82 -> Other 15 | T174: =SUMIF($G$7:$G$106,$S174,T$7:T$106) -> 0 | U174: 0 | V174: 0 | W174: 0 | X174: 0 | Y174: 0
S175: ='Basic Input for Tool'!$E83 -> Other 16 | T175: 0 | U175: 0 | V175: 0 | W175: 0 | X175: 0 | Y175: 0
S176: ='Basic Input for Tool'!$E84 -> Other 17 | T176: 0 | U176: 0 | V176: 0 | W176: 0 | X176: 0 | Y176: 0
S177: ='Basic Input for Tool'!$E85 -> Other 18 | T177: 0 | U177: 0 | V177: 0 | W177: 0 | X177: 0 | Y177: 0
S178: ='Basic Input for Tool'!$E86 -> Other 19 | T178: 0 | U178: 0 | V178: 0 | W178: 0 | X178: 0 | Y178: 0
S179: ='Basic Input for Tool'!$E87 -> Other 20 | T179: 0 | U179: 0 | V179: 0 | W179: 0 | X179: 0 | Y179: 0
T182: =T6 -> Cost estimate 2024 | U182: =U6 -> Cost estimate 2025 | V182: Cost estimate 2026 | W182: Cost estimate 2027 | X182: Cost estimate 2028 | Y182: TotalOver5Years | Z182: =SUM(Y183:Y184) -> 2160150
R183: Yes | S183: Funded | T183: =SUM(SUMIFS(T$7:T$106,$L7:$L106,{"yes","y","funded"})) -> 0 | U183: =SUM(SUMIFS(U$7:U$106,$L7:$L106,{"yes","y","funded"})) -> 0 | V183: =SUM(SUMIFS(V$7:V$106,$L7:$L106,{"yes","y","funded"})) -> 0 | W183: =SUM(SUMIFS(W$7:W$106,$L7:$L106,{"yes","y","funded"})) -> 0 | X183: =SUM(SUMIFS(X$7:X$106,$L7:$L106,{"yes","y","funded"})) -> 0 | Y183: =SUM(SUMIFS(Y$7:Y$106,$L7:$L106,{"yes","y","funded"})) -> 0
R184: No | S184: Not funded | T184: =SUM(SUMIFS(T$7:T$106,$L7:$L106,{"no","n","not funded"})) -> 0 | U184: =SUM(SUMIFS(U$7:U$106,$L7:$L106,{"no","n","not funded"})) -> 6000 | V184: =SUM(SUMIFS(V$7:V$106,$L7:$L106,{"no","n","not funded"})) -> 2154150 | W184: =SUM(SUMIFS(W$7:W$106,$L7:$L106,{"no","n","not funded"})) -> 0 | X184: =SUM(SUMIFS(X$7:X$106,$L7:$L106,{"no","n","not funded"})) -> 0 | Y184: =SUM(SUMIFS(Y$7:Y$106,$L7:$L106,{"no","n","not funded"})) -> 2160150

Sheet P4. AMR
A1: =IF(ISNA(VLOOKUP(CountryName,CountriesCodes,2,FALSE))=TRUE,"",VLOOKUP(CountryName,CountriesCodes,2,FALSE)& "ZOO") -> ETH ZOO | B1: ="PLANNING AND COSTING MATRIX FOR THE DEVELOPMENT OF NATIONAL ACTION PLAN FOR HEALTH SECURITY " & O6 &" - " & S6 -> PLANNING AND COSTING MATRIX FOR THE DEVELOPMENT OF NATIONAL ACTION PLAN FOR HEALTH SECURITY 2024 - 2028 | AM1: 1 | AN1: 2 | AO1: 3 | AP1: 4 | AQ1: 5 | AR1: 6 | AS1: 7 | AT1: 8 | AU1: 9 | AV1: 10 | AW1: 11 | AX1: 12 | AY1: 13 | AZ1: 14 | BA1: 15 | BB1: 16 | BC1: 17 | BD1: 18 | BE1: 19 | BF1: 20 | BG1: 21 | BH1: 22 | BI1: 23 | BJ1: 24 | BK1: 25 | BL1: 26 | BM1: 27 | BN1: 28 | BO1: 29 | BP1: 30 | BQ1: 31 | BR1: 32 | BS1: 33 | BT1: 34 | BU1: 35 | BV1: 36 | BW1: 37 | BX1: 38 | BY1: 39 | BZ1: 40 | CA1: 41 | CB1: 42 | CC1: 43 | CD1: 44 | CE1: 45 | CF1: 46 | CG1: 47 | CH1: 48 | CI1: 49 | CJ1: 50 | CK1: 51 | CL1: 52 | CM1: 53 | CN1: 54 | CO1: 55 | CP1: 56 | CQ1: 57 | CR1: 58 | CS1: 59 | CT1: 60 | CU1: 61 | CV1: 62 | CW1: 63 | CX1: 64 | CY1: 65 | CZ1: 66 | DA1: 67 | DB1: 68 | DC1: 69 | DD1: 70 | DE1: 71 | DF1: 72 | DG1: 73 | DH1: 74 | DI1: 75 | DJ1: 76 | DK1: 77 | DL1: 78 | DM1: 79 | DN1: 80 | DO1: 81 | DP1: 82 | DQ1: 83 | DR1: 84 | DS1: 85 | DT1: 86 | DU1: 87 | DV1: 88 | DW1: 89 | DX1: 90 | DY1: 91 | DZ1: 92 | EA1: 93 | EB1: 94 | EC1: 95 | ED1: 96 | EE1: 97 | EF1: 98 | EG1: 99 | EH1: 100 | EI1: 101 | EJ1: 102 | EK1: 103 | EL1: 104 | EM1: 105 | EN1: 106 | EO1: 107 | EP1: 108 | EQ1: 109 | ER1: 110 | ES1: 111 | ET1: 112 | EU1: 113 | EV1: 114 | EW1: 115 | EX1: 116 | EY1: 117 | EZ1: 118 | FA1: 119 | FB1: 120 | FC1: 121 | FD1: 122 | FE1: 123 | FF1: 124 | FG1: 125 | FH1: 126 | FI1: 127 | FJ1: 128 | FK1: 129 | FL1: 130 | FM1: 131 | FN1: 132 | FO1: 133 | FP1: 134 | FQ1: 135 | FR1: 136 | FS1: 137 | FT1: 138 | FU1: 139 | FV1: 140 | FW1: 141 | FX1: 142 | FY1: 143 | FZ1: 144 | GA1: 145 | GB1: 146 | GC1: 147 | GD1: 148 | GE1: 149 | GF1: 150 | GG1: 151 | GH1: 152 | GI1: 153 | GJ1: 154 | GK1: 155 | XEQ1: Formula for meeting | XER1: Consultant | XES1: Field Visit
A2: 101 | B2: PREVENT | AN2: Meeting DATA | BJ2: FIELD VISITS | CA2: CONSULTANT | CN2: =+CL2+1 -> 1 | CS2: =CN2+1 -> 2 | CX2: =CS2+1 -> 3 | DC2: =CX2+1 -> 4 | DH2: =DC2+1 -> 5 | DM2: =DH2+1 -> 6 | DR2: =DM2+1 -> 7 | EG2: PROCUREMENT | EI2: 1 | EK2: =+EG2 -> PROCUREMENT | EL2: =+EI2+1 -> 2 | EO2: =+EK2 -> PROCUREMENT | EP2: =EL2+1 -> 3 | ES2: =+EO2 -> PROCUREMENT | ET2: =EP2+1 -> 4 | EW2: =+ES2 -> PROCUREMENT | EX2: =ET2+1 -> 5 | FA2: =+EW2 -> PROCUREMENT | FB2: =EX2+1 -> 6 | FE2: =+FA2 -> PROCUREMENT | FF2: =FB2+1 -> 7 | FI2: =+FE2 -> PROCUREMENT | FJ2: =FF2+1 -> 8 | FM2: =+FI2 -> PROCUREMENT | FN2: =FJ2+1 -> 9 | FQ2: =+FM2 -> PROCUREMENT | FR2: =FN2+1 -> 10 | GE2: Other | XEQ2: =(((($AN2-$AO2)*$AP2*$AQ2+$AO2*($AP2+ExtraDaysFar)*$AR2)+($AS2*$AP2)+($AT2+$AU2)*$AP2*$AN2+$AV2*$AN2))+($AW2*$AZ2*$AX2+$AW2*$BA2*$AZ2+$AY2+$AN2*$BB2)+$BC2*$AP2+$BH2+$BI2 ->  | XER2: =$CB2*$CC2*$CD2+$CB2*$CC2*$CE2+$CB2*$CF2 -> 0 | XES2: =$BJ2*$BK2*$BL2+$BN2*$BK2*($BO2+$BP2)+$BQ2*$BK2*$BR2+$BS2 -> 
B3: General Objective: To prevent and reduce the likelihood of outbreaks and other public health hazards and events defined by IHR (2005). | AK3: Unique ID | AL3: Category | AM3: Total cost | AN3: Participants | AO3: Away participants | AP3: No of days | AQ3: Per diem | AR3: Per diem away | AS3: Rent of venue | AT3: Lunch | AU3: Tea break | AV3: Stationary | AW3: No of trainers | AX3: Trainer fee | AY3: Extra for trainer | AZ3: No of days for trainer | BA3: Trainer per diem | BB3: Extra pp | BC3: Extra on top | BD3: List 1 | BE3: List 2 | BF3: List 3 | BG3: For later | BH3: For later | BI3: For later | BJ3: No of supervisors | BK3: No of days | BL3: Per diem | BM3: Vehicle category | BN3: No of vehicles | BO3: Cost per day per vehicle | BP3: Fuel cost per day | BQ3: No of drivers | BR3: Driver per diem | BS3: Extra per field visit | BT3: Total costs | BU3: List 1 | BV3: List 2 | BW3: List 3 | BX3: List4 | BY3: For later | BZ3: For later | CA3: International national | CB3: No of consultants | CC3: Number of days consultants | CD3: Per diem consultant | CE3: Consultant rate | CF3: Consultant travel | CG3: Total consult | CH3: List 1 | CI3: List 2 | CJ3: List 3 | CK3: List4 | CL3: For later | CM3: For later | CN3: ="HR" &CN2 -> HR1 | CO3: ="no. of " & CN3 -> no. of HR1 | CP3: ="Salary " & CN3 -> Salary HR1 | CQ3: ="Month " & CO3 & " TRUE/FALSE" -> Month no. of HR1 TRUE/FALSE | CR3: ="Months " & CN3 -> Months HR1 | CS3: ="HR" &CS2 -> HR2 | CT3: ="no. of " & CS3 -> no. of HR2 | CU3: ="Salary " & CS3 -> Salary HR2 | CV3: ="Month " & CT3 & " TRUE/FALSE" -> Month no. of HR2 TRUE/FALSE | CW3: ="Months " & CS3 -> Months HR2 | CX3: ="HR" &CX2 -> HR3 | CY3: ="no. of " & CX3 -> no. of HR3 | CZ3: ="Salary " & CX3 -> Salary HR3 | DA3: ="Month " & CY3 & " TRUE/FALSE" -> Month no. of HR3 TRUE/FALSE | DB3: ="Months " & CX3 -> Months HR3 | DC3: ="HR" &DC2 -> HR4 | DD3: ="no. of " & DC3 -> no. of HR4 | DE3: ="Salary " & DC3 -> Salary HR4 | DF3: ="Month " & DD3 & " TRUE/FALSE" -> Month no. of HR4 TRUE/FALSE | DG3: ="Months " & DC3 -> Months HR4 | DH3: ="HR" &DH2 -> HR5 | DI3: ="no. of " & DH3 -> no. of HR5 | DJ3: ="Salary " & DH3 -> Salary HR5 | DK3: ="Month " & DI3 & " TRUE/FALSE" -> Month no. of HR5 TRUE/FALSE | DL3: ="Months " & DH3 -> Months HR5 | DM3: ="HR" &DM2 -> HR6 | DN3: ="no. of " & DM3 -> no. of HR6 | DO3: ="Salary " & DM3 -> Salary HR6 | DP3: ="Month " & DN3 & " TRUE/FALSE" -> Month no. of HR6 TRUE/FALSE | DQ3: ="Months " & DM3 -> Months HR6 | DR3: ="HR" &DR2 -> HR7 | DS3: ="no. of " & DR3 -> no. of HR7 | DT3: ="Salary " & DR3 -> Salary HR7 | DU3: ="Month " & DS3 & " TRUE/FALSE" -> Month no. of HR7 TRUE/FALSE | DV3: ="Months " & DR3 -> Months HR7 | DW3: HR Extra 1 | DX3: HR Extra 2 | DY3: Total costs HR | DZ3: List 1 | EA3: List 2 | EB3: List 3 | EC3: List 4 | ED3: For later | EE3: For later | EF3: For later | EG3: Descripion1 | EH3: Quantity 1 | EI3: Price 1 | EJ3: Cost proc 1 | EK3: Descripion 2 | EL3: Quantity 2 | EM3: Price 2 | EN3: Cost proc 2 | EO3: ="Description " & EP2 -> Description 3 | EP3: ="Quantity " & EP2 -> Quantity 3 | EQ3: ="Price " & EP2 -> Price 3 | ER3: ="Cost proc " & EP2 -> Cost proc 3 | ES3: ="Description " & ET2 -> Description 4 | ET3: ="Quantity " & ET2 -> Quantity 4 | EU3: ="Price " & ET2 -> Price 4 | EV3: ="Cost proc " & ET2 -> Cost proc 4 | EW3: ="Description " & EX2 -> Description 5 | EX3: ="Quantity " & EX2 -> Quantity 5 | EY3: ="Price " & EX2 -> Price 5 | EZ3: ="Cost proc " & EX2 -> Cost proc 5 | FA3: ="Description " & FB2 -> Description 6 | FB3: ="Quantity " & FB2 -> Quantity 6 | FC3: ="Price " & FB2 -> Price 6 | FD3: ="Cost proc " & FB2 -> Cost proc 6 | FE3: ="Description " & FF2 -> Description 7 | FF3: ="Quantity " & FF2 -> Quantity 7 | FG3: ="Price " & FF2 -> Price 7 | FH3: ="Cost proc " & FF2 -> Cost proc 7 | FI3: ="Description " & FJ2 -> Description 8 | FJ3: ="Quantity " & FJ2 -> Quantity 8 | FK3: ="Price " & FJ2 -> Price 8 | FL3: ="Cost proc " & FJ2 -> Cost proc 8 | FM3: ="Description " & FN2 -> Description 9 | FN3: ="Quantity " & FN2 -> Quantity 9 | FO3: ="Price " & FN2 -> Price 9 | FP3: ="Cost proc " & FN2 -> Cost proc 9 | FQ3: ="Description " & FR2 -> Description 10 | FR3: ="Quantity " & FR2 -> Quantity 10 | FS3: ="Price " & FR2 -> Price 10 | FT3: ="Cost proc " & FR2 -> Cost proc 10 | FU3: Total cost procurement | FV3: List 1 | FW3: List 2 | FX3: List 3 | FY3: List 4 | FZ3: Procurement category | GA3: For later | GB3: For later | GC3: For later | GD3: For later | GE3: Description other | GF3: Cost other | GG3: List 1 | GH3: List 2 | GI3: List 3 | GJ3: List 4
B4: Assessment recommendations: | C4: Please enter the list of recommendations in this single merged cell
B5: TECHNICAL AREA | C5: P4. Antimicrobial resistance (AMR) | O5: Frequency per year of implementation | T5: Annual Cost Estimates | AB5: Monitoring and Evaluation | AG5: comptage category2 (colonne AA) | AH5: comptage coût(colonne N) | AI5: .
A6: UniqueID | B6: Indicator | C6: Objectives | D6: Summary of Key Activities (Strategic actions) | E6: Detailed activity description (input description for costing) | F6: Detailed cost assumptions (including units, unit costs, quantities, frequency, etc) | G6: Responsible authority for Implementation (budget holder) | H6: Implementation scale (National, regional, district, sub-national?) | I6: Comments1 (Potential challenges, comments on implementation arrangements, other) | J6: Comments2 (Potential challenges, comments on implementation arrangements, other) | K6: Related existing plan/ framework / Programme or on-going activities | L6: Existing budget(y/n) | M6: Existing budget source (government, donor?) | N6: Estimated cost (Local currency) | O6: =IF('Basic Input for Tool'!$C$7="","Year 1",'Basic Input for Tool'!$C$7) -> 2024 | P6: =IF('Basic Input for Tool'!$C$7="","Year 2",O6+1) -> 2025 | Q6: =IF('Basic Input for Tool'!$C$7="","Year 3",P6+1) -> 2026 | R6: =IF('Basic Input for Tool'!$C$7="","Year 4",Q6+1) -> 2027 | S6: =IF('Basic Input for Tool'!$C$7="","Year 5",R6+1) -> 2028 | T6: ="Cost estimate " & O6 -> Cost estimate 2024 | U6: ="Cost estimate " & P6 -> Cost estimate 2025 | V6: Cost estimate 2026 | W6: Cost estimate 2027 | X6: Cost estimate 2028 | Y6: TotalOver5Years | Z6: CostCategory1 | AA6: CostCategory2 | AB6: Output/Process | AC6: Outcome | AD6: Frequency of collection (monthly, six monthly, yearly) | AE6: Source of verification | AG6: =COUNTA($AA7:$AA106) -> 3 | AH6: =COUNTA($N7:$N106) -> 3
F7: 1 day Evaluation meeting for 10 residents | G7: Ministry of Health | H7: National | I7: Lack of commitment | L7: N | M7: Donor | N7: =(((($AN7-$AO7)*$AP7*$AQ7+$AO7*($AP7+ExtraDaysFar)*$AR7)+($AS7*$AP7)+($AT7+$AU7)*$AP7*$AN7+$AV7*$AN7))+($AW7*$AZ7*$AX7+$AW7*$BA7*$AZ7+$AY7+$AN7*$BB7)+$BC7*$AP7+$BH7+$BI7 -> 7400 | P7: 1 | T7: =IF($N7="Pending",0,$N7*O7) -> 0 | U7: 7400 | V7: 0 | W7: 0 | X7: 0 | Y7: =SUM(T7:X7) -> 7400 | Z7: Evaluation | AA7: Capital | AL7: Meeting | AN7: 10 | AO7: 0 | AP7: 1 | AQ7: 0 | AR7: 1480 | AS7: 3500 | AT7: 250 | AU7: 80 | AV7: 60 | AW7: 0 | AX7: 0 | AY7: 0 | AZ7: 0 | BA7: 0 | BB7: 0 | BC7: 0 | BD7: National | BE7: Capital | BF7: Evaluation | BG7: Ministry of Health | BH7: 0 | BI7: 0
F8: employ 7 laboratory technicians | G8: Ministry of Health | H8: National | I8: Lack of commitment | L8: N | M8: Donor | N8: 14028000 | O8: 1 | P8: 1 | Q8: 1 | R8: 1 | S8: 1 | T8: 14028000 | U8: 14028000 | V8: 14028000 | W8: 14028000 | X8: 14028000 | Y8: 70140000 | Z8: Human resources | AA8: Recurrent | AL8: HR | CN8: Laboratory technician | CO8: 7 | CP8: 167000 | CQ8: TRUE | CR8: 12 | CS8: Select from the list | CT8: 0 | CU8: 0 | CV8: FALSE | CW8: 0 | CX8: Select from the list | CY8: 0 | CZ8: 0 | DA8: FALSE | DB8: 0 | DC8: Select from the list | DD8: 0 | DE8: 0 | DF8: FALSE | DG8: 0 | DH8: Select from the list | DI8: 0 | DJ8: 0 | DK8: FALSE | DL8: 0 | DM8: Select from the list | DN8: 0 | DO8: 0 | DP8: FALSE | DQ8: 0 | DR8: Select from the list | DS8: 0 | DT8: 0 | DU8: FALSE | DV8: 0 | DY8: 14028000 | DZ8: National | EA8: Recurrent | EB8: Human resources | EC8: Ministry of Health
F9: Procure office equipment summing up to M85000, 1 ambulance @ M1 000 000 | G9: Ministry of Health | H9: National | I9: Lack of commitment | L9: N | M9: Donor | N9: 1085000 | Q9: 1 | T9: 0 | U9: 0 | V9: 1085000 | W9: 0 | X9: 0 | Y9: 1085000 | Z9: Infrastructure | AA9: Capital | AL9: Procurement | EG9: office equipment | EH9: 1 | EI9: 85000 | EJ9: 85000 | EK9: ambulance | EL9: 1 | EM9: 1000000 | EN9: 1000000 | EO9: Not used | EP9: 0 | EQ9: 0 | ER9: 0 | ES9: Not used | ET9: 0 | EU9: 0 | EV9: 0 | EW9: Not used | EX9: 0 | EY9: 0 | EZ9: 0 | FA9: Not used | FB9: 0 | FC9: 0 | FD9: 0 | FE9: Not used | FF9: 0 | FG9: 0 | FH9: 0 | FI9: Not used | FJ9: 0 | FK9: 0 | FL9: 0 | FM9: Not used | FN9: 0 | FO9: 0 | FP9: 0 | FQ9: Not used | FR9: 0 | FS9: 0 | FT9: 0 | FU9: 1085000 | FV9: National | FW9: Capital | FX9: Infrastructure | FY9: Ministry of Health | FZ9: Infrastructure
T10: 0 | U10: 0 | V10: 0 | W10: 0 | X10: 0 | Y10: 0
T11: 0 | U11: 0 | V11: 0 | W11: 0 | X11: 0 | Y11: 0
T12: 0 | U12: 0 | V12: 0 | W12: 0 | X12: 0 | Y12: 0
T13: =IF($N13="Pending",0,$N13*O13) -> 0 | U13: 0 | V13: 0 | W13: 0 | X13: 0 | Y13: 0
T14: 0 | U14: 0 | V14: 0 | W14: 0 | X14: 0 | Y14: 0
T15: 0 | U15: 0 | V15: 0 | W15: 0 | X15: 0 | Y15: 0
T16: 0 | U16: 0 | V16: 0 | W16: 0 | X16: 0 | Y16: 0
T17: =IF($N17="Pending",0,$N17*O17) -> 0 | U17: 0 | V17: 0 | W17: 0 | X17: 0 | Y17: 0
T18: =IF($N18="Pending",0,$N18*O18) -> 0 | U18: 0 | V18: 0 | W18: 0 | X18: 0 | Y18: 0
T19: 0 | U19: 0 | V19: 0 | W19: 0 | X19: 0 | Y19: 0
T20: =IF($N20="Pending",0,$N20*O20) -> 0 | U20: 0 | V20: 0 | W20: 0 | X20: 0 | Y20: 0
T21: 0 | U21: 0 | V21: 0 | W21: 0 | X21: 0 | Y21: 0
T22: 0 | U22: 0 | V22: 0 | W22: 0 | X22: 0 | Y22: 0
T23: 0 | U23: 0 | V23: 0 | W23: 0 | X23: 0 | Y23: 0
T24: 0 | U24: 0 | V24: 0 | W24: 0 | X24: 0 | Y24: 0
T25: 0 | U25: 0 | V25: 0 | W25: 0 | X25: 0 | Y25: 0
T26: 0 | U26: 0 | V26: 0 | W26: 0 | X26: 0 | Y26: 0
T27: 0 | U27: 0 | V27: 0 | W27: 0 | X27: 0 | Y27: 0
T28: 0 | U28: 0 | V28: 0 | W28: 0 | X28: 0 | Y28: 0
T29: 0 | U29: 0 | V29: 0 | W29: 0 | X29: 0 | Y29: 0
T30: 0 | U30: 0 | V30: 0 | W30: 0 | X30: 0 | Y30: 0
T31: 0 | U31: 0 | V31: 0 | W31: 0 | X31: 0 | Y31: 0
T32: 0 | U32: 0 | V32: 0 | W32: 0 | X32: 0 | Y32: 0
T33: 0 | U33: 0 | V33: 0 | W33: 0 | X33: 0 | Y33: 0
T34: 0 | U34: 0 | V34: 0 | W34: 0 | X34: 0 | Y34: 0
T35: 0 | U35: 0 | V35: 0 | W35: 0 | X35: 0 | Y35: 0
T36: 0 | U36: 0 | V36: 0 | W36: 0 | X36: 0 | Y36: 0
T37: 0 | U37: 0 | V37: 0 | W37: 0 | X37: 0 | Y37: 0
T38: 0 | U38: 0 | V38: 0 | W38: 0 | X38: 0 | Y38: 0
T39: 0 | U39: 0 | V39: 0 | W39: 0 | X39: 0 | Y39: 0
T40: 0 | U40: 0 | V40: 0 | W40: 0 | X40: 0 | Y40: 0
T41: =IF($N41="Pending",0,$N41*O41) -> 0 | U41: 0 | V41: 0 | W41: 0 | X41: 0 | Y41: 0
T42: 0 | U42: 0 | V42: 0 | W42: 0 | X42: 0 | Y42: 0
T43: 0 | U43: 0 | V43: 0 | W43: 0 | X43: 0 | Y43: 0
T44: 0 | U44: 0 | V44: 0 | W44: 0 | X44: 0 | Y44: 0
T45: 0 | U45: 0 | V45: 0 | W45: 0 | X45: 0 | Y45: 0
T46: 0 | U46: 0 | V46: 0 | W46: 0 | X46: 0 | Y46: 0
T47: 0 | U47: 0 | V47: 0 | W47: 0 | X47: 0 | Y47: 0
T48: 0 | U48: 0 | V48: 0 | W48: 0 | X48: 0 | Y48: 0
T49: 0 | U49: 0 | V49: 0 | W49: 0 | X49: 0 | Y49: 0
T50: 0 | U50: 0 | V50: 0 | W50: 0 | X50: 0 | Y50: 0
T51: 0 | U51: 0 | V51: 0 | W51: 0 | X51: 0 | Y51: 0
T52: 0 | U52: 0 | V52: 0 | W52: 0 | X52: 0 | Y52: 0
T53: 0 | U53: 0 | V53: 0 | W53: 0 | X53: 0 | Y53: 0
T54: 0 | U54: 0 | V54: 0 | W54: 0 | X54: 0 | Y54: 0
T55: =IF($N55="Pending",0,$N55*O55) -> 0 | U55: =IF($N55="Pending",0,$N55*P55) -> 0 | V55: =IF($N55="Pending",0,$N55*Q55) -> 0 | W55: =IF($N55="Pending",0,$N55*R55) -> 0 | X55: =IF($N55="Pending",0,$N55*S55) -> 0 | Y55: =SUM(T55:X55) -> 0
T56: 0 | U56: 0 | V56: 0 | W56: 0 | X56: 0 | Y56: 0
T57: 0 | U57: 0 | V57: 0 | W57: 0 | X57: 0 | Y57: 0
T58: 0 | U58: 0 | V58: 0 | W58: 0 | X58: 0 | Y58: 0
T59: 0 | U59: 0 | V59: 0 | W59: 0 | X59: 0 | Y59: 0
T60: 0 | U60: 0 | V60: 0 | W60: 0 | X60: 0 | Y60: 0
T61: 0 | U61: 0 | V61: 0 | W61: 0 | X61: 0 | Y61: 0
T62: 0 | U62: 0 | V62: 0 | W62: 0 | X62: 0 | Y62: 0
T63: 0 | U63: 0 | V63: 0 | W63: 0 | X63: 0 | Y63: 0
T64: 0 | U64: 0 | V64: 0 | W64: 0 | X64: 0 | Y64: 0
T65: 0 | U65: 0 | V65: 0 | W65: 0 | X65: 0 | Y65: 0
T66: 0 | U66: 0 | V66: 0 | W66: 0 | X66: 0 | Y66: 0
T67: 0 | U67: 0 | V67: 0 | W67: 0 | X67: 0 | Y67: 0
T68: 0 | U68: 0 | V68: 0 | W68: 0 | X68: 0 | Y68: 0
T69: 0 | U69: 0 | V69: 0 | W69: 0 | X69: 0 | Y69: 0
T70: 0 | U70: 0 | V70: 0 | W70: 0 | X70: 0 | Y70: 0
T71: 0 | U71: 0 | V71: 0 | W71: 0 | X71: 0 | Y71: 0
T72: 0 | U72: 0 | V72: 0 | W72: 0 | X72: 0 | Y72: 0
T73: 0 | U73: 0 | V73: 0 | W73: 0 | X73: 0 | Y73: 0
T74: 0 | U74: 0 | V74: 0 | W74: 0 | X74: 0 | Y74: 0
T75: 0 | U75: 0 | V75: 0 | W75: 0 | X75: 0 | Y75: 0
T76: 0 | U76: 0 | V76: 0 | W76: 0 | X76: 0 | Y76: 0
T77: 0 | U77: 0 | V77: 0 | W77: 0 | X77: 0 | Y77: 0
T78: 0 | U78: 0 | V78: 0 | W78: 0 | X78: 0 | Y78: 0
T79: 0 | U79: 0 | V79: 0 | W79: 0 | X79: 0 | Y79: 0
T80: 0 | U80: 0 | V80: 0 | W80: 0 | X80: 0 | Y80: 0
T81: 0 | U81: 0 | V81: 0 | W81: 0 | X81: 0 | Y81: 0
T82: 0 | U82: 0 | V82: 0 | W82: 0 | X82: 0 | Y82: 0
T83: 0 | U83: 0 | V83: 0 | W83: 0 | X83: 0 | Y83: 0
T84: 0 | U84: 0 | V84: 0 | W84: 0 | X84: 0 | Y84: 0
T85: 0 | U85: 0 | V85: 0 | W85: 0 | X85: 0 | Y85: 0
T86: 0 | U86: 0 | V86: 0 | W86: 0 | X86: 0 | Y86: 0
T87: 0 | U87: 0 | V87: 0 | W87: 0 | X87: 0 | Y87: 0
T88: 0 | U88: 0 | V88: 0 | W88: 0 | X88: 0 | Y88: 0
T89: 0 | U89: 0 | V89: 0 | W89: 0 | X89: 0 | Y89: 0
T90: 0 | U90: 0 | V90: 0 | W90: 0 | X90: 0 | Y90: 0
T91: 0 | U91: 0 | V91: 0 | W91: 0 | X91: 0 | Y91: 0
T92: 0 | U92: 0 | V92: 0 | W92: 0 | X92: 0 | Y92: 0
T93: 0 | U93: 0 | V93: 0 | W93: 0 | X93: 0 | Y93: 0
T94: 0 | U94: 0 | V94: 0 | W94: 0 | X94: 0 | Y94: 0
T95: =IF($N95="Pending",0,$N95*O95) -> 0 | U95: =IF($N95="Pending",0,$N95*P95) -> 0 | V95: =IF($N95="Pending",0,$N95*Q95) -> 0 | W95: =IF($N95="Pending",0,$N95*R95) -> 0 | X95: =IF($N95="Pending",0,$N95*S95) -> 0 | Y95: =SUM(T95:X95) -> 0
T96: 0 | U96: 0 | V96: 0 | W96: 0 | X96: 0 | Y96: 0
T97: 0 | U97: 0 | V97: 0 | W97: 0 | X97: 0 | Y97: 0
T98: 0 | U98: 0 | V98: 0 | W98: 0 | X98: 0 | Y98: 0
T99: 0 | U99: 0 | V99: 0 | W99: 0 | X99: 0 | Y99: 0
T100: =IF($N100="Pending",0,$N100*O100) -> 0 | U100: =IF($N100="Pending",0,$N100*P100) -> 0 | V100: =IF($N100="Pending",0,$N100*Q100) -> 0 | W100: =IF($N100="Pending",0,$N100*R100) -> 0 | X100: =IF($N100="Pending",0,$N100*S100) -> 0 | Y100: =SUM(T100:X100) -> 0
T101: 0 | U101: 0 | V101: 0 | W101: 0 | X101: 0 | Y101: 0
T102: 0 | U102: 0 | V102: 0 | W102: 0 | X102: 0 | Y102: 0
T103: 0 | U103: 0 | V103: 0 | W103: 0 | X103: 0 | Y103: 0
T104: 0 | U104: 0 | V104: 0 | W104: 0 | X104: 0 | Y104: 0
T105: 0 | U105: 0 | V105: 0 | W105: 0 | X105: 0 | Y105: 0
T106: 0 | U106: 0 | V106: 0 | W106: 0 | X106: 0 | Y106: 0
T108: =SUM(T7:T106) -> 14028000 | U108: 14035400 | V108: 15113000 | W108: 14028000 | X108: 14028000 | Y108: 71232400
T110: =T6 -> Cost estimate 2024 | U110: Cost estimate 2025 | V110: Cost estimate 2026 | W110: Cost estimate 2027 | X110: Cost estimate 2028 | Y110: TotalOver5Years
S111: ='Basic Input for Tool'!$D65 -> Meeting | T111: =SUMIF($Z$7:$Z$106,$S111,T$7:T$106) -> 0 | U111: 0 | V111: 0 | W111: 0 | X111: 0 | Y111: 0
S112: ='Basic Input for Tool'!$D66 -> Training | T112: 0 | U112: 0 | V112: 0 | W112: 0 | X112: 0 | Y112: 0
S113: ='Basic Input for Tool'!$D67 -> Workshop | T113: 0 | U113: 0 | V113: 0 | W113: 0 | X113: 0 | Y113: 0
S114: ='Basic Input for Tool'!$D68 -> SOP development | T114: 0 | U114: 0 | V114: 0 | W114: 0 | X114: 0 | Y114: 0
S115: ='Basic Input for Tool'!$D69 -> Communication | T115: 0 | U115: 0 | V115: 0 | W115: 0 | X115: 0 | Y115: 0
S116: ='Basic Input for Tool'!$D70 -> Construction | T116: 0 | U116: 0 | V116: 0 | W116: 0 | X116: 0 | Y116: 0
S117: ='Basic Input for Tool'!$D71 -> Consultancy | T117: 0 | U117: 0 | V117: 0 | W117: 0 | X117: 0 | Y117: 0
S118: ='Basic Input for Tool'!$D72 -> Evaluation | T118: 0 | U118: 7400 | V118: 0 | W118: 0 | X118: 0 | Y118: 7400
S119: ='Basic Input for Tool'!$D73 -> Field visit | T119: 0 | U119: 0 | V119: 0 | W119: 0 | X119: 0 | Y119: 0
S120: ='Basic Input for Tool'!$D74 -> Human resources | T120: 14028000 | U120: 14028000 | V120: 14028000 | W120: 14028000 | X120: 14028000 | Y120: 70140000
S121: ='Basic Input for Tool'!$D75 -> Infrastructure | T121: =SUMIF($Z$7:$Z$106,$S121,T$7:T$106) -> 0 | U121: 0 | V121: 1085000 | W121: 0 | X121: 0 | Y121: 1085000
S122: ='Basic Input for Tool'!$D76 -> Document reproduction/printing | T122: 0 | U122: 0 | V122: 0 | W122: 0 | X122: 0 | Y122: 0
S123: ='Basic Input for Tool'!$D77 -> Procurement | T123: 0 | U123: 0 | V123: 0 | W123: 0 | X123: 0 | Y123: 0
S124: ='Basic Input for Tool'!$D78 -> Services | T124: 0 | U124: 0 | V124: 0 | W124: 0 | X124: 0 | Y124: 0
S125: ='Basic Input for Tool'!$D79 -> Simulation exercises | T125: 0 | U125: 0 | V125: 0 | W125: 0 | X125: 0 | Y125: 0
S126: ='Basic Input for Tool'!$D80 -> Advocacy | T126: 0 | U126: 0 | V126: 0 | W126: 0 | X126: 0 | Y126: 0
S127: ='Basic Input for Tool'!$D81 -> Study | T127: 0 | U127: 0 | V127: 0 | W127: 0 | X127: 0 | Y127: 0
S128: ='Basic Input for Tool'!$D82 -> Campaign | T128: 0 | U128: 0 | V128: 0 | W128: 0 | X128: 0 | Y128: 0
S129: ='Basic Input for Tool'!$D83 -> Other | T129: 0 | U129: 0 | V129: 0 | W129: 0 | X129: 0 | Y129: 0
S130: ='Basic Input for Tool'!$D84 -> Other 2 | T130: 0 | U130: 0 | V130: 0 | W130: 0 | X130: 0 | Y130: 0
S131: ='Basic Input for Tool'!$D85 -> Other 3 | T131: 0 | U131: 0 | V131: 0 | W131: 0 | X131: 0 | Y131: 0
S132: ='Basic Input for Tool'!$D86 -> Other 4 | T132: 0 | U132: 0 | V132: 0 | W132: 0 | X132: 0 | Y132: 0
S133: ='Basic Input for Tool'!$D87 -> Other 5 | T133: 0 | U133: 0 | V133: 0 | W133: 0 | X133: 0 | Y133: 0
T136: =T6 -> Cost estimate 2024 | U136: Cost estimate 2025 | V136: Cost estimate 2026 | W136: Cost estimate 2027 | X136: Cost estimate 2028 | Y136: TotalOver5Years
S137: ='Basic Input for Tool'!$C65 -> Capital | T137: =SUMIF($AA$7:$AA$106,$S137,T$7:T$106) -> 0 | U137: 7400 | V137: 1085000 | W137: 0 | X137: 0 | Y137: 1092400
S138: ='Basic Input for Tool'!$C66 -> Recurrent | T138: 14028000 | U138: 14028000 | V138: 14028000 | W138: 14028000 | X138: 14028000 | Y138: 70140000
S139: ='Basic Input for Tool'!$C67 -> Other 1 | T139: 0 | U139: 0 | V139: 0 | W139: 0 | X139: 0 | Y139: 0
S140: ='Basic Input for Tool'!$C68 -> Other 2 | T140: 0 | U140: 0 | V140: 0 | W140: 0 | X140: 0 | Y140: 0
S141: ='Basic Input for Tool'!$C69 -> 0 | T141: 0 | U141: 0 | V141: 0 | W141: 0 | X141: 0 | Y141: 0
S142: ='Basic Input for Tool'!$C70 -> 0 | T142: 0 | U142: 0 | V142: 0 | W142: 0 | X142: 0 | Y142: 0
S143: ='Basic Input for Tool'!$C71 -> 0 | T143: 0 | U143: 0 | V143: 0 | W143: 0 | X143: 0 | Y143: 0
S144: ='Basic Input for Tool'!$C72 -> 0 | T144: 0 | U144: 0 | V144: 0 | W144: 0 | X144: 0 | Y144: 0
S145: ='Basic Input for Tool'!$C73 -> 0 | T145: 0 | U145: 0 | V145: 0 | W145: 0 | X145: 0 | Y145: 0
S146: ='Basic Input for Tool'!$C74 -> 0 | T146: 0 | U146: 0 | V146: 0 | W146: 0 | X146: 0 | Y146: 0
T149: =T6 -> Cost estimate 2024 | U149: Cost estimate 2025 | V149: Cost estimate 2026 | W149: Cost estimate 2027 | X149: Cost estimate 2028 | Y149: TotalOver5Years | Z149: =SUM(Y150:Y153) -> 71232400
S150: ='Basic Input for Tool'!$B$65 -> National | T150: =SUMIF($H$7:$H$106,$S150,T$7:T$106) -> 14028000 | U150: 14035400 | V150: 15113000 | W150: 14028000 | X150: 14028000 | Y150: 71232400
S151: ='Basic Input for Tool'!$B$66 -> Central | T151: 0 | U151: 0 | V151: 0 | W151: 0 | X151: 0 | Y151: 0
S152: ='Basic Input for Tool'!$B$67 -> SNU1 (province/region/etat) | T152: 0 | U152: 0 | V152: 0 | W152: 0 | X152: 0 | Y152: 0
S153: ='Basic Input for Tool'!$B$68 -> SNU2 (district/county) | T153: 0 | U153: 0 | V153: 0 | W153: 0 | X153: 0 | Y153: 0
S154: ='Basic Input for Tool'!$B$68 -> SNU2 (district/county)
T156: =T6 -> Cost estimate 2024 | U156: Cost estimate 2025 | V156: Cost estimate 2026 | W156: Cost estimate 2027 | X156: Cost estimate 2028 | Y156: TotalOver5Years | Z156: =SUM(Y157:Y179) -> 71232400
S157: ='Basic Input for Tool'!$E$65 -> Ministry of Health | T157: =SUMIF($G$7:$G$106,$S157,T$7:T$106) -> 14028000 | U157: 14035400 | V157: 15113000 | W157: 14028000 | X157: 14028000 | Y157: 71232400
S158: ='Basic Input for Tool'!$E$66 -> Ministry of Finance | T158: 0 | U158: 0 | V158: 0 | W158: 0 | X158: 0 | Y158: 0
S159: ='Basic Input for Tool'!$E$67 -> Ministry of Agriculture | T159: 0 | U159: 0 | V159: 0 | W159: 0 | X159: 0 | Y159: 0
S160: ='Basic Input for Tool'!$E$68 -> Ministry of Environment | T160: 0 | U160: 0 | V160: 0 | W160: 0 | X160: 0 | Y160: 0
S161: ='Basic Input for Tool'!$E$69 -> Other 2 | T161: 0 | U161: 0 | V161: 0 | W161: 0 | X161: 0 | Y161: 0
S162: ='Basic Input for Tool'!$E$70 -> Other 3 | T162: 0 | U162: 0 | V162: 0 | W162: 0 | X162: 0 | Y162: 0
S163: ='Basic Input for Tool'!$E$71 -> Other 4 | T163: 0 | U163: 0 | V163: 0 | W163: 0 | X163: 0 | Y163: 0
S164: ='Basic Input for Tool'!$E$72 -> Other 5 | T164: 0 | U164: 0 | V164: 0 | W164: 0 | X164: 0 | Y164: 0
S165: ='Basic Input for Tool'!$E$73 -> Other 6 | T165: 0 | U165: 0 | V165: 0 | W165: 0 | X165: 0 | Y165: 0
S166: ='Basic Input for Tool'!$E74 -> Other 7 | T166: 0 | U166: 0 | V166: 0 | W166: 0 | X166: 0 | Y166: 0
S167: ='Basic Input for Tool'!$E75 -> Other 8 | T167: =SUMIF($G$7:$G$106,$S167,T$7:T$106) -> 0 | U167: 0 | V167: 0 | W167: 0 | X167: 0 | Y167: 0
S168: ='Basic Input for Tool'!$E76 -> Other 9 | T168: 0 | U168: 0 | V168: 0 | W168: 0 | X168: 0 | Y168: 0
S169: ='Basic Input for Tool'!$E77 -> Other 10 | T169: 0 | U169: 0 | V169: 0 | W169: 0 | X169: 0 | Y169: 0
S170: ='Basic Input for Tool'!$E78 -> Other 11 | T170: 0 | U170: 0 | V170: 0 | W170: 0 | X170: 0 | Y170: 0
S171: ='Basic Input for Tool'!$E79 -> Other 12 | T171: 0 | U171: 0 | V171: 0 | W171: 0 | X171: 0 | Y171: 0
S172: ='Basic Input for Tool'!$E80 -> Other 13 | T172: 0 | U172: 0 | V172: 0 | W172: 0 | X172: 0 | Y172: 0
S173: ='Basic Input for Tool'!$E81 -> Other 14 | T173: 0 | U173: 0 | V173: 0 | W173: 0 | X173: 0 | Y173: 0
S174: ='Basic Input for Tool'!$E82 -> Other 15 | T174: 0 | U174: 0 | V174: 0 | W174: 0 | X174: 0 | Y174: 0
S175: ='Basic Input for Tool'!$E83 -> Other 16 | T175: 0 | U175: 0 | V175: 0 | W175: 0 | X175: 0 | Y175: 0
S176: ='Basic Input for Tool'!$E84 -> Other 17 | T176: 0 | U176: 0 | V176: 0 | W176: 0 | X176: 0 | Y176: 0
S177: ='Basic Input for Tool'!$E85 -> Other 18 | T177: 0 | U177: 0 | V177: 0 | W177: 0 | X177: 0 | Y177: 0
S178: ='Basic Input for Tool'!$E86 -> Other 19 | T178: 0 | U178: 0 | V178: 0 | W178: 0 | X178: 0 | Y178: 0
S179: ='Basic Input for Tool'!$E87 -> Other 20 | T179: 0 | U179: 0 | V179: 0 | W179: 0 | X179: 0 | Y179: 0
T182: =T6 -> Cost estimate 2024 | U182: =U6 -> Cost estimate 2025 | V182: Cost estimate 2026 | W182: Cost estimate 2027 | X182: Cost estimate 2028 | Y182: TotalOver5Years | Z182: =SUM(Y183:Y184) -> 71232400
R183: Yes | S183: Funded | T183: =SUM(SUMIFS(T$7:T$106,$L7:$L106,{"yes","y","funded"})) -> 0 | U183: =SUM(SUMIFS(U$7:U$106,$L7:$L106,{"yes","y","funded"})) -> 0 | V183: =SUM(SUMIFS(V$7:V$106,$L7:$L106,{"yes","y","funded"})) -> 0 | W183: =SUM(SUMIFS(W$7:W$106,$L7:$L106,{"yes","y","funded"})) -> 0 | X183: =SUM(SUMIFS(X$7:X$106,$L7:$L106,{"yes","y","funded"})) -> 0 | Y183: =SUM(SUMIFS(Y$7:Y$106,$L7:$L106,{"yes","y","funded"})) -> 0
R184: No | S184: Not funded | T184: =SUM(SUMIFS(T$7:T$106,$L7:$L106,{"no","n","not funded"})) -> 14028000 | U184: =SUM(SUMIFS(U$7:U$106,$L7:$L106,{"no","n","not funded"})) -> 14035400 | V184: =SUM(SUMIFS(V$7:V$106,$L7:$L106,{"no","n","not funded"})) -> 15113000 | W184: =SUM(SUMIFS(W$7:W$106,$L7:$L106,{"no","n","not funded"})) -> 14028000 | X184: =SUM(SUMIFS(X$7:X$106,$L7:$L106,{"no","n","not funded"})) -> 14028000 | Y184: =SUM(SUMIFS(Y$7:Y$106,$L7:$L106,{"no","n","not funded"})) -> 71232400

Sheet P5. Zoonotic disease
A1: =IF(ISNA(VLOOKUP(CountryName,CountriesCodes,2,FALSE))=TRUE,"",VLOOKUP(CountryName,CountriesCodes,2,FALSE)& "FS1") -> ETH FS1 | B1: ="PLANNING AND COSTING MATRIX FOR THE DEVELOPMENT OF NATIONAL ACTION PLAN FOR HEALTH SECURITY " & O6 &" - " & S6 -> PLANNING AND COSTING MATRIX FOR THE DEVELOPMENT OF NATIONAL ACTION PLAN FOR HEALTH SECURITY 2024 - 2028 | AM1: 1 | AN1: 2 | AO1: 3 | AP1: 4 | AQ1: 5 | AR1: 6 | AS1: 7 | AT1: 8 | AU1: 9 | AV1: 10 | AW1: 11 | AX1: 12 | AY1: 13 | AZ1: 14 | BA1: 15 | BB1: 16 | BC1: 17 | BD1: 18 | BE1: 19 | BF1: 20 | BG1: 21 | BH1: 22 | BI1: 23 | BJ1: 24 | BK1: 25 | BL1: 26 | BM1: 27 | BN1: 28 | BO1: 29 | BP1: 30 | BQ1: 31 | BR1: 32 | BS1: 33 | BT1: 34 | BU1: 35 | BV1: 36 | BW1: 37 | BX1: 38 | BY1: 39 | BZ1: 40 | CA1: 41 | CB1: 42 | CC1: 43 | CD1: 44 | CE1: 45 | CF1: 46 | CG1: 47 | CH1: 48 | CI1: 49 | CJ1: 50 | CK1: 51 | CL1: 52 | CM1: 53 | CN1: 54 | CO1: 55 | CP1: 56 | CQ1: 57 | CR1: 58 | CS1: 59 | CT1: 60 | CU1: 61 | CV1: 62 | CW1: 63 | CX1: 64 | CY1: 65 | CZ1: 66 | DA1: 67 | DB1: 68 | DC1: 69 | DD1: 70 | DE1: 71 | DF1: 72 | DG1: 73 | DH1: 74 | DI1: 75 | DJ1: 76 | DK1: 77 | DL1: 78 | DM1: 79 | DN1: 80 | DO1: 81 | DP1: 82 | DQ1: 83 | DR1: 84 | DS1: 85 | DT1: 86 | DU1: 87 | DV1: 88 | DW1: 89 | DX1: 90 | DY1: 91 | DZ1: 92 | EA1: 93 | EB1: 94 | EC1: 95 | ED1: 96 | EE1: 97 | EF1: 98 | EG1: 99 | EH1: 100 | EI1: 101 | EJ1: 102 | EK1: 103 | EL1: 104 | EM1: 105 | EN1: 106 | EO1: 107 | EP1: 108 | EQ1: 109 | ER1: 110 | ES1: 111 | ET1: 112 | EU1: 113 | EV1: 114 | EW1: 115 | EX1: 116 | EY1: 117 | EZ1: 118 | FA1: 119 | FB1: 120 | FC1: 121 | FD1: 122 | FE1: 123 | FF1: 124 | FG1: 125 | FH1: 126 | FI1: 127 | FJ1: 128 | FK1: 129 | FL1: 130 | FM1: 131 | FN1: 132 | FO1: 133 | FP1: 134 | FQ1: 135 | FR1: 136 | FS1: 137 | FT1: 138 | FU1: 139 | FV1: 140 | FW1: 141 | FX1: 142 | FY1: 143 | FZ1: 144 | GA1: 145 | GB1: 146 | GC1: 147 | GD1: 148 | GE1: 149 | GF1: 150 | GG1: 151 | GH1: 152 | GI1: 153 | GJ1: 154 | GK1: 155 | XEQ1: Formula for meeting | XER1: Consultant | XES1: Field Visit
A2: 101 | B2: PREVENT | AN2: Meeting DATA | BJ2: FIELD VISITS | CA2: CONSULTANT | CN2: =+CL2+1 -> 1 | CS2: =CN2+1 -> 2 | CX2: =CS2+1 -> 3 | DC2: =CX2+1 -> 4 | DH2: =DC2+1 -> 5 | DM2: =DH2+1 -> 6 | DR2: =DM2+1 -> 7 | EG2: PROCUREMENT | EI2: 1 | EK2: =+EG2 -> PROCUREMENT | EL2: =+EI2+1 -> 2 | EO2: =+EK2 -> PROCUREMENT | EP2: =EL2+1 -> 3 | ES2: =+EO2 -> PROCUREMENT | ET2: =EP2+1 -> 4 | EW2: =+ES2 -> PROCUREMENT | EX2: =ET2+1 -> 5 | FA2: =+EW2 -> PROCUREMENT | FB2: =EX2+1 -> 6 | FE2: =+FA2 -> PROCUREMENT | FF2: =FB2+1 -> 7 | FI2: =+FE2 -> PROCUREMENT | FJ2: =FF2+1 -> 8 | FM2: =+FI2 -> PROCUREMENT | FN2: =FJ2+1 -> 9 | FQ2: =+FM2 -> PROCUREMENT | FR2: =FN2+1 -> 10 | GE2: Other | XEQ2: =(((($AN2-$AO2)*$AP2*$AQ2+$AO2*($AP2+ExtraDaysFar)*$AR2)+($AS2*$AP2)+($AT2+$AU2)*$AP2*$AN2+$AV2*$AN2))+($AW2*$AZ2*$AX2+$AW2*$BA2*$AZ2+$AY2+$AN2*$BB2)+$BC2*$AP2+$BH2+$BI2 ->  | XER2: =$CB2*$CC2*$CD2+$CB2*$CC2*$CE2+$CB2*$CF2 -> 0 | XES2: =$BJ2*$BK2*$BL2+$BN2*$BK2*($BO2+$BP2)+$BQ2*$BK2*$BR2+$BS2 -> 
B3: General Objective: To prevent and reduce the likelihood of outbreaks and other public health hazards and events defined by IHR (2005). | AK3: Unique ID | AL3: Category | AM3: Total cost | AN3: Participants | AO3: Away participants | AP3: No of days | AQ3: Per diem | AR3: Per diem away | AS3: Rent of venue | AT3: Lunch | AU3: Tea break | AV3: Stationary | AW3: No of trainers | AX3: Trainer fee | AY3: Extra for trainer | AZ3: No of days for trainer | BA3: Trainer per diem | BB3: Extra pp | BC3: Extra on top | BD3: List 1 | BE3: List 2 | BF3: List 3 | BG3: For later | BH3: For later | BI3: For later | BJ3: No of supervisors | BK3: No of days | BL3: Per diem | BM3: Vehicle category | BN3: No of vehicles | BO3: Cost per day per vehicle | BP3: Fuel cost per day | BQ3: No of drivers | BR3: Driver per diem | BS3: Extra per field visit | BT3: Total costs | BU3: List 1 | BV3: List 2 | BW3: List 3 | BX3: List4 | BY3: For later | BZ3: For later | CA3: International national | CB3: No of consultants | CC3: Number of days consultants | CD3: Per diem consultant | CE3: Consultant rate | CF3: Consultant travel | CG3: Total consult | CH3: List 1 | CI3: List 2 | CJ3: List 3 | CK3: List4 | CL3: For later | CM3: For later | CN3: ="HR" &CN2 -> HR1 | CO3: ="no. of " & CN3 -> no. of HR1 | CP3: ="Salary " & CN3 -> Salary HR1 | CQ3: ="Month " & CO3 & " TRUE/FALSE" -> Month no. of HR1 TRUE/FALSE | CR3: ="Months " & CN3 -> Months HR1 | CS3: ="HR" &CS2 -> HR2 | CT3: ="no. of " & CS3 -> no. of HR2 | CU3: ="Salary " & CS3 -> Salary HR2 | CV3: ="Month " & CT3 & " TRUE/FALSE" -> Month no. of HR2 TRUE/FALSE | CW3: ="Months " & CS3 -> Months HR2 | CX3: ="HR" &CX2 -> HR3 | CY3: ="no. of " & CX3 -> no. of HR3 | CZ3: ="Salary " & CX3 -> Salary HR3 | DA3: ="Month " & CY3 & " TRUE/FALSE" -> Month no. of HR3 TRUE/FALSE | DB3: ="Months " & CX3 -> Months HR3 | DC3: ="HR" &DC2 -> HR4 | DD3: ="no. of " & DC3 -> no. of HR4 | DE3: ="Salary " & DC3 -> Salary HR4 | DF3: ="Month " & DD3 & " TRUE/FALSE" -> Month no. of HR4 TRUE/FALSE | DG3: ="Months " & DC3 -> Months HR4 | DH3: ="HR" &DH2 -> HR5 | DI3: ="no. of " & DH3 -> no. of HR5 | DJ3: ="Salary " & DH3 -> Salary HR5 | DK3: ="Month " & DI3 & " TRUE/FALSE" -> Month no. of HR5 TRUE/FALSE | DL3: ="Months " & DH3 -> Months HR5 | DM3: ="HR" &DM2 -> HR6 | DN3: ="no. of " & DM3 -> no. of HR6 | DO3: ="Salary " & DM3 -> Salary HR6 | DP3: ="Month " & DN3 & " TRUE/FALSE" -> Month no. of HR6 TRUE/FALSE | DQ3: ="Months " & DM3 -> Months HR6 | DR3: ="HR" &DR2 -> HR7 | DS3: ="no. of " & DR3 -> no. of HR7 | DT3: ="Salary " & DR3 -> Salary HR7 | DU3: ="Month " & DS3 & " TRUE/FALSE" -> Month no. of HR7 TRUE/FALSE | DV3: ="Months " & DR3 -> Months HR7 | DW3: HR Extra 1 | DX3: HR Extra 2 | DY3: Total costs HR | DZ3: List 1 | EA3: List 2 | EB3: List 3 | EC3: List 4 | ED3: For later | EE3: For later | EF3: For later | EG3: Descripion1 | EH3: Quantity 1 | EI3: Price 1 | EJ3: Cost proc 1 | EK3: Descripion 2 | EL3: Quantity 2 | EM3: Price 2 | EN3: Cost proc 2 | EO3: ="Description " & EP2 -> Description 3 | EP3: ="Quantity " & EP2 -> Quantity 3 | EQ3: ="Price " & EP2 -> Price 3 | ER3: ="Cost proc " & EP2 -> Cost proc 3 | ES3: ="Description " & ET2 -> Description 4 | ET3: ="Quantity " & ET2 -> Quantity 4 | EU3: ="Price " & ET2 -> Price 4 | EV3: ="Cost proc " & ET2 -> Cost proc 4 | EW3: ="Description " & EX2 -> Description 5 | EX3: ="Quantity " & EX2 -> Quantity 5 | EY3: ="Price " & EX2 -> Price 5 | EZ3: ="Cost proc " & EX2 -> Cost proc 5 | FA3: ="Description " & FB2 -> Description 6 | FB3: ="Quantity " & FB2 -> Quantity 6 | FC3: ="Price " & FB2 -> Price 6 | FD3: ="Cost proc " & FB2 -> Cost proc 6 | FE3: ="Description " & FF2 -> Description 7 | FF3: ="Quantity " & FF2 -> Quantity 7 | FG3: ="Price " & FF2 -> Price 7 | FH3: ="Cost proc " & FF2 -> Cost proc 7 | FI3: ="Description " & FJ2 -> Description 8 | FJ3: ="Quantity " & FJ2 -> Quantity 8 | FK3: ="Price " & FJ2 -> Price 8 | FL3: ="Cost proc " & FJ2 -> Cost proc 8 | FM3: ="Description " & FN2 -> Description 9 | FN3: ="Quantity " & FN2 -> Quantity 9 | FO3: ="Price " & FN2 -> Price 9 | FP3: ="Cost proc " & FN2 -> Cost proc 9 | FQ3: ="Description " & FR2 -> Description 10 | FR3: ="Quantity " & FR2 -> Quantity 10 | FS3: ="Price " & FR2 -> Price 10 | FT3: ="Cost proc " & FR2 -> Cost proc 10 | FU3: Total cost procurement | FV3: List 1 | FW3: List 2 | FX3: List 3 | FY3: List 4 | FZ3: Procurement category | GA3: For later | GB3: For later | GC3: For later | GD3: For later | GE3: Description other | GF3: Cost other | GG3: List 1 | GH3: List 2 | GI3: List 3 | GJ3: List 4
B4: Assessment recommendations: | C4: Please enter the list of recommendations in this single merged cell
B5: TECHNICAL AREA | C5: P5. Zoonotic diseases | O5: Frequency per year of implementation | T5: Annual Cost Estimates | AB5: Monitoring and Evaluation | AG5: comptage category2 (colonne AA) | AH5: comptage coût(colonne N) | AI5: .
A6: UniqueID | B6: Indicator | C6: Objectives | D6: Summary of Key Activities (Strategic actions) | E6: Detailed activity description (input description for costing) | F6: Detailed cost assumptions (including units, unit costs, quantities, frequency, etc) | G6: Responsible authority for Implementation (budget holder) | H6: Implementation scale (National, regional, district, sub-national?) | I6: Comments1 (Potential challenges, comments on implementation arrangements, other) | J6: Comments2 (Potential challenges, comments on implementation arrangements, other) | K6: Related existing plan/ framework / Programme or on-going activities | L6: Existing budget(y/n) | M6: Existing budget source (government, donor?) | N6: Estimated cost (Local currency) | O6: =IF('Basic Input for Tool'!$C$7="","Year 1",'Basic Input for Tool'!$C$7) -> 2024 | P6: =IF('Basic Input for Tool'!$C$7="","Year 2",O6+1) -> 2025 | Q6: =IF('Basic Input for Tool'!$C$7="","Year 3",P6+1) -> 2026 | R6: =IF('Basic Input for Tool'!$C$7="","Year 4",Q6+1) -> 2027 | S6: =IF('Basic Input for Tool'!$C$7="","Year 5",R6+1) -> 2028 | T6: ="Cost estimate " & O6 -> Cost estimate 2024 | U6: ="Cost estimate " & P6 -> Cost estimate 2025 | V6: Cost estimate 2026 | W6: Cost estimate 2027 | X6: Cost estimate 2028 | Y6: TotalOver5Years | Z6: CostCategory1 | AA6: CostCategory2 | AB6: Output/Process | AC6: Outcome | AD6: Frequency of collection (monthly, six monthly, yearly) | AE6: Source of verification | AG6: =COUNTA($AA7:$AA106) -> 2 | AH6: =COUNTA($N7:$N106) -> 2
F7: Print 10 copies @ M250 each | G7: Ministry of Health | H7: National | I7: lack of funds | L7: Y | M7: Donor | N7: 2500 | Q7: 1 | T7: =IF($N7="Pending",0,$N7*O7) -> 0 | U7: 0 | V7: 2500 | W7: 0 | X7: 0 | Y7: =SUM(T7:X7) -> 2500 | Z7: Document reproduction/printing | AA7: Recurrent | AL7: Procurement | EG7: Printing | EH7: 10 | EI7: 250 | EJ7: 2500 | EK7: Not used | EL7: 0 | EM7: 0 | EN7: 0 | EO7: Not used | EP7: 0 | EQ7: 0 | ER7: 0 | ES7: Not used | ET7: 0 | EU7: 0 | EV7: 0 | EW7: Not used | EX7: 0 | EY7: 0 | EZ7: 0 | FA7: Not used | FB7: 0 | FC7: 0 | FD7: 0 | FE7: Not used | FF7: 0 | FG7: 0 | FH7: 0 | FI7: Not used | FJ7: 0 | FK7: 0 | FL7: 0 | FM7: Not used | FN7: 0 | FO7: 0 | FP7: 0 | FQ7: Not used | FR7: 0 | FS7: 0 | FT7: 0 | FU7: 2500 | FV7: National | FW7: Recurrent | FX7: Document reproduction/printing | FY7: Ministry of Health | FZ7: Logistics
F8: conduct 7 day simex with 20 non residents | G8: Ministry of Environment | H8: National | I8: lack of funds | L8: Y | M8: Donor | N8: =(((($AN8-$AO8)*$AP8*$AQ8+$AO8*($AP8+ExtraDaysFar)*$AR8)+($AS8*$AP8)+($AT8+$AU8)*$AP8*$AN8+$AV8*$AN8))+($AW8*$AZ8*$AX8+$AW8*$BA8*$AZ8+$AY8+$AN8*$BB8)+$BC8*$AP8+$BH8+$BI8 -> 279100 | P8: 1 | R8: 1 | T8: 0 | U8: 279100 | V8: 0 | W8: 279100 | X8: 0 | Y8: 558200 | Z8: Simulation exercises | AA8: Recurrent | AL8: Training | AN8: 20 | AO8: 20 | AP8: 7 | AQ8: 0 | AR8: 1480 | AS8: 3500 | AT8: 250 | AU8: 80 | AV8: 60 | AW8: 0 | AX8: 0 | AY8: 0 | AZ8: 0 | BA8: 0 | BB8: 0 | BC8: 0 | BD8: National | BE8: Recurrent | BF8: Simulation exercises | BG8: Ministry of Environment | BH8: 0 | BI8: 0
T9: 0 | U9: 0 | V9: 0 | W9: 0 | X9: 0 | Y9: 0
T10: 0 | U10: 0 | V10: 0 | W10: 0 | X10: 0 | Y10: 0
T11: 0 | U11: 0 | V11: 0 | W11: 0 | X11: 0 | Y11: 0
T12: 0 | U12: 0 | V12: 0 | W12: 0 | X12: 0 | Y12: 0
T13: 0 | U13: 0 | V13: 0 | W13: 0 | X13: 0 | Y13: 0
T14: 0 | U14: 0 | V14: 0 | W14: 0 | X14: 0 | Y14: 0
T15: 0 | U15: 0 | V15: 0 | W15: 0 | X15: 0 | Y15: 0
T16: 0 | U16: 0 | V16: 0 | W16: 0 | X16: 0 | Y16: 0
T17: 0 | U17: 0 | V17: 0 | W17: 0 | X17: 0 | Y17: 0
T18: 0 | U18: 0 | V18: 0 | W18: 0 | X18: 0 | Y18: 0
T19: 0 | U19: 0 | V19: 0 | W19: 0 | X19: 0 | Y19: 0
T20: 0 | U20: 0 | V20: 0 | W20: 0 | X20: 0 | Y20: 0
T21: 0 | U21: 0 | V21: 0 | W21: 0 | X21: 0 | Y21: 0
T22: 0 | U22: 0 | V22: 0 | W22: 0 | X22: 0 | Y22: 0
T23: 0 | U23: 0 | V23: 0 | W23: 0 | X23: 0 | Y23: 0
T24: 0 | U24: 0 | V24: 0 | W24: 0 | X24: 0 | Y24: 0
T25: 0 | U25: 0 | V25: 0 | W25: 0 | X25: 0 | Y25: 0
T26: 0 | U26: 0 | V26: 0 | W26: 0 | X26: 0 | Y26: 0
T27: 0 | U27: 0 | V27: 0 | W27: 0 | X27: 0 | Y27: 0
T28: =IF($N28="Pending",0,$N28*O28) -> 0 | U28: =IF($N28="Pending",0,$N28*P28) -> 0 | V28: =IF($N28="Pending",0,$N28*Q28) -> 0 | W28: =IF($N28="Pending",0,$N28*R28) -> 0 | X28: =IF($N28="Pending",0,$N28*S28) -> 0 | Y28: =SUM(T28:X28) -> 0
T29: 0 | U29: 0 | V29: 0 | W29: 0 | X29: 0 | Y29: 0
T30: 0 | U30: 0 | V30: 0 | W30: 0 | X30: 0 | Y30: 0
T31: 0 | U31: 0 | V31: 0 | W31: 0 | X31: 0 | Y31: 0
T32: 0 | U32: 0 | V32: 0 | W32: 0 | X32: 0 | Y32: 0
T33: 0 | U33: 0 | V33: 0 | W33: 0 | X33: 0 | Y33: 0
T34: 0 | U34: 0 | V34: 0 | W34: 0 | X34: 0 | Y34: 0
T35: 0 | U35: 0 | V35: 0 | W35: 0 | X35: 0 | Y35: 0
T36: 0 | U36: 0 | V36: 0 | W36: 0 | X36: 0 | Y36: 0
T37: 0 | U37: 0 | V37: 0 | W37: 0 | X37: 0 | Y37: 0
T38: 0 | U38: 0 | V38: 0 | W38: 0 | X38: 0 | Y38: 0
T39: 0 | U39: 0 | V39: 0 | W39: 0 | X39: 0 | Y39: 0
T40: 0 | U40: 0 | V40: 0 | W40: 0 | X40: 0 | Y40: 0
T41: 0 | U41: 0 | V41: 0 | W41: 0 | X41: 0 | Y41: 0
T42: 0 | U42: 0 | V42: 0 | W42: 0 | X42: 0 | Y42: 0
T43: 0 | U43: 0 | V43: 0 | W43: 0 | X43: 0 | Y43: 0
T44: 0 | U44: 0 | V44: 0 | W44: 0 | X44: 0 | Y44: 0
T45: 0 | U45: 0 | V45: 0 | W45: 0 | X45: 0 | Y45: 0
T46: 0 | U46: 0 | V46: 0 | W46: 0 | X46: 0 | Y46: 0
T47: 0 | U47: 0 | V47: 0 | W47: 0 | X47: 0 | Y47: 0
T48: 0 | U48: 0 | V48: 0 | W48: 0 | X48: 0 | Y48: 0
T49: 0 | U49: 0 | V49: 0 | W49: 0 | X49: 0 | Y49: 0
T50: 0 | U50: 0 | V50: 0 | W50: 0 | X50: 0 | Y50: 0
T51: 0 | U51: 0 | V51: 0 | W51: 0 | X51: 0 | Y51: 0
T52: 0 | U52: 0 | V52: 0 | W52: 0 | X52: 0 | Y52: 0
T53: 0 | U53: 0 | V53: 0 | W53: 0 | X53: 0 | Y53: 0
T54: 0 | U54: 0 | V54: 0 | W54: 0 | X54: 0 | Y54: 0
T55: 0 | U55: 0 | V55: 0 | W55: 0 | X55: 0 | Y55: 0
T56: 0 | U56: 0 | V56: 0 | W56: 0 | X56: 0 | Y56: 0
T57: 0 | U57: 0 | V57: 0 | W57: 0 | X57: 0 | Y57: 0
T58: 0 | U58: 0 | V58: 0 | W58: 0 | X58: 0 | Y58: 0
T59: 0 | U59: 0 | V59: 0 | W59: 0 | X59: 0 | Y59: 0
T60: 0 | U60: 0 | V60: 0 | W60: 0 | X60: 0 | Y60: 0
T61: 0 | U61: 0 | V61: 0 | W61: 0 | X61: 0 | Y61: 0
T62: 0 | U62: 0 | V62: 0 | W62: 0 | X62: 0 | Y62: 0
T63: 0 | U63: 0 | V63: 0 | W63: 0 | X63: 0 | Y63: 0
T64: 0 | U64: 0 | V64: 0 | W64: 0 | X64: 0 | Y64: 0
T65: 0 | U65: 0 | V65: 0 | W65: 0 | X65: 0 | Y65: 0
T66: 0 | U66: 0 | V66: 0 | W66: 0 | X66: 0 | Y66: 0
T67: 0 | U67: 0 | V67: 0 | W67: 0 | X67: 0 | Y67: 0
T68: 0 | U68: 0 | V68: 0 | W68: 0 | X68: 0 | Y68: 0
T69: 0 | U69: 0 | V69: 0 | W69: 0 | X69: 0 | Y69: 0
T70: 0 | U70: 0 | V70: 0 | W70: 0 | X70: 0 | Y70: 0
T71: =IF($N71="Pending",0,$N71*O71) -> 0 | U71: =IF($N71="Pending",0,$N71*P71) -> 0 | V71: =IF($N71="Pending",0,$N71*Q71) -> 0 | W71: =IF($N71="Pending",0,$N71*R71) -> 0 | X71: =IF($N71="Pending",0,$N71*S71) -> 0 | Y71: =SUM(T71:X71) -> 0
T72: 0 | U72: 0 | V72: 0 | W72: 0 | X72: 0 | Y72: 0
T73: 0 | U73: 0 | V73: 0 | W73: 0 | X73: 0 | Y73: 0
T74: 0 | U74: 0 | V74: 0 | W74: 0 | X74: 0 | Y74: 0
T75: 0 | U75: 0 | V75: 0 | W75: 0 | X75: 0 | Y75: 0
T76: =IF($N76="Pending",0,$N76*O76) -> 0 | U76: 0 | V76: 0 | W76: 0 | X76: 0 | Y76: =SUM(T76:X76) -> 0
T77: 0 | U77: 0 | V77: 0 | W77: 0 | X77: 0 | Y77: 0
T78: 0 | U78: 0 | V78: 0 | W78: 0 | X78: 0 | Y78: 0
T79: 0 | U79: 0 | V79: 0 | W79: 0 | X79: 0 | Y79: 0
T80: 0 | U80: 0 | V80: 0 | W80: 0 | X80: 0 | Y80: 0
T81: 0 | U81: 0 | V81: 0 | W81: 0 | X81: 0 | Y81: 0
T82: 0 | U82: 0 | V82: 0 | W82: 0 | X82: 0 | Y82: 0
T83: 0 | U83: 0 | V83: 0 | W83: 0 | X83: 0 | Y83: 0
T84: 0 | U84: 0 | V84: 0 | W84: 0 | X84: 0 | Y84: 0
T85: 0 | U85: 0 | V85: 0 | W85: 0 | X85: 0 | Y85: 0
T86: 0 | U86: 0 | V86: 0 | W86: 0 | X86: 0 | Y86: 0
T87: 0 | U87: 0 | V87: 0 | W87: 0 | X87: 0 | Y87: 0
T88: 0 | U88: 0 | V88: 0 | W88: 0 | X88: 0 | Y88: 0
T89: 0 | U89: 0 | V89: 0 | W89: 0 | X89: 0 | Y89: 0
T90: 0 | U90: 0 | V90: 0 | W90: 0 | X90: 0 | Y90: 0
T91: 0 | U91: 0 | V91: 0 | W91: 0 | X91: 0 | Y91: 0
T92: 0 | U92: 0 | V92: 0 | W92: 0 | X92: 0 | Y92: 0
T93: 0 | U93: 0 | V93: 0 | W93: 0 | X93: 0 | Y93: 0
T94: 0 | U94: 0 | V94: 0 | W94: 0 | X94: 0 | Y94: 0
T95: 0 | U95: 0 | V95: 0 | W95: 0 | X95: 0 | Y95: 0
T96: 0 | U96: 0 | V96: 0 | W96: 0 | X96: 0 | Y96: 0
T97: 0 | U97: 0 | V97: 0 | W97: 0 | X97: 0 | Y97: 0
T98: 0 | U98: 0 | V98: 0 | W98: 0 | X98: 0 | Y98: 0
T99: 0 | U99: 0 | V99: 0 | W99: 0 | X99: 0 | Y99: 0
T100: 0 | U100: 0 | V100: 0 | W100: 0 | X100: 0 | Y100: 0
T101: 0 | U101: 0 | V101: 0 | W101: 0 | X101: 0 | Y101: 0
T102: 0 | U102: 0 | V102: 0 | W102: 0 | X102: 0 | Y102: 0
T103: 0 | U103: 0 | V103: 0 | W103: 0 | X103: 0 | Y103: 0
T104: 0 | U104: 0 | V104: 0 | W104: 0 | X104: 0 | Y104: 0
T105: 0 | U105: 0 | V105: 0 | W105: 0 | X105: 0 | Y105: 0
T106: 0 | U106: 0 | V106: 0 | W106: 0 | X106: 0 | Y106: 0
S108: TOTALS | T108: =SUM(T7:T106) -> 0 | U108: 279100 | V108: 2500 | W108: 279100 | X108: 0 | Y108: 560700
T110: =T6 -> Cost estimate 2024 | U110: Cost estimate 2025 | V110: Cost estimate 2026 | W110: Cost estimate 2027 | X110: Cost estimate 2028 | Y110: TotalOver5Years | Z110: =SUM(Y111:Y133) -> 560700
S111: ='Basic Input for Tool'!$D65 -> Meeting | T111: =SUMIF($Z$7:$Z$106,$S111,T$7:T$106) -> 0 | U111: 0 | V111: 0 | W111: 0 | X111: 0 | Y111: 0
S112: ='Basic Input for Tool'!$D66 -> Training | T112: 0 | U112: 0 | V112: 0 | W112: 0 | X112: 0 | Y112: 0
S113: ='Basic Input for Tool'!$D67 -> Workshop | T113: 0 | U113: 0 | V113: 0 | W113: 0 | X113: 0 | Y113: 0
S114: ='Basic Input for Tool'!$D68 -> SOP development | T114: 0 | U114: 0 | V114: 0 | W114: 0 | X114: 0 | Y114: 0
S115: ='Basic Input for Tool'!$D69 -> Communication | T115: 0 | U115: 0 | V115: 0 | W115: 0 | X115: 0 | Y115: 0
S116: ='Basic Input for Tool'!$D70 -> Construction | T116: 0 | U116: 0 | V116: 0 | W116: 0 | X116: 0 | Y116: 0
S117: ='Basic Input for Tool'!$D71 -> Consultancy | T117: 0 | U117: 0 | V117: 0 | W117: 0 | X117: 0 | Y117: 0
S118: ='Basic Input for Tool'!$D72 -> Evaluation | T118: 0 | U118: 0 | V118: 0 | W118: 0 | X118: 0 | Y118: 0
S119: ='Basic Input for Tool'!$D73 -> Field visit | T119: 0 | U119: 0 | V119: 0 | W119: 0 | X119: 0 | Y119: 0
S120: ='Basic Input for Tool'!$D74 -> Human resources | T120: 0 | U120: 0 | V120: 0 | W120: 0 | X120: 0 | Y120: 0
S121: ='Basic Input for Tool'!$D75 -> Infrastructure | T121: =SUMIF($Z$7:$Z$106,$S121,T$7:T$106) -> 0 | U121: 0 | V121: 0 | W121: 0 | X121: 0 | Y121: 0
S122: ='Basic Input for Tool'!$D76 -> Document reproduction/printing | T122: 0 | U122: 0 | V122: 2500 | W122: 0 | X122: 0 | Y122: 2500
S123: ='Basic Input for Tool'!$D77 -> Procurement | T123: 0 | U123: 0 | V123: 0 | W123: 0 | X123: 0 | Y123: 0
S124: ='Basic Input for Tool'!$D78 -> Services | T124: 0 | U124: 0 | V124: 0 | W124: 0 | X124: 0 | Y124: 0
S125: ='Basic Input for Tool'!$D79 -> Simulation exercises | T125: 0 | U125: 279100 | V125: 0 | W125: 279100 | X125: 0 | Y125: 558200
S126: ='Basic Input for Tool'!$D80 -> Advocacy | T126: 0 | U126: 0 | V126: 0 | W126: 0 | X126: 0 | Y126: 0
S127: ='Basic Input for Tool'!$D81 -> Study | T127: 0 | U127: 0 | V127: 0 | W127: 0 | X127: 0 | Y127: 0
S128: ='Basic Input for Tool'!$D82 -> Campaign | T128: 0 | U128: 0 | V128: 0 | W128: 0 | X128: 0 | Y128: 0
S129: ='Basic Input for Tool'!$D83 -> Other | T129: 0 | U129: 0 | V129: 0 | W129: 0 | X129: 0 | Y129: 0
S130: ='Basic Input for Tool'!$D84 -> Other 2 | T130: 0 | U130: 0 | V130: 0 | W130: 0 | X130: 0 | Y130: 0
S131: ='Basic Input for Tool'!$D85 -> Other 3 | T131: 0 | U131: 0 | V131: 0 | W131: 0 | X131: 0 | Y131: 0
S132: ='Basic Input for Tool'!$D86 -> Other 4 | T132: 0 | U132: 0 | V132: 0 | W132: 0 | X132: 0 | Y132: 0
S133: ='Basic Input for Tool'!$D87 -> Other 5 | T133: 0 | U133: 0 | V133: 0 | W133: 0 | X133: 0 | Y133: 0
T136: =T6 -> Cost estimate 2024 | U136: Cost estimate 2025 | V136: Cost estimate 2026 | W136: Cost estimate 2027 | X136: Cost estimate 2028 | Y136: TotalOver5Years | Z136: =SUM(Y137:Y146) -> 560700
S137: ='Basic Input for Tool'!$C$65 -> Capital | T137: =SUMIF($AA$7:$AA$106,$S137,T$7:T$106) -> 0 | U137: 0 | V137: 0 | W137: 0 | X137: 0 | Y137: 0
S138: ='Basic Input for Tool'!$C$66 -> Recurrent | T138: 0 | U138: 279100 | V138: 2500 | W138: 279100 | X138: 0 | Y138: 560700
S139: ='Basic Input for Tool'!$C$67 -> Other 1 | T139: 0 | U139: 0 | V139: 0 | W139: 0 | X139: 0 | Y139: 0
S140: ='Basic Input for Tool'!$C$68 -> Other 2 | T140: 0 | U140: 0 | V140: 0 | W140: 0 | X140: 0 | Y140: 0
S141: ='Basic Input for Tool'!$C$69 -> 0 | T141: 0 | U141: 0 | V141: 0 | W141: 0 | X141: 0 | Y141: 0
S142: ='Basic Input for Tool'!$C$70 -> 0 | T142: 0 | U142: 0 | V142: 0 | W142: 0 | X142: 0 | Y142: 0
S143: ='Basic Input for Tool'!$C$71 -> 0 | T143: 0 | U143: 0 | V143: 0 | W143: 0 | X143: 0 | Y143: 0
S144: ='Basic Input for Tool'!$C$72 -> 0 | T144: 0 | U144: 0 | V144: 0 | W144: 0 | X144: 0 | Y144: 0
S145: ='Basic Input for Tool'!$C$73 -> 0 | T145: 0 | U145: 0 | V145: 0 | W145: 0 | X145: 0 | Y145: 0
S146: ='Basic Input for Tool'!$C$74 -> 0 | T146: 0 | U146: 0 | V146: 0 | W146: 0 | X146: 0 | Y146: 0
T149: =T6 -> Cost estimate 2024 | U149: Cost estimate 2025 | V149: Cost estimate 2026 | W149: Cost estimate 2027 | X149: Cost estimate 2028 | Y149: TotalOver5Years | Z149: =SUM(Y150:Y153) -> 560700
S150: ='Basic Input for Tool'!$B$65 -> National | T150: =SUMIF($H$7:$H$106,$S150,T$7:T$106) -> 0 | U150: 279100 | V150: 2500 | W150: 279100 | X150: 0 | Y150: 560700
S151: ='Basic Input for Tool'!$B$66 -> Central | T151: 0 | U151: 0 | V151: 0 | W151: 0 | X151: 0 | Y151: 0
S152: ='Basic Input for Tool'!$B$67 -> SNU1 (province/region/etat) | T152: 0 | U152: 0 | V152: 0 | W152: 0 | X152: 0 | Y152: 0
S153: ='Basic Input for Tool'!$B$68 -> SNU2 (district/county) | T153: 0 | U153: 0 | V153: 0 | W153: 0 | X153: 0 | Y153: 0
T156: =T6 -> Cost estimate 2024 | U156: Cost estimate 2025 | V156: Cost estimate 2026 | W156: Cost estimate 2027 | X156: Cost estimate 2028 | Y156: TotalOver5Years | Z156: =SUM(Y157:Y179) -> 560700
S157: ='Basic Input for Tool'!$E$65 -> Ministry of Health | T157: =SUMIF($G$7:$G$106,$S157,T$7:T$106) -> 0 | U157: 0 | V157: 2500 | W157: 0 | X157: 0 | Y157: 2500
S158: ='Basic Input for Tool'!$E$66 -> Ministry of Finance | T158: 0 | U158: 0 | V158: 0 | W158: 0 | X158: 0 | Y158: 0
S159: ='Basic Input for Tool'!$E$67 -> Ministry of Agriculture | T159: 0 | U159: 0 | V159: 0 | W159: 0 | X159: 0 | Y159: 0
S160: ='Basic Input for Tool'!$E$68 -> Ministry of Environment | T160: 0 | U160: 279100 | V160: 0 | W160: 279100 | X160: 0 | Y160: 558200
S161: ='Basic Input for Tool'!$E$69 -> Other 2 | T161: 0 | U161: 0 | V161: 0 | W161: 0 | X161: 0 | Y161: 0
S162: ='Basic Input for Tool'!$E$70 -> Other 3 | T162: 0 | U162: 0 | V162: 0 | W162: 0 | X162: 0 | Y162: 0
S163: ='Basic Input for Tool'!$E$71 -> Other 4 | T163: 0 | U163: 0 | V163: 0 | W163: 0 | X163: 0 | Y163: 0
S164: ='Basic Input for Tool'!$E$72 -> Other 5 | T164: 0 | U164: 0 | V164: 0 | W164: 0 | X164: 0 | Y164: 0
S165: ='Basic Input for Tool'!$E$73 -> Other 6 | T165: 0 | U165: 0 | V165: 0 | W165: 0 | X165: 0 | Y165: 0
S166: ='Basic Input for Tool'!$E74 -> Other 7 | T166: 0 | U166: 0 | V166: 0 | W166: 0 | X166: 0 | Y166: 0
S167: ='Basic Input for Tool'!$E75 -> Other 8 | T167: =SUMIF($G$7:$G$106,$S167,T$7:T$106) -> 0 | U167: 0 | V167: 0 | W167: 0 | X167: 0 | Y167: 0
S168: ='Basic Input for Tool'!$E76 -> Other 9 | T168: 0 | U168: 0 | V168: 0 | W168: 0 | X168: 0 | Y168: 0
S169: ='Basic Input for Tool'!$E77 -> Other 10 | T169: 0 | U169: 0 | V169: 0 | W169: 0 | X169: 0 | Y169: 0
S170: ='Basic Input for Tool'!$E78 -> Other 11 | T170: 0 | U170: 0 | V170: 0 | W170: 0 | X170: 0 | Y170: 0
S171: ='Basic Input for Tool'!$E79 -> Other 12 | T171: 0 | U171: 0 | V171: 0 | W171: 0 | X171: 0 | Y171: 0
S172: ='Basic Input for Tool'!$E80 -> Other 13 | T172: 0 | U172: 0 | V172: 0 | W172: 0 | X172: 0 | Y172: 0
S173: ='Basic Input for Tool'!$E81 -> Other 14 | T173: 0 | U173: 0 | V173: 0 | W173: 0 | X173: 0 | Y173: 0
S174: ='Basic Input for Tool'!$E82 -> Other 15 | T174: 0 | U174: 0 | V174: 0 | W174: 0 | X174: 0 | Y174: 0
S175: ='Basic Input for Tool'!$E83 -> Other 16 | T175: 0 | U175: 0 | V175: 0 | W175: 0 | X175: 0 | Y175: 0
S176: ='Basic Input for Tool'!$E84 -> Other 17 | T176: 0 | U176: 0 | V176: 0 | W176: 0 | X176: 0 | Y176: 0
S177: ='Basic Input for Tool'!$E85 -> Other 18 | T177: 0 | U177: 0 | V177: 0 | W177: 0 | X177: 0 | Y177: 0
S178: ='Basic Input for Tool'!$E86 -> Other 19 | T178: 0 | U178: 0 | V178: 0 | W178: 0 | X178: 0 | Y178: 0
S179: ='Basic Input for Tool'!$E87 -> Other 20 | T179: 0 | U179: 0 | V179: 0 | W179: 0 | X179: 0 | Y179: 0
T182: =T6 -> Cost estimate 2024 | U182: =U6 -> Cost estimate 2025 | V182: Cost estimate 2026 | W182: Cost estimate 2027 | X182: Cost estimate 2028 | Y182: TotalOver5Years | Z182: =SUM(Y183:Y184) -> 560700
R183: Yes | S183: Funded | T183: =SUM(SUMIFS(T$7:T$106,$L7:$L106,{"yes","y","funded"})) -> 0 | U183: =SUM(SUMIFS(U$7:U$106,$L7:$L106,{"yes","y","funded"})) -> 279100 | V183: =SUM(SUMIFS(V$7:V$106,$L7:$L106,{"yes","y","funded"})) -> 2500 | W183: =SUM(SUMIFS(W$7:W$106,$L7:$L106,{"yes","y","funded"})) -> 279100 | X183: =SUM(SUMIFS(X$7:X$106,$L7:$L106,{"yes","y","funded"})) -> 0 | Y183: =SUM(SUMIFS(Y$7:Y$106,$L7:$L106,{"yes","y","funded"})) -> 560700
R184: No | S184: Not funded | T184: =SUM(SUMIFS(T$7:T$106,$L7:$L106,{"no","n","not funded"})) -> 0 | U184: =SUM(SUMIFS(U$7:U$106,$L7:$L106,{"no","n","not funded"})) -> 0 | V184: =SUM(SUMIFS(V$7:V$106,$L7:$L106,{"no","n","not funded"})) -> 0 | W184: =SUM(SUMIFS(W$7:W$106,$L7:$L106,{"no","n","not funded"})) -> 0 | X184: =SUM(SUMIFS(X$7:X$106,$L7:$L106,{"no","n","not funded"})) -> 0 | Y184: =SUM(SUMIFS(Y$7:Y$106,$L7:$L106,{"no","n","not funded"})) -> 0

Sheet P6. Food safety
A1: =IF(ISNA(VLOOKUP(CountryName,CountriesCodes,2,FALSE))=TRUE,"",VLOOKUP(CountryName,CountriesCodes,2,FALSE)& "BIO") -> ETH BIO | B1: ="PLANNING AND COSTING MATRIX FOR THE DEVELOPMENT OF NATIONAL ACTION PLAN FOR HEALTH SECURITY " & O6 &" - " & S6 -> PLANNING AND COSTING MATRIX FOR THE DEVELOPMENT OF NATIONAL ACTION PLAN FOR HEALTH SECURITY 2024 - 2028 | AM1: 1 | AN1: 2 | AO1: 3 | AP1: 4 | AQ1: 5 | AR1: 6 | AS1: 7 | AT1: 8 | AU1: 9 | AV1: 10 | AW1: 11 | AX1: 12 | AY1: 13 | AZ1: 14 | BA1: 15 | BB1: 16 | BC1: 17 | BD1: 18 | BE1: 19 | BF1: 20 | BG1: 21 | BH1: 22 | BI1: 23 | BJ1: 24 | BK1: 25 | BL1: 26 | BM1: 27 | BN1: 28 | BO1: 29 | BP1: 30 | BQ1: 31 | BR1: 32 | BS1: 33 | BT1: 34 | BU1: 35 | BV1: 36 | BW1: 37 | BX1: 38 | BY1: 39 | BZ1: 40 | CA1: 41 | CB1: 42 | CC1: 43 | CD1: 44 | CE1: 45 | CF1: 46 | CG1: 47 | CH1: 48 | CI1: 49 | CJ1: 50 | CK1: 51 | CL1: 52 | CM1: 53 | CN1: 54 | CO1: 55 | CP1: 56 | CQ1: 57 | CR1: 58 | CS1: 59 | CT1: 60 | CU1: 61 | CV1: 62 | CW1: 63 | CX1: 64 | CY1: 65 | CZ1: 66 | DA1: 67 | DB1: 68 | DC1: 69 | DD1: 70 | DE1: 71 | DF1: 72 | DG1: 73 | DH1: 74 | DI1: 75 | DJ1: 76 | DK1: 77 | DL1: 78 | DM1: 79 | DN1: 80 | DO1: 81 | DP1: 82 | DQ1: 83 | DR1: 84 | DS1: 85 | DT1: 86 | DU1: 87 | DV1: 88 | DW1: 89 | DX1: 90 | DY1: 91 | DZ1: 92 | EA1: 93 | EB1: 94 | EC1: 95 | ED1: 96 | EE1: 97 | EF1: 98 | EG1: 99 | EH1: 100 | EI1: 101 | EJ1: 102 | EK1: 103 | EL1: 104 | EM1: 105 | EN1: 106 | EO1: 107 | EP1: 108 | EQ1: 109 | ER1: 110 | ES1: 111 | ET1: 112 | EU1: 113 | EV1: 114 | EW1: 115 | EX1: 116 | EY1: 117 | EZ1: 118 | FA1: 119 | FB1: 120 | FC1: 121 | FD1: 122 | FE1: 123 | FF1: 124 | FG1: 125 | FH1: 126 | FI1: 127 | FJ1: 128 | FK1: 129 | FL1: 130 | FM1: 131 | FN1: 132 | FO1: 133 | FP1: 134 | FQ1: 135 | FR1: 136 | FS1: 137 | FT1: 138 | FU1: 139 | FV1: 140 | FW1: 141 | FX1: 142 | FY1: 143 | FZ1: 144 | GA1: 145 | GB1: 146 | GC1: 147 | GD1: 148 | GE1: 149 | GF1: 150 | GG1: 151 | GH1: 152 | GI1: 153 | GJ1: 154 | GK1: 155 | XEQ1: Formula for meeting | XER1: Consultant | XES1: Field Visit
A2: 108 | B2: PREVENT | AN2: Meeting DATA | BJ2: FIELD VISITS | CA2: CONSULTANT | CN2: =+CL2+1 -> 1 | CS2: =CN2+1 -> 2 | CX2: =CS2+1 -> 3 | DC2: =CX2+1 -> 4 | DH2: =DC2+1 -> 5 | DM2: =DH2+1 -> 6 | DR2: =DM2+1 -> 7 | EG2: PROCUREMENT | EI2: 1 | EK2: =+EG2 -> PROCUREMENT | EL2: =+EI2+1 -> 2 | EO2: =+EK2 -> PROCUREMENT | EP2: =EL2+1 -> 3 | ES2: =+EO2 -> PROCUREMENT | ET2: =EP2+1 -> 4 | EW2: =+ES2 -> PROCUREMENT | EX2: =ET2+1 -> 5 | FA2: =+EW2 -> PROCUREMENT | FB2: =EX2+1 -> 6 | FE2: =+FA2 -> PROCUREMENT | FF2: =FB2+1 -> 7 | FI2: =+FE2 -> PROCUREMENT | FJ2: =FF2+1 -> 8 | FM2: =+FI2 -> PROCUREMENT | FN2: =FJ2+1 -> 9 | FQ2: =+FM2 -> PROCUREMENT | FR2: =FN2+1 -> 10 | GE2: Other | XEQ2: =(((($AN2-$AO2)*$AP2*$AQ2+$AO2*($AP2+ExtraDaysFar)*$AR2)+($AS2*$AP2)+($AT2+$AU2)*$AP2*$AN2+$AV2*$AN2))+($AW2*$AZ2*$AX2+$AW2*$BA2*$AZ2+$AY2+$AN2*$BB2)+$BC2*$AP2+$BH2+$BI2 ->  | XER2: =$CB2*$CC2*$CD2+$CB2*$CC2*$CE2+$CB2*$CF2 -> 0 | XES2: =$BJ2*$BK2*$BL2+$BN2*$BK2*($BO2+$BP2)+$BQ2*$BK2*$BR2+$BS2 -> 
B3: General Objective: To prevent and reduce the likelihood of outbreaks and other public health hazards and events defined by IHR (2005). | AK3: Unique ID | AL3: Category | AM3: Total cost | AN3: Participants | AO3: Away participants | AP3: No of days | AQ3: Per diem | AR3: Per diem away | AS3: Rent of venue | AT3: Lunch | AU3: Tea break | AV3: Stationary | AW3: No of trainers | AX3: Trainer fee | AY3: Extra for trainer | AZ3: No of days for trainer | BA3: Trainer per diem | BB3: Extra pp | BC3: Extra on top | BD3: List 1 | BE3: List 2 | BF3: List 3 | BG3: For later | BH3: For later | BI3: For later | BJ3: No of supervisors | BK3: No of days | BL3: Per diem | BM3: Vehicle category | BN3: No of vehicles | BO3: Cost per day per vehicle | BP3: Fuel cost per day | BQ3: No of drivers | BR3: Driver per diem | BS3: Extra per field visit | BT3: Total costs | BU3: List 1 | BV3: List 2 | BW3: List 3 | BX3: List4 | BY3: For later | BZ3: For later | CA3: International national | CB3: No of consultants | CC3: Number of days consultants | CD3: Per diem consultant | CE3: Consultant rate | CF3: Consultant travel | CG3: Total consult | CH3: List 1 | CI3: List 2 | CJ3: List 3 | CK3: List4 | CL3: For later | CM3: For later | CN3: ="HR" &CN2 -> HR1 | CO3: ="no. of " & CN3 -> no. of HR1 | CP3: ="Salary " & CN3 -> Salary HR1 | CQ3: ="Month " & CO3 & " TRUE/FALSE" -> Month no. of HR1 TRUE/FALSE | CR3: ="Months " & CN3 -> Months HR1 | CS3: ="HR" &CS2 -> HR2 | CT3: ="no. of " & CS3 -> no. of HR2 | CU3: ="Salary " & CS3 -> Salary HR2 | CV3: ="Month " & CT3 & " TRUE/FALSE" -> Month no. of HR2 TRUE/FALSE | CW3: ="Months " & CS3 -> Months HR2 | CX3: ="HR" &CX2 -> HR3 | CY3: ="no. of " & CX3 -> no. of HR3 | CZ3: ="Salary " & CX3 -> Salary HR3 | DA3: ="Month " & CY3 & " TRUE/FALSE" -> Month no. of HR3 TRUE/FALSE | DB3: ="Months " & CX3 -> Months HR3 | DC3: ="HR" &DC2 -> HR4 | DD3: ="no. of " & DC3 -> no. of HR4 | DE3: ="Salary " & DC3 -> Salary HR4 | DF3: ="Month " & DD3 & " TRUE/FALSE" -> Month no. of HR4 TRUE/FALSE | DG3: ="Months " & DC3 -> Months HR4 | DH3: ="HR" &DH2 -> HR5 | DI3: ="no. of " & DH3 -> no. of HR5 | DJ3: ="Salary " & DH3 -> Salary HR5 | DK3: ="Month " & DI3 & " TRUE/FALSE" -> Month no. of HR5 TRUE/FALSE | DL3: ="Months " & DH3 -> Months HR5 | DM3: ="HR" &DM2 -> HR6 | DN3: ="no. of " & DM3 -> no. of HR6 | DO3: ="Salary " & DM3 -> Salary HR6 | DP3: ="Month " & DN3 & " TRUE/FALSE" -> Month no. of HR6 TRUE/FALSE | DQ3: ="Months " & DM3 -> Months HR6 | DR3: ="HR" &DR2 -> HR7 | DS3: ="no. of " & DR3 -> no. of HR7 | DT3: ="Salary " & DR3 -> Salary HR7 | DU3: ="Month " & DS3 & " TRUE/FALSE" -> Month no. of HR7 TRUE/FALSE | DV3: ="Months " & DR3 -> Months HR7 | DW3: HR Extra 1 | DX3: HR Extra 2 | DY3: Total costs HR | DZ3: List 1 | EA3: List 2 | EB3: List 3 | EC3: List 4 | ED3: For later | EE3: For later | EF3: For later | EG3: Descripion1 | EH3: Quantity 1 | EI3: Price 1 | EJ3: Cost proc 1 | EK3: Descripion 2 | EL3: Quantity 2 | EM3: Price 2 | EN3: Cost proc 2 | EO3: ="Description " & EP2 -> Description 3 | EP3: ="Quantity " & EP2 -> Quantity 3 | EQ3: ="Price " & EP2 -> Price 3 | ER3: ="Cost proc " & EP2 -> Cost proc 3 | ES3: ="Description " & ET2 -> Description 4 | ET3: ="Quantity " & ET2 -> Quantity 4 | EU3: ="Price " & ET2 -> Price 4 | EV3: ="Cost proc " & ET2 -> Cost proc 4 | EW3: ="Description " & EX2 -> Description 5 | EX3: ="Quantity " & EX2 -> Quantity 5 | EY3: ="Price " & EX2 -> Price 5 | EZ3: ="Cost proc " & EX2 -> Cost proc 5 | FA3: ="Description " & FB2 -> Description 6 | FB3: ="Quantity " & FB2 -> Quantity 6 | FC3: ="Price " & FB2 -> Price 6 | FD3: ="Cost proc " & FB2 -> Cost proc 6 | FE3: ="Description " & FF2 -> Description 7 | FF3: ="Quantity " & FF2 -> Quantity 7 | FG3: ="Price " & FF2 -> Price 7 | FH3: ="Cost proc " & FF2 -> Cost proc 7 | FI3: ="Description " & FJ2 -> Description 8 | FJ3: ="Quantity " & FJ2 -> Quantity 8 | FK3: ="Price " & FJ2 -> Price 8 | FL3: ="Cost proc " & FJ2 -> Cost proc 8 | FM3: ="Description " & FN2 -> Description 9 | FN3: ="Quantity " & FN2 -> Quantity 9 | FO3: ="Price " & FN2 -> Price 9 | FP3: ="Cost proc " & FN2 -> Cost proc 9 | FQ3: ="Description " & FR2 -> Description 10 | FR3: ="Quantity " & FR2 -> Quantity 10 | FS3: ="Price " & FR2 -> Price 10 | FT3: ="Cost proc " & FR2 -> Cost proc 10 | FU3: Total cost procurement | FV3: List 1 | FW3: List 2 | FX3: List 3 | FY3: List 4 | FZ3: Procurement category | GA3: For later | GB3: For later | GC3: For later | GD3: For later | GE3: Description other | GF3: Cost other | GG3: List 1 | GH3: List 2 | GI3: List 3 | GJ3: List 4
B4: Assessment recommendations: | C4: Please enter the list of recommendations in this single merged cell
B5: TECHNICAL AREA | C5: P6. Food safety | O5: Frequency per year of implementation | T5: Annual Cost Estimates | AB5: Monitoring and Evaluation | AG5: comptage category2 (colonne AA) | AH5: comptage coût(colonne N) | AI5: .
A6: UniqueID | B6: Indicator | C6: Objectives | D6: Summary of Key Activities (Strategic actions) | E6: Detailed activity description (input description for costing) | F6: Detailed cost assumptions (including units, unit costs, quantities, frequency, etc) | G6: Responsible authority for Implementation (budget holder) | H6: Implementation scale (National, regional, district, sub-national?) | I6: Comments1 (Potential challenges, comments on implementation arrangements, other) | J6: Comments2 (Potential challenges, comments on implementation arrangements, other) | K6: Related existing plan/ framework / Programme or on-going activities | L6: Existing budget(y/n) | M6: Existing budget source (government, donor?) | N6: Estimated cost (Local currency) | O6: =IF('Basic Input for Tool'!$C$7="","Year 1",'Basic Input for Tool'!$C$7) -> 2024 | P6: =IF('Basic Input for Tool'!$C$7="","Year 2",O6+1) -> 2025 | Q6: =IF('Basic Input for Tool'!$C$7="","Year 3",P6+1) -> 2026 | R6: =IF('Basic Input for Tool'!$C$7="","Year 4",Q6+1) -> 2027 | S6: =IF('Basic Input for Tool'!$C$7="","Year 5",R6+1) -> 2028 | T6: ="Cost estimate " & O6 -> Cost estimate 2024 | U6: ="Cost estimate " & P6 -> Cost estimate 2025 | V6: Cost estimate 2026 | W6: Cost estimate 2027 | X6: Cost estimate 2028 | Y6: TotalOver5Years | Z6: CostCategory1 | AA6: CostCategory2 | AB6: Output/Process | AC6: Outcome | AD6: Frequency of collection (monthly, six monthly, yearly) | AE6: Source of verification | AG6: =COUNTA($AA7:$AA106) -> 2 | AH6: =COUNTA($N7:$N106) -> 2
F7: 5 days campaign for 10 non residents | G7: Ministry of Health | H7: National | L7: N | M7: Donor | N7: =(((($AN7-$AO7)*$AP7*$AQ7+$AO7*($AP7+ExtraDaysFar)*$AR7)+($AS7*$AP7)+($AT7+$AU7)*$AP7*$AN7+$AV7*$AN7))+($AW7*$AZ7*$AX7+$AW7*$BA7*$AZ7+$AY7+$AN7*$BB7)+$BC7*$AP7+$BH7+$BI7 -> 108600 | P7: 1 | Q7: 1 | T7: =IF($N7="Pending",0,$N7*O7) -> 0 | U7: 108600 | V7: 108600 | W7: 0 | X7: 0 | Y7: =SUM(T7:X7) -> 217200 | Z7: Campaign | AA7: Recurrent | AL7: Training | AN7: 10 | AO7: 10 | AP7: 5 | AQ7: 0 | AR7: 1480 | AS7: 3500 | AT7: 250 | AU7: 80 | AV7: 60 | AW7: 0 | AX7: 0 | AY7: 0 | AZ7: 0 | BA7: 0 | BB7: 0 | BC7: 0 | BD7: National | BE7: Recurrent | BF7: Campaign | BG7: Ministry of Health | BH7: 0 | BI7: 0
F8: 3 days advocacy for 20 residents | G8: Ministry of Finance | H8: National | L8: N | M8: Donor | N8: =(((($AN8-$AO8)*$AP8*$AQ8+$AO8*($AP8+ExtraDaysFar)*$AR8)+($AS8*$AP8)+($AT8+$AU8)*$AP8*$AN8+$AV8*$AN8))+($AW8*$AZ8*$AX8+$AW8*$BA8*$AZ8+$AY8+$AN8*$BB8)+$BC8*$AP8+$BH8+$BI8 -> 31500 | P8: 1 | T8: 0 | U8: 31500 | V8: 0 | W8: 0 | X8: 0 | Y8: 31500 | Z8: Plaidoyer | AA8: Recurrent | AL8: Training | AN8: 20 | AO8: 0 | AP8: 3 | AQ8: 0 | AR8: 1480 | AS8: 3500 | AT8: 250 | AU8: 80 | AV8: 60 | AW8: 0 | AX8: 0 | AY8: 0 | AZ8: 0 | BA8: 0 | BB8: 0 | BC8: 0 | BD8: National | BE8: Recurrent | BF8: Plaidoyer | BG8: Ministry of Finance | BH8: 0 | BI8: 0
T9: 0 | U9: 0 | V9: 0 | W9: 0 | X9: 0 | Y9: 0
T10: 0 | U10: 0 | V10: 0 | W10: 0 | X10: 0 | Y10: 0
T11: 0 | U11: 0 | V11: 0 | W11: 0 | X11: 0 | Y11: 0
T12: 0 | U12: 0 | V12: 0 | W12: 0 | X12: 0 | Y12: 0
T13: 0 | U13: 0 | V13: 0 | W13: 0 | X13: 0 | Y13: 0
T14: 0 | U14: 0 | V14: 0 | W14: 0 | X14: 0 | Y14: 0
T15: 0 | U15: 0 | V15: 0 | W15: 0 | X15: 0 | Y15: 0
T16: =IF($N16="Pending",0,$N16*O16) -> 0 | U16: =IF($N16="Pending",0,$N16*P16) -> 0 | V16: =IF($N16="Pending",0,$N16*Q16) -> 0 | W16: =IF($N16="Pending",0,$N16*R16) -> 0 | X16: =IF($N16="Pending",0,$N16*S16) -> 0 | Y16: 0
T17: =IF($N17="Pending",0,$N17*O17) -> 0 | U17: 0 | V17: 0 | W17: 0 | X17: 0 | Y17: 0
T18: 0 | U18: 0 | V18: 0 | W18: 0 | X18: 0 | Y18: 0
T19: 0 | U19: 0 | V19: 0 | W19: 0 | X19: 0 | Y19: 0
T20: 0 | U20: 0 | V20: 0 | W20: 0 | X20: 0 | Y20: 0
T21: 0 | U21: 0 | V21: 0 | W21: 0 | X21: 0 | Y21: 0
T22: 0 | U22: 0 | V22: 0 | W22: 0 | X22: 0 | Y22: 0
T23: 0 | U23: 0 | V23: 0 | W23: 0 | X23: 0 | Y23: 0
T24: 0 | U24: 0 | V24: 0 | W24: 0 | X24: 0 | Y24: 0
T25: 0 | U25: 0 | V25: 0 | W25: 0 | X25: 0 | Y25: 0
T26: 0 | U26: 0 | V26: 0 | W26: 0 | X26: 0 | Y26: 0
T27: =IF($N27="Pending",0,$N27*O27) -> 0 | U27: 0 | V27: 0 | W27: 0 | X27: 0 | Y27: 0
T28: 0 | U28: 0 | V28: 0 | W28: 0 | X28: 0 | Y28: 0
T29: 0 | U29: 0 | V29: 0 | W29: 0 | X29: 0 | Y29: 0
T30: =IF($N30="Pending",0,$N30*O30) -> 0 | U30: =IF($N30="Pending",0,$N30*P30) -> 0 | V30: =IF($N30="Pending",0,$N30*Q30) -> 0 | W30: =IF($N30="Pending",0,$N30*R30) -> 0 | X30: =IF($N30="Pending",0,$N30*S30) -> 0 | Y30: =SUM(T30:X30) -> 0
T31: =IF($N31="Pending",0,$N31*O31) -> 0 | U31: 0 | V31: 0 | W31: 0 | X31: 0 | Y31: =SUM(T31:X31) -> 0
T32: 0 | U32: 0 | V32: 0 | W32: 0 | X32: 0 | Y32: 0
T33: =IF($N33="Pending",0,$N33*O33) -> 0 | U33: =IF($N33="Pending",0,$N33*P33) -> 0 | V33: =IF($N33="Pending",0,$N33*Q33) -> 0 | W33: =IF($N33="Pending",0,$N33*R33) -> 0 | X33: =IF($N33="Pending",0,$N33*S33) -> 0 | Y33: =SUM(T33:X33) -> 0
T34: 0 | U34: 0 | V34: 0 | W34: 0 | X34: 0 | Y34: 0
T35: 0 | U35: 0 | V35: 0 | W35: 0 | X35: 0 | Y35: 0
T36: 0 | U36: 0 | V36: 0 | W36: 0 | X36: 0 | Y36: 0
T37: 0 | U37: 0 | V37: 0 | W37: 0 | X37: 0 | Y37: 0
T38: 0 | U38: 0 | V38: 0 | W38: 0 | X38: 0 | Y38: 0
T39: 0 | U39: 0 | V39: 0 | W39: 0 | X39: 0 | Y39: 0
T40: 0 | U40: 0 | V40: 0 | W40: 0 | X40: 0 | Y40: 0
T41: =IF($N41="Pending",0,$N41*O41) -> 0 | U41: 0 | V41: 0 | W41: 0 | X41: 0 | Y41: =SUM(T41:X41) -> 0
T42: 0 | U42: 0 | V42: 0 | W42: 0 | X42: 0 | Y42: =SUM(T42:X42) -> 0
T43: 0 | U43: 0 | V43: 0 | W43: 0 | X43: 0 | Y43: 0
T44: 0 | U44: 0 | V44: 0 | W44: 0 | X44: 0 | Y44: 0
T45: 0 | U45: 0 | V45: 0 | W45: 0 | X45: 0 | Y45: 0
T46: 0 | U46: 0 | V46: 0 | W46: 0 | X46: 0 | Y46: 0
T47: 0 | U47: 0 | V47: 0 | W47: 0 | X47: 0 | Y47: 0
T48: 0 | U48: 0 | V48: 0 | W48: 0 | X48: 0 | Y48: 0
T49: 0 | U49: 0 | V49: 0 | W49: 0 | X49: 0 | Y49: 0
T50: =IF($N50="Pending",0,$N50*O50) -> 0 | U50: 0 | V50: 0 | W50: 0 | X50: 0 | Y50: =SUM(T50:X50) -> 0
T51: 0 | U51: 0 | V51: 0 | W51: 0 | X51: 0 | Y51: 0
T52: 0 | U52: 0 | V52: 0 | W52: 0 | X52: 0 | Y52: 0
T53: 0 | U53: 0 | V53: 0 | W53: 0 | X53: 0 | Y53: 0
T54: 0 | U54: 0 | V54: 0 | W54: 0 | X54: 0 | Y54: 0
T55: 0 | U55: 0 | V55: 0 | W55: 0 | X55: 0 | Y55: 0
T56: 0 | U56: 0 | V56: 0 | W56: 0 | X56: 0 | Y56: 0
T57: 0 | U57: 0 | V57: 0 | W57: 0 | X57: 0 | Y57: 0
T58: 0 | U58: 0 | V58: 0 | W58: 0 | X58: 0 | Y58: 0
T59: 0 | U59: 0 | V59: 0 | W59: 0 | X59: 0 | Y59: 0
T60: 0 | U60: 0 | V60: 0 | W60: 0 | X60: 0 | Y60: 0
T61: 0 | U61: 0 | V61: 0 | W61: 0 | X61: 0 | Y61: 0
T62: 0 | U62: 0 | V62: 0 | W62: 0 | X62: 0 | Y62: 0
T63: 0 | U63: 0 | V63: 0 | W63: 0 | X63: 0 | Y63: =SUM(T63:X63) -> 0
T64: 0 | U64: 0 | V64: 0 | W64: 0 | X64: 0 | Y64: 0
T65: 0 | U65: 0 | V65: 0 | W65: 0 | X65: 0 | Y65: 0
T66: 0 | U66: 0 | V66: 0 | W66: 0 | X66: 0 | Y66: 0
T67: =IF($N67="Pending",0,$N67*O67) -> 0 | U67: 0 | V67: 0 | W67: 0 | X67: 0 | Y67: 0
T68: 0 | U68: 0 | V68: 0 | W68: 0 | X68: 0 | Y68: 0
T69: 0 | U69: 0 | V69: 0 | W69: 0 | X69: 0 | Y69: 0
T70: 0 | U70: 0 | V70: 0 | W70: 0 | X70: 0 | Y70: 0
T71: 0 | U71: 0 | V71: 0 | W71: 0 | X71: 0 | Y71: 0
T72: 0 | U72: 0 | V72: 0 | W72: 0 | X72: 0 | Y72: 0
T73: 0 | U73: 0 | V73: 0 | W73: 0 | X73: 0 | Y73: 0
T74: 0 | U74: 0 | V74: 0 | W74: 0 | X74: 0 | Y74: 0
T75: 0 | U75: 0 | V75: 0 | W75: 0 | X75: 0 | Y75: 0
T76: 0 | U76: 0 | V76: 0 | W76: 0 | X76: 0 | Y76: 0
T77: 0 | U77: 0 | V77: 0 | W77: 0 | X77: 0 | Y77: 0
T78: 0 | U78: 0 | V78: 0 | W78: 0 | X78: 0 | Y78: 0
T79: 0 | U79: 0 | V79: 0 | W79: 0 | X79: 0 | Y79: 0
T80: 0 | U80: 0 | V80: 0 | W80: 0 | X80: 0 | Y80: 0
T81: 0 | U81: 0 | V81: 0 | W81: 0 | X81: 0 | Y81: 0
T82: 0 | U82: 0 | V82: 0 | W82: 0 | X82: 0 | Y82: 0
T83: 0 | U83: 0 | V83: 0 | W83: 0 | X83: 0 | Y83: 0
T84: =IF($N84="Pending",0,$N84*O84) -> 0 | U84: =IF($N84="Pending",0,$N84*P84) -> 0 | V84: =IF($N84="Pending",0,$N84*Q84) -> 0 | W84: =IF($N84="Pending",0,$N84*R84) -> 0 | X84: =IF($N84="Pending",0,$N84*S84) -> 0 | Y84: =SUM(T84:X84) -> 0
T85: 0 | U85: 0 | V85: 0 | W85: 0 | X85: 0 | Y85: 0
T86: 0 | U86: 0 | V86: 0 | W86: 0 | X86: 0 | Y86: 0
T87: 0 | U87: 0 | V87: 0 | W87: 0 | X87: 0 | Y87: 0
T88: 0 | U88: 0 | V88: 0 | W88: 0 | X88: 0 | Y88: 0
T89: 0 | U89: 0 | V89: 0 | W89: 0 | X89: 0 | Y89: 0
T90: 0 | U90: 0 | V90: 0 | W90: 0 | X90: 0 | Y90: 0
T91: 0 | U91: 0 | V91: 0 | W91: 0 | X91: 0 | Y91: 0
T92: 0 | U92: 0 | V92: 0 | W92: 0 | X92: 0 | Y92: 0
T93: 0 | U93: 0 | V93: 0 | W93: 0 | X93: 0 | Y93: 0
T94: 0 | U94: 0 | V94: 0 | W94: 0 | X94: 0 | Y94: 0
T95: 0 | U95: 0 | V95: 0 | W95: 0 | X95: 0 | Y95: 0
T96: 0 | U96: 0 | V96: 0 | W96: 0 | X96: 0 | Y96: 0
T97: 0 | U97: 0 | V97: 0 | W97: 0 | X97: 0 | Y97: 0
T98: 0 | U98: 0 | V98: 0 | W98: 0 | X98: 0 | Y98: 0
T99: 0 | U99: 0 | V99: 0 | W99: 0 | X99: 0 | Y99: 0
T100: 0 | U100: 0 | V100: 0 | W100: 0 | X100: 0 | Y100: 0
T101: 0 | U101: 0 | V101: 0 | W101: 0 | X101: 0 | Y101: 0
T102: 0 | U102: 0 | V102: 0 | W102: 0 | X102: 0 | Y102: 0
T103: 0 | U103: 0 | V103: 0 | W103: 0 | X103: 0 | Y103: 0
T104: 0 | U104: 0 | V104: 0 | W104: 0 | X104: 0 | Y104: 0
T105: 0 | U105: 0 | V105: 0 | W105: 0 | X105: 0 | Y105: 0
T106: 0 | U106: 0 | V106: 0 | W106: 0 | X106: 0 | Y106: 0
T108: =SUM(T7:T106) -> 0 | U108: 140100 | V108: 108600 | W108: 0 | X108: 0 | Y108: 248700
T110: =T6 -> Cost estimate 2024 | U110: Cost estimate 2025 | V110: Cost estimate 2026 | W110: Cost estimate 2027 | X110: Cost estimate 2028 | Y110: TotalOver5Years
S111: ='Basic Input for Tool'!$D65 -> Meeting | T111: =SUMIF($Z$7:$Z$106,$S111,T$7:T$106) -> 0 | U111: 0 | V111: 0 | W111: 0 | X111: 0 | Y111: 0
S112: ='Basic Input for Tool'!$D66 -> Training | T112: 0 | U112: 0 | V112: 0 | W112: 0 | X112: 0 | Y112: 0
S113: ='Basic Input for Tool'!$D67 -> Workshop | T113: 0 | U113: 0 | V113: 0 | W113: 0 | X113: 0 | Y113: 0
S114: ='Basic Input for Tool'!$D68 -> SOP development | T114: 0 | U114: 0 | V114: 0 | W114: 0 | X114: 0 | Y114: 0
S115: ='Basic Input for Tool'!$D69 -> Communication | T115: 0 | U115: 0 | V115: 0 | W115: 0 | X115: 0 | Y115: 0
S116: ='Basic Input for Tool'!$D70 -> Construction | T116: 0 | U116: 0 | V116: 0 | W116: 0 | X116: 0 | Y116: 0
S117: ='Basic Input for Tool'!$D71 -> Consultancy | T117: 0 | U117: 0 | V117: 0 | W117: 0 | X117: 0 | Y117: 0
S118: ='Basic Input for Tool'!$D72 -> Evaluation | T118: 0 | U118: 0 | V118: 0 | W118: 0 | X118: 0 | Y118: 0
S119: ='Basic Input for Tool'!$D73 -> Field visit | T119: 0 | U119: 0 | V119: 0 | W119: 0 | X119: 0 | Y119: 0
S120: ='Basic Input for Tool'!$D74 -> Human resources | T120: 0 | U120: 0 | V120: 0 | W120: 0 | X120: 0 | Y120: 0
S121: ='Basic Input for Tool'!$D75 -> Infrastructure | T121: 0 | U121: 0 | V121: 0 | W121: 0 | X121: 0 | Y121: 0
S122: ='Basic Input for Tool'!$D76 -> Document reproduction/printing | T122: 0 | U122: 0 | V122: 0 | W122: 0 | X122: 0 | Y122: 0
S123: ='Basic Input for Tool'!$D77 -> Procurement | T123: 0 | U123: 0 | V123: 0 | W123: 0 | X123: 0 | Y123: 0
S124: ='Basic Input for Tool'!$D78 -> Services | T124: =SUMIF($Z$7:$Z$106,$S124,T$7:T$106) -> 0 | U124: 0 | V124: 0 | W124: 0 | X124: 0 | Y124: 0
S125: ='Basic Input for Tool'!$D79 -> Simulation exercises | T125: 0 | U125: 0 | V125: 0 | W125: 0 | X125: 0 | Y125: 0
S126: ='Basic Input for Tool'!$D80 -> Advocacy | T126: 0 | U126: 0 | V126: 0 | W126: 0 | X126: 0 | Y126: 0
S127: ='Basic Input for Tool'!$D81 -> Study | T127: 0 | U127: 0 | V127: 0 | W127: 0 | X127: 0 | Y127: 0
S128: ='Basic Input for Tool'!$D82 -> Campaign | T128: 0 | U128: 108600 | V128: 108600 | W128: 0 | X128: 0 | Y128: 217200
S129: ='Basic Input for Tool'!$D83 -> Other | T129: 0 | U129: 0 | V129: 0 | W129: 0 | X129: 0 | Y129: 0
S130: ='Basic Input for Tool'!$D84 -> Other 2 | T130: 0 | U130: 0 | V130: 0 | W130: 0 | X130: 0 | Y130: 0
S131: ='Basic Input for Tool'!$D85 -> Other 3 | T131: 0 | U131: 0 | V131: 0 | W131: 0 | X131: 0 | Y131: 0
S132: ='Basic Input for Tool'!$D86 -> Other 4 | T132: 0 | U132: 0 | V132: 0 | W132: 0 | X132: 0 | Y132: 0
S133: ='Basic Input for Tool'!$D87 -> Other 5 | T133: 0 | U133: 0 | V133: 0 | W133: 0 | X133: 0 | Y133: 0
T136: =T6 -> Cost estimate 2024 | U136: Cost estimate 2025 | V136: Cost estimate 2026 | W136: Cost estimate 2027 | X136: Cost estimate 2028 | Y136: TotalOver5Years | Z136: =SUM(Y137:Y146) -> 248700
S137: ='Basic Input for Tool'!$C$65 -> Capital | T137: =SUMIF($AA$7:$AA$106,$S137,T$7:T$106) -> 0 | U137: 0 | V137: 0 | W137: 0 | X137: 0 | Y137: 0
S138: ='Basic Input for Tool'!$C$66 -> Recurrent | T138: 0 | U138: 140100 | V138: 108600 | W138: 0 | X138: 0 | Y138: 248700
S139: ='Basic Input for Tool'!$C$67 -> Other 1 | T139: 0 | U139: 0 | V139: 0 | W139: 0 | X139: 0 | Y139: 0
S140: ='Basic Input for Tool'!$C$68 -> Other 2 | T140: 0 | U140: 0 | V140: 0 | W140: 0 | X140: 0 | Y140: 0
S141: ='Basic Input for Tool'!$C$69 -> 0 | T141: 0 | U141: 0 | V141: 0 | W141: 0 | X141: 0 | Y141: 0
S142: ='Basic Input for Tool'!$C$70 -> 0 | T142: 0 | U142: 0 | V142: 0 | W142: 0 | X142: 0 | Y142: 0
S143: ='Basic Input for Tool'!$C$71 -> 0 | T143: 0 | U143: 0 | V143: 0 | W143: 0 | X143: 0 | Y143: 0
S144: ='Basic Input for Tool'!$C$72 -> 0 | T144: 0 | U144: 0 | V144: 0 | W144: 0 | X144: 0 | Y144: 0
S145: ='Basic Input for Tool'!$C$73 -> 0 | T145: 0 | U145: 0 | V145: 0 | W145: 0 | X145: 0 | Y145: 0
S146: ='Basic Input for Tool'!$C$74 -> 0 | T146: 0 | U146: 0 | V146: 0 | W146: 0 | X146: 0 | Y146: 0
T149: =T6 -> Cost estimate 2024 | U149: Cost estimate 2025 | V149: Cost estimate 2026 | W149: Cost estimate 2027 | X149: Cost estimate 2028 | Y149: TotalOver5Years | Z149: =SUM(Y150:Y153) -> 248700
S150: ='Basic Input for Tool'!$B$65 -> National | T150: =SUMIF($H$7:$H$106,$S150,T$7:T$106) -> 0 | U150: 140100 | V150: 108600 | W150: 0 | X150: 0 | Y150: 248700
S151: ='Basic Input for Tool'!$B$66 -> Central | T151: 0 | U151: 0 | V151: 0 | W151: 0 | X151: 0 | Y151: 0
S152: ='Basic Input for Tool'!$B$67 -> SNU1 (province/region/etat) | T152: 0 | U152: 0 | V152: 0 | W152: 0 | X152: 0 | Y152: 0
S153: ='Basic Input for Tool'!$B$68 -> SNU2 (district/county) | T153: 0 | U153: 0 | V153: 0 | W153: 0 | X153: 0 | Y153: 0
T156: =T6 -> Cost estimate 2024 | U156: Cost estimate 2025 | V156: Cost estimate 2026 | W156: Cost estimate 2027 | X156: Cost estimate 2028 | Y156: TotalOver5Years | Z156: =SUM(Y157:Y179) -> 248700
S157: ='Basic Input for Tool'!$E$65 -> Ministry of Health | T157: =SUMIF($G$7:$G$106,$S157,T$7:T$106) -> 0 | U157: 108600 | V157: 108600 | W157: 0 | X157: 0 | Y157: 217200
S158: ='Basic Input for Tool'!$E$66 -> Ministry of Finance | T158: 0 | U158: 31500 | V158: 0 | W158: 0 | X158: 0 | Y158: 31500
S159: ='Basic Input for Tool'!$E$67 -> Ministry of Agriculture | T159: 0 | U159: 0 | V159: 0 | W159: 0 | X159: 0 | Y159: 0
S160: ='Basic Input for Tool'!$E$68 -> Ministry of Environment | T160: 0 | U160: 0 | V160: 0 | W160: 0 | X160: 0 | Y160: 0
S161: ='Basic Input for Tool'!$E$69 -> Other 2 | T161: 0 | U161: 0 | V161: 0 | W161: 0 | X161: 0 | Y161: 0
S162: ='Basic Input for Tool'!$E$70 -> Other 3 | T162: 0 | U162: 0 | V162: 0 | W162: 0 | X162: 0 | Y162: 0
S163: ='Basic Input for Tool'!$E$71 -> Other 4 | T163: 0 | U163: 0 | V163: 0 | W163: 0 | X163: 0 | Y163: 0
S164: ='Basic Input for Tool'!$E$72 -> Other 5 | T164: 0 | U164: 0 | V164: 0 | W164: 0 | X164: 0 | Y164: 0
S165: ='Basic Input for Tool'!$E$73 -> Other 6 | T165: 0 | U165: 0 | V165: 0 | W165: 0 | X165: 0 | Y165: 0
S166: ='Basic Input for Tool'!$E74 -> Other 7 | T166: 0 | U166: 0 | V166: 0 | W166: 0 | X166: 0 | Y166: 0
S167: ='Basic Input for Tool'!$E75 -> Other 8 | T167: =SUMIF($G$7:$G$106,$S167,T$7:T$106) -> 0 | U167: 0 | V167: 0 | W167: 0 | X167: 0 | Y167: 0
S168: ='Basic Input for Tool'!$E76 -> Other 9 | T168: 0 | U168: 0 | V168: 0 | W168: 0 | X168: 0 | Y168: 0
S169: ='Basic Input for Tool'!$E77 -> Other 10 | T169: 0 | U169: 0 | V169: 0 | W169: 0 | X169: 0 | Y169: 0
S170: ='Basic Input for Tool'!$E78 -> Other 11 | T170: 0 | U170: 0 | V170: 0 | W170: 0 | X170: 0 | Y170: 0
S171: ='Basic Input for Tool'!$E79 -> Other 12 | T171: 0 | U171: 0 | V171: 0 | W171: 0 | X171: 0 | Y171: 0
S172: ='Basic Input for Tool'!$E80 -> Other 13 | T172: 0 | U172: 0 | V172: 0 | W172: 0 | X172: 0 | Y172: 0
S173: ='Basic Input for Tool'!$E81 -> Other 14 | T173: 0 | U173: 0 | V173: 0 | W173: 0 | X173: 0 | Y173: 0
S174: ='Basic Input for Tool'!$E82 -> Other 15 | T174: 0 | U174: 0 | V174: 0 | W174: 0 | X174: 0 | Y174: 0
S175: ='Basic Input for Tool'!$E83 -> Other 16 | T175: 0 | U175: 0 | V175: 0 | W175: 0 | X175: 0 | Y175: 0
S176: ='Basic Input for Tool'!$E84 -> Other 17 | T176: 0 | U176: 0 | V176: 0 | W176: 0 | X176: 0 | Y176: 0
S177: ='Basic Input for Tool'!$E85 -> Other 18 | T177: 0 | U177: 0 | V177: 0 | W177: 0 | X177: 0 | Y177: 0
S178: ='Basic Input for Tool'!$E86 -> Other 19 | T178: 0 | U178: 0 | V178: 0 | W178: 0 | X178: 0 | Y178: 0
S179: ='Basic Input for Tool'!$E87 -> Other 20 | T179: 0 | U179: 0 | V179: 0 | W179: 0 | X179: 0 | Y179: 0
T182: =T6 -> Cost estimate 2024 | U182: =U6 -> Cost estimate 2025 | V182: Cost estimate 2026 | W182: Cost estimate 2027 | X182: Cost estimate 2028 | Y182: TotalOver5Years | Z182: =SUM(Y183:Y184) -> 248700
R183: Yes | S183: Funded | T183: =SUM(SUMIFS(T$7:T$106,$L7:$L106,{"yes","y","funded"})) -> 0 | U183: =SUM(SUMIFS(U$7:U$106,$L7:$L106,{"yes","y","funded"})) -> 0 | V183: =SUM(SUMIFS(V$7:V$106,$L7:$L106,{"yes","y","funded"})) -> 0 | W183: =SUM(SUMIFS(W$7:W$106,$L7:$L106,{"yes","y","funded"})) -> 0 | X183: =SUM(SUMIFS(X$7:X$106,$L7:$L106,{"yes","y","funded"})) -> 0 | Y183: =SUM(SUMIFS(Y$7:Y$106,$L7:$L106,{"yes","y","funded"})) -> 0
R184: No | S184: Not funded | T184: =SUM(SUMIFS(T$7:T$106,$L7:$L106,{"no","n","not funded"})) -> 0 | U184: =SUM(SUMIFS(U$7:U$106,$L7:$L106,{"no","n","not funded"})) -> 140100 | V184: =SUM(SUMIFS(V$7:V$106,$L7:$L106,{"no","n","not funded"})) -> 108600 | W184: =SUM(SUMIFS(W$7:W$106,$L7:$L106,{"no","n","not funded"})) -> 0 | X184: =SUM(SUMIFS(X$7:X$106,$L7:$L106,{"no","n","not funded"})) -> 0 | Y184: =SUM(SUMIFS(Y$7:Y$106,$L7:$L106,{"no","n","not funded"})) -> 248700

Sheet P7. Biosafety and biosecurity
A1: =IF(ISNA(VLOOKUP(CountryName,CountriesCodes,2,FALSE))=TRUE,"",VLOOKUP(CountryName,CountriesCodes,2,FALSE)& "AMR") -> ETH AMR | B1: ="PLANNING AND COSTING MATRIX FOR THE DEVELOPMENT OF NATIONAL ACTION PLAN FOR HEALTH SECURITY " & O6 &" - " & S6 -> PLANNING AND COSTING MATRIX FOR THE DEVELOPMENT OF NATIONAL ACTION PLAN FOR HEALTH SECURITY 2024 - 2028 | AM1: 1 | AN1: 2 | AO1: 3 | AP1: 4 | AQ1: 5 | AR1: 6 | AS1: 7 | AT1: 8 | AU1: 9 | AV1: 10 | AW1: 11 | AX1: 12 | AY1: 13 | AZ1: 14 | BA1: 15 | BB1: 16 | BC1: 17 | BD1: 18 | BE1: 19 | BF1: 20 | BG1: 21 | BH1: 22 | BI1: 23 | BJ1: 24 | BK1: 25 | BL1: 26 | BM1: 27 | BN1: 28 | BO1: 29 | BP1: 30 | BQ1: 31 | BR1: 32 | BS1: 33 | BT1: 34 | BU1: 35 | BV1: 36 | BW1: 37 | BX1: 38 | BY1: 39 | BZ1: 40 | CA1: 41 | CB1: 42 | CC1: 43 | CD1: 44 | CE1: 45 | CF1: 46 | CG1: 47 | CH1: 48 | CI1: 49 | CJ1: 50 | CK1: 51 | CL1: 52 | CM1: 53 | CN1: 54 | CO1: 55 | CP1: 56 | CQ1: 57 | CR1: 58 | CS1: 59 | CT1: 60 | CU1: 61 | CV1: 62 | CW1: 63 | CX1: 64 | CY1: 65 | CZ1: 66 | DA1: 67 | DB1: 68 | DC1: 69 | DD1: 70 | DE1: 71 | DF1: 72 | DG1: 73 | DH1: 74 | DI1: 75 | DJ1: 76 | DK1: 77 | DL1: 78 | DM1: 79 | DN1: 80 | DO1: 81 | DP1: 82 | DQ1: 83 | DR1: 84 | DS1: 85 | DT1: 86 | DU1: 87 | DV1: 88 | DW1: 89 | DX1: 90 | DY1: 91 | DZ1: 92 | EA1: 93 | EB1: 94 | EC1: 95 | ED1: 96 | EE1: 97 | EF1: 98 | EG1: 99 | EH1: 100 | EI1: 101 | EJ1: 102 | EK1: 103 | EL1: 104 | EM1: 105 | EN1: 106 | EO1: 107 | EP1: 108 | EQ1: 109 | ER1: 110 | ES1: 111 | ET1: 112 | EU1: 113 | EV1: 114 | EW1: 115 | EX1: 116 | EY1: 117 | EZ1: 118 | FA1: 119 | FB1: 120 | FC1: 121 | FD1: 122 | FE1: 123 | FF1: 124 | FG1: 125 | FH1: 126 | FI1: 127 | FJ1: 128 | FK1: 129 | FL1: 130 | FM1: 131 | FN1: 132 | FO1: 133 | FP1: 134 | FQ1: 135 | FR1: 136 | FS1: 137 | FT1: 138 | FU1: 139 | FV1: 140 | FW1: 141 | FX1: 142 | FY1: 143 | FZ1: 144 | GA1: 145 | GB1: 146 | GC1: 147 | GD1: 148 | GE1: 149 | GF1: 150 | GG1: 151 | GH1: 152 | GI1: 153 | GJ1: 154 | GK1: 155 | XEQ1: Formula for meeting | XER1: Consultant | XES1: Field Visit
A2: 101 | B2: PREVENT | AN2: Meeting DATA | BJ2: FIELD VISITS | CA2: CONSULTANT | CN2: =+CL2+1 -> 1 | CS2: =CN2+1 -> 2 | CX2: =CS2+1 -> 3 | DC2: =CX2+1 -> 4 | DH2: =DC2+1 -> 5 | DM2: =DH2+1 -> 6 | DR2: =DM2+1 -> 7 | EG2: PROCUREMENT | EI2: 1 | EK2: =+EG2 -> PROCUREMENT | EL2: =+EI2+1 -> 2 | EO2: =+EK2 -> PROCUREMENT | EP2: =EL2+1 -> 3 | ES2: =+EO2 -> PROCUREMENT | ET2: =EP2+1 -> 4 | EW2: =+ES2 -> PROCUREMENT | EX2: =ET2+1 -> 5 | FA2: =+EW2 -> PROCUREMENT | FB2: =EX2+1 -> 6 | FE2: =+FA2 -> PROCUREMENT | FF2: =FB2+1 -> 7 | FI2: =+FE2 -> PROCUREMENT | FJ2: =FF2+1 -> 8 | FM2: =+FI2 -> PROCUREMENT | FN2: =FJ2+1 -> 9 | FQ2: =+FM2 -> PROCUREMENT | FR2: =FN2+1 -> 10 | GE2: Other | XEQ2: =(((($AN2-$AO2)*$AP2*$AQ2+$AO2*($AP2+ExtraDaysFar)*$AR2)+($AS2*$AP2)+($AT2+$AU2)*$AP2*$AN2+$AV2*$AN2))+($AW2*$AZ2*$AX2+$AW2*$BA2*$AZ2+$AY2+$AN2*$BB2)+$BC2*$AP2+$BH2+$BI2 ->  | XER2: =$CB2*$CC2*$CD2+$CB2*$CC2*$CE2+$CB2*$CF2 -> 0 | XES2: =$BJ2*$BK2*$BL2+$BN2*$BK2*($BO2+$BP2)+$BQ2*$BK2*$BR2+$BS2 -> 
B3: General Objective: To prevent and reduce the likelihood of outbreaks and other public health hazards and events defined by IHR (2005). | AK3: Unique ID | AL3: Category | AM3: Total cost | AN3: Participants | AO3: Away participants | AP3: No of days | AQ3: Per diem | AR3: Per diem away | AS3: Rent of venue | AT3: Lunch | AU3: Tea break | AV3: Stationary | AW3: No of trainers | AX3: Trainer fee | AY3: Extra for trainer | AZ3: No of days for trainer | BA3: Trainer per diem | BB3: Extra pp | BC3: Extra on top | BD3: List 1 | BE3: List 2 | BF3: List 3 | BG3: For later | BH3: For later | BI3: For later | BJ3: No of supervisors | BK3: No of days | BL3: Per diem | BM3: Vehicle category | BN3: No of vehicles | BO3: Cost per day per vehicle | BP3: Fuel cost per day | BQ3: No of drivers | BR3: Driver per diem | BS3: Extra per field visit | BT3: Total costs | BU3: List 1 | BV3: List 2 | BW3: List 3 | BX3: List4 | BY3: For later | BZ3: For later | CA3: International national | CB3: No of consultants | CC3: Number of days consultants | CD3: Per diem consultant | CE3: Consultant rate | CF3: Consultant travel | CG3: Total consult | CH3: List 1 | CI3: List 2 | CJ3: List 3 | CK3: List4 | CL3: For later | CM3: For later | CN3: ="HR" &CN2 -> HR1 | CO3: ="no. of " & CN3 -> no. of HR1 | CP3: ="Salary " & CN3 -> Salary HR1 | CQ3: ="Month " & CO3 & " TRUE/FALSE" -> Month no. of HR1 TRUE/FALSE | CR3: ="Months " & CN3 -> Months HR1 | CS3: ="HR" &CS2 -> HR2 | CT3: ="no. of " & CS3 -> no. of HR2 | CU3: ="Salary " & CS3 -> Salary HR2 | CV3: ="Month " & CT3 & " TRUE/FALSE" -> Month no. of HR2 TRUE/FALSE | CW3: ="Months " & CS3 -> Months HR2 | CX3: ="HR" &CX2 -> HR3 | CY3: ="no. of " & CX3 -> no. of HR3 | CZ3: ="Salary " & CX3 -> Salary HR3 | DA3: ="Month " & CY3 & " TRUE/FALSE" -> Month no. of HR3 TRUE/FALSE | DB3: ="Months " & CX3 -> Months HR3 | DC3: ="HR" &DC2 -> HR4 | DD3: ="no. of " & DC3 -> no. of HR4 | DE3: ="Salary " & DC3 -> Salary HR4 | DF3: ="Month " & DD3 & " TRUE/FALSE" -> Month no. of HR4 TRUE/FALSE | DG3: ="Months " & DC3 -> Months HR4 | DH3: ="HR" &DH2 -> HR5 | DI3: ="no. of " & DH3 -> no. of HR5 | DJ3: ="Salary " & DH3 -> Salary HR5 | DK3: ="Month " & DI3 & " TRUE/FALSE" -> Month no. of HR5 TRUE/FALSE | DL3: ="Months " & DH3 -> Months HR5 | DM3: ="HR" &DM2 -> HR6 | DN3: ="no. of " & DM3 -> no. of HR6 | DO3: ="Salary " & DM3 -> Salary HR6 | DP3: ="Month " & DN3 & " TRUE/FALSE" -> Month no. of HR6 TRUE/FALSE | DQ3: ="Months " & DM3 -> Months HR6 | DR3: ="HR" &DR2 -> HR7 | DS3: ="no. of " & DR3 -> no. of HR7 | DT3: ="Salary " & DR3 -> Salary HR7 | DU3: ="Month " & DS3 & " TRUE/FALSE" -> Month no. of HR7 TRUE/FALSE | DV3: ="Months " & DR3 -> Months HR7 | DW3: HR Extra 1 | DX3: HR Extra 2 | DY3: Total costs HR | DZ3: List 1 | EA3: List 2 | EB3: List 3 | EC3: List 4 | ED3: For later | EE3: For later | EF3: For later | EG3: Descripion1 | EH3: Quantity 1 | EI3: Price 1 | EJ3: Cost proc 1 | EK3: Descripion 2 | EL3: Quantity 2 | EM3: Price 2 | EN3: Cost proc 2 | EO3: ="Description " & EP2 -> Description 3 | EP3: ="Quantity " & EP2 -> Quantity 3 | EQ3: ="Price " & EP2 -> Price 3 | ER3: ="Cost proc " & EP2 -> Cost proc 3 | ES3: ="Description " & ET2 -> Description 4 | ET3: ="Quantity " & ET2 -> Quantity 4 | EU3: ="Price " & ET2 -> Price 4 | EV3: ="Cost proc " & ET2 -> Cost proc 4 | EW3: ="Description " & EX2 -> Description 5 | EX3: ="Quantity " & EX2 -> Quantity 5 | EY3: ="Price " & EX2 -> Price 5 | EZ3: ="Cost proc " & EX2 -> Cost proc 5 | FA3: ="Description " & FB2 -> Description 6 | FB3: ="Quantity " & FB2 -> Quantity 6 | FC3: ="Price " & FB2 -> Price 6 | FD3: ="Cost proc " & FB2 -> Cost proc 6 | FE3: ="Description " & FF2 -> Description 7 | FF3: ="Quantity " & FF2 -> Quantity 7 | FG3: ="Price " & FF2 -> Price 7 | FH3: ="Cost proc " & FF2 -> Cost proc 7 | FI3: ="Description " & FJ2 -> Description 8 | FJ3: ="Quantity " & FJ2 -> Quantity 8 | FK3: ="Price " & FJ2 -> Price 8 | FL3: ="Cost proc " & FJ2 -> Cost proc 8 | FM3: ="Description " & FN2 -> Description 9 | FN3: ="Quantity " & FN2 -> Quantity 9 | FO3: ="Price " & FN2 -> Price 9 | FP3: ="Cost proc " & FN2 -> Cost proc 9 | FQ3: ="Description " & FR2 -> Description 10 | FR3: ="Quantity " & FR2 -> Quantity 10 | FS3: ="Price " & FR2 -> Price 10 | FT3: ="Cost proc " & FR2 -> Cost proc 10 | FU3: Total cost procurement | FV3: List 1 | FW3: List 2 | FX3: List 3 | FY3: List 4 | FZ3: Procurement category | GA3: For later | GB3: For later | GC3: For later | GD3: For later | GE3: Description other | GF3: Cost other | GG3: List 1 | GH3: List 2 | GI3: List 3 | GJ3: List 4
B4: Assessment recommendations: | C4: Please enter the list of recommendations in this single merged cell
B5: TECHNICAL AREA | C5: P7. Biosafety and biosecurity | O5: Frequency per year of implementation | T5: Annual Cost Estimates | AB5: Monitoring and Evaluation | AG5: comptage category2 (colonne AA) | AH5: comptage coût(colonne N) | AI5: .
A6: UniqueID | B6: Indicator | C6: Objectives | D6: Summary of Key Activities (Strategic actions) | E6: Detailed activity description (input description for costing) | F6: Detailed cost assumptions (including units, unit costs, quantities, frequency, etc) | G6: Responsible authority for Implementation (budget holder) | H6: Implementation scale (National, regional, district, sub-national?) | I6: Comments1 (Potential challenges, comments on implementation arrangements, other) | J6: Comments2 (Potential challenges, comments on implementation arrangements, other) | K6: Related existing plan/ framework / Programme or on-going activities | L6: Existing budget(y/n) | M6: Existing budget source (government, donor?) | N6: Estimated cost (Local currency) | O6: =IF('Basic Input for Tool'!$C$7="","Year 1",'Basic Input for Tool'!$C$7) -> 2024 | P6: =IF('Basic Input for Tool'!$C$7="","Year 2",O6+1) -> 2025 | Q6: =IF('Basic Input for Tool'!$C$7="","Year 3",P6+1) -> 2026 | R6: =IF('Basic Input for Tool'!$C$7="","Year 4",Q6+1) -> 2027 | S6: =IF('Basic Input for Tool'!$C$7="","Year 5",R6+1) -> 2028 | T6: ="Cost estimate " & O6 -> Cost estimate 2024 | U6: ="Cost estimate " & P6 -> Cost estimate 2025 | V6: Cost estimate 2026 | W6: Cost estimate 2027 | X6: Cost estimate 2028 | Y6: TotalOver5Years | Z6: CostCategory1 | AA6: CostCategory2 | AB6: Output/Process | AC6: Outcome | AD6: Frequency of collection (monthly, six monthly, yearly) | AE6: Source of verification | AG6: =COUNTA($AA7:$AA106) -> 1 | AH6: =COUNTA($N7:$N106) -> 1
F7: study tour for 3 people transport @ M12000, accomodation @ M15000 and Per diem @ M25000 | G7: Ministry of Environment | H7: National | L7: N | M7: Donor | N7: 156000 | P7: 1 | T7: =IF($N7="Pending",0,$N7*O7) -> 0 | U7: 156000 | V7: 0 | W7: 0 | X7: =IF($N7="Pending",0,$N7*S7) -> 0 | Y7: =SUM(T7:X7) -> 156000 | Z7: Study | AA7: Capital | AL7: Procurement | EG7: transport | EH7: 3 | EI7: 12000 | EJ7: 36000 | EK7: accomodation | EL7: 3 | EM7: 15000 | EN7: 45000 | EO7: Per diem | EP7: 3 | EQ7: 25000 | ER7: 75000 | ES7: Not used | ET7: 0 | EU7: 0 | EV7: 0 | EW7: Not used | EX7: 0 | EY7: 0 | EZ7: 0 | FA7: Not used | FB7: 0 | FC7: 0 | FD7: 0 | FE7: Not used | FF7: 0 | FG7: 0 | FH7: 0 | FI7: Not used | FJ7: 0 | FK7: 0 | FL7: 0 | FM7: Not used | FN7: 0 | FO7: 0 | FP7: 0 | FQ7: Not used | FR7: 0 | FS7: 0 | FT7: 0 | FU7: 156000 | FV7: National | FW7: Capital | FX7: Study | FY7: Ministry of Environment | FZ7: Services
T8: 0 | U8: 0 | V8: 0 | W8: 0 | X8: 0 | Y8: =SUM(T8:X8) -> 0
T9: 0 | U9: 0 | V9: 0 | W9: 0 | X9: 0 | Y9: 0
T10: 0 | U10: 0 | V10: 0 | W10: 0 | X10: 0 | Y10: 0
T11: 0 | U11: 0 | V11: 0 | W11: 0 | X11: 0 | Y11: 0
T12: 0 | U12: 0 | V12: 0 | W12: 0 | X12: 0 | Y12: 0
T13: 0 | U13: 0 | V13: 0 | W13: 0 | X13: 0 | Y13: 0
T14: 0 | U14: 0 | V14: 0 | W14: 0 | X14: 0 | Y14: 0
T15: 0 | U15: 0 | V15: 0 | W15: 0 | X15: 0 | Y15: 0
T16: 0 | U16: 0 | V16: 0 | W16: 0 | X16: 0 | Y16: 0
T17: 0 | U17: 0 | V17: 0 | W17: 0 | X17: 0 | Y17: 0
T18: 0 | U18: 0 | V18: 0 | W18: 0 | X18: 0 | Y18: 0
T19: 0 | U19: 0 | V19: 0 | W19: 0 | X19: 0 | Y19: 0
T20: 0 | U20: 0 | V20: 0 | W20: 0 | X20: 0 | Y20: 0
T21: 0 | U21: 0 | V21: 0 | W21: 0 | X21: 0 | Y21: 0
T22: 0 | U22: 0 | V22: 0 | W22: 0 | X22: 0 | Y22: 0
T23: 0 | U23: 0 | V23: 0 | W23: 0 | X23: 0 | Y23: 0
T24: 0 | U24: 0 | V24: 0 | W24: 0 | X24: 0 | Y24: 0
T25: 0 | U25: 0 | V25: 0 | W25: 0 | X25: 0 | Y25: 0
T26: 0 | U26: 0 | V26: 0 | W26: 0 | X26: 0 | Y26: 0
T27: 0 | U27: 0 | V27: 0 | W27: 0 | X27: 0 | Y27: 0
T28: 0 | U28: 0 | V28: 0 | W28: 0 | X28: 0 | Y28: 0
T29: 0 | U29: 0 | V29: 0 | W29: 0 | X29: 0 | Y29: 0
T30: 0 | U30: 0 | V30: 0 | W30: 0 | X30: 0 | Y30: 0
T31: 0 | U31: 0 | V31: 0 | W31: 0 | X31: 0 | Y31: 0
T32: 0 | U32: 0 | V32: 0 | W32: 0 | X32: 0 | Y32: 0
T33: 0 | U33: 0 | V33: 0 | W33: 0 | X33: 0 | Y33: 0
T34: 0 | U34: 0 | V34: 0 | W34: 0 | X34: 0 | Y34: 0
T35: 0 | U35: 0 | V35: 0 | W35: 0 | X35: 0 | Y35: 0
T36: 0 | U36: 0 | V36: 0 | W36: 0 | X36: 0 | Y36: 0
T37: 0 | U37: 0 | V37: 0 | W37: 0 | X37: 0 | Y37: 0
T38: 0 | U38: 0 | V38: 0 | W38: 0 | X38: 0 | Y38: 0
T39: 0 | U39: 0 | V39: 0 | W39: 0 | X39: 0 | Y39: 0
T40: 0 | U40: 0 | V40: 0 | W40: 0 | X40: 0 | Y40: 0
T41: =IF($N41="Pending",0,$N41*O41) -> 0 | U41: =IF($N41="Pending",0,$N41*P41) -> 0 | V41: =IF($N41="Pending",0,$N41*Q41) -> 0 | W41: =IF($N41="Pending",0,$N41*R41) -> 0 | X41: =IF($N41="Pending",0,$N41*S41) -> 0 | Y41: =SUM(T41:X41) -> 0
T42: 0 | U42: 0 | V42: 0 | W42: 0 | X42: 0 | Y42: 0
T43: 0 | U43: 0 | V43: 0 | W43: 0 | X43: 0 | Y43: 0
T44: 0 | U44: 0 | V44: 0 | W44: 0 | X44: 0 | Y44: 0
T45: 0 | U45: 0 | V45: 0 | W45: 0 | X45: 0 | Y45: 0
T46: 0 | U46: 0 | V46: 0 | W46: 0 | X46: 0 | Y46: 0
T47: 0 | U47: 0 | V47: 0 | W47: 0 | X47: 0 | Y47: 0
T48: 0 | U48: 0 | V48: 0 | W48: 0 | X48: 0 | Y48: 0
T49: 0 | U49: 0 | V49: 0 | W49: 0 | X49: 0 | Y49: 0
T50: =IF($N50="Pending",0,$N50*O50) -> 0 | U50: 0 | V50: 0 | W50: 0 | X50: 0 | Y50: =SUM(T50:X50) -> 0
T51: 0 | U51: 0 | V51: 0 | W51: 0 | X51: 0 | Y51: 0
T52: 0 | U52: 0 | V52: 0 | W52: 0 | X52: 0 | Y52: 0
T53: 0 | U53: 0 | V53: 0 | W53: 0 | X53: 0 | Y53: 0
T54: 0 | U54: 0 | V54: 0 | W54: 0 | X54: 0 | Y54: 0
T55: 0 | U55: 0 | V55: 0 | W55: 0 | X55: 0 | Y55: 0
T56: 0 | U56: 0 | V56: 0 | W56: 0 | X56: 0 | Y56: 0
T57: 0 | U57: 0 | V57: 0 | W57: 0 | X57: 0 | Y57: 0
T58: 0 | U58: 0 | V58: 0 | W58: 0 | X58: 0 | Y58: 0
T59: 0 | U59: 0 | V59: 0 | W59: 0 | X59: 0 | Y59: 0
T60: 0 | U60: 0 | V60: 0 | W60: 0 | X60: 0 | Y60: 0
T61: 0 | U61: 0 | V61: 0 | W61: 0 | X61: 0 | Y61: 0
T62: 0 | U62: 0 | V62: 0 | W62: 0 | X62: 0 | Y62: 0
T63: 0 | U63: 0 | V63: 0 | W63: 0 | X63: 0 | Y63: 0
T64: 0 | U64: 0 | V64: 0 | W64: 0 | X64: 0 | Y64: 0
T65: 0 | U65: 0 | V65: 0 | W65: 0 | X65: 0 | Y65: 0
T66: 0 | U66: 0 | V66: 0 | W66: 0 | X66: 0 | Y66: 0
T67: 0 | U67: 0 | V67: 0 | W67: 0 | X67: 0 | Y67: 0
T68: 0 | U68: 0 | V68: 0 | W68: 0 | X68: 0 | Y68: 0
T69: 0 | U69: 0 | V69: 0 | W69: 0 | X69: 0 | Y69: 0
T70: 0 | U70: 0 | V70: 0 | W70: 0 | X70: 0 | Y70: =SUM(T70:X70) -> 0
T71: 0 | U71: 0 | V71: 0 | W71: 0 | X71: 0 | Y71: 0
T72: 0 | U72: 0 | V72: 0 | W72: 0 | X72: 0 | Y72: 0
T73: 0 | U73: 0 | V73: 0 | W73: 0 | X73: 0 | Y73: 0
T74: =IF($N74="Pending",0,$N74*O74) -> 0 | U74: 0 | V74: 0 | W74: 0 | X74: 0 | Y74: 0
T75: 0 | U75: 0 | V75: 0 | W75: 0 | X75: 0 | Y75: 0
T76: 0 | U76: 0 | V76: 0 | W76: 0 | X76: 0 | Y76: 0
T77: 0 | U77: 0 | V77: 0 | W77: 0 | X77: 0 | Y77: 0
T78: 0 | U78: 0 | V78: 0 | W78: 0 | X78: 0 | Y78: 0
T79: 0 | U79: 0 | V79: 0 | W79: 0 | X79: 0 | Y79: 0
T80: 0 | U80: 0 | V80: 0 | W80: 0 | X80: 0 | Y80: 0
T81: 0 | U81: 0 | V81: 0 | W81: 0 | X81: 0 | Y81: 0
T82: 0 | U82: 0 | V82: 0 | W82: 0 | X82: 0 | Y82: 0
T83: 0 | U83: 0 | V83: 0 | W83: 0 | X83: 0 | Y83: 0
T84: 0 | U84: 0 | V84: 0 | W84: 0 | X84: 0 | Y84: 0
T85: 0 | U85: 0 | V85: 0 | W85: 0 | X85: 0 | Y85: 0
T86: 0 | U86: 0 | V86: 0 | W86: 0 | X86: 0 | Y86: 0
T87: 0 | U87: 0 | V87: 0 | W87: 0 | X87: 0 | Y87: 0
T88: 0 | U88: 0 | V88: 0 | W88: 0 | X88: 0 | Y88: 0
T89: 0 | U89: 0 | V89: 0 | W89: 0 | X89: 0 | Y89: 0
T90: 0 | U90: 0 | V90: 0 | W90: 0 | X90: 0 | Y90: 0
T91: 0 | U91: 0 | V91: 0 | W91: 0 | X91: 0 | Y91: 0
T92: 0 | U92: 0 | V92: 0 | W92: 0 | X92: 0 | Y92: 0
T93: 0 | U93: 0 | V93: 0 | W93: 0 | X93: 0 | Y93: 0
T94: 0 | U94: 0 | V94: 0 | W94: 0 | X94: 0 | Y94: 0
T95: 0 | U95: 0 | V95: 0 | W95: 0 | X95: 0 | Y95: 0
T96: 0 | U96: 0 | V96: 0 | W96: 0 | X96: 0 | Y96: 0
T97: 0 | U97: 0 | V97: 0 | W97: 0 | X97: 0 | Y97: 0
T98: 0 | U98: 0 | V98: 0 | W98: 0 | X98: 0 | Y98: 0
T99: 0 | U99: 0 | V99: 0 | W99: 0 | X99: 0 | Y99: 0
T100: 0 | U100: 0 | V100: 0 | W100: 0 | X100: 0 | Y100: 0
T101: 0 | U101: 0 | V101: 0 | W101: 0 | X101: 0 | Y101: 0
T102: 0 | U102: 0 | V102: 0 | W102: 0 | X102: 0 | Y102: 0
T103: 0 | U103: 0 | V103: 0 | W103: 0 | X103: 0 | Y103: 0
T104: 0 | U104: 0 | V104: 0 | W104: 0 | X104: 0 | Y104: 0
T105: =IF($N105="Pending",0,$N105*O105) -> 0 | U105: =IF($N105="Pending",0,$N105*P105) -> 0 | V105: =IF($N105="Pending",0,$N105*Q105) -> 0 | W105: =IF($N105="Pending",0,$N105*R105) -> 0 | X105: =IF($N105="Pending",0,$N105*S105) -> 0 | Y105: =SUM(T105:X105) -> 0
T106: 0 | U106: 0 | V106: 0 | W106: 0 | X106: 0 | Y106: 0
S108: TOTALS | T108: =SUM(T7:T106) -> 0 | U108: 156000 | V108: 0 | W108: 0 | X108: 0 | Y108: 156000
T110: =T6 -> Cost estimate 2024 | U110: Cost estimate 2025 | V110: Cost estimate 2026 | W110: Cost estimate 2027 | X110: =X6 -> Cost estimate 2028 | Y110: =Y6 -> TotalOver5Years | Z110: =SUM(Y111:Y133) -> 156000
S111: ='Basic Input for Tool'!$D65 -> Meeting | T111: =SUMIF($Z$7:$Z$106,$S111,T$7:T$106) -> 0 | U111: 0 | V111: 0 | W111: 0 | X111: 0 | Y111: 0
S112: ='Basic Input for Tool'!$D66 -> Training | T112: 0 | U112: 0 | V112: 0 | W112: 0 | X112: 0 | Y112: 0
S113: ='Basic Input for Tool'!$D67 -> Workshop | T113: 0 | U113: 0 | V113: 0 | W113: 0 | X113: 0 | Y113: 0
S114: ='Basic Input for Tool'!$D68 -> SOP development | T114: 0 | U114: 0 | V114: 0 | W114: 0 | X114: 0 | Y114: 0
S115: ='Basic Input for Tool'!$D69 -> Communication | T115: 0 | U115: 0 | V115: 0 | W115: 0 | X115: 0 | Y115: 0
S116: ='Basic Input for Tool'!$D70 -> Construction | T116: 0 | U116: 0 | V116: 0 | W116: 0 | X116: 0 | Y116: 0
S117: ='Basic Input for Tool'!$D71 -> Consultancy | T117: 0 | U117: 0 | V117: 0 | W117: 0 | X117: 0 | Y117: 0
S118: ='Basic Input for Tool'!$D72 -> Evaluation | T118: 0 | U118: 0 | V118: 0 | W118: 0 | X118: 0 | Y118: 0
S119: ='Basic Input for Tool'!$D73 -> Field visit | T119: 0 | U119: 0 | V119: 0 | W119: 0 | X119: 0 | Y119: 0
S120: ='Basic Input for Tool'!$D74 -> Human resources | T120: 0 | U120: 0 | V120: 0 | W120: 0 | X120: 0 | Y120: 0
S121: ='Basic Input for Tool'!$D75 -> Infrastructure | T121: =SUMIF($Z$7:$Z$106,$S121,T$7:T$106) -> 0 | U121: 0 | V121: 0 | W121: 0 | X121: 0 | Y121: 0
S122: ='Basic Input for Tool'!$D76 -> Document reproduction/printing | T122: 0 | U122: 0 | V122: 0 | W122: 0 | X122: 0 | Y122: 0
S123: ='Basic Input for Tool'!$D77 -> Procurement | T123: 0 | U123: 0 | V123: 0 | W123: 0 | X123: 0 | Y123: 0
S124: ='Basic Input for Tool'!$D78 -> Services | T124: 0 | U124: 0 | V124: 0 | W124: 0 | X124: 0 | Y124: 0
S125: ='Basic Input for Tool'!$D79 -> Simulation exercises | T125: 0 | U125: 0 | V125: 0 | W125: 0 | X125: 0 | Y125: 0
S126: ='Basic Input for Tool'!$D80 -> Advocacy | T126: 0 | U126: 0 | V126: 0 | W126: 0 | X126: 0 | Y126: 0
S127: ='Basic Input for Tool'!$D81 -> Study | T127: 0 | U127: 156000 | V127: 0 | W127: 0 | X127: 0 | Y127: 156000
S128: ='Basic Input for Tool'!$D82 -> Campaign | T128: 0 | U128: 0 | V128: 0 | W128: 0 | X128: 0 | Y128: 0
S129: ='Basic Input for Tool'!$D83 -> Other | T129: 0 | U129: 0 | V129: 0 | W129: 0 | X129: 0 | Y129: 0
S130: ='Basic Input for Tool'!$D84 -> Other 2 | T130: 0 | U130: 0 | V130: 0 | W130: 0 | X130: 0 | Y130: 0
S131: ='Basic Input for Tool'!$D85 -> Other 3 | T131: 0 | U131: 0 | V131: 0 | W131: 0 | X131: 0 | Y131: 0
S132: ='Basic Input for Tool'!$D86 -> Other 4 | T132: 0 | U132: 0 | V132: 0 | W132: 0 | X132: 0 | Y132: 0
S133: ='Basic Input for Tool'!$D87 -> Other 5 | T133: 0 | U133: 0 | V133: 0 | W133: 0 | X133: 0 | Y133: 0
T136: =T6 -> Cost estimate 2024 | U136: Cost estimate 2025 | V136: Cost estimate 2026 | W136: Cost estimate 2027 | X136: =X6 -> Cost estimate 2028 | Y136: =Y6 -> TotalOver5Years | Z136: =SUM(Y137:Y146) -> 156000
S137: ='Basic Input for Tool'!$C$65 -> Capital | T137: =SUMIF($AA$7:$AA$106,$S137,T$7:T$106) -> 0 | U137: 156000 | V137: 0 | W137: 0 | X137: 0 | Y137: 156000
S138: ='Basic Input for Tool'!$C$66 -> Recurrent | T138: 0 | U138: 0 | V138: 0 | W138: 0 | X138: 0 | Y138: 0
S139: ='Basic Input for Tool'!$C$67 -> Other 1 | T139: 0 | U139: 0 | V139: 0 | W139: 0 | X139: 0 | Y139: 0
S140: ='Basic Input for Tool'!$C$68 -> Other 2 | T140: 0 | U140: 0 | V140: 0 | W140: 0 | X140: 0 | Y140: 0
S141: ='Basic Input for Tool'!$C$69 -> 0 | T141: 0 | U141: 0 | V141: 0 | W141: 0 | X141: 0 | Y141: 0
S142: ='Basic Input for Tool'!$C$70 -> 0 | T142: 0 | U142: 0 | V142: 0 | W142: 0 | X142: 0 | Y142: 0
S143: ='Basic Input for Tool'!$C$71 -> 0 | T143: 0 | U143: 0 | V143: 0 | W143: 0 | X143: 0 | Y143: 0
S144: ='Basic Input for Tool'!$C$72 -> 0 | T144: 0 | U144: 0 | V144: 0 | W144: 0 | X144: 0 | Y144: 0
S145: ='Basic Input for Tool'!$C$73 -> 0 | T145: 0 | U145: 0 | V145: 0 | W145: 0 | X145: 0 | Y145: 0
S146: ='Basic Input for Tool'!$C$74 -> 0 | T146: 0 | U146: 0 | V146: 0 | W146: 0 | X146: 0 | Y146: 0
T149: =T6 -> Cost estimate 2024 | U149: Cost estimate 2025 | V149: Cost estimate 2026 | W149: Cost estimate 2027 | X149: =X6 -> Cost estimate 2028 | Y149: =Y6 -> TotalOver5Years | Z149: =SUM(Y150:Y153) -> 156000
S150: ='Basic Input for Tool'!$B$65 -> National | T150: =SUMIF($H$7:$H$106,$S150,T$7:T$106) -> 0 | U150: 156000 | V150: 0 | W150: 0 | X150: 0 | Y150: 156000
S151: ='Basic Input for Tool'!$B$66 -> Central | T151: 0 | U151: 0 | V151: 0 | W151: 0 | X151: 0 | Y151: 0
S152: ='Basic Input for Tool'!$B$67 -> SNU1 (province/region/etat) | T152: 0 | U152: 0 | V152: 0 | W152: 0 | X152: 0 | Y152: 0
S153: ='Basic Input for Tool'!$B$68 -> SNU2 (district/county) | T153: 0 | U153: 0 | V153: 0 | W153: 0 | X153: 0 | Y153: 0
T156: =T6 -> Cost estimate 2024 | U156: Cost estimate 2025 | V156: Cost estimate 2026 | W156: Cost estimate 2027 | X156: =X6 -> Cost estimate 2028 | Y156: =Y6 -> TotalOver5Years | Z156: =SUM(Y157:Y179) -> 156000
S157: ='Basic Input for Tool'!$E$65 -> Ministry of Health | T157: =SUMIF($G$7:$G$106,$S157,T$7:T$106) -> 0 | U157: 0 | V157: 0 | W157: 0 | X157: 0 | Y157: 0
S158: ='Basic Input for Tool'!$E$66 -> Ministry of Finance | T158: 0 | U158: 0 | V158: 0 | W158: 0 | X158: 0 | Y158: 0
S159: ='Basic Input for Tool'!$E$67 -> Ministry of Agriculture | T159: 0 | U159: 0 | V159: 0 | W159: 0 | X159: 0 | Y159: 0
S160: ='Basic Input for Tool'!$E$68 -> Ministry of Environment | T160: 0 | U160: 156000 | V160: 0 | W160: 0 | X160: 0 | Y160: 156000
S161: ='Basic Input for Tool'!$E$69 -> Other 2 | T161: 0 | U161: 0 | V161: 0 | W161: 0 | X161: 0 | Y161: 0
S162: ='Basic Input for Tool'!$E$70 -> Other 3 | T162: 0 | U162: 0 | V162: 0 | W162: 0 | X162: 0 | Y162: 0
S163: ='Basic Input for Tool'!$E$71 -> Other 4 | T163: 0 | U163: 0 | V163: 0 | W163: 0 | X163: 0 | Y163: 0
S164: ='Basic Input for Tool'!$E$72 -> Other 5 | T164: 0 | U164: 0 | V164: 0 | W164: 0 | X164: 0 | Y164: 0
S165: ='Basic Input for Tool'!$E$73 -> Other 6 | T165: 0 | U165: 0 | V165: 0 | W165: 0 | X165: 0 | Y165: 0
S166: ='Basic Input for Tool'!$E74 -> Other 7 | T166: 0 | U166: 0 | V166: 0 | W166: 0 | X166: 0 | Y166: 0
S167: ='Basic Input for Tool'!$E75 -> Other 8 | T167: =SUMIF($G$7:$G$106,$S167,T$7:T$106) -> 0 | U167: 0 | V167: 0 | W167: 0 | X167: 0 | Y167: 0
S168: ='Basic Input for Tool'!$E76 -> Other 9 | T168: 0 | U168: 0 | V168: 0 | W168: 0 | X168: 0 | Y168: 0
S169: ='Basic Input for Tool'!$E77 -> Other 10 | T169: 0 | U169: 0 | V169: 0 | W169: 0 | X169: 0 | Y169: 0
S170: ='Basic Input for Tool'!$E78 -> Other 11 | T170: 0 | U170: 0 | V170: 0 | W170: 0 | X170: 0 | Y170: 0
S171: ='Basic Input for Tool'!$E79 -> Other 12 | T171: 0 | U171: 0 | V171: 0 | W171: 0 | X171: 0 | Y171: 0
S172: ='Basic Input for Tool'!$E80 -> Other 13 | T172: 0 | U172: 0 | V172: 0 | W172: 0 | X172: 0 | Y172: 0
S173: ='Basic Input for Tool'!$E81 -> Other 14 | T173: 0 | U173: 0 | V173: 0 | W173: 0 | X173: 0 | Y173: 0
S174: ='Basic Input for Tool'!$E82 -> Other 15 | T174: 0 | U174: 0 | V174: 0 | W174: 0 | X174: 0 | Y174: 0
S175: ='Basic Input for Tool'!$E83 -> Other 16 | T175: 0 | U175: 0 | V175: 0 | W175: 0 | X175: 0 | Y175: 0
S176: ='Basic Input for Tool'!$E84 -> Other 17 | T176: 0 | U176: 0 | V176: 0 | W176: 0 | X176: 0 | Y176: 0
S177: ='Basic Input for Tool'!$E85 -> Other 18 | T177: 0 | U177: 0 | V177: 0 | W177: 0 | X177: 0 | Y177: 0
S178: ='Basic Input for Tool'!$E86 -> Other 19 | T178: 0 | U178: 0 | V178: 0 | W178: 0 | X178: 0 | Y178: 0
S179: ='Basic Input for Tool'!$E87 -> Other 20 | T179: 0 | U179: 0 | V179: 0 | W179: 0 | X179: 0 | Y179: 0
T182: =T6 -> Cost estimate 2024 | U182: =U6 -> Cost estimate 2025 | V182: Cost estimate 2026 | W182: Cost estimate 2027 | X182: Cost estimate 2028 | Y182: TotalOver5Years | Z182: =SUM(Y183:Y184) -> 156000
R183: Yes | S183: Funded | T183: =SUM(SUMIFS(T$7:T$106,$L7:$L106,{"yes","y","funded"})) -> 0 | U183: =SUM(SUMIFS(U$7:U$106,$L7:$L106,{"yes","y","funded"})) -> 0 | V183: =SUM(SUMIFS(V$7:V$106,$L7:$L106,{"yes","y","funded"})) -> 0 | W183: =SUM(SUMIFS(W$7:W$106,$L7:$L106,{"yes","y","funded"})) -> 0 | X183: =SUM(SUMIFS(X$7:X$106,$L7:$L106,{"yes","y","funded"})) -> 0 | Y183: =SUM(SUMIFS(Y$7:Y$106,$L7:$L106,{"yes","y","funded"})) -> 0
R184: No | S184: Not funded | T184: =SUM(SUMIFS(T$7:T$106,$L7:$L106,{"no","n","not funded"})) -> 0 | U184: =SUM(SUMIFS(U$7:U$106,$L7:$L106,{"no","n","not funded"})) -> 156000 | V184: =SUM(SUMIFS(V$7:V$106,$L7:$L106,{"no","n","not funded"})) -> 0 | W184: =SUM(SUMIFS(W$7:W$106,$L7:$L106,{"no","n","not funded"})) -> 0 | X184: =SUM(SUMIFS(X$7:X$106,$L7:$L106,{"no","n","not funded"})) -> 0 | Y184: =SUM(SUMIFS(Y$7:Y$106,$L7:$L106,{"no","n","not funded"})) -> 156000

Sheet P8. Immunization
A1: =IF(ISNA(VLOOKUP(CountryName,CountriesCodes,2,FALSE))=TRUE,"",VLOOKUP(CountryName,CountriesCodes,2,FALSE)& "LAB") -> ETH LAB | B1: ="PLANNING AND COSTING MATRIX FOR THE DEVELOPMENT OF NATIONAL ACTION PLAN FOR HEALTH SECURITY " & O6 &" - " & S6 -> PLANNING AND COSTING MATRIX FOR THE DEVELOPMENT OF NATIONAL ACTION PLAN FOR HEALTH SECURITY 2024 - 2028 | AM1: 1 | AN1: 2 | AO1: 3 | AP1: 4 | AQ1: 5 | AR1: 6 | AS1: 7 | AT1: 8 | AU1: 9 | AV1: 10 | AW1: 11 | AX1: 12 | AY1: 13 | AZ1: 14 | BA1: 15 | BB1: 16 | BC1: 17 | BD1: 18 | BE1: 19 | BF1: 20 | BG1: 21 | BH1: 22 | BI1: 23 | BJ1: 24 | BK1: 25 | BL1: 26 | BM1: 27 | BN1: 28 | BO1: 29 | BP1: 30 | BQ1: 31 | BR1: 32 | BS1: 33 | BT1: 34 | BU1: 35 | BV1: 36 | BW1: 37 | BX1: 38 | BY1: 39 | BZ1: 40 | CA1: 41 | CB1: 42 | CC1: 43 | CD1: 44 | CE1: 45 | CF1: 46 | CG1: 47 | CH1: 48 | CI1: 49 | CJ1: 50 | CK1: 51 | CL1: 52 | CM1: 53 | CN1: 54 | CO1: 55 | CP1: 56 | CQ1: 57 | CR1: 58 | CS1: 59 | CT1: 60 | CU1: 61 | CV1: 62 | CW1: 63 | CX1: 64 | CY1: 65 | CZ1: 66 | DA1: 67 | DB1: 68 | DC1: 69 | DD1: 70 | DE1: 71 | DF1: 72 | DG1: 73 | DH1: 74 | DI1: 75 | DJ1: 76 | DK1: 77 | DL1: 78 | DM1: 79 | DN1: 80 | DO1: 81 | DP1: 82 | DQ1: 83 | DR1: 84 | DS1: 85 | DT1: 86 | DU1: 87 | DV1: 88 | DW1: 89 | DX1: 90 | DY1: 91 | DZ1: 92 | EA1: 93 | EB1: 94 | EC1: 95 | ED1: 96 | EE1: 97 | EF1: 98 | EG1: 99 | EH1: 100 | EI1: 101 | EJ1: 102 | EK1: 103 | EL1: 104 | EM1: 105 | EN1: 106 | EO1: 107 | EP1: 108 | EQ1: 109 | ER1: 110 | ES1: 111 | ET1: 112 | EU1: 113 | EV1: 114 | EW1: 115 | EX1: 116 | EY1: 117 | EZ1: 118 | FA1: 119 | FB1: 120 | FC1: 121 | FD1: 122 | FE1: 123 | FF1: 124 | FG1: 125 | FH1: 126 | FI1: 127 | FJ1: 128 | FK1: 129 | FL1: 130 | FM1: 131 | FN1: 132 | FO1: 133 | FP1: 134 | FQ1: 135 | FR1: 136 | FS1: 137 | FT1: 138 | FU1: 139 | FV1: 140 | FW1: 141 | FX1: 142 | FY1: 143 | FZ1: 144 | GA1: 145 | GB1: 146 | GC1: 147 | GD1: 148 | GE1: 149 | GF1: 150 | GG1: 151 | GH1: 152 | GI1: 153 | GJ1: 154 | GK1: 155 | XEQ1: Formula for meeting | XER1: Consultant | XES1: Field Visit
A2: 101 | B2: DETECT | AN2: Meeting DATA | BJ2: FIELD VISITS | CA2: CONSULTANT | CN2: =+CL2+1 -> 1 | CS2: =CN2+1 -> 2 | CX2: =CS2+1 -> 3 | DC2: =CX2+1 -> 4 | DH2: =DC2+1 -> 5 | DM2: =DH2+1 -> 6 | DR2: =DM2+1 -> 7 | EG2: PROCUREMENT | EI2: 1 | EK2: =+EG2 -> PROCUREMENT | EL2: =+EI2+1 -> 2 | EO2: =+EK2 -> PROCUREMENT | EP2: =EL2+1 -> 3 | ES2: =+EO2 -> PROCUREMENT | ET2: =EP2+1 -> 4 | EW2: =+ES2 -> PROCUREMENT | EX2: =ET2+1 -> 5 | FA2: =+EW2 -> PROCUREMENT | FB2: =EX2+1 -> 6 | FE2: =+FA2 -> PROCUREMENT | FF2: =FB2+1 -> 7 | FI2: =+FE2 -> PROCUREMENT | FJ2: =FF2+1 -> 8 | FM2: =+FI2 -> PROCUREMENT | FN2: =FJ2+1 -> 9 | FQ2: =+FM2 -> PROCUREMENT | FR2: =FN2+1 -> 10 | GE2: Other | XEQ2: =(((($AN2-$AO2)*$AP2*$AQ2+$AO2*($AP2+ExtraDaysFar)*$AR2)+($AS2*$AP2)+($AT2+$AU2)*$AP2*$AN2+$AV2*$AN2))+($AW2*$AZ2*$AX2+$AW2*$BA2*$AZ2+$AY2+$AN2*$BB2)+$BC2*$AP2+$BH2+$BI2 ->  | XER2: =$CB2*$CC2*$CD2+$CB2*$CC2*$CE2+$CB2*$CF2 -> 0 | XES2: =$BJ2*$BK2*$BL2+$BN2*$BK2*($BO2+$BP2)+$BQ2*$BK2*$BR2+$BS2 -> 
B3: General Objective: To prevent and reduce the likelihood of outbreaks and other public health hazards and events defined by IHR (2005). | AK3: Unique ID | AL3: Category | AM3: Total cost | AN3: Participants | AO3: Away participants | AP3: No of days | AQ3: Per diem | AR3: Per diem away | AS3: Rent of venue | AT3: Lunch | AU3: Tea break | AV3: Stationary | AW3: No of trainers | AX3: Trainer fee | AY3: Extra for trainer | AZ3: No of days for trainer | BA3: Trainer per diem | BB3: Extra pp | BC3: Extra on top | BD3: List 1 | BE3: List 2 | BF3: List 3 | BG3: For later | BH3: For later | BI3: For later | BJ3: No of supervisors | BK3: No of days | BL3: Per diem | BM3: Vehicle category | BN3: No of vehicles | BO3: Cost per day per vehicle | BP3: Fuel cost per day | BQ3: No of drivers | BR3: Driver per diem | BS3: Extra per field visit | BT3: Total costs | BU3: List 1 | BV3: List 2 | BW3: List 3 | BX3: List4 | BY3: For later | BZ3: For later | CA3: International national | CB3: No of consultants | CC3: Number of days consultants | CD3: Per diem consultant | CE3: Consultant rate | CF3: Consultant travel | CG3: Total consult | CH3: List 1 | CI3: List 2 | CJ3: List 3 | CK3: List4 | CL3: For later | CM3: For later | CN3: ="HR" &CN2 -> HR1 | CO3: ="no. of " & CN3 -> no. of HR1 | CP3: ="Salary " & CN3 -> Salary HR1 | CQ3: ="Month " & CO3 & " TRUE/FALSE" -> Month no. of HR1 TRUE/FALSE | CR3: ="Months " & CN3 -> Months HR1 | CS3: ="HR" &CS2 -> HR2 | CT3: ="no. of " & CS3 -> no. of HR2 | CU3: ="Salary " & CS3 -> Salary HR2 | CV3: ="Month " & CT3 & " TRUE/FALSE" -> Month no. of HR2 TRUE/FALSE | CW3: ="Months " & CS3 -> Months HR2 | CX3: ="HR" &CX2 -> HR3 | CY3: ="no. of " & CX3 -> no. of HR3 | CZ3: ="Salary " & CX3 -> Salary HR3 | DA3: ="Month " & CY3 & " TRUE/FALSE" -> Month no. of HR3 TRUE/FALSE | DB3: ="Months " & CX3 -> Months HR3 | DC3: ="HR" &DC2 -> HR4 | DD3: ="no. of " & DC3 -> no. of HR4 | DE3: ="Salary " & DC3 -> Salary HR4 | DF3: ="Month " & DD3 & " TRUE/FALSE" -> Month no. of HR4 TRUE/FALSE | DG3: ="Months " & DC3 -> Months HR4 | DH3: ="HR" &DH2 -> HR5 | DI3: ="no. of " & DH3 -> no. of HR5 | DJ3: ="Salary " & DH3 -> Salary HR5 | DK3: ="Month " & DI3 & " TRUE/FALSE" -> Month no. of HR5 TRUE/FALSE | DL3: ="Months " & DH3 -> Months HR5 | DM3: ="HR" &DM2 -> HR6 | DN3: ="no. of " & DM3 -> no. of HR6 | DO3: ="Salary " & DM3 -> Salary HR6 | DP3: ="Month " & DN3 & " TRUE/FALSE" -> Month no. of HR6 TRUE/FALSE | DQ3: ="Months " & DM3 -> Months HR6 | DR3: ="HR" &DR2 -> HR7 | DS3: ="no. of " & DR3 -> no. of HR7 | DT3: ="Salary " & DR3 -> Salary HR7 | DU3: ="Month " & DS3 & " TRUE/FALSE" -> Month no. of HR7 TRUE/FALSE | DV3: ="Months " & DR3 -> Months HR7 | DW3: HR Extra 1 | DX3: HR Extra 2 | DY3: Total costs HR | DZ3: List 1 | EA3: List 2 | EB3: List 3 | EC3: List 4 | ED3: For later | EE3: For later | EF3: For later | EG3: Descripion1 | EH3: Quantity 1 | EI3: Price 1 | EJ3: Cost proc 1 | EK3: Descripion 2 | EL3: Quantity 2 | EM3: Price 2 | EN3: Cost proc 2 | EO3: ="Description " & EP2 -> Description 3 | EP3: ="Quantity " & EP2 -> Quantity 3 | EQ3: ="Price " & EP2 -> Price 3 | ER3: ="Cost proc " & EP2 -> Cost proc 3 | ES3: ="Description " & ET2 -> Description 4 | ET3: ="Quantity " & ET2 -> Quantity 4 | EU3: ="Price " & ET2 -> Price 4 | EV3: ="Cost proc " & ET2 -> Cost proc 4 | EW3: ="Description " & EX2 -> Description 5 | EX3: ="Quantity " & EX2 -> Quantity 5 | EY3: ="Price " & EX2 -> Price 5 | EZ3: ="Cost proc " & EX2 -> Cost proc 5 | FA3: ="Description " & FB2 -> Description 6 | FB3: ="Quantity " & FB2 -> Quantity 6 | FC3: ="Price " & FB2 -> Price 6 | FD3: ="Cost proc " & FB2 -> Cost proc 6 | FE3: ="Description " & FF2 -> Description 7 | FF3: ="Quantity " & FF2 -> Quantity 7 | FG3: ="Price " & FF2 -> Price 7 | FH3: ="Cost proc " & FF2 -> Cost proc 7 | FI3: ="Description " & FJ2 -> Description 8 | FJ3: ="Quantity " & FJ2 -> Quantity 8 | FK3: ="Price " & FJ2 -> Price 8 | FL3: ="Cost proc " & FJ2 -> Cost proc 8 | FM3: ="Description " & FN2 -> Description 9 | FN3: ="Quantity " & FN2 -> Quantity 9 | FO3: ="Price " & FN2 -> Price 9 | FP3: ="Cost proc " & FN2 -> Cost proc 9 | FQ3: ="Description " & FR2 -> Description 10 | FR3: ="Quantity " & FR2 -> Quantity 10 | FS3: ="Price " & FR2 -> Price 10 | FT3: ="Cost proc " & FR2 -> Cost proc 10 | FU3: Total cost procurement | FV3: List 1 | FW3: List 2 | FX3: List 3 | FY3: List 4 | FZ3: Procurement category | GA3: For later | GB3: For later | GC3: For later | GD3: For later | GE3: Description other | GF3: Cost other | GG3: List 1 | GH3: List 2 | GI3: List 3 | GJ3: List 4
B4: Assessment recommendations: | C4: Please enter the list of recommendations in this single merged cell
B5: TECHNICAL AREA | C5: P8. Immunization | O5: Frequency per year of implementation | T5: Annual Cost Estimates | AB5: Monitoring and Evaluation | AG5: comptage category2 (colonne AA) | AH5: comptage coût(colonne N) | AI5: .
A6: UniqueID | B6: Indicator | C6: Objectives | D6: Summary of Key Activities (Strategic actions) | E6: Detailed activity description (input description for costing) | F6: Detailed cost assumptions (including units, unit costs, quantities, frequency, etc) | G6: Responsible authority for Implementation (budget holder) | H6: Implementation scale (National, regional, district, sub-national?) | I6: Comments1 (Potential challenges, comments on implementation arrangements, other) | J6: Comments2 (Potential challenges, comments on implementation arrangements, other) | K6: Related existing plan/ framework / Programme or on-going activities | L6: Existing budget(y/n) | M6: Existing budget source (government, donor?) | N6: Estimated cost (Local currency) | O6: =IF('Basic Input for Tool'!$C$7="","Year 1",'Basic Input for Tool'!$C$7) -> 2024 | P6: =IF('Basic Input for Tool'!$C$7="","Year 2",O6+1) -> 2025 | Q6: =IF('Basic Input for Tool'!$C$7="","Year 3",P6+1) -> 2026 | R6: =IF('Basic Input for Tool'!$C$7="","Year 4",Q6+1) -> 2027 | S6: =IF('Basic Input for Tool'!$C$7="","Year 5",R6+1) -> 2028 | T6: ="Cost estimate " & O6 -> Cost estimate 2024 | U6: ="Cost estimate " & P6 -> Cost estimate 2025 | V6: Cost estimate 2026 | W6: Cost estimate 2027 | X6: Cost estimate 2028 | Y6: TotalOver5Years | Z6: CostCategory1 | AA6: CostCategory2 | AB6: Output/Process | AC6: Outcome | AD6: Frequency of collection (monthly, six monthly, yearly) | AE6: Source of verification | AG6: =COUNTA($AA7:$AA106) -> 1 | AH6: =COUNTA($N7:$N106) -> 1
F7: procument of IT services @ M87000 | G7: Ministry of Health | H7: National | L7: N | M7: Donor | N7: 87000 | P7: 1 | T7: =IF($N7="Pending",0,$N7*O7) -> 0 | U7: 87000 | V7: 0 | W7: 0 | X7: 0 | Y7: =SUM(T7:X7) -> 87000 | Z7: Services | AA7: Capital | AL7: Procurement | EG7: IT services | EH7: 1 | EI7: 87000 | EJ7: 87000 | EK7: Not used | EL7: 0 | EM7: 0 | EN7: 0 | EO7: Not used | EP7: 0 | EQ7: 0 | ER7: 0 | ES7: Not used | ET7: 0 | EU7: 0 | EV7: 0 | EW7: Not used | EX7: 0 | EY7: 0 | EZ7: 0 | FA7: Not used | FB7: 0 | FC7: 0 | FD7: 0 | FE7: Not used | FF7: 0 | FG7: 0 | FH7: 0 | FI7: Not used | FJ7: 0 | FK7: 0 | FL7: 0 | FM7: Not used | FN7: 0 | FO7: 0 | FP7: 0 | FQ7: Not used | FR7: 0 | FS7: 0 | FT7: 0 | FU7: 87000 | FV7: National | FW7: Capital | FX7: Services | FY7: Ministry of Health | FZ7: Services
T8: 0 | U8: 0 | V8: 0 | W8: 0 | X8: 0 | Y8: 0
T9: 0 | U9: 0 | V9: 0 | W9: 0 | X9: 0 | Y9: 0
T10: 0 | U10: 0 | V10: 0 | W10: 0 | X10: 0 | Y10: 0
T11: 0 | U11: 0 | V11: 0 | W11: 0 | X11: 0 | Y11: 0
T12: 0 | U12: 0 | V12: 0 | W12: 0 | X12: 0 | Y12: 0
T13: 0 | U13: 0 | V13: 0 | W13: 0 | X13: 0 | Y13: 0
T14: 0 | U14: 0 | V14: 0 | W14: 0 | X14: 0 | Y14: 0
T15: 0 | U15: 0 | V15: 0 | W15: 0 | X15: 0 | Y15: 0
T16: 0 | U16: 0 | V16: 0 | W16: 0 | X16: 0 | Y16: 0
T17: =IF($N17="Pending",0,$N17*O17) -> 0 | U17: 0 | V17: 0 | W17: 0 | X17: 0 | Y17: 0
T18: 0 | U18: 0 | V18: 0 | W18: 0 | X18: 0 | Y18: 0
T19: 0 | U19: 0 | V19: 0 | W19: 0 | X19: 0 | Y19: 0
T20: 0 | U20: 0 | V20: 0 | W20: 0 | X20: 0 | Y20: 0
T21: 0 | U21: 0 | V21: 0 | W21: 0 | X21: 0 | Y21: 0
T22: 0 | U22: 0 | V22: 0 | W22: 0 | X22: 0 | Y22: 0
T23: 0 | U23: 0 | V23: 0 | W23: 0 | X23: 0 | Y23: 0
T24: 0 | U24: 0 | V24: 0 | W24: 0 | X24: 0 | Y24: 0
T25: 0 | U25: 0 | V25: 0 | W25: 0 | X25: 0 | Y25: 0
T26: 0 | U26: 0 | V26: 0 | W26: 0 | X26: 0 | Y26: 0
T27: 0 | U27: 0 | V27: 0 | W27: 0 | X27: 0 | Y27: 0
T28: 0 | U28: 0 | V28: 0 | W28: 0 | X28: 0 | Y28: 0
T29: 0 | U29: 0 | V29: 0 | W29: 0 | X29: 0 | Y29: 0
T30: =IF($N30="Pending",0,$N30*O30) -> 0 | U30: =IF($N30="Pending",0,$N30*P30) -> 0 | V30: =IF($N30="Pending",0,$N30*Q30) -> 0 | W30: =IF($N30="Pending",0,$N30*R30) -> 0 | X30: =IF($N30="Pending",0,$N30*S30) -> 0 | Y30: =SUM(T30:X30) -> 0
T31: 0 | U31: 0 | V31: 0 | W31: 0 | X31: 0 | Y31: 0
T32: 0 | U32: 0 | V32: 0 | W32: 0 | X32: 0 | Y32: 0
T33: 0 | U33: 0 | V33: 0 | W33: 0 | X33: 0 | Y33: 0
T34: 0 | U34: 0 | V34: 0 | W34: 0 | X34: 0 | Y34: 0
T35: 0 | U35: 0 | V35: 0 | W35: 0 | X35: 0 | Y35: 0
T36: 0 | U36: 0 | V36: 0 | W36: 0 | X36: 0 | Y36: 0
T37: 0 | U37: 0 | V37: 0 | W37: 0 | X37: 0 | Y37: 0
T38: 0 | U38: 0 | V38: 0 | W38: 0 | X38: 0 | Y38: 0
T39: 0 | U39: 0 | V39: 0 | W39: 0 | X39: 0 | Y39: 0
T40: 0 | U40: 0 | V40: 0 | W40: 0 | X40: 0 | Y40: 0
T41: 0 | U41: 0 | V41: 0 | W41: 0 | X41: 0 | Y41: 0
T42: 0 | U42: 0 | V42: 0 | W42: 0 | X42: 0 | Y42: 0
T43: 0 | U43: 0 | V43: 0 | W43: 0 | X43: 0 | Y43: 0
T44: 0 | U44: 0 | V44: 0 | W44: 0 | X44: 0 | Y44: 0
T45: 0 | U45: 0 | V45: 0 | W45: 0 | X45: 0 | Y45: 0
T46: 0 | U46: 0 | V46: 0 | W46: 0 | X46: 0 | Y46: 0
T47: 0 | U47: 0 | V47: 0 | W47: 0 | X47: 0 | Y47: 0
T48: 0 | U48: 0 | V48: 0 | W48: 0 | X48: 0 | Y48: 0
T49: 0 | U49: 0 | V49: 0 | W49: 0 | X49: 0 | Y49: 0
T50: =IF($N50="Pending",0,$N50*O50) -> 0 | U50: 0 | V50: 0 | W50: 0 | X50: 0 | Y50: 0
T51: 0 | U51: 0 | V51: 0 | W51: 0 | X51: 0 | Y51: 0
T52: 0 | U52: 0 | V52: 0 | W52: 0 | X52: 0 | Y52: 0
T53: 0 | U53: 0 | V53: 0 | W53: 0 | X53: 0 | Y53: 0
T54: 0 | U54: 0 | V54: 0 | W54: 0 | X54: 0 | Y54: 0
T55: 0 | U55: 0 | V55: 0 | W55: 0 | X55: 0 | Y55: 0
T56: 0 | U56: 0 | V56: 0 | W56: 0 | X56: 0 | Y56: 0
T57: =IF($N57="Pending",0,$N57*O57) -> 0 | U57: 0 | V57: 0 | W57: 0 | X57: 0 | Y57: =SUM(T57:X57) -> 0
T58: 0 | U58: 0 | V58: 0 | W58: 0 | X58: 0 | Y58: 0
T59: 0 | U59: 0 | V59: 0 | W59: 0 | X59: 0 | Y59: 0
T60: 0 | U60: 0 | V60: 0 | W60: 0 | X60: 0 | Y60: 0
T61: 0 | U61: 0 | V61: 0 | W61: 0 | X61: 0 | Y61: 0
T62: =IF($N62="Pending",0,$N62*O62) -> 0 | U62: 0 | V62: 0 | W62: 0 | X62: 0 | Y62: =SUM(T62:X62) -> 0
T63: 0 | U63: 0 | V63: 0 | W63: 0 | X63: 0 | Y63: 0
T64: 0 | U64: 0 | V64: 0 | W64: 0 | X64: 0 | Y64: 0
T65: 0 | U65: 0 | V65: 0 | W65: 0 | X65: 0 | Y65: 0
T66: 0 | U66: 0 | V66: 0 | W66: 0 | X66: 0 | Y66: 0
T67: 0 | U67: 0 | V67: 0 | W67: 0 | X67: 0 | Y67: 0
T68: 0 | U68: 0 | V68: 0 | W68: 0 | X68: 0 | Y68: 0
T69: 0 | U69: 0 | V69: 0 | W69: 0 | X69: 0 | Y69: 0
T70: 0 | U70: 0 | V70: 0 | W70: 0 | X70: 0 | Y70: 0
T71: 0 | U71: 0 | V71: 0 | W71: 0 | X71: 0 | Y71: 0
T72: 0 | U72: 0 | V72: 0 | W72: 0 | X72: 0 | Y72: 0
T73: 0 | U73: 0 | V73: 0 | W73: 0 | X73: 0 | Y73: 0
T74: 0 | U74: 0 | V74: 0 | W74: 0 | X74: 0 | Y74: 0
T75: 0 | U75: 0 | V75: 0 | W75: 0 | X75: 0 | Y75: 0
T76: 0 | U76: 0 | V76: 0 | W76: 0 | X76: 0 | Y76: 0
T77: 0 | U77: 0 | V77: 0 | W77: 0 | X77: 0 | Y77: 0
T78: 0 | U78: 0 | V78: 0 | W78: 0 | X78: 0 | Y78: 0
T79: 0 | U79: 0 | V79: 0 | W79: 0 | X79: 0 | Y79: 0
T80: 0 | U80: 0 | V80: 0 | W80: 0 | X80: 0 | Y80: 0
T81: 0 | U81: 0 | V81: 0 | W81: 0 | X81: 0 | Y81: 0
T82: 0 | U82: 0 | V82: 0 | W82: 0 | X82: 0 | Y82: 0
T83: =IF($N83="Pending",0,$N83*O83) -> 0 | U83: =IF($N83="Pending",0,$N83*P83) -> 0 | V83: =IF($N83="Pending",0,$N83*Q83) -> 0 | W83: =IF($N83="Pending",0,$N83*R83) -> 0 | X83: =IF($N83="Pending",0,$N83*S83) -> 0 | Y83: =SUM(T83:X83) -> 0
T84: 0 | U84: 0 | V84: 0 | W84: 0 | X84: 0 | Y84: 0
T85: 0 | U85: 0 | V85: 0 | W85: 0 | X85: 0 | Y85: 0
T86: 0 | U86: 0 | V86: 0 | W86: 0 | X86: 0 | Y86: 0
T87: 0 | U87: 0 | V87: 0 | W87: 0 | X87: 0 | Y87: 0
T88: 0 | U88: 0 | V88: 0 | W88: 0 | X88: 0 | Y88: 0
T89: 0 | U89: 0 | V89: 0 | W89: 0 | X89: 0 | Y89: 0
T90: 0 | U90: 0 | V90: 0 | W90: 0 | X90: 0 | Y90: 0
T91: 0 | U91: 0 | V91: 0 | W91: 0 | X91: 0 | Y91: 0
T92: 0 | U92: 0 | V92: 0 | W92: 0 | X92: 0 | Y92: 0
T93: =IF($N93="Pending",0,$N93*O93) -> 0 | U93: =IF($N93="Pending",0,$N93*P93) -> 0 | V93: =IF($N93="Pending",0,$N93*Q93) -> 0 | W93: =IF($N93="Pending",0,$N93*R93) -> 0 | X93: =IF($N93="Pending",0,$N93*S93) -> 0 | Y93: =SUM(T93:X93) -> 0
T94: 0 | U94: 0 | V94: 0 | W94: 0 | X94: 0 | Y94: 0
T95: 0 | U95: 0 | V95: 0 | W95: 0 | X95: 0 | Y95: 0
T96: 0 | U96: 0 | V96: 0 | W96: 0 | X96: 0 | Y96: 0
T97: 0 | U97: 0 | V97: 0 | W97: 0 | X97: 0 | Y97: 0
T98: 0 | U98: 0 | V98: 0 | W98: 0 | X98: 0 | Y98: 0
T99: 0 | U99: 0 | V99: 0 | W99: 0 | X99: 0 | Y99: 0
T100: 0 | U100: 0 | V100: 0 | W100: 0 | X100: 0 | Y100: 0
T101: =IF($N101="Pending",0,$N101*O101) -> 0 | U101: 0 | V101: 0 | W101: 0 | X101: 0 | Y101: 0
T102: 0 | U102: 0 | V102: 0 | W102: 0 | X102: 0 | Y102: 0
T103: 0 | U103: 0 | V103: 0 | W103: 0 | X103: 0 | Y103: 0
T104: 0 | U104: 0 | V104: 0 | W104: 0 | X104: 0 | Y104: 0
T105: =IF($N105="Pending",0,$N105*O105) -> 0 | U105: =IF($N105="Pending",0,$N105*P105) -> 0 | V105: =IF($N105="Pending",0,$N105*Q105) -> 0 | W105: =IF($N105="Pending",0,$N105*R105) -> 0 | X105: =IF($N105="Pending",0,$N105*S105) -> 0 | Y105: =SUM(T105:X105) -> 0
T106: 0 | U106: 0 | V106: 0 | W106: 0 | X106: 0 | Y106: 0
T108: =SUM(T7:T106) -> 0 | U108: 87000 | V108: 0 | W108: 0 | X108: 0 | Y108: 87000
T110: =T6 -> Cost estimate 2024 | U110: Cost estimate 2025 | V110: Cost estimate 2026 | W110: Cost estimate 2027 | X110: Cost estimate 2028 | Y110: TotalOver5Years
S111: ='Basic Input for Tool'!$D65 -> Meeting | T111: =SUMIF($Z$7:$Z$106,$S111,T$7:T$106) -> 0 | U111: 0 | V111: 0 | W111: 0 | X111: 0 | Y111: 0
S112: ='Basic Input for Tool'!$D66 -> Training | T112: 0 | U112: 0 | V112: 0 | W112: 0 | X112: 0 | Y112: 0
S113: ='Basic Input for Tool'!$D67 -> Workshop | T113: 0 | U113: 0 | V113: 0 | W113: 0 | X113: 0 | Y113: 0
S114: ='Basic Input for Tool'!$D68 -> SOP development | T114: 0 | U114: 0 | V114: 0 | W114: 0 | X114: 0 | Y114: 0
S115: ='Basic Input for Tool'!$D69 -> Communication | T115: 0 | U115: 0 | V115: 0 | W115: 0 | X115: 0 | Y115: 0
S116: ='Basic Input for Tool'!$D70 -> Construction | T116: 0 | U116: 0 | V116: 0 | W116: 0 | X116: 0 | Y116: 0
S117: ='Basic Input for Tool'!$D71 -> Consultancy | T117: 0 | U117: 0 | V117: 0 | W117: 0 | X117: 0 | Y117: 0
S118: ='Basic Input for Tool'!$D72 -> Evaluation | T118: 0 | U118: 0 | V118: 0 | W118: 0 | X118: 0 | Y118: 0
S119: ='Basic Input for Tool'!$D73 -> Field visit | T119: 0 | U119: 0 | V119: 0 | W119: 0 | X119: 0 | Y119: 0
S120: ='Basic Input for Tool'!$D74 -> Human resources | T120: 0 | U120: 0 | V120: 0 | W120: 0 | X120: 0 | Y120: 0
S121: ='Basic Input for Tool'!$D75 -> Infrastructure | T121: =SUMIF($Z$7:$Z$106,$S121,T$7:T$106) -> 0 | U121: 0 | V121: 0 | W121: 0 | X121: 0 | Y121: 0
S122: ='Basic Input for Tool'!$D76 -> Document reproduction/printing | T122: 0 | U122: 0 | V122: 0 | W122: 0 | X122: 0 | Y122: 0
S123: ='Basic Input for Tool'!$D77 -> Procurement | T123: 0 | U123: 0 | V123: 0 | W123: 0 | X123: 0 | Y123: 0
S124: ='Basic Input for Tool'!$D78 -> Services | T124: 0 | U124: 87000 | V124: 0 | W124: 0 | X124: 0 | Y124: 87000
S125: ='Basic Input for Tool'!$D79 -> Simulation exercises | T125: 0 | U125: 0 | V125: 0 | W125: 0 | X125: 0 | Y125: 0
S126: ='Basic Input for Tool'!$D80 -> Advocacy | T126: 0 | U126: 0 | V126: 0 | W126: 0 | X126: 0 | Y126: 0
S127: ='Basic Input for Tool'!$D81 -> Study | T127: 0 | U127: 0 | V127: 0 | W127: 0 | X127: 0 | Y127: 0
S128: ='Basic Input for Tool'!$D82 -> Campaign | T128: 0 | U128: 0 | V128: 0 | W128: 0 | X128: 0 | Y128: 0
S129: ='Basic Input for Tool'!$D83 -> Other | T129: 0 | U129: 0 | V129: 0 | W129: 0 | X129: 0 | Y129: 0
S130: ='Basic Input for Tool'!$D84 -> Other 2 | T130: 0 | U130: 0 | V130: 0 | W130: 0 | X130: 0 | Y130: 0
S131: ='Basic Input for Tool'!$D85 -> Other 3 | T131: 0 | U131: 0 | V131: 0 | W131: 0 | X131: 0 | Y131: 0
S132: ='Basic Input for Tool'!$D86 -> Other 4 | T132: 0 | U132: 0 | V132: 0 | W132: 0 | X132: 0 | Y132: 0
S133: ='Basic Input for Tool'!$D87 -> Other 5 | T133: 0 | U133: 0 | V133: 0 | W133: 0 | X133: 0 | Y133: 0
T136: =T6 -> Cost estimate 2024 | U136: Cost estimate 2025 | V136: Cost estimate 2026 | W136: Cost estimate 2027 | X136: Cost estimate 2028 | Y136: TotalOver5Years | Z136: =SUM(Y137:Y146) -> 87000
S137: ='Basic Input for Tool'!$C$65 -> Capital | T137: =SUMIF($AA$7:$AA$106,$S137,T$7:T$106) -> 0 | U137: 87000 | V137: 0 | W137: 0 | X137: 0 | Y137: 87000
S138: ='Basic Input for Tool'!$C$66 -> Recurrent | T138: 0 | U138: 0 | V138: 0 | W138: 0 | X138: 0 | Y138: 0
S139: ='Basic Input for Tool'!$C$67 -> Other 1 | T139: 0 | U139: 0 | V139: 0 | W139: 0 | X139: 0 | Y139: 0
S140: ='Basic Input for Tool'!$C$68 -> Other 2 | T140: 0 | U140: 0 | V140: 0 | W140: 0 | X140: 0 | Y140: 0
S141: ='Basic Input for Tool'!$C$69 -> 0 | T141: 0 | U141: 0 | V141: 0 | W141: 0 | X141: 0 | Y141: 0
S142: ='Basic Input for Tool'!$C$70 -> 0 | T142: 0 | U142: 0 | V142: 0 | W142: 0 | X142: 0 | Y142: 0
S143: ='Basic Input for Tool'!$C$71 -> 0 | T143: 0 | U143: 0 | V143: 0 | W143: 0 | X143: 0 | Y143: 0
S144: ='Basic Input for Tool'!$C$72 -> 0 | T144: 0 | U144: 0 | V144: 0 | W144: 0 | X144: 0 | Y144: 0
S145: ='Basic Input for Tool'!$C$73 -> 0 | T145: 0 | U145: 0 | V145: 0 | W145: 0 | X145: 0 | Y145: 0
S146: ='Basic Input for Tool'!$C$74 -> 0 | T146: 0 | U146: 0 | V146: 0 | W146: 0 | X146: 0 | Y146: 0
T149: =T6 -> Cost estimate 2024 | U149: Cost estimate 2025 | V149: Cost estimate 2026 | W149: Cost estimate 2027 | X149: Cost estimate 2028 | Y149: TotalOver5Years | Z149: =SUM(Y150:Y153) -> 87000
S150: ='Basic Input for Tool'!$B$65 -> National | T150: =SUMIF($H$7:$H$106,$S150,T$7:T$106) -> 0 | U150: 87000 | V150: 0 | W150: 0 | X150: 0 | Y150: 87000
S151: ='Basic Input for Tool'!$B$66 -> Central | T151: 0 | U151: 0 | V151: 0 | W151: 0 | X151: 0 | Y151: 0
S152: ='Basic Input for Tool'!$B$67 -> SNU1 (province/region/etat) | T152: 0 | U152: 0 | V152: 0 | W152: 0 | X152: 0 | Y152: 0
S153: ='Basic Input for Tool'!$B$68 -> SNU2 (district/county) | T153: 0 | U153: 0 | V153: 0 | W153: 0 | X153: 0 | Y153: 0
T156: =T6 -> Cost estimate 2024 | U156: Cost estimate 2025 | V156: Cost estimate 2026 | W156: Cost estimate 2027 | X156: Cost estimate 2028 | Y156: TotalOver5Years | Z156: =SUM(Y157:Y179) -> 87000
S157: ='Basic Input for Tool'!$E$65 -> Ministry of Health | T157: =SUMIF($G$7:$G$106,$S157,T$7:T$106) -> 0 | U157: 87000 | V157: 0 | W157: 0 | X157: 0 | Y157: 87000
S158: ='Basic Input for Tool'!$E$66 -> Ministry of Finance | T158: 0 | U158: 0 | V158: 0 | W158: 0 | X158: 0 | Y158: 0
S159: ='Basic Input for Tool'!$E$67 -> Ministry of Agriculture | T159: 0 | U159: 0 | V159: 0 | W159: 0 | X159: 0 | Y159: 0
S160: ='Basic Input for Tool'!$E$68 -> Ministry of Environment | T160: 0 | U160: 0 | V160: 0 | W160: 0 | X160: 0 | Y160: 0
S161: ='Basic Input for Tool'!$E$69 -> Other 2 | T161: 0 | U161: 0 | V161: 0 | W161: 0 | X161: 0 | Y161: 0
S162: ='Basic Input for Tool'!$E$70 -> Other 3 | T162: 0 | U162: 0 | V162: 0 | W162: 0 | X162: 0 | Y162: 0
S163: ='Basic Input for Tool'!$E$71 -> Other 4 | T163: 0 | U163: 0 | V163: 0 | W163: 0 | X163: 0 | Y163: 0
S164: ='Basic Input for Tool'!$E$72 -> Other 5 | T164: 0 | U164: 0 | V164: 0 | W164: 0 | X164: 0 | Y164: 0
S165: ='Basic Input for Tool'!$E$73 -> Other 6 | T165: 0 | U165: 0 | V165: 0 | W165: 0 | X165: 0 | Y165: 0
S166: ='Basic Input for Tool'!$E74 -> Other 7 | T166: 0 | U166: 0 | V166: 0 | W166: 0 | X166: 0 | Y166: 0
S167: ='Basic Input for Tool'!$E75 -> Other 8 | T167: =SUMIF($G$7:$G$106,$S167,T$7:T$106) -> 0 | U167: 0 | V167: 0 | W167: 0 | X167: 0 | Y167: 0
S168: ='Basic Input for Tool'!$E76 -> Other 9 | T168: 0 | U168: 0 | V168: 0 | W168: 0 | X168: 0 | Y168: 0
S169: ='Basic Input for Tool'!$E77 -> Other 10 | T169: 0 | U169: 0 | V169: 0 | W169: 0 | X169: 0 | Y169: 0
S170: ='Basic Input for Tool'!$E78 -> Other 11 | T170: 0 | U170: 0 | V170: 0 | W170: 0 | X170: 0 | Y170: 0
S171: ='Basic Input for Tool'!$E79 -> Other 12 | T171: 0 | U171: 0 | V171: 0 | W171: 0 | X171: 0 | Y171: 0
S172: ='Basic Input for Tool'!$E80 -> Other 13 | T172: 0 | U172: 0 | V172: 0 | W172: 0 | X172: 0 | Y172: 0
S173: ='Basic Input for Tool'!$E81 -> Other 14 | T173: 0 | U173: 0 | V173: 0 | W173: 0 | X173: 0 | Y173: 0
S174: ='Basic Input for Tool'!$E82 -> Other 15 | T174: 0 | U174: 0 | V174: 0 | W174: 0 | X174: 0 | Y174: 0
S175: ='Basic Input for Tool'!$E83 -> Other 16 | T175: 0 | U175: 0 | V175: 0 | W175: 0 | X175: 0 | Y175: 0
S176: ='Basic Input for Tool'!$E84 -> Other 17 | T176: 0 | U176: 0 | V176: 0 | W176: 0 | X176: 0 | Y176: 0
S177: ='Basic Input for Tool'!$E85 -> Other 18 | T177: 0 | U177: 0 | V177: 0 | W177: 0 | X177: 0 | Y177: 0
S178: ='Basic Input for Tool'!$E86 -> Other 19 | T178: 0 | U178: 0 | V178: 0 | W178: 0 | X178: 0 | Y178: 0
S179: ='Basic Input for Tool'!$E87 -> Other 20 | T179: 0 | U179: 0 | V179: 0 | W179: 0 | X179: 0 | Y179: 0
T182: =T6 -> Cost estimate 2024 | U182: =U6 -> Cost estimate 2025 | V182: Cost estimate 2026 | W182: Cost estimate 2027 | X182: Cost estimate 2028 | Y182: TotalOver5Years | Z182: =SUM(Y183:Y184) -> 87000
R183: Yes | S183: Funded | T183: =SUM(SUMIFS(T$7:T$106,$L7:$L106,{"yes","y","funded"})) -> 0 | U183: =SUM(SUMIFS(U$7:U$106,$L7:$L106,{"yes","y","funded"})) -> 0 | V183: =SUM(SUMIFS(V$7:V$106,$L7:$L106,{"yes","y","funded"})) -> 0 | W183: =SUM(SUMIFS(W$7:W$106,$L7:$L106,{"yes","y","funded"})) -> 0 | X183: =SUM(SUMIFS(X$7:X$106,$L7:$L106,{"yes","y","funded"})) -> 0 | Y183: =SUM(SUMIFS(Y$7:Y$106,$L7:$L106,{"yes","y","funded"})) -> 0
R184: No | S184: Not funded | T184: =SUM(SUMIFS(T$7:T$106,$L7:$L106,{"no","n","not funded"})) -> 0 | U184: =SUM(SUMIFS(U$7:U$106,$L7:$L106,{"no","n","not funded"})) -> 87000 | V184: =SUM(SUMIFS(V$7:V$106,$L7:$L106,{"no","n","not funded"})) -> 0 | W184: =SUM(SUMIFS(W$7:W$106,$L7:$L106,{"no","n","not funded"})) -> 0 | X184: =SUM(SUMIFS(X$7:X$106,$L7:$L106,{"no","n","not funded"})) -> 0 | Y184: =SUM(SUMIFS(Y$7:Y$106,$L7:$L106,{"no","n","not funded"})) -> 87000

Sheet D1. National laboratory systems
A1: =IF(ISNA(VLOOKUP(CountryName,CountriesCodes,2,FALSE))=TRUE,"",VLOOKUP(CountryName,CountriesCodes,2,FALSE)& "SUR") -> ETH SUR | B1: ="PLANNING AND COSTING MATRIX FOR THE DEVELOPMENT OF NATIONAL ACTION PLAN FOR HEALTH SECURITY " & O6 &" - " & S6 -> PLANNING AND COSTING MATRIX FOR THE DEVELOPMENT OF NATIONAL ACTION PLAN FOR HEALTH SECURITY 2024 - 2028 | AM1: 1 | AN1: 2 | AO1: 3 | AP1: 4 | AQ1: 5 | AR1: 6 | AS1: 7 | AT1: 8 | AU1: 9 | AV1: 10 | AW1: 11 | AX1: 12 | AY1: 13 | AZ1: 14 | BA1: 15 | BB1: 16 | BC1: 17 | BD1: 18 | BE1: 19 | BF1: 20 | BG1: 21 | BH1: 22 | BI1: 23 | BJ1: 24 | BK1: 25 | BL1: 26 | BM1: 27 | BN1: 28 | BO1: 29 | BP1: 30 | BQ1: 31 | BR1: 32 | BS1: 33 | BT1: 34 | BU1: 35 | BV1: 36 | BW1: 37 | BX1: 38 | BY1: 39 | BZ1: 40 | CA1: 41 | CB1: 42 | CC1: 43 | CD1: 44 | CE1: 45 | CF1: 46 | CG1: 47 | CH1: 48 | CI1: 49 | CJ1: 50 | CK1: 51 | CL1: 52 | CM1: 53 | CN1: 54 | CO1: 55 | CP1: 56 | CQ1: 57 | CR1: 58 | CS1: 59 | CT1: 60 | CU1: 61 | CV1: 62 | CW1: 63 | CX1: 64 | CY1: 65 | CZ1: 66 | DA1: 67 | DB1: 68 | DC1: 69 | DD1: 70 | DE1: 71 | DF1: 72 | DG1: 73 | DH1: 74 | DI1: 75 | DJ1: 76 | DK1: 77 | DL1: 78 | DM1: 79 | DN1: 80 | DO1: 81 | DP1: 82 | DQ1: 83 | DR1: 84 | DS1: 85 | DT1: 86 | DU1: 87 | DV1: 88 | DW1: 89 | DX1: 90 | DY1: 91 | DZ1: 92 | EA1: 93 | EB1: 94 | EC1: 95 | ED1: 96 | EE1: 97 | EF1: 98 | EG1: 99 | EH1: 100 | EI1: 101 | EJ1: 102 | EK1: 103 | EL1: 104 | EM1: 105 | EN1: 106 | EO1: 107 | EP1: 108 | EQ1: 109 | ER1: 110 | ES1: 111 | ET1: 112 | EU1: 113 | EV1: 114 | EW1: 115 | EX1: 116 | EY1: 117 | EZ1: 118 | FA1: 119 | FB1: 120 | FC1: 121 | FD1: 122 | FE1: 123 | FF1: 124 | FG1: 125 | FH1: 126 | FI1: 127 | FJ1: 128 | FK1: 129 | FL1: 130 | FM1: 131 | FN1: 132 | FO1: 133 | FP1: 134 | FQ1: 135 | FR1: 136 | FS1: 137 | FT1: 138 | FU1: 139 | FV1: 140 | FW1: 141 | FX1: 142 | FY1: 143 | FZ1: 144 | GA1: 145 | GB1: 146 | GC1: 147 | GD1: 148 | GE1: 149 | GF1: 150 | GG1: 151 | GH1: 152 | GI1: 153 | GJ1: 154 | GK1: 155 | XEQ1: Formula for meeting | XER1: Consultant | XES1: Field Visit
A2: 101 | B2: DETECT | AN2: Meeting DATA | BJ2: FIELD VISITS | CA2: CONSULTANT | CN2: =+CL2+1 -> 1 | CS2: =CN2+1 -> 2 | CX2: =CS2+1 -> 3 | DC2: =CX2+1 -> 4 | DH2: =DC2+1 -> 5 | DM2: =DH2+1 -> 6 | DR2: =DM2+1 -> 7 | EG2: PROCUREMENT | EI2: 1 | EK2: =+EG2 -> PROCUREMENT | EL2: =+EI2+1 -> 2 | EO2: =+EK2 -> PROCUREMENT | EP2: =EL2+1 -> 3 | ES2: =+EO2 -> PROCUREMENT | ET2: =EP2+1 -> 4 | EW2: =+ES2 -> PROCUREMENT | EX2: =ET2+1 -> 5 | FA2: =+EW2 -> PROCUREMENT | FB2: =EX2+1 -> 6 | FE2: =+FA2 -> PROCUREMENT | FF2: =FB2+1 -> 7 | FI2: =+FE2 -> PROCUREMENT | FJ2: =FF2+1 -> 8 | FM2: =+FI2 -> PROCUREMENT | FN2: =FJ2+1 -> 9 | FQ2: =+FM2 -> PROCUREMENT | FR2: =FN2+1 -> 10 | GE2: Other | XEQ2: =(((($AN2-$AO2)*$AP2*$AQ2+$AO2*($AP2+ExtraDaysFar)*$AR2)+($AS2*$AP2)+($AT2+$AU2)*$AP2*$AN2+$AV2*$AN2))+($AW2*$AZ2*$AX2+$AW2*$BA2*$AZ2+$AY2+$AN2*$BB2)+$BC2*$AP2+$BH2+$BI2 ->  | XER2: =$CB2*$CC2*$CD2+$CB2*$CC2*$CE2+$CB2*$CF2 -> 0 | XES2: =$BJ2*$BK2*$BL2+$BN2*$BK2*($BO2+$BP2)+$BQ2*$BK2*$BR2+$BS2 -> 
B3: General Objective: To prevent and reduce the likelihood of outbreaks and other public health hazards and events defined by IHR (2005). | AK3: Unique ID | AL3: Category | AM3: Total cost | AN3: Participants | AO3: Away participants | AP3: No of days | AQ3: Per diem | AR3: Per diem away | AS3: Rent of venue | AT3: Lunch | AU3: Tea break | AV3: Stationary | AW3: No of trainers | AX3: Trainer fee | AY3: Extra for trainer | AZ3: No of days for trainer | BA3: Trainer per diem | BB3: Extra pp | BC3: Extra on top | BD3: List 1 | BE3: List 2 | BF3: List 3 | BG3: For later | BH3: For later | BI3: For later | BJ3: No of supervisors | BK3: No of days | BL3: Per diem | BM3: Vehicle category | BN3: No of vehicles | BO3: Cost per day per vehicle | BP3: Fuel cost per day | BQ3: No of drivers | BR3: Driver per diem | BS3: Extra per field visit | BT3: Total costs | BU3: List 1 | BV3: List 2 | BW3: List 3 | BX3: List4 | BY3: For later | BZ3: For later | CA3: International national | CB3: No of consultants | CC3: Number of days consultants | CD3: Per diem consultant | CE3: Consultant rate | CF3: Consultant travel | CG3: Total consult | CH3: List 1 | CI3: List 2 | CJ3: List 3 | CK3: List4 | CL3: For later | CM3: For later | CN3: ="HR" &CN2 -> HR1 | CO3: ="no. of " & CN3 -> no. of HR1 | CP3: ="Salary " & CN3 -> Salary HR1 | CQ3: ="Month " & CO3 & " TRUE/FALSE" -> Month no. of HR1 TRUE/FALSE | CR3: ="Months " & CN3 -> Months HR1 | CS3: ="HR" &CS2 -> HR2 | CT3: ="no. of " & CS3 -> no. of HR2 | CU3: ="Salary " & CS3 -> Salary HR2 | CV3: ="Month " & CT3 & " TRUE/FALSE" -> Month no. of HR2 TRUE/FALSE | CW3: ="Months " & CS3 -> Months HR2 | CX3: ="HR" &CX2 -> HR3 | CY3: ="no. of " & CX3 -> no. of HR3 | CZ3: ="Salary " & CX3 -> Salary HR3 | DA3: ="Month " & CY3 & " TRUE/FALSE" -> Month no. of HR3 TRUE/FALSE | DB3: ="Months " & CX3 -> Months HR3 | DC3: ="HR" &DC2 -> HR4 | DD3: ="no. of " & DC3 -> no. of HR4 | DE3: ="Salary " & DC3 -> Salary HR4 | DF3: ="Month " & DD3 & " TRUE/FALSE" -> Month no. of HR4 TRUE/FALSE | DG3: ="Months " & DC3 -> Months HR4 | DH3: ="HR" &DH2 -> HR5 | DI3: ="no. of " & DH3 -> no. of HR5 | DJ3: ="Salary " & DH3 -> Salary HR5 | DK3: ="Month " & DI3 & " TRUE/FALSE" -> Month no. of HR5 TRUE/FALSE | DL3: ="Months " & DH3 -> Months HR5 | DM3: ="HR" &DM2 -> HR6 | DN3: ="no. of " & DM3 -> no. of HR6 | DO3: ="Salary " & DM3 -> Salary HR6 | DP3: ="Month " & DN3 & " TRUE/FALSE" -> Month no. of HR6 TRUE/FALSE | DQ3: ="Months " & DM3 -> Months HR6 | DR3: ="HR" &DR2 -> HR7 | DS3: ="no. of " & DR3 -> no. of HR7 | DT3: ="Salary " & DR3 -> Salary HR7 | DU3: ="Month " & DS3 & " TRUE/FALSE" -> Month no. of HR7 TRUE/FALSE | DV3: ="Months " & DR3 -> Months HR7 | DW3: HR Extra 1 | DX3: HR Extra 2 | DY3: Total costs HR | DZ3: List 1 | EA3: List 2 | EB3: List 3 | EC3: List 4 | ED3: For later | EE3: For later | EF3: For later | EG3: Descripion1 | EH3: Quantity 1 | EI3: Price 1 | EJ3: Cost proc 1 | EK3: Descripion 2 | EL3: Quantity 2 | EM3: Price 2 | EN3: Cost proc 2 | EO3: ="Description " & EP2 -> Description 3 | EP3: ="Quantity " & EP2 -> Quantity 3 | EQ3: ="Price " & EP2 -> Price 3 | ER3: ="Cost proc " & EP2 -> Cost proc 3 | ES3: ="Description " & ET2 -> Description 4 | ET3: ="Quantity " & ET2 -> Quantity 4 | EU3: ="Price " & ET2 -> Price 4 | EV3: ="Cost proc " & ET2 -> Cost proc 4 | EW3: ="Description " & EX2 -> Description 5 | EX3: ="Quantity " & EX2 -> Quantity 5 | EY3: ="Price " & EX2 -> Price 5 | EZ3: ="Cost proc " & EX2 -> Cost proc 5 | FA3: ="Description " & FB2 -> Description 6 | FB3: ="Quantity " & FB2 -> Quantity 6 | FC3: ="Price " & FB2 -> Price 6 | FD3: ="Cost proc " & FB2 -> Cost proc 6 | FE3: ="Description " & FF2 -> Description 7 | FF3: ="Quantity " & FF2 -> Quantity 7 | FG3: ="Price " & FF2 -> Price 7 | FH3: ="Cost proc " & FF2 -> Cost proc 7 | FI3: ="Description " & FJ2 -> Description 8 | FJ3: ="Quantity " & FJ2 -> Quantity 8 | FK3: ="Price " & FJ2 -> Price 8 | FL3: ="Cost proc " & FJ2 -> Cost proc 8 | FM3: ="Description " & FN2 -> Description 9 | FN3: ="Quantity " & FN2 -> Quantity 9 | FO3: ="Price " & FN2 -> Price 9 | FP3: ="Cost proc " & FN2 -> Cost proc 9 | FQ3: ="Description " & FR2 -> Description 10 | FR3: ="Quantity " & FR2 -> Quantity 10 | FS3: ="Price " & FR2 -> Price 10 | FT3: ="Cost proc " & FR2 -> Cost proc 10 | FU3: Total cost procurement | FV3: List 1 | FW3: List 2 | FX3: List 3 | FY3: List 4 | FZ3: Procurement category | GA3: For later | GB3: For later | GC3: For later | GD3: For later | GE3: Description other | GF3: Cost other | GG3: List 1 | GH3: List 2 | GI3: List 3 | GJ3: List 4
B4: Assessment recommendations: | C4: Please enter the list of recommendations in this single merged cell
B5: TECHNICAL AREA | C5: D1. National laboratory systems | O5: Frequency per year of implementation | T5: Annual Cost Estimates | AB5: Monitoring and Evaluation | AG5: comptage category2 (colonne AA) | AH5: comptage coût(colonne N) | AI5: .
A6: UniqueID | B6: Indicator | C6: Objectives | D6: Summary of Key Activities (Strategic actions) | E6: Detailed activity description (input description for costing) | F6: Detailed cost assumptions (including units, unit costs, quantities, frequency, etc) | G6: Responsible authority for Implementation (budget holder) | H6: Implementation scale (National, regional, district, sub-national?) | I6: Comments1 (Potential challenges, comments on implementation arrangements, other) | J6: Comments2 (Potential challenges, comments on implementation arrangements, other) | K6: Related existing plan/ framework / Programme or on-going activities | L6: Existing budget(y/n) | M6: Existing budget source (government, donor?) | N6: Estimated cost (Local currency) | O6: =IF('Basic Input for Tool'!$C$7="","Year 1",'Basic Input for Tool'!$C$7) -> 2024 | P6: =IF('Basic Input for Tool'!$C$7="","Year 2",O6+1) -> 2025 | Q6: =IF('Basic Input for Tool'!$C$7="","Year 3",P6+1) -> 2026 | R6: =IF('Basic Input for Tool'!$C$7="","Year 4",Q6+1) -> 2027 | S6: =IF('Basic Input for Tool'!$C$7="","Year 5",R6+1) -> 2028 | T6: ="Cost estimate " & O6 -> Cost estimate 2024 | U6: ="Cost estimate " & P6 -> Cost estimate 2025 | V6: Cost estimate 2026 | W6: Cost estimate 2027 | X6: Cost estimate 2028 | Y6: TotalOver5Years | Z6: CostCategory1 | AA6: CostCategory2 | AB6: Output/Process | AC6: Outcome | AD6: Frequency of collection (monthly, six monthly, yearly) | AE6: Source of verification | AG6: =COUNTA($AA7:$AA106) -> 1 | AH6: =COUNTA($N7:$N106) -> 1
F7: Engage 3 national consultants for 15 days | G7: Ministry of Environment | H7: National | L7: Y | M7: Government | N7: =$CB7*$CC7*$CD7+$CB7*$CC7*$CE7+$CB7*$CF7 -> 228600 | P7: 1 | T7: =IF($N7="Pending",0,$N7*O7) -> 0 | U7: =IF($N7="Pending",0,$N7*P7) -> 228600 | V7: =IF($N7="Pending",0,$N7*Q7) -> 0 | W7: =IF($N7="Pending",0,$N7*R7) -> 0 | X7: =IF($N7="Pending",0,$N7*S7) -> 0 | Y7: =SUM(T7:X7) -> 228600 | Z7: Consultancy | AA7: Capital | AL7: Technical assistance | CA7: National | CB7: 3 | CC7: 15 | CD7: 1480 | CE7: 3500 | CF7: 1500 | CG7: 228600 | CH7: National | CI7: Capital | CJ7: Consultancy | CK7: Ministry of Environment
T8: 0 | U8: 0 | V8: 0 | W8: 0 | X8: 0 | Y8: 0
T9: =IF($N9="Pending",0,$N9*O9) -> 0 | U9: 0 | V9: 0 | W9: 0 | X9: 0 | Y9: =SUM(T9:X9) -> 0
T10: =IF($N10="Pending",0,$N10*O10) -> 0 | U10: =IF($N10="Pending",0,$N10*P10) -> 0 | V10: =IF($N10="Pending",0,$N10*Q10) -> 0 | W10: =IF($N10="Pending",0,$N10*R10) -> 0 | X10: =IF($N10="Pending",0,$N10*S10) -> 0 | Y10: =SUM(T10:X10) -> 0
T11: 0 | U11: 0 | V11: 0 | W11: 0 | X11: 0 | Y11: 0
T12: 0 | U12: 0 | V12: 0 | W12: 0 | X12: 0 | Y12: 0
T13: 0 | U13: 0 | V13: 0 | W13: 0 | X13: 0 | Y13: 0
T14: 0 | U14: 0 | V14: 0 | W14: 0 | X14: 0 | Y14: 0
T15: 0 | U15: 0 | V15: 0 | W15: 0 | X15: 0 | Y15: 0
T16: 0 | U16: 0 | V16: 0 | W16: 0 | X16: 0 | Y16: 0
T17: 0 | U17: 0 | V17: 0 | W17: 0 | X17: 0 | Y17: 0
T18: 0 | U18: 0 | V18: 0 | W18: 0 | X18: 0 | Y18: 0
T19: 0 | U19: 0 | V19: 0 | W19: 0 | X19: 0 | Y19: 0
T20: 0 | U20: 0 | V20: 0 | W20: 0 | X20: 0 | Y20: 0
T21: 0 | U21: 0 | V21: 0 | W21: 0 | X21: 0 | Y21: 0
T22: 0 | U22: 0 | V22: 0 | W22: 0 | X22: 0 | Y22: 0
T23: 0 | U23: 0 | V23: 0 | W23: 0 | X23: 0 | Y23: 0
T24: 0 | U24: 0 | V24: 0 | W24: 0 | X24: 0 | Y24: 0
T25: 0 | U25: 0 | V25: 0 | W25: 0 | X25: 0 | Y25: 0
T26: 0 | U26: 0 | V26: 0 | W26: 0 | X26: 0 | Y26: 0
T27: 0 | U27: 0 | V27: 0 | W27: 0 | X27: 0 | Y27: 0
T28: 0 | U28: 0 | V28: 0 | W28: 0 | X28: 0 | Y28: 0
T29: 0 | U29: 0 | V29: 0 | W29: 0 | X29: 0 | Y29: 0
T30: 0 | U30: 0 | V30: 0 | W30: 0 | X30: 0 | Y30: 0
T31: 0 | U31: 0 | V31: 0 | W31: 0 | X31: 0 | Y31: 0
T32: 0 | U32: 0 | V32: 0 | W32: 0 | X32: 0 | Y32: 0
T33: 0 | U33: 0 | V33: 0 | W33: 0 | X33: 0 | Y33: 0
T34: 0 | U34: 0 | V34: 0 | W34: 0 | X34: 0 | Y34: 0
T35: 0 | U35: 0 | V35: 0 | W35: 0 | X35: 0 | Y35: 0
T36: 0 | U36: 0 | V36: 0 | W36: 0 | X36: 0 | Y36: 0
T37: 0 | U37: 0 | V37: 0 | W37: 0 | X37: 0 | Y37: 0
T38: 0 | U38: 0 | V38: 0 | W38: 0 | X38: 0 | Y38: 0
T39: 0 | U39: 0 | V39: 0 | W39: 0 | X39: 0 | Y39: 0
T40: 0 | U40: 0 | V40: 0 | W40: 0 | X40: 0 | Y40: 0
T41: 0 | U41: 0 | V41: 0 | W41: 0 | X41: 0 | Y41: 0
T42: 0 | U42: 0 | V42: 0 | W42: 0 | X42: 0 | Y42: 0
T43: 0 | U43: 0 | V43: 0 | W43: 0 | X43: 0 | Y43: 0
T44: 0 | U44: 0 | V44: 0 | W44: 0 | X44: 0 | Y44: 0
T45: 0 | U45: 0 | V45: 0 | W45: 0 | X45: 0 | Y45: 0
T46: 0 | U46: 0 | V46: 0 | W46: 0 | X46: 0 | Y46: 0
T47: 0 | U47: 0 | V47: 0 | W47: 0 | X47: 0 | Y47: 0
T48: 0 | U48: 0 | V48: 0 | W48: 0 | X48: 0 | Y48: 0
T49: 0 | U49: 0 | V49: 0 | W49: 0 | X49: 0 | Y49: 0
T50: 0 | U50: 0 | V50: 0 | W50: 0 | X50: 0 | Y50: 0
T51: 0 | U51: 0 | V51: 0 | W51: 0 | X51: 0 | Y51: 0
T52: 0 | U52: 0 | V52: 0 | W52: 0 | X52: 0 | Y52: 0
T53: 0 | U53: 0 | V53: 0 | W53: 0 | X53: 0 | Y53: 0
T54: 0 | U54: 0 | V54: 0 | W54: 0 | X54: 0 | Y54: 0
T55: 0 | U55: 0 | V55: 0 | W55: 0 | X55: 0 | Y55: 0
T56: 0 | U56: 0 | V56: 0 | W56: 0 | X56: 0 | Y56: 0
T57: 0 | U57: 0 | V57: 0 | W57: 0 | X57: 0 | Y57: 0
T58: 0 | U58: 0 | V58: 0 | W58: 0 | X58: 0 | Y58: 0
T59: 0 | U59: 0 | V59: 0 | W59: 0 | X59: 0 | Y59: 0
T60: 0 | U60: 0 | V60: 0 | W60: 0 | X60: 0 | Y60: 0
T61: 0 | U61: 0 | V61: 0 | W61: 0 | X61: 0 | Y61: 0
T62: 0 | U62: 0 | V62: 0 | W62: 0 | X62: 0 | Y62: 0
T63: 0 | U63: 0 | V63: 0 | W63: 0 | X63: 0 | Y63: 0
T64: 0 | U64: 0 | V64: 0 | W64: 0 | X64: 0 | Y64: 0
T65: 0 | U65: 0 | V65: 0 | W65: 0 | X65: 0 | Y65: 0
T66: 0 | U66: 0 | V66: 0 | W66: 0 | X66: 0 | Y66: 0
T67: 0 | U67: 0 | V67: 0 | W67: 0 | X67: 0 | Y67: 0
T68: 0 | U68: 0 | V68: 0 | W68: 0 | X68: 0 | Y68: 0
T69: 0 | U69: 0 | V69: 0 | W69: 0 | X69: 0 | Y69: 0
T70: 0 | U70: 0 | V70: 0 | W70: 0 | X70: 0 | Y70: 0
T71: 0 | U71: 0 | V71: 0 | W71: 0 | X71: 0 | Y71: 0
T72: 0 | U72: 0 | V72: 0 | W72: 0 | X72: 0 | Y72: 0
T73: 0 | U73: 0 | V73: 0 | W73: 0 | X73: 0 | Y73: 0
T74: =IF($N74="Pending",0,$N74*O74) -> 0 | U74: =IF($N74="Pending",0,$N74*P74) -> 0 | V74: =IF($N74="Pending",0,$N74*Q74) -> 0 | W74: =IF($N74="Pending",0,$N74*R74) -> 0 | X74: =IF($N74="Pending",0,$N74*S74) -> 0 | Y74: =SUM(T74:X74) -> 0
T75: 0 | U75: 0 | V75: 0 | W75: 0 | X75: 0 | Y75: 0
T76: 0 | U76: 0 | V76: 0 | W76: 0 | X76: 0 | Y76: 0
T77: 0 | U77: 0 | V77: 0 | W77: 0 | X77: 0 | Y77: 0
T78: 0 | U78: 0 | V78: 0 | W78: 0 | X78: 0 | Y78: 0
T79: 0 | U79: 0 | V79: 0 | W79: 0 | X79: 0 | Y79: 0
T80: 0 | U80: 0 | V80: 0 | W80: 0 | X80: 0 | Y80: 0
T81: 0 | U81: 0 | V81: 0 | W81: 0 | X81: 0 | Y81: 0
T82: 0 | U82: 0 | V82: 0 | W82: 0 | X82: 0 | Y82: 0
T83: 0 | U83: 0 | V83: 0 | W83: 0 | X83: 0 | Y83: 0
T84: 0 | U84: 0 | V84: 0 | W84: 0 | X84: 0 | Y84: 0
T85: 0 | U85: 0 | V85: 0 | W85: 0 | X85: 0 | Y85: 0
T86: 0 | U86: 0 | V86: 0 | W86: 0 | X86: 0 | Y86: 0
T87: 0 | U87: 0 | V87: 0 | W87: 0 | X87: 0 | Y87: 0
T88: 0 | U88: 0 | V88: 0 | W88: 0 | X88: 0 | Y88: 0
T89: 0 | U89: 0 | V89: 0 | W89: 0 | X89: 0 | Y89: 0
T90: 0 | U90: 0 | V90: 0 | W90: 0 | X90: 0 | Y90: 0
T91: 0 | U91: 0 | V91: 0 | W91: 0 | X91: 0 | Y91: 0
T92: 0 | U92: 0 | V92: 0 | W92: 0 | X92: 0 | Y92: 0
T93: 0 | U93: 0 | V93: 0 | W93: 0 | X93: 0 | Y93: 0
T94: 0 | U94: 0 | V94: 0 | W94: 0 | X94: 0 | Y94: 0
T95: 0 | U95: 0 | V95: 0 | W95: 0 | X95: 0 | Y95: 0
T96: 0 | U96: 0 | V96: 0 | W96: 0 | X96: 0 | Y96: 0
T97: 0 | U97: 0 | V97: 0 | W97: 0 | X97: 0 | Y97: 0
T98: 0 | U98: 0 | V98: 0 | W98: 0 | X98: 0 | Y98: 0
T99: 0 | U99: 0 | V99: 0 | W99: 0 | X99: 0 | Y99: 0
T100: 0 | U100: 0 | V100: 0 | W100: 0 | X100: 0 | Y100: 0
T101: 0 | U101: 0 | V101: 0 | W101: 0 | X101: 0 | Y101: 0
T102: 0 | U102: 0 | V102: 0 | W102: 0 | X102: 0 | Y102: 0
T103: =IF($N103="Pending",0,$N103*O103) -> 0 | U103: =IF($N103="Pending",0,$N103*P103) -> 0 | V103: =IF($N103="Pending",0,$N103*Q103) -> 0 | W103: =IF($N103="Pending",0,$N103*R103) -> 0 | X103: =IF($N103="Pending",0,$N103*S103) -> 0 | Y103: =SUM(T103:X103) -> 0
T104: 0 | U104: 0 | V104: 0 | W104: 0 | X104: 0 | Y104: 0
T105: 0 | U105: 0 | V105: 0 | W105: 0 | X105: 0 | Y105: 0
T106: 0 | U106: 0 | V106: 0 | W106: 0 | X106: 0 | Y106: 0
S108: TOTALS | T108: =SUM(T7:T106) -> 0 | U108: 228600 | V108: 0 | W108: 0 | X108: 0 | Y108: 228600
T110: =T6 -> Cost estimate 2024 | U110: Cost estimate 2025 | V110: Cost estimate 2026 | W110: Cost estimate 2027 | X110: Cost estimate 2028 | Y110: TotalOver5Years | Z110: =SUM(Y111:Y133) -> 228600
S111: ='Basic Input for Tool'!$D65 -> Meeting | T111: =SUMIF($Z$7:$Z$106,$S111,T$7:T$106) -> 0 | U111: 0 | V111: 0 | W111: 0 | X111: 0 | Y111: 0
S112: ='Basic Input for Tool'!$D66 -> Training | T112: 0 | U112: 0 | V112: 0 | W112: 0 | X112: 0 | Y112: 0
S113: ='Basic Input for Tool'!$D67 -> Workshop | T113: 0 | U113: 0 | V113: 0 | W113: 0 | X113: 0 | Y113: 0
S114: ='Basic Input for Tool'!$D68 -> SOP development | T114: 0 | U114: 0 | V114: 0 | W114: 0 | X114: 0 | Y114: 0
S115: ='Basic Input for Tool'!$D69 -> Communication | T115: 0 | U115: 0 | V115: 0 | W115: 0 | X115: 0 | Y115: 0
S116: ='Basic Input for Tool'!$D70 -> Construction | T116: 0 | U116: 0 | V116: 0 | W116: 0 | X116: 0 | Y116: 0
S117: ='Basic Input for Tool'!$D71 -> Consultancy | T117: 0 | U117: 228600 | V117: 0 | W117: 0 | X117: 0 | Y117: 228600
S118: ='Basic Input for Tool'!$D72 -> Evaluation | T118: 0 | U118: 0 | V118: 0 | W118: 0 | X118: 0 | Y118: 0
S119: ='Basic Input for Tool'!$D73 -> Field visit | T119: 0 | U119: 0 | V119: 0 | W119: 0 | X119: 0 | Y119: 0
S120: ='Basic Input for Tool'!$D74 -> Human resources | T120: 0 | U120: 0 | V120: 0 | W120: 0 | X120: 0 | Y120: 0
S121: ='Basic Input for Tool'!$D75 -> Infrastructure | T121: =SUMIF($Z$7:$Z$106,$S121,T$7:T$106) -> 0 | U121: 0 | V121: 0 | W121: 0 | X121: 0 | Y121: 0
S122: ='Basic Input for Tool'!$D76 -> Document reproduction/printing | T122: 0 | U122: 0 | V122: 0 | W122: 0 | X122: 0 | Y122: 0
S123: ='Basic Input for Tool'!$D77 -> Procurement | T123: 0 | U123: 0 | V123: 0 | W123: 0 | X123: 0 | Y123: 0
S124: ='Basic Input for Tool'!$D78 -> Services | T124: 0 | U124: 0 | V124: 0 | W124: 0 | X124: 0 | Y124: 0
S125: ='Basic Input for Tool'!$D79 -> Simulation exercises | T125: 0 | U125: 0 | V125: 0 | W125: 0 | X125: 0 | Y125: 0
S126: ='Basic Input for Tool'!$D80 -> Advocacy | T126: 0 | U126: 0 | V126: 0 | W126: 0 | X126: 0 | Y126: 0
S127: ='Basic Input for Tool'!$D81 -> Study | T127: 0 | U127: 0 | V127: 0 | W127: 0 | X127: 0 | Y127: 0
S128: ='Basic Input for Tool'!$D82 -> Campaign | T128: 0 | U128: 0 | V128: 0 | W128: 0 | X128: 0 | Y128: 0
S129: ='Basic Input for Tool'!$D83 -> Other | T129: 0 | U129: 0 | V129: 0 | W129: 0 | X129: 0 | Y129: 0
S130: ='Basic Input for Tool'!$D84 -> Other 2 | T130: 0 | U130: 0 | V130: 0 | W130: 0 | X130: 0 | Y130: 0
S131: ='Basic Input for Tool'!$D85 -> Other 3 | T131: 0 | U131: 0 | V131: 0 | W131: 0 | X131: 0 | Y131: 0
S132: ='Basic Input for Tool'!$D86 -> Other 4 | T132: 0 | U132: 0 | V132: 0 | W132: 0 | X132: 0 | Y132: 0
S133: ='Basic Input for Tool'!$D87 -> Other 5 | T133: 0 | U133: 0 | V133: 0 | W133: 0 | X133: 0 | Y133: 0
T136: =T6 -> Cost estimate 2024 | U136: Cost estimate 2025 | V136: Cost estimate 2026 | W136: Cost estimate 2027 | X136: Cost estimate 2028 | Y136: TotalOver5Years | Z136: =SUM(Y137:Y146) -> 228600
S137: ='Basic Input for Tool'!$C$65 -> Capital | T137: =SUMIF($AA$7:$AA$106,$S137,T$7:T$106) -> 0 | U137: 228600 | V137: 0 | W137: 0 | X137: 0 | Y137: 228600
S138: ='Basic Input for Tool'!$C$66 -> Recurrent | T138: 0 | U138: 0 | V138: 0 | W138: 0 | X138: 0 | Y138: 0
S139: ='Basic Input for Tool'!$C$67 -> Other 1 | T139: 0 | U139: 0 | V139: 0 | W139: 0 | X139: 0 | Y139: 0
S140: ='Basic Input for Tool'!$C$68 -> Other 2 | T140: 0 | U140: 0 | V140: 0 | W140: 0 | X140: 0 | Y140: 0
S141: ='Basic Input for Tool'!$C$69 -> 0 | T141: 0 | U141: 0 | V141: 0 | W141: 0 | X141: 0 | Y141: 0
S142: ='Basic Input for Tool'!$C$70 -> 0 | T142: 0 | U142: 0 | V142: 0 | W142: 0 | X142: 0 | Y142: 0
S143: ='Basic Input for Tool'!$C$71 -> 0 | T143: 0 | U143: 0 | V143: 0 | W143: 0 | X143: 0 | Y143: 0
S144: ='Basic Input for Tool'!$C$72 -> 0 | T144: 0 | U144: 0 | V144: 0 | W144: 0 | X144: 0 | Y144: 0
S145: ='Basic Input for Tool'!$C$73 -> 0 | T145: 0 | U145: 0 | V145: 0 | W145: 0 | X145: 0 | Y145: 0
S146: ='Basic Input for Tool'!$C$74 -> 0 | T146: 0 | U146: 0 | V146: 0 | W146: 0 | X146: 0 | Y146: 0
T149: =T6 -> Cost estimate 2024 | U149: Cost estimate 2025 | V149: Cost estimate 2026 | W149: Cost estimate 2027 | X149: Cost estimate 2028 | Y149: TotalOver5Years | Z149: =SUM(Y150:Y153) -> 228600
S150: ='Basic Input for Tool'!$B$65 -> National | T150: =SUMIF($H$7:$H$106,$S150,T$7:T$106) -> 0 | U150: 228600 | V150: 0 | W150: 0 | X150: 0 | Y150: 228600
S151: ='Basic Input for Tool'!$B$66 -> Central | T151: 0 | U151: 0 | V151: 0 | W151: 0 | X151: 0 | Y151: 0
S152: ='Basic Input for Tool'!$B$67 -> SNU1 (province/region/etat) | T152: 0 | U152: 0 | V152: 0 | W152: 0 | X152: 0 | Y152: 0
S153: ='Basic Input for Tool'!$B$68 -> SNU2 (district/county) | T153: 0 | U153: 0 | V153: 0 | W153: 0 | X153: 0 | Y153: 0
T156: =T6 -> Cost estimate 2024 | U156: Cost estimate 2025 | V156: Cost estimate 2026 | W156: Cost estimate 2027 | X156: Cost estimate 2028 | Y156: TotalOver5Years | Z156: =SUM(Y157:Y179) -> 228600
S157: ='Basic Input for Tool'!$E$65 -> Ministry of Health | T157: =SUMIF($G$7:$G$106,$S157,T$7:T$106) -> 0 | U157: 0 | V157: 0 | W157: 0 | X157: 0 | Y157: 0
S158: ='Basic Input for Tool'!$E$66 -> Ministry of Finance | T158: 0 | U158: 0 | V158: 0 | W158: 0 | X158: 0 | Y158: 0
S159: ='Basic Input for Tool'!$E$67 -> Ministry of Agriculture | T159: 0 | U159: 0 | V159: 0 | W159: 0 | X159: 0 | Y159: 0
S160: ='Basic Input for Tool'!$E$68 -> Ministry of Environment | T160: 0 | U160: 228600 | V160: 0 | W160: 0 | X160: 0 | Y160: 228600
S161: ='Basic Input for Tool'!$E$69 -> Other 2 | T161: 0 | U161: 0 | V161: 0 | W161: 0 | X161: 0 | Y161: 0
S162: ='Basic Input for Tool'!$E$70 -> Other 3 | T162: 0 | U162: 0 | V162: 0 | W162: 0 | X162: 0 | Y162: 0
S163: ='Basic Input for Tool'!$E$71 -> Other 4 | T163: 0 | U163: 0 | V163: 0 | W163: 0 | X163: 0 | Y163: 0
S164: ='Basic Input for Tool'!$E$72 -> Other 5 | T164: 0 | U164: 0 | V164: 0 | W164: 0 | X164: 0 | Y164: 0
S165: ='Basic Input for Tool'!$E$73 -> Other 6 | T165: 0 | U165: 0 | V165: 0 | W165: 0 | X165: 0 | Y165: 0
S166: ='Basic Input for Tool'!$E74 -> Other 7 | T166: 0 | U166: 0 | V166: 0 | W166: 0 | X166: 0 | Y166: 0
S167: ='Basic Input for Tool'!$E75 -> Other 8 | T167: =SUMIF($G$7:$G$106,$S167,T$7:T$106) -> 0 | U167: 0 | V167: 0 | W167: 0 | X167: 0 | Y167: 0
S168: ='Basic Input for Tool'!$E76 -> Other 9 | T168: 0 | U168: 0 | V168: 0 | W168: 0 | X168: 0 | Y168: 0
S169: ='Basic Input for Tool'!$E77 -> Other 10 | T169: 0 | U169: 0 | V169: 0 | W169: 0 | X169: 0 | Y169: 0
S170: ='Basic Input for Tool'!$E78 -> Other 11 | T170: 0 | U170: 0 | V170: 0 | W170: 0 | X170: 0 | Y170: 0
S171: ='Basic Input for Tool'!$E79 -> Other 12 | T171: 0 | U171: 0 | V171: 0 | W171: 0 | X171: 0 | Y171: 0
S172: ='Basic Input for Tool'!$E80 -> Other 13 | T172: 0 | U172: 0 | V172: 0 | W172: 0 | X172: 0 | Y172: 0
S173: ='Basic Input for Tool'!$E81 -> Other 14 | T173: 0 | U173: 0 | V173: 0 | W173: 0 | X173: 0 | Y173: 0
S174: ='Basic Input for Tool'!$E82 -> Other 15 | T174: 0 | U174: 0 | V174: 0 | W174: 0 | X174: 0 | Y174: 0
S175: ='Basic Input for Tool'!$E83 -> Other 16 | T175: 0 | U175: 0 | V175: 0 | W175: 0 | X175: 0 | Y175: 0
S176: ='Basic Input for Tool'!$E84 -> Other 17 | T176: 0 | U176: 0 | V176: 0 | W176: 0 | X176: 0 | Y176: 0
S177: ='Basic Input for Tool'!$E85 -> Other 18 | T177: 0 | U177: 0 | V177: 0 | W177: 0 | X177: 0 | Y177: 0
S178: ='Basic Input for Tool'!$E86 -> Other 19 | T178: 0 | U178: 0 | V178: 0 | W178: 0 | X178: 0 | Y178: 0
S179: ='Basic Input for Tool'!$E87 -> Other 20 | T179: 0 | U179: 0 | V179: 0 | W179: 0 | X179: 0 | Y179: 0
T182: =T6 -> Cost estimate 2024 | U182: =U6 -> Cost estimate 2025 | V182: Cost estimate 2026 | W182: Cost estimate 2027 | X182: Cost estimate 2028 | Y182: TotalOver5Years | Z182: =SUM(Y183:Y184) -> 228600
R183: Yes | S183: Funded | T183: =SUM(SUMIFS(T$7:T$106,$L7:$L106,{"yes","y","funded"})) -> 0 | U183: =SUM(SUMIFS(U$7:U$106,$L7:$L106,{"yes","y","funded"})) -> 228600 | V183: =SUM(SUMIFS(V$7:V$106,$L7:$L106,{"yes","y","funded"})) -> 0 | W183: =SUM(SUMIFS(W$7:W$106,$L7:$L106,{"yes","y","funded"})) -> 0 | X183: =SUM(SUMIFS(X$7:X$106,$L7:$L106,{"yes","y","funded"})) -> 0 | Y183: =SUM(SUMIFS(Y$7:Y$106,$L7:$L106,{"yes","y","funded"})) -> 228600
R184: No | S184: Not funded | T184: =SUM(SUMIFS(T$7:T$106,$L7:$L106,{"no","n","not funded"})) -> 0 | U184: =SUM(SUMIFS(U$7:U$106,$L7:$L106,{"no","n","not funded"})) -> 0 | V184: =SUM(SUMIFS(V$7:V$106,$L7:$L106,{"no","n","not funded"})) -> 0 | W184: =SUM(SUMIFS(W$7:W$106,$L7:$L106,{"no","n","not funded"})) -> 0 | X184: =SUM(SUMIFS(X$7:X$106,$L7:$L106,{"no","n","not funded"})) -> 0 | Y184: =SUM(SUMIFS(Y$7:Y$106,$L7:$L106,{"no","n","not funded"})) -> 0

Sheet D2. Surveillance
A1: =IF(ISNA(VLOOKUP(CountryName,CountriesCodes,2,FALSE))=TRUE,"",VLOOKUP(CountryName,CountriesCodes,2,FALSE)& "NLF") -> ETH NLF | B1: ="PLANNING AND COSTING MATRIX FOR THE DEVELOPMENT OF NATIONAL ACTION PLAN FOR HEALTH SECURITY " & O6 &" - " & S6 -> PLANNING AND COSTING MATRIX FOR THE DEVELOPMENT OF NATIONAL ACTION PLAN FOR HEALTH SECURITY 2024 - 2028 | AM1: 1 | AN1: 2 | AO1: 3 | AP1: 4 | AQ1: 5 | AR1: 6 | AS1: 7 | AT1: 8 | AU1: 9 | AV1: 10 | AW1: 11 | AX1: 12 | AY1: 13 | AZ1: 14 | BA1: 15 | BB1: 16 | BC1: 17 | BD1: 18 | BE1: 19 | BF1: 20 | BG1: 21 | BH1: 22 | BI1: 23 | BJ1: 24 | BK1: 25 | BL1: 26 | BM1: 27 | BN1: 28 | BO1: 29 | BP1: 30 | BQ1: 31 | BR1: 32 | BS1: 33 | BT1: 34 | BU1: 35 | BV1: 36 | BW1: 37 | BX1: 38 | BY1: 39 | BZ1: 40 | CA1: 41 | CB1: 42 | CC1: 43 | CD1: 44 | CE1: 45 | CF1: 46 | CG1: 47 | CH1: 48 | CI1: 49 | CJ1: 50 | CK1: 51 | CL1: 52 | CM1: 53 | CN1: 54 | CO1: 55 | CP1: 56 | CQ1: 57 | CR1: 58 | CS1: 59 | CT1: 60 | CU1: 61 | CV1: 62 | CW1: 63 | CX1: 64 | CY1: 65 | CZ1: 66 | DA1: 67 | DB1: 68 | DC1: 69 | DD1: 70 | DE1: 71 | DF1: 72 | DG1: 73 | DH1: 74 | DI1: 75 | DJ1: 76 | DK1: 77 | DL1: 78 | DM1: 79 | DN1: 80 | DO1: 81 | DP1: 82 | DQ1: 83 | DR1: 84 | DS1: 85 | DT1: 86 | DU1: 87 | DV1: 88 | DW1: 89 | DX1: 90 | DY1: 91 | DZ1: 92 | EA1: 93 | EB1: 94 | EC1: 95 | ED1: 96 | EE1: 97 | EF1: 98 | EG1: 99 | EH1: 100 | EI1: 101 | EJ1: 102 | EK1: 103 | EL1: 104 | EM1: 105 | EN1: 106 | EO1: 107 | EP1: 108 | EQ1: 109 | ER1: 110 | ES1: 111 | ET1: 112 | EU1: 113 | EV1: 114 | EW1: 115 | EX1: 116 | EY1: 117 | EZ1: 118 | FA1: 119 | FB1: 120 | FC1: 121 | FD1: 122 | FE1: 123 | FF1: 124 | FG1: 125 | FH1: 126 | FI1: 127 | FJ1: 128 | FK1: 129 | FL1: 130 | FM1: 131 | FN1: 132 | FO1: 133 | FP1: 134 | FQ1: 135 | FR1: 136 | FS1: 137 | FT1: 138 | FU1: 139 | FV1: 140 | FW1: 141 | FX1: 142 | FY1: 143 | FZ1: 144 | GA1: 145 | GB1: 146 | GC1: 147 | GD1: 148 | GE1: 149 | GF1: 150 | GG1: 151 | GH1: 152 | GI1: 153 | GJ1: 154 | GK1: 155 | XEQ1: Formula for meeting | XER1: Consultant | XES1: Field Visit
A2: 101 | B2: DETECT | AN2: Meeting DATA | BJ2: FIELD VISITS | CA2: CONSULTANT | CN2: =+CL2+1 -> 1 | CS2: =CN2+1 -> 2 | CX2: =CS2+1 -> 3 | DC2: =CX2+1 -> 4 | DH2: =DC2+1 -> 5 | DM2: =DH2+1 -> 6 | DR2: =DM2+1 -> 7 | EG2: PROCUREMENT | EI2: 1 | EK2: =+EG2 -> PROCUREMENT | EL2: =+EI2+1 -> 2 | EO2: =+EK2 -> PROCUREMENT | EP2: =EL2+1 -> 3 | ES2: =+EO2 -> PROCUREMENT | ET2: =EP2+1 -> 4 | EW2: =+ES2 -> PROCUREMENT | EX2: =ET2+1 -> 5 | FA2: =+EW2 -> PROCUREMENT | FB2: =EX2+1 -> 6 | FE2: =+FA2 -> PROCUREMENT | FF2: =FB2+1 -> 7 | FI2: =+FE2 -> PROCUREMENT | FJ2: =FF2+1 -> 8 | FM2: =+FI2 -> PROCUREMENT | FN2: =FJ2+1 -> 9 | FQ2: =+FM2 -> PROCUREMENT | FR2: =FN2+1 -> 10 | GE2: Other | XEQ2: =(((($AN2-$AO2)*$AP2*$AQ2+$AO2*($AP2+ExtraDaysFar)*$AR2)+($AS2*$AP2)+($AT2+$AU2)*$AP2*$AN2+$AV2*$AN2))+($AW2*$AZ2*$AX2+$AW2*$BA2*$AZ2+$AY2+$AN2*$BB2)+$BC2*$AP2+$BH2+$BI2 ->  | XER2: =$CB2*$CC2*$CD2+$CB2*$CC2*$CE2+$CB2*$CF2 -> 0 | XES2: =$BJ2*$BK2*$BL2+$BN2*$BK2*($BO2+$BP2)+$BQ2*$BK2*$BR2+$BS2 -> 
B3: General Objective: To prevent and reduce the likelihood of outbreaks and other public health hazards and events defined by IHR (2005). | AK3: Unique ID | AL3: Category | AM3: Total cost | AN3: Participants | AO3: Away participants | AP3: No of days | AQ3: Per diem | AR3: Per diem away | AS3: Rent of venue | AT3: Lunch | AU3: Tea break | AV3: Stationary | AW3: No of trainers | AX3: Trainer fee | AY3: Extra for trainer | AZ3: No of days for trainer | BA3: Trainer per diem | BB3: Extra pp | BC3: Extra on top | BD3: List 1 | BE3: List 2 | BF3: List 3 | BG3: For later | BH3: For later | BI3: For later | BJ3: No of supervisors | BK3: No of days | BL3: Per diem | BM3: Vehicle category | BN3: No of vehicles | BO3: Cost per day per vehicle | BP3: Fuel cost per day | BQ3: No of drivers | BR3: Driver per diem | BS3: Extra per field visit | BT3: Total costs | BU3: List 1 | BV3: List 2 | BW3: List 3 | BX3: List4 | BY3: For later | BZ3: For later | CA3: International national | CB3: No of consultants | CC3: Number of days consultants | CD3: Per diem consultant | CE3: Consultant rate | CF3: Consultant travel | CG3: Total consult | CH3: List 1 | CI3: List 2 | CJ3: List 3 | CK3: List4 | CL3: For later | CM3: For later | CN3: ="HR" &CN2 -> HR1 | CO3: ="no. of " & CN3 -> no. of HR1 | CP3: ="Salary " & CN3 -> Salary HR1 | CQ3: ="Month " & CO3 & " TRUE/FALSE" -> Month no. of HR1 TRUE/FALSE | CR3: ="Months " & CN3 -> Months HR1 | CS3: ="HR" &CS2 -> HR2 | CT3: ="no. of " & CS3 -> no. of HR2 | CU3: ="Salary " & CS3 -> Salary HR2 | CV3: ="Month " & CT3 & " TRUE/FALSE" -> Month no. of HR2 TRUE/FALSE | CW3: ="Months " & CS3 -> Months HR2 | CX3: ="HR" &CX2 -> HR3 | CY3: ="no. of " & CX3 -> no. of HR3 | CZ3: ="Salary " & CX3 -> Salary HR3 | DA3: ="Month " & CY3 & " TRUE/FALSE" -> Month no. of HR3 TRUE/FALSE | DB3: ="Months " & CX3 -> Months HR3 | DC3: ="HR" &DC2 -> HR4 | DD3: ="no. of " & DC3 -> no. of HR4 | DE3: ="Salary " & DC3 -> Salary HR4 | DF3: ="Month " & DD3 & " TRUE/FALSE" -> Month no. of HR4 TRUE/FALSE | DG3: ="Months " & DC3 -> Months HR4 | DH3: ="HR" &DH2 -> HR5 | DI3: ="no. of " & DH3 -> no. of HR5 | DJ3: ="Salary " & DH3 -> Salary HR5 | DK3: ="Month " & DI3 & " TRUE/FALSE" -> Month no. of HR5 TRUE/FALSE | DL3: ="Months " & DH3 -> Months HR5 | DM3: ="HR" &DM2 -> HR6 | DN3: ="no. of " & DM3 -> no. of HR6 | DO3: ="Salary " & DM3 -> Salary HR6 | DP3: ="Month " & DN3 & " TRUE/FALSE" -> Month no. of HR6 TRUE/FALSE | DQ3: ="Months " & DM3 -> Months HR6 | DR3: ="HR" &DR2 -> HR7 | DS3: ="no. of " & DR3 -> no. of HR7 | DT3: ="Salary " & DR3 -> Salary HR7 | DU3: ="Month " & DS3 & " TRUE/FALSE" -> Month no. of HR7 TRUE/FALSE | DV3: ="Months " & DR3 -> Months HR7 | DW3: HR Extra 1 | DX3: HR Extra 2 | DY3: Total costs HR | DZ3: List 1 | EA3: List 2 | EB3: List 3 | EC3: List 4 | ED3: For later | EE3: For later | EF3: For later | EG3: Descripion1 | EH3: Quantity 1 | EI3: Price 1 | EJ3: Cost proc 1 | EK3: Descripion 2 | EL3: Quantity 2 | EM3: Price 2 | EN3: Cost proc 2 | EO3: ="Description " & EP2 -> Description 3 | EP3: ="Quantity " & EP2 -> Quantity 3 | EQ3: ="Price " & EP2 -> Price 3 | ER3: ="Cost proc " & EP2 -> Cost proc 3 | ES3: ="Description " & ET2 -> Description 4 | ET3: ="Quantity " & ET2 -> Quantity 4 | EU3: ="Price " & ET2 -> Price 4 | EV3: ="Cost proc " & ET2 -> Cost proc 4 | EW3: ="Description " & EX2 -> Description 5 | EX3: ="Quantity " & EX2 -> Quantity 5 | EY3: ="Price " & EX2 -> Price 5 | EZ3: ="Cost proc " & EX2 -> Cost proc 5 | FA3: ="Description " & FB2 -> Description 6 | FB3: ="Quantity " & FB2 -> Quantity 6 | FC3: ="Price " & FB2 -> Price 6 | FD3: ="Cost proc " & FB2 -> Cost proc 6 | FE3: ="Description " & FF2 -> Description 7 | FF3: ="Quantity " & FF2 -> Quantity 7 | FG3: ="Price " & FF2 -> Price 7 | FH3: ="Cost proc " & FF2 -> Cost proc 7 | FI3: ="Description " & FJ2 -> Description 8 | FJ3: ="Quantity " & FJ2 -> Quantity 8 | FK3: ="Price " & FJ2 -> Price 8 | FL3: ="Cost proc " & FJ2 -> Cost proc 8 | FM3: ="Description " & FN2 -> Description 9 | FN3: ="Quantity " & FN2 -> Quantity 9 | FO3: ="Price " & FN2 -> Price 9 | FP3: ="Cost proc " & FN2 -> Cost proc 9 | FQ3: ="Description " & FR2 -> Description 10 | FR3: ="Quantity " & FR2 -> Quantity 10 | FS3: ="Price " & FR2 -> Price 10 | FT3: ="Cost proc " & FR2 -> Cost proc 10 | FU3: Total cost procurement | FV3: List 1 | FW3: List 2 | FX3: List 3 | FY3: List 4 | FZ3: Procurement category | GA3: For later | GB3: For later | GC3: For later | GD3: For later | GE3: Description other | GF3: Cost other | GG3: List 1 | GH3: List 2 | GI3: List 3 | GJ3: List 4
B4: Assessment recommendations: | C4: Please enter the list of recommendations in this single merged cell
B5: TECHNICAL AREA | C5: D2. Surveillance | O5: Frequency per year of implementation | T5: Annual Cost Estimates | AB5: Monitoring and Evaluation | AG5: comptage category2 (colonne AA) | AH5: comptage coût(colonne N) | AI5: .
A6: UniqueID | B6: Indicator | C6: Objectives | D6: Summary of Key Activities (Strategic actions) | E6: Detailed activity description (input description for costing) | F6: Detailed cost assumptions (including units, unit costs, quantities, frequency, etc) | G6: Responsible authority for Implementation (budget holder) | H6: Implementation scale (National, regional, district, sub-national?) | I6: Comments1 (Potential challenges, comments on implementation arrangements, other) | J6: Comments2 (Potential challenges, comments on implementation arrangements, other) | K6: Related existing plan/ framework / Programme or on-going activities | L6: Existing budget(y/n) | M6: Existing budget source (government, donor?) | N6: Estimated cost (Local currency) | O6: =IF('Basic Input for Tool'!$C$7="","Year 1",'Basic Input for Tool'!$C$7) -> 2024 | P6: =IF('Basic Input for Tool'!$C$7="","Year 2",O6+1) -> 2025 | Q6: =IF('Basic Input for Tool'!$C$7="","Year 3",P6+1) -> 2026 | R6: =IF('Basic Input for Tool'!$C$7="","Year 4",Q6+1) -> 2027 | S6: =IF('Basic Input for Tool'!$C$7="","Year 5",R6+1) -> 2028 | T6: ="Cost estimate " & O6 -> Cost estimate 2024 | U6: ="Cost estimate " & P6 -> Cost estimate 2025 | V6: Cost estimate 2026 | W6: Cost estimate 2027 | X6: Cost estimate 2028 | Y6: TotalOver5Years | Z6: CostCategory1 | AA6: CostCategory2 | AB6: Output/Process | AC6: Outcome | AD6: Frequency of collection (monthly, six monthly, yearly) | AE6: Source of verification | AG6: =COUNTA($AA7:$AA106) -> 1 | AH6: =COUNTA($N7:$N106) -> 1
F7: 1 day validation meeting for 100 residents | G7: Ministry of Agriculture | H7: National | L7: Y | M7: Government | N7: =(((($AN7-$AO7)*$AP7*$AQ7+$AO7*($AP7+ExtraDaysFar)*$AR7)+($AS7*$AP7)+($AT7+$AU7)*$AP7*$AN7+$AV7*$AN7))+($AW7*$AZ7*$AX7+$AW7*$BA7*$AZ7+$AY7+$AN7*$BB7)+$BC7*$AP7+$BH7+$BI7 -> 42500 | P7: 1 | T7: =IF($N7="Pending",0,$N7*O7) -> 0 | U7: 42500 | V7: 0 | W7: 0 | X7: 0 | Y7: =SUM(T7:X7) -> 42500 | Z7: Meeting | AA7: Capital | AL7: Meeting | AN7: 100 | AO7: 0 | AP7: 1 | AQ7: 0 | AR7: 1480 | AS7: 3500 | AT7: 250 | AU7: 80 | AV7: 60 | AW7: 0 | AX7: 0 | AY7: 0 | AZ7: 0 | BA7: 0 | BB7: 0 | BC7: 0 | BD7: National | BE7: Capital | BF7: Meeting | BG7: Ministry of Agriculture | BH7: 0 | BI7: 0
T8: =IF($N8="Pending",0,$N8*O8) -> 0 | U8: =IF($N8="Pending",0,$N8*P8) -> 0 | V8: =IF($N8="Pending",0,$N8*Q8) -> 0 | W8: =IF($N8="Pending",0,$N8*R8) -> 0 | X8: =IF($N8="Pending",0,$N8*S8) -> 0 | Y8: =SUM(T8:X8) -> 0
T9: 0 | U9: 0 | V9: 0 | W9: 0 | X9: 0 | Y9: 0
T10: 0 | U10: 0 | V10: 0 | W10: 0 | X10: 0 | Y10: 0
T11: 0 | U11: 0 | V11: 0 | W11: 0 | X11: 0 | Y11: 0
T12: 0 | U12: 0 | V12: 0 | W12: 0 | X12: 0 | Y12: 0
T13: 0 | U13: 0 | V13: 0 | W13: 0 | X13: 0 | Y13: 0
T14: 0 | U14: 0 | V14: 0 | W14: 0 | X14: 0 | Y14: 0
T15: 0 | U15: 0 | V15: 0 | W15: 0 | X15: 0 | Y15: 0
T16: 0 | U16: 0 | V16: 0 | W16: 0 | X16: 0 | Y16: 0
T17: 0 | U17: 0 | V17: 0 | W17: 0 | X17: 0 | Y17: 0
T18: 0 | U18: 0 | V18: 0 | W18: 0 | X18: 0 | Y18: 0
T19: 0 | U19: 0 | V19: 0 | W19: 0 | X19: 0 | Y19: 0
T20: 0 | U20: 0 | V20: 0 | W20: 0 | X20: 0 | Y20: 0
T21: 0 | U21: 0 | V21: 0 | W21: 0 | X21: 0 | Y21: 0
T22: 0 | U22: 0 | V22: 0 | W22: 0 | X22: 0 | Y22: 0
T23: 0 | U23: 0 | V23: 0 | W23: 0 | X23: 0 | Y23: 0
T24: 0 | U24: 0 | V24: 0 | W24: 0 | X24: 0 | Y24: 0
T25: 0 | U25: 0 | V25: 0 | W25: 0 | X25: 0 | Y25: 0
T26: 0 | U26: 0 | V26: 0 | W26: 0 | X26: 0 | Y26: 0
T27: 0 | U27: 0 | V27: 0 | W27: 0 | X27: 0 | Y27: 0
T28: 0 | U28: 0 | V28: 0 | W28: 0 | X28: 0 | Y28: 0
T29: 0 | U29: 0 | V29: 0 | W29: 0 | X29: 0 | Y29: 0
T30: 0 | U30: 0 | V30: 0 | W30: 0 | X30: 0 | Y30: 0
T31: 0 | U31: 0 | V31: 0 | W31: 0 | X31: 0 | Y31: 0
T32: 0 | U32: 0 | V32: 0 | W32: 0 | X32: 0 | Y32: 0
T33: 0 | U33: 0 | V33: 0 | W33: 0 | X33: 0 | Y33: 0
T34: 0 | U34: 0 | V34: 0 | W34: 0 | X34: 0 | Y34: 0
T35: 0 | U35: 0 | V35: 0 | W35: 0 | X35: 0 | Y35: 0
T36: 0 | U36: 0 | V36: 0 | W36: 0 | X36: 0 | Y36: 0
T37: 0 | U37: 0 | V37: 0 | W37: 0 | X37: 0 | Y37: 0
T38: 0 | U38: 0 | V38: 0 | W38: 0 | X38: 0 | Y38: 0
T39: 0 | U39: 0 | V39: 0 | W39: 0 | X39: 0 | Y39: 0
T40: 0 | U40: 0 | V40: 0 | W40: 0 | X40: 0 | Y40: 0
T41: 0 | U41: 0 | V41: 0 | W41: 0 | X41: 0 | Y41: 0
T42: 0 | U42: 0 | V42: 0 | W42: 0 | X42: 0 | Y42: 0
T43: 0 | U43: 0 | V43: 0 | W43: 0 | X43: 0 | Y43: 0
T44: 0 | U44: 0 | V44: 0 | W44: 0 | X44: 0 | Y44: 0
T45: 0 | U45: 0 | V45: 0 | W45: 0 | X45: 0 | Y45: 0
T46: 0 | U46: 0 | V46: 0 | W46: 0 | X46: 0 | Y46: 0
T47: 0 | U47: 0 | V47: 0 | W47: 0 | X47: 0 | Y47: 0
T48: 0 | U48: 0 | V48: 0 | W48: 0 | X48: 0 | Y48: 0
T49: 0 | U49: 0 | V49: 0 | W49: 0 | X49: 0 | Y49: 0
T50: 0 | U50: 0 | V50: 0 | W50: 0 | X50: 0 | Y50: 0
T51: 0 | U51: 0 | V51: 0 | W51: 0 | X51: 0 | Y51: 0
T52: 0 | U52: 0 | V52: 0 | W52: 0 | X52: 0 | Y52: 0
T53: 0 | U53: 0 | V53: 0 | W53: 0 | X53: 0 | Y53: 0
T54: 0 | U54: 0 | V54: 0 | W54: 0 | X54: 0 | Y54: 0
T55: 0 | U55: 0 | V55: 0 | W55: 0 | X55: 0 | Y55: 0
T56: 0 | U56: 0 | V56: 0 | W56: 0 | X56: 0 | Y56: 0
T57: 0 | U57: 0 | V57: 0 | W57: 0 | X57: 0 | Y57: 0
T58: 0 | U58: 0 | V58: 0 | W58: 0 | X58: 0 | Y58: 0
T59: 0 | U59: 0 | V59: 0 | W59: 0 | X59: 0 | Y59: 0
T60: 0 | U60: 0 | V60: 0 | W60: 0 | X60: 0 | Y60: 0
T61: 0 | U61: 0 | V61: 0 | W61: 0 | X61: 0 | Y61: 0
T62: 0 | U62: 0 | V62: 0 | W62: 0 | X62: 0 | Y62: 0
T63: 0 | U63: 0 | V63: 0 | W63: 0 | X63: 0 | Y63: 0
T64: 0 | U64: 0 | V64: 0 | W64: 0 | X64: 0 | Y64: 0
T65: 0 | U65: 0 | V65: 0 | W65: 0 | X65: 0 | Y65: 0
T66: 0 | U66: 0 | V66: 0 | W66: 0 | X66: 0 | Y66: 0
T67: 0 | U67: 0 | V67: 0 | W67: 0 | X67: 0 | Y67: 0
T68: 0 | U68: 0 | V68: 0 | W68: 0 | X68: 0 | Y68: 0
T69: 0 | U69: 0 | V69: 0 | W69: 0 | X69: 0 | Y69: 0
T70: 0 | U70: 0 | V70: 0 | W70: 0 | X70: 0 | Y70: 0
T71: 0 | U71: 0 | V71: 0 | W71: 0 | X71: 0 | Y71: 0
T72: =IF($N72="Pending",0,$N72*O72) -> 0 | U72: =IF($N72="Pending",0,$N72*P72) -> 0 | V72: =IF($N72="Pending",0,$N72*Q72) -> 0 | W72: =IF($N72="Pending",0,$N72*R72) -> 0 | X72: =IF($N72="Pending",0,$N72*S72) -> 0 | Y72: =SUM(T72:X72) -> 0
T73: 0 | U73: 0 | V73: 0 | W73: 0 | X73: 0 | Y73: 0
T74: 0 | U74: 0 | V74: 0 | W74: 0 | X74: 0 | Y74: 0
T75: 0 | U75: 0 | V75: 0 | W75: 0 | X75: 0 | Y75: 0
T76: 0 | U76: 0 | V76: 0 | W76: 0 | X76: 0 | Y76: 0
T77: 0 | U77: 0 | V77: 0 | W77: 0 | X77: 0 | Y77: 0
T78: 0 | U78: 0 | V78: 0 | W78: 0 | X78: 0 | Y78: 0
T79: 0 | U79: 0 | V79: 0 | W79: 0 | X79: 0 | Y79: 0
T80: 0 | U80: 0 | V80: 0 | W80: 0 | X80: 0 | Y80: 0
T81: 0 | U81: 0 | V81: 0 | W81: 0 | X81: 0 | Y81: 0
T82: 0 | U82: 0 | V82: 0 | W82: 0 | X82: 0 | Y82: 0
T83: 0 | U83: 0 | V83: 0 | W83: 0 | X83: 0 | Y83: 0
T84: 0 | U84: 0 | V84: 0 | W84: 0 | X84: 0 | Y84: 0
T85: 0 | U85: 0 | V85: 0 | W85: 0 | X85: 0 | Y85: 0
T86: 0 | U86: 0 | V86: 0 | W86: 0 | X86: 0 | Y86: 0
T87: 0 | U87: 0 | V87: 0 | W87: 0 | X87: 0 | Y87: 0
T88: 0 | U88: 0 | V88: 0 | W88: 0 | X88: 0 | Y88: 0
T89: 0 | U89: 0 | V89: 0 | W89: 0 | X89: 0 | Y89: 0
T90: 0 | U90: 0 | V90: 0 | W90: 0 | X90: 0 | Y90: 0
T91: 0 | U91: 0 | V91: 0 | W91: 0 | X91: 0 | Y91: 0
T92: 0 | U92: 0 | V92: 0 | W92: 0 | X92: 0 | Y92: 0
T93: 0 | U93: 0 | V93: 0 | W93: 0 | X93: 0 | Y93: 0
T94: 0 | U94: 0 | V94: 0 | W94: 0 | X94: 0 | Y94: 0
T95: 0 | U95: 0 | V95: 0 | W95: 0 | X95: 0 | Y95: 0
T96: 0 | U96: 0 | V96: 0 | W96: 0 | X96: 0 | Y96: 0
T97: 0 | U97: 0 | V97: 0 | W97: 0 | X97: 0 | Y97: 0
T98: 0 | U98: 0 | V98: 0 | W98: 0 | X98: 0 | Y98: 0
T99: 0 | U99: 0 | V99: 0 | W99: 0 | X99: 0 | Y99: 0
T100: 0 | U100: 0 | V100: 0 | W100: 0 | X100: 0 | Y100: 0
T101: 0 | U101: 0 | V101: 0 | W101: 0 | X101: 0 | Y101: 0
T102: =IF($N102="Pending",0,$N102*O102) -> 0 | U102: 0 | V102: 0 | W102: 0 | X102: 0 | Y102: =SUM(T102:X102) -> 0
T103: 0 | U103: 0 | V103: 0 | W103: 0 | X103: 0 | Y103: 0
T104: 0 | U104: 0 | V104: 0 | W104: 0 | X104: 0 | Y104: 0
T105: 0 | U105: 0 | V105: 0 | W105: 0 | X105: 0 | Y105: 0
T106: 0 | U106: 0 | V106: 0 | W106: 0 | X106: 0 | Y106: 0
S108: TOTALS | T108: =SUM(T7:T106) -> 0 | U108: 42500 | V108: 0 | W108: 0 | X108: 0 | Y108: 42500
T110: =T6 -> Cost estimate 2024 | U110: Cost estimate 2025 | V110: Cost estimate 2026 | W110: Cost estimate 2027 | X110: Cost estimate 2028 | Y110: TotalOver5Years | Z110: =SUM(Y111:Y133) -> 42500
S111: ='Basic Input for Tool'!$D65 -> Meeting | T111: =SUMIF($Z$7:$Z$106,$S111,T$7:T$106) -> 0 | U111: =SUMIF($Z$7:$Z$106,$S111,U$7:U$106) -> 42500 | V111: 0 | W111: 0 | X111: 0 | Y111: 42500
S112: ='Basic Input for Tool'!$D66 -> Training | T112: =SUMIF($Z$7:$Z$106,$S112,T$7:T$106) -> 0 | U112: 0 | V112: 0 | W112: 0 | X112: 0 | Y112: 0
S113: ='Basic Input for Tool'!$D67 -> Workshop | T113: 0 | U113: 0 | V113: 0 | W113: 0 | X113: 0 | Y113: 0
S114: ='Basic Input for Tool'!$D68 -> SOP development | T114: 0 | U114: 0 | V114: 0 | W114: 0 | X114: 0 | Y114: 0
S115: ='Basic Input for Tool'!$D69 -> Communication | T115: 0 | U115: 0 | V115: 0 | W115: 0 | X115: 0 | Y115: 0
S116: ='Basic Input for Tool'!$D70 -> Construction | T116: 0 | U116: 0 | V116: 0 | W116: 0 | X116: 0 | Y116: 0
S117: ='Basic Input for Tool'!$D71 -> Consultancy | T117: 0 | U117: 0 | V117: 0 | W117: 0 | X117: 0 | Y117: 0
S118: ='Basic Input for Tool'!$D72 -> Evaluation | T118: 0 | U118: 0 | V118: 0 | W118: 0 | X118: 0 | Y118: 0
S119: ='Basic Input for Tool'!$D73 -> Field visit | T119: 0 | U119: 0 | V119: 0 | W119: 0 | X119: 0 | Y119: 0
S120: ='Basic Input for Tool'!$D74 -> Human resources | T120: 0 | U120: 0 | V120: 0 | W120: 0 | X120: 0 | Y120: 0
S121: ='Basic Input for Tool'!$D75 -> Infrastructure | T121: 0 | U121: 0 | V121: 0 | W121: 0 | X121: 0 | Y121: 0
S122: ='Basic Input for Tool'!$D76 -> Document reproduction/printing | T122: 0 | U122: 0 | V122: 0 | W122: 0 | X122: 0 | Y122: 0
S123: ='Basic Input for Tool'!$D77 -> Procurement | T123: 0 | U123: 0 | V123: 0 | W123: 0 | X123: 0 | Y123: 0
S124: ='Basic Input for Tool'!$D78 -> Services | T124: 0 | U124: 0 | V124: 0 | W124: 0 | X124: 0 | Y124: 0
S125: ='Basic Input for Tool'!$D79 -> Simulation exercises | T125: 0 | U125: 0 | V125: 0 | W125: 0 | X125: 0 | Y125: 0
S126: ='Basic Input for Tool'!$D80 -> Advocacy | T126: 0 | U126: 0 | V126: 0 | W126: 0 | X126: 0 | Y126: 0
S127: ='Basic Input for Tool'!$D81 -> Study | T127: 0 | U127: 0 | V127: 0 | W127: 0 | X127: 0 | Y127: 0
S128: ='Basic Input for Tool'!$D82 -> Campaign | T128: 0 | U128: 0 | V128: 0 | W128: 0 | X128: 0 | Y128: 0
S129: ='Basic Input for Tool'!$D83 -> Other | T129: 0 | U129: 0 | V129: 0 | W129: 0 | X129: 0 | Y129: 0
S130: ='Basic Input for Tool'!$D84 -> Other 2 | T130: 0 | U130: 0 | V130: 0 | W130: 0 | X130: 0 | Y130: 0
S131: ='Basic Input for Tool'!$D85 -> Other 3 | T131: 0 | U131: 0 | V131: 0 | W131: 0 | X131: 0 | Y131: 0
S132: ='Basic Input for Tool'!$D86 -> Other 4 | T132: 0 | U132: 0 | V132: 0 | W132: 0 | X132: 0 | Y132: 0
S133: ='Basic Input for Tool'!$D87 -> Other 5 | T133: 0 | U133: 0 | V133: 0 | W133: 0 | X133: 0 | Y133: 0
T136: =T6 -> Cost estimate 2024 | U136: Cost estimate 2025 | V136: Cost estimate 2026 | W136: Cost estimate 2027 | X136: Cost estimate 2028 | Y136: TotalOver5Years | Z136: =SUM(Y137:Y146) -> 42500
S137: ='Basic Input for Tool'!$C$65 -> Capital | T137: =SUMIF($AA$7:$AA$106,$S137,T$7:T$106) -> 0 | U137: =SUMIF($AA$7:$AA$106,$S137,U$7:U$106) -> 42500 | V137: 0 | W137: 0 | X137: 0 | Y137: 42500
S138: ='Basic Input for Tool'!$C$66 -> Recurrent | T138: =SUMIF($AA$7:$AA$106,$S138,T$7:T$106) -> 0 | U138: 0 | V138: 0 | W138: 0 | X138: 0 | Y138: 0
S139: ='Basic Input for Tool'!$C$67 -> Other 1 | T139: 0 | U139: 0 | V139: 0 | W139: 0 | X139: 0 | Y139: 0
S140: ='Basic Input for Tool'!$C$68 -> Other 2 | T140: 0 | U140: 0 | V140: 0 | W140: 0 | X140: 0 | Y140: 0
S141: ='Basic Input for Tool'!$C$69 -> 0 | T141: 0 | U141: 0 | V141: 0 | W141: 0 | X141: 0 | Y141: 0
S142: ='Basic Input for Tool'!$C$70 -> 0 | T142: 0 | U142: 0 | V142: 0 | W142: 0 | X142: 0 | Y142: 0
S143: ='Basic Input for Tool'!$C$71 -> 0 | T143: 0 | U143: 0 | V143: 0 | W143: 0 | X143: 0 | Y143: 0
S144: ='Basic Input for Tool'!$C$72 -> 0 | T144: 0 | U144: 0 | V144: 0 | W144: 0 | X144: 0 | Y144: 0
S145: ='Basic Input for Tool'!$C$73 -> 0 | T145: 0 | U145: 0 | V145: 0 | W145: 0 | X145: 0 | Y145: 0
S146: ='Basic Input for Tool'!$C$74 -> 0 | T146: 0 | U146: 0 | V146: 0 | W146: 0 | X146: 0 | Y146: 0
T149: =T6 -> Cost estimate 2024 | U149: Cost estimate 2025 | V149: Cost estimate 2026 | W149: Cost estimate 2027 | X149: Cost estimate 2028 | Y149: TotalOver5Years | Z149: =SUM(Y150:Y153) -> 42500
S150: ='Basic Input for Tool'!$B$65 -> National | T150: =SUMIF($H$7:$H$106,$S150,T$7:T$106) -> 0 | U150: =SUMIF($H$7:$H$106,$S150,U$7:U$106) -> 42500 | V150: 0 | W150: 0 | X150: 0 | Y150: 42500
S151: ='Basic Input for Tool'!$B$66 -> Central | T151: =SUMIF($H$7:$H$106,$S151,T$7:T$106) -> 0 | U151: 0 | V151: 0 | W151: 0 | X151: 0 | Y151: 0
S152: ='Basic Input for Tool'!$B$67 -> SNU1 (province/region/etat) | T152: =SUMIF($H$7:$H$106,$S152,T$7:T$106) -> 0 | U152: 0 | V152: 0 | W152: 0 | X152: 0 | Y152: 0
S153: ='Basic Input for Tool'!$B$68 -> SNU2 (district/county) | T153: =SUMIF($H$7:$H$106,$S153,T$7:T$106) -> 0 | U153: 0 | V153: 0 | W153: 0 | X153: 0 | Y153: 0
T156: =T6 -> Cost estimate 2024 | U156: Cost estimate 2025 | V156: Cost estimate 2026 | W156: Cost estimate 2027 | X156: Cost estimate 2028 | Y156: TotalOver5Years | Z156: =SUM(Y157:Y179) -> 42500
S157: ='Basic Input for Tool'!$E$65 -> Ministry of Health | T157: =SUMIF($G$7:$G$106,$S157,T$7:T$106) -> 0 | U157: =SUMIF($G$7:$G$106,$S157,U$7:U$106) -> 0 | V157: 0 | W157: 0 | X157: 0 | Y157: 0
S158: ='Basic Input for Tool'!$E$66 -> Ministry of Finance | T158: 0 | U158: 0 | V158: 0 | W158: 0 | X158: 0 | Y158: 0
S159: ='Basic Input for Tool'!$E$67 -> Ministry of Agriculture | T159: 0 | U159: 42500 | V159: 0 | W159: 0 | X159: 0 | Y159: 42500
S160: ='Basic Input for Tool'!$E$68 -> Ministry of Environment | T160: 0 | U160: 0 | V160: 0 | W160: 0 | X160: 0 | Y160: 0
S161: ='Basic Input for Tool'!$E$69 -> Other 2 | T161: 0 | U161: 0 | V161: 0 | W161: 0 | X161: 0 | Y161: 0
S162: ='Basic Input for Tool'!$E$70 -> Other 3 | T162: 0 | U162: 0 | V162: 0 | W162: 0 | X162: 0 | Y162: 0
S163: ='Basic Input for Tool'!$E$71 -> Other 4 | T163: 0 | U163: 0 | V163: 0 | W163: 0 | X163: 0 | Y163: 0
S164: ='Basic Input for Tool'!$E$72 -> Other 5 | T164: 0 | U164: 0 | V164: 0 | W164: 0 | X164: 0 | Y164: 0
S165: ='Basic Input for Tool'!$E$73 -> Other 6 | T165: 0 | U165: 0 | V165: 0 | W165: 0 | X165: 0 | Y165: 0
S166: ='Basic Input for Tool'!$E74 -> Other 7 | T166: 0 | U166: 0 | V166: 0 | W166: 0 | X166: 0 | Y166: 0
S167: ='Basic Input for Tool'!$E75 -> Other 8 | T167: 0 | U167: 0 | V167: 0 | W167: 0 | X167: 0 | Y167: 0
S168: ='Basic Input for Tool'!$E76 -> Other 9 | T168: 0 | U168: 0 | V168: 0 | W168: 0 | X168: 0 | Y168: 0
S169: ='Basic Input for Tool'!$E77 -> Other 10 | T169: 0 | U169: 0 | V169: 0 | W169: 0 | X169: 0 | Y169: 0
S170: ='Basic Input for Tool'!$E78 -> Other 11 | T170: 0 | U170: 0 | V170: 0 | W170: 0 | X170: 0 | Y170: 0
S171: ='Basic Input for Tool'!$E79 -> Other 12 | T171: 0 | U171: 0 | V171: 0 | W171: 0 | X171: 0 | Y171: 0
S172: ='Basic Input for Tool'!$E80 -> Other 13 | T172: 0 | U172: 0 | V172: 0 | W172: 0 | X172: 0 | Y172: 0
S173: ='Basic Input for Tool'!$E81 -> Other 14 | T173: 0 | U173: =SUMIF($G$7:$G$106,$S173,U$7:U$106) -> 0 | V173: =SUMIF($G$7:$G$106,$S173,V$7:V$106) -> 0 | W173: =SUMIF($G$7:$G$106,$S173,W$7:W$106) -> 0 | X173: =SUMIF($G$7:$G$106,$S173,X$7:X$106) -> 0 | Y173: =SUMIF($G$7:$G$106,$S173,Y$7:Y$106) -> 0
S174: ='Basic Input for Tool'!$E82 -> Other 15 | T174: =SUMIF($G$7:$G$106,$S174,T$7:T$106) -> 0 | U174: 0 | V174: 0 | W174: 0 | X174: 0 | Y174: 0
S175: ='Basic Input for Tool'!$E83 -> Other 16 | T175: 0 | U175: 0 | V175: 0 | W175: 0 | X175: 0 | Y175: 0
S176: ='Basic Input for Tool'!$E84 -> Other 17 | T176: 0 | U176: 0 | V176: 0 | W176: 0 | X176: 0 | Y176: 0
S177: ='Basic Input for Tool'!$E85 -> Other 18 | T177: 0 | U177: 0 | V177: 0 | W177: 0 | X177: 0 | Y177: 0
S178: ='Basic Input for Tool'!$E86 -> Other 19 | T178: 0 | U178: 0 | V178: 0 | W178: 0 | X178: 0 | Y178: 0
S179: ='Basic Input for Tool'!$E87 -> Other 20 | T179: 0 | U179: 0 | V179: 0 | W179: 0 | X179: 0 | Y179: 0
T182: =T6 -> Cost estimate 2024 | U182: =U6 -> Cost estimate 2025 | V182: Cost estimate 2026 | W182: Cost estimate 2027 | X182: Cost estimate 2028 | Y182: TotalOver5Years | Z182: =SUM(Y183:Y184) -> 42500
R183: Yes | S183: Funded | T183: =SUM(SUMIFS(T$7:T$106,$L7:$L106,{"yes","y","funded"})) -> 0 | U183: =SUM(SUMIFS(U$7:U$106,$L7:$L106,{"yes","y","funded"})) -> 42500 | V183: =SUM(SUMIFS(V$7:V$106,$L7:$L106,{"yes","y","funded"})) -> 0 | W183: =SUM(SUMIFS(W$7:W$106,$L7:$L106,{"yes","y","funded"})) -> 0 | X183: =SUM(SUMIFS(X$7:X$106,$L7:$L106,{"yes","y","funded"})) -> 0 | Y183: =SUM(SUMIFS(Y$7:Y$106,$L7:$L106,{"yes","y","funded"})) -> 42500
R184: No | S184: Not funded | T184: =SUM(SUMIFS(T$7:T$106,$L7:$L106,{"no","n","not funded"})) -> 0 | U184: =SUM(SUMIFS(U$7:U$106,$L7:$L106,{"no","n","not funded"})) -> 0 | V184: =SUM(SUMIFS(V$7:V$106,$L7:$L106,{"no","n","not funded"})) -> 0 | W184: =SUM(SUMIFS(W$7:W$106,$L7:$L106,{"no","n","not funded"})) -> 0 | X184: =SUM(SUMIFS(X$7:X$106,$L7:$L106,{"no","n","not funded"})) -> 0 | Y184: =SUM(SUMIFS(Y$7:Y$106,$L7:$L106,{"no","n","not funded"})) -> 0

Sheet D3. Human resources
A1: =IF(ISNA(VLOOKUP(CountryName,CountriesCodes,2,FALSE))=TRUE,"",VLOOKUP(CountryName,CountriesCodes,2,FALSE)& "NLF") -> ETH NLF | B1: ="PLANNING AND COSTING MATRIX FOR THE DEVELOPMENT OF NATIONAL ACTION PLAN FOR HEALTH SECURITY " & O6 &" - " & S6 -> PLANNING AND COSTING MATRIX FOR THE DEVELOPMENT OF NATIONAL ACTION PLAN FOR HEALTH SECURITY 2024 - 2028 | AM1: 1 | AN1: 2 | AO1: 3 | AP1: 4 | AQ1: 5 | AR1: 6 | AS1: 7 | AT1: 8 | AU1: 9 | AV1: 10 | AW1: 11 | AX1: 12 | AY1: 13 | AZ1: 14 | BA1: 15 | BB1: 16 | BC1: 17 | BD1: 18 | BE1: 19 | BF1: 20 | BG1: 21 | BH1: 22 | BI1: 23 | BJ1: 24 | BK1: 25 | BL1: 26 | BM1: 27 | BN1: 28 | BO1: 29 | BP1: 30 | BQ1: 31 | BR1: 32 | BS1: 33 | BT1: 34 | BU1: 35 | BV1: 36 | BW1: 37 | BX1: 38 | BY1: 39 | BZ1: 40 | CA1: 41 | CB1: 42 | CC1: 43 | CD1: 44 | CE1: 45 | CF1: 46 | CG1: 47 | CH1: 48 | CI1: 49 | CJ1: 50 | CK1: 51 | CL1: 52 | CM1: 53 | CN1: 54 | CO1: 55 | CP1: 56 | CQ1: 57 | CR1: 58 | CS1: 59 | CT1: 60 | CU1: 61 | CV1: 62 | CW1: 63 | CX1: 64 | CY1: 65 | CZ1: 66 | DA1: 67 | DB1: 68 | DC1: 69 | DD1: 70 | DE1: 71 | DF1: 72 | DG1: 73 | DH1: 74 | DI1: 75 | DJ1: 76 | DK1: 77 | DL1: 78 | DM1: 79 | DN1: 80 | DO1: 81 | DP1: 82 | DQ1: 83 | DR1: 84 | DS1: 85 | DT1: 86 | DU1: 87 | DV1: 88 | DW1: 89 | DX1: 90 | DY1: 91 | DZ1: 92 | EA1: 93 | EB1: 94 | EC1: 95 | ED1: 96 | EE1: 97 | EF1: 98 | EG1: 99 | EH1: 100 | EI1: 101 | EJ1: 102 | EK1: 103 | EL1: 104 | EM1: 105 | EN1: 106 | EO1: 107 | EP1: 108 | EQ1: 109 | ER1: 110 | ES1: 111 | ET1: 112 | EU1: 113 | EV1: 114 | EW1: 115 | EX1: 116 | EY1: 117 | EZ1: 118 | FA1: 119 | FB1: 120 | FC1: 121 | FD1: 122 | FE1: 123 | FF1: 124 | FG1: 125 | FH1: 126 | FI1: 127 | FJ1: 128 | FK1: 129 | FL1: 130 | FM1: 131 | FN1: 132 | FO1: 133 | FP1: 134 | FQ1: 135 | FR1: 136 | FS1: 137 | FT1: 138 | FU1: 139 | FV1: 140 | FW1: 141 | FX1: 142 | FY1: 143 | FZ1: 144 | GA1: 145 | GB1: 146 | GC1: 147 | GD1: 148 | GE1: 149 | GF1: 150 | GG1: 151 | GH1: 152 | GI1: 153 | GJ1: 154 | GK1: 155 | XEQ1: Formula for meeting | XER1: Consultant | XES1: Field Visit
A2: 101 | B2: DETECT | AN2: Meeting DATA | BJ2: FIELD VISITS | CA2: CONSULTANT | CN2: =+CL2+1 -> 1 | CS2: =CN2+1 -> 2 | CX2: =CS2+1 -> 3 | DC2: =CX2+1 -> 4 | DH2: =DC2+1 -> 5 | DM2: =DH2+1 -> 6 | DR2: =DM2+1 -> 7 | EG2: PROCUREMENT | EI2: 1 | EK2: =+EG2 -> PROCUREMENT | EL2: =+EI2+1 -> 2 | EO2: =+EK2 -> PROCUREMENT | EP2: =EL2+1 -> 3 | ES2: =+EO2 -> PROCUREMENT | ET2: =EP2+1 -> 4 | EW2: =+ES2 -> PROCUREMENT | EX2: =ET2+1 -> 5 | FA2: =+EW2 -> PROCUREMENT | FB2: =EX2+1 -> 6 | FE2: =+FA2 -> PROCUREMENT | FF2: =FB2+1 -> 7 | FI2: =+FE2 -> PROCUREMENT | FJ2: =FF2+1 -> 8 | FM2: =+FI2 -> PROCUREMENT | FN2: =FJ2+1 -> 9 | FQ2: =+FM2 -> PROCUREMENT | FR2: =FN2+1 -> 10 | GE2: Other | XEQ2: =(((($AN2-$AO2)*$AP2*$AQ2+$AO2*($AP2+ExtraDaysFar)*$AR2)+($AS2*$AP2)+($AT2+$AU2)*$AP2*$AN2+$AV2*$AN2))+($AW2*$AZ2*$AX2+$AW2*$BA2*$AZ2+$AY2+$AN2*$BB2)+$BC2*$AP2+$BH2+$BI2 ->  | XER2: =$CB2*$CC2*$CD2+$CB2*$CC2*$CE2+$CB2*$CF2 -> 0 | XES2: =$BJ2*$BK2*$BL2+$BN2*$BK2*($BO2+$BP2)+$BQ2*$BK2*$BR2+$BS2 -> 
B3: General Objective: To prevent and reduce the likelihood of outbreaks and other public health hazards and events defined by IHR (2005). | AK3: Unique ID | AL3: Category | AM3: Total cost | AN3: Participants | AO3: Away participants | AP3: No of days | AQ3: Per diem | AR3: Per diem away | AS3: Rent of venue | AT3: Lunch | AU3: Tea break | AV3: Stationary | AW3: No of trainers | AX3: Trainer fee | AY3: Extra for trainer | AZ3: No of days for trainer | BA3: Trainer per diem | BB3: Extra pp | BC3: Extra on top | BD3: List 1 | BE3: List 2 | BF3: List 3 | BG3: For later | BH3: For later | BI3: For later | BJ3: No of supervisors | BK3: No of days | BL3: Per diem | BM3: Vehicle category | BN3: No of vehicles | BO3: Cost per day per vehicle | BP3: Fuel cost per day | BQ3: No of drivers | BR3: Driver per diem | BS3: Extra per field visit | BT3: Total costs | BU3: List 1 | BV3: List 2 | BW3: List 3 | BX3: List4 | BY3: For later | BZ3: For later | CA3: International national | CB3: No of consultants | CC3: Number of days consultants | CD3: Per diem consultant | CE3: Consultant rate | CF3: Consultant travel | CG3: Total consult | CH3: List 1 | CI3: List 2 | CJ3: List 3 | CK3: List4 | CL3: For later | CM3: For later | CN3: ="HR" &CN2 -> HR1 | CO3: ="no. of " & CN3 -> no. of HR1 | CP3: ="Salary " & CN3 -> Salary HR1 | CQ3: ="Month " & CO3 & " TRUE/FALSE" -> Month no. of HR1 TRUE/FALSE | CR3: ="Months " & CN3 -> Months HR1 | CS3: ="HR" &CS2 -> HR2 | CT3: ="no. of " & CS3 -> no. of HR2 | CU3: ="Salary " & CS3 -> Salary HR2 | CV3: ="Month " & CT3 & " TRUE/FALSE" -> Month no. of HR2 TRUE/FALSE | CW3: ="Months " & CS3 -> Months HR2 | CX3: ="HR" &CX2 -> HR3 | CY3: ="no. of " & CX3 -> no. of HR3 | CZ3: ="Salary " & CX3 -> Salary HR3 | DA3: ="Month " & CY3 & " TRUE/FALSE" -> Month no. of HR3 TRUE/FALSE | DB3: ="Months " & CX3 -> Months HR3 | DC3: ="HR" &DC2 -> HR4 | DD3: ="no. of " & DC3 -> no. of HR4 | DE3: ="Salary " & DC3 -> Salary HR4 | DF3: ="Month " & DD3 & " TRUE/FALSE" -> Month no. of HR4 TRUE/FALSE | DG3: ="Months " & DC3 -> Months HR4 | DH3: ="HR" &DH2 -> HR5 | DI3: ="no. of " & DH3 -> no. of HR5 | DJ3: ="Salary " & DH3 -> Salary HR5 | DK3: ="Month " & DI3 & " TRUE/FALSE" -> Month no. of HR5 TRUE/FALSE | DL3: ="Months " & DH3 -> Months HR5 | DM3: ="HR" &DM2 -> HR6 | DN3: ="no. of " & DM3 -> no. of HR6 | DO3: ="Salary " & DM3 -> Salary HR6 | DP3: ="Month " & DN3 & " TRUE/FALSE" -> Month no. of HR6 TRUE/FALSE | DQ3: ="Months " & DM3 -> Months HR6 | DR3: ="HR" &DR2 -> HR7 | DS3: ="no. of " & DR3 -> no. of HR7 | DT3: ="Salary " & DR3 -> Salary HR7 | DU3: ="Month " & DS3 & " TRUE/FALSE" -> Month no. of HR7 TRUE/FALSE | DV3: ="Months " & DR3 -> Months HR7 | DW3: HR Extra 1 | DX3: HR Extra 2 | DY3: Total costs HR | DZ3: List 1 | EA3: List 2 | EB3: List 3 | EC3: List 4 | ED3: For later | EE3: For later | EF3: For later | EG3: Descripion1 | EH3: Quantity 1 | EI3: Price 1 | EJ3: Cost proc 1 | EK3: Descripion 2 | EL3: Quantity 2 | EM3: Price 2 | EN3: Cost proc 2 | EO3: ="Description " & EP2 -> Description 3 | EP3: ="Quantity " & EP2 -> Quantity 3 | EQ3: ="Price " & EP2 -> Price 3 | ER3: ="Cost proc " & EP2 -> Cost proc 3 | ES3: ="Description " & ET2 -> Description 4 | ET3: ="Quantity " & ET2 -> Quantity 4 | EU3: ="Price " & ET2 -> Price 4 | EV3: ="Cost proc " & ET2 -> Cost proc 4 | EW3: ="Description " & EX2 -> Description 5 | EX3: ="Quantity " & EX2 -> Quantity 5 | EY3: ="Price " & EX2 -> Price 5 | EZ3: ="Cost proc " & EX2 -> Cost proc 5 | FA3: ="Description " & FB2 -> Description 6 | FB3: ="Quantity " & FB2 -> Quantity 6 | FC3: ="Price " & FB2 -> Price 6 | FD3: ="Cost proc " & FB2 -> Cost proc 6 | FE3: ="Description " & FF2 -> Description 7 | FF3: ="Quantity " & FF2 -> Quantity 7 | FG3: ="Price " & FF2 -> Price 7 | FH3: ="Cost proc " & FF2 -> Cost proc 7 | FI3: ="Description " & FJ2 -> Description 8 | FJ3: ="Quantity " & FJ2 -> Quantity 8 | FK3: ="Price " & FJ2 -> Price 8 | FL3: ="Cost proc " & FJ2 -> Cost proc 8 | FM3: ="Description " & FN2 -> Description 9 | FN3: ="Quantity " & FN2 -> Quantity 9 | FO3: ="Price " & FN2 -> Price 9 | FP3: ="Cost proc " & FN2 -> Cost proc 9 | FQ3: ="Description " & FR2 -> Description 10 | FR3: ="Quantity " & FR2 -> Quantity 10 | FS3: ="Price " & FR2 -> Price 10 | FT3: ="Cost proc " & FR2 -> Cost proc 10 | FU3: Total cost procurement | FV3: List 1 | FW3: List 2 | FX3: List 3 | FY3: List 4 | FZ3: Procurement category | GA3: For later | GB3: For later | GC3: For later | GD3: For later | GE3: Description other | GF3: Cost other | GG3: List 1 | GH3: List 2 | GI3: List 3 | GJ3: List 4
B4: Assessment recommendations: | C4: Please enter the list of recommendations in this single merged cell
B5: TECHNICAL AREA | C5: D3. Human resources | O5: Frequency per year of implementation | T5: Annual Cost Estimates | AB5: Monitoring and Evaluation | AG5: comptage category2 (colonne AA) | AH5: comptage coût(colonne N) | AI5: .
A6: UniqueID | B6: Indicator | C6: Objectives | D6: Summary of Key Activities (Strategic actions) | E6: Detailed activity description (input description for costing) | F6: Detailed cost assumptions (including units, unit costs, quantities, frequency, etc) | G6: Responsible authority for Implementation (budget holder) | H6: Implementation scale (National, regional, district, sub-national?) | I6: Comments1 (Potential challenges, comments on implementation arrangements, other) | J6: Comments2 (Potential challenges, comments on implementation arrangements, other) | K6: Related existing plan/ framework / Programme or on-going activities | L6: Existing budget(y/n) | M6: Existing budget source (government, donor?) | N6: Estimated cost (Local currency) | O6: =IF('Basic Input for Tool'!$C$7="","Year 1",'Basic Input for Tool'!$C$7) -> 2024 | P6: =IF('Basic Input for Tool'!$C$7="","Year 2",O6+1) -> 2025 | Q6: =IF('Basic Input for Tool'!$C$7="","Year 3",P6+1) -> 2026 | R6: =IF('Basic Input for Tool'!$C$7="","Year 4",Q6+1) -> 2027 | S6: =IF('Basic Input for Tool'!$C$7="","Year 5",R6+1) -> 2028 | T6: ="Cost estimate " & O6 -> Cost estimate 2024 | U6: ="Cost estimate " & P6 -> Cost estimate 2025 | V6: Cost estimate 2026 | W6: Cost estimate 2027 | X6: Cost estimate 2028 | Y6: TotalOver5Years | Z6: CostCategory1 | AA6: CostCategory2 | AB6: Output/Process | AC6: Outcome | AD6: Frequency of collection (monthly, six monthly, yearly) | AE6: Source of verification | AG6: =COUNTA($AA7:$AA106) -> 1 | AH6: =COUNTA($N7:$N106) -> 1
F7: Deploy 3 pharmacitst | G7: Ministry of Health | H7: National | L7: N | M7: Donor | N7: 6228000 | O7: 1 | P7: 1 | Q7: 1 | T7: =IF($N7="Pending",0,$N7*O7) -> 6228000 | U7: 6228000 | V7: 6228000 | W7: 0 | X7: 0 | Y7: =SUM(T7:X7) -> 18684000 | Z7: Human resources | AA7: Recurrent | AL7: HR | CN7: Pharmacist | CO7: 3 | CP7: 173000 | CQ7: TRUE | CR7: 12 | CS7: Select from the list | CT7: 0 | CU7: 0 | CV7: FALSE | CW7: 0 | CX7: Select from the list | CY7: 0 | CZ7: 0 | DA7: FALSE | DB7: 0 | DC7: Select from the list | DD7: 0 | DE7: 0 | DF7: FALSE | DG7: 0 | DH7: Select from the list | DI7: 0 | DJ7: 0 | DK7: FALSE | DL7: 0 | DM7: Select from the list | DN7: 0 | DO7: 0 | DP7: FALSE | DQ7: 0 | DR7: Select from the list | DS7: 0 | DT7: 0 | DU7: FALSE | DV7: 0 | DY7: 6228000 | DZ7: National | EA7: Recurrent | EB7: Human resources | EC7: Ministry of Health
T8: =IF($N8="Pending",0,$N8*O8) -> 0 | U8: =IF($N8="Pending",0,$N8*P8) -> 0 | V8: =IF($N8="Pending",0,$N8*Q8) -> 0 | W8: =IF($N8="Pending",0,$N8*R8) -> 0 | X8: =IF($N8="Pending",0,$N8*S8) -> 0 | Y8: =SUM(T8:X8) -> 0
T9: 0 | U9: 0 | V9: 0 | W9: 0 | X9: 0 | Y9: 0
T10: 0 | U10: 0 | V10: 0 | W10: 0 | X10: 0 | Y10: 0
T11: 0 | U11: 0 | V11: 0 | W11: 0 | X11: 0 | Y11: 0
T12: 0 | U12: 0 | V12: 0 | W12: 0 | X12: 0 | Y12: 0
T13: 0 | U13: 0 | V13: 0 | W13: 0 | X13: 0 | Y13: 0
T14: 0 | U14: 0 | V14: 0 | W14: 0 | X14: 0 | Y14: 0
T15: 0 | U15: 0 | V15: 0 | W15: 0 | X15: 0 | Y15: 0
T16: 0 | U16: 0 | V16: 0 | W16: 0 | X16: 0 | Y16: 0
T17: 0 | U17: 0 | V17: 0 | W17: 0 | X17: 0 | Y17: 0
T18: 0 | U18: 0 | V18: 0 | W18: 0 | X18: 0 | Y18: 0
T19: 0 | U19: 0 | V19: 0 | W19: 0 | X19: 0 | Y19: 0
T20: 0 | U20: 0 | V20: 0 | W20: 0 | X20: 0 | Y20: 0
T21: 0 | U21: 0 | V21: 0 | W21: 0 | X21: 0 | Y21: 0
T22: 0 | U22: 0 | V22: 0 | W22: 0 | X22: 0 | Y22: 0
T23: 0 | U23: 0 | V23: 0 | W23: 0 | X23: 0 | Y23: 0
T24: 0 | U24: 0 | V24: 0 | W24: 0 | X24: 0 | Y24: 0
T25: 0 | U25: 0 | V25: 0 | W25: 0 | X25: 0 | Y25: 0
T26: 0 | U26: 0 | V26: 0 | W26: 0 | X26: 0 | Y26: 0
T27: 0 | U27: 0 | V27: 0 | W27: 0 | X27: 0 | Y27: 0
T28: 0 | U28: 0 | V28: 0 | W28: 0 | X28: 0 | Y28: 0
T29: 0 | U29: 0 | V29: 0 | W29: 0 | X29: 0 | Y29: 0
T30: 0 | U30: 0 | V30: 0 | W30: 0 | X30: 0 | Y30: 0
T31: 0 | U31: 0 | V31: 0 | W31: 0 | X31: 0 | Y31: 0
T32: 0 | U32: 0 | V32: 0 | W32: 0 | X32: 0 | Y32: 0
T33: 0 | U33: 0 | V33: 0 | W33: 0 | X33: 0 | Y33: 0
T34: 0 | U34: 0 | V34: 0 | W34: 0 | X34: 0 | Y34: 0
T35: 0 | U35: 0 | V35: 0 | W35: 0 | X35: 0 | Y35: 0
T36: 0 | U36: 0 | V36: 0 | W36: 0 | X36: 0 | Y36: 0
T37: 0 | U37: 0 | V37: 0 | W37: 0 | X37: 0 | Y37: 0
T38: 0 | U38: 0 | V38: 0 | W38: 0 | X38: 0 | Y38: 0
T39: 0 | U39: 0 | V39: 0 | W39: 0 | X39: 0 | Y39: 0
T40: 0 | U40: 0 | V40: 0 | W40: 0 | X40: 0 | Y40: 0
T41: 0 | U41: 0 | V41: 0 | W41: 0 | X41: 0 | Y41: 0
T42: 0 | U42: 0 | V42: 0 | W42: 0 | X42: 0 | Y42: 0
T43: 0 | U43: 0 | V43: 0 | W43: 0 | X43: 0 | Y43: 0
T44: 0 | U44: 0 | V44: 0 | W44: 0 | X44: 0 | Y44: 0
T45: 0 | U45: 0 | V45: 0 | W45: 0 | X45: 0 | Y45: 0
T46: 0 | U46: 0 | V46: 0 | W46: 0 | X46: 0 | Y46: 0
T47: 0 | U47: 0 | V47: 0 | W47: 0 | X47: 0 | Y47: 0
T48: 0 | U48: 0 | V48: 0 | W48: 0 | X48: 0 | Y48: 0
T49: 0 | U49: 0 | V49: 0 | W49: 0 | X49: 0 | Y49: 0
T50: 0 | U50: 0 | V50: 0 | W50: 0 | X50: 0 | Y50: 0
T51: 0 | U51: 0 | V51: 0 | W51: 0 | X51: 0 | Y51: 0
T52: 0 | U52: 0 | V52: 0 | W52: 0 | X52: 0 | Y52: 0
T53: 0 | U53: 0 | V53: 0 | W53: 0 | X53: 0 | Y53: 0
T54: 0 | U54: 0 | V54: 0 | W54: 0 | X54: 0 | Y54: 0
T55: 0 | U55: 0 | V55: 0 | W55: 0 | X55: 0 | Y55: 0
T56: 0 | U56: 0 | V56: 0 | W56: 0 | X56: 0 | Y56: 0
T57: 0 | U57: 0 | V57: 0 | W57: 0 | X57: 0 | Y57: 0
T58: 0 | U58: 0 | V58: 0 | W58: 0 | X58: 0 | Y58: 0
T59: 0 | U59: 0 | V59: 0 | W59: 0 | X59: 0 | Y59: 0
T60: 0 | U60: 0 | V60: 0 | W60: 0 | X60: 0 | Y60: 0
T61: 0 | U61: 0 | V61: 0 | W61: 0 | X61: 0 | Y61: 0
T62: 0 | U62: 0 | V62: 0 | W62: 0 | X62: 0 | Y62: 0
T63: 0 | U63: 0 | V63: 0 | W63: 0 | X63: 0 | Y63: 0
T64: 0 | U64: 0 | V64: 0 | W64: 0 | X64: 0 | Y64: 0
T65: 0 | U65: 0 | V65: 0 | W65: 0 | X65: 0 | Y65: 0
T66: 0 | U66: 0 | V66: 0 | W66: 0 | X66: 0 | Y66: 0
T67: 0 | U67: 0 | V67: 0 | W67: 0 | X67: 0 | Y67: 0
T68: 0 | U68: 0 | V68: 0 | W68: 0 | X68: 0 | Y68: 0
T69: 0 | U69: 0 | V69: 0 | W69: 0 | X69: 0 | Y69: 0
T70: 0 | U70: 0 | V70: 0 | W70: 0 | X70: 0 | Y70: 0
T71: 0 | U71: 0 | V71: 0 | W71: 0 | X71: 0 | Y71: 0
T72: =IF($N72="Pending",0,$N72*O72) -> 0 | U72: =IF($N72="Pending",0,$N72*P72) -> 0 | V72: =IF($N72="Pending",0,$N72*Q72) -> 0 | W72: =IF($N72="Pending",0,$N72*R72) -> 0 | X72: =IF($N72="Pending",0,$N72*S72) -> 0 | Y72: =SUM(T72:X72) -> 0
T73: 0 | U73: 0 | V73: 0 | W73: 0 | X73: 0 | Y73: 0
T74: 0 | U74: 0 | V74: 0 | W74: 0 | X74: 0 | Y74: 0
T75: 0 | U75: 0 | V75: 0 | W75: 0 | X75: 0 | Y75: 0
T76: 0 | U76: 0 | V76: 0 | W76: 0 | X76: 0 | Y76: 0
T77: 0 | U77: 0 | V77: 0 | W77: 0 | X77: 0 | Y77: 0
T78: 0 | U78: 0 | V78: 0 | W78: 0 | X78: 0 | Y78: 0
T79: 0 | U79: 0 | V79: 0 | W79: 0 | X79: 0 | Y79: 0
T80: 0 | U80: 0 | V80: 0 | W80: 0 | X80: 0 | Y80: 0
T81: 0 | U81: 0 | V81: 0 | W81: 0 | X81: 0 | Y81: 0
T82: 0 | U82: 0 | V82: 0 | W82: 0 | X82: 0 | Y82: 0
T83: 0 | U83: 0 | V83: 0 | W83: 0 | X83: 0 | Y83: 0
T84: 0 | U84: 0 | V84: 0 | W84: 0 | X84: 0 | Y84: 0
T85: 0 | U85: 0 | V85: 0 | W85: 0 | X85: 0 | Y85: 0
T86: 0 | U86: 0 | V86: 0 | W86: 0 | X86: 0 | Y86: 0
T87: 0 | U87: 0 | V87: 0 | W87: 0 | X87: 0 | Y87: 0
T88: 0 | U88: 0 | V88: 0 | W88: 0 | X88: 0 | Y88: 0
T89: 0 | U89: 0 | V89: 0 | W89: 0 | X89: 0 | Y89: 0
T90: 0 | U90: 0 | V90: 0 | W90: 0 | X90: 0 | Y90: 0
T91: 0 | U91: 0 | V91: 0 | W91: 0 | X91: 0 | Y91: 0
T92: 0 | U92: 0 | V92: 0 | W92: 0 | X92: 0 | Y92: 0
T93: 0 | U93: 0 | V93: 0 | W93: 0 | X93: 0 | Y93: 0
T94: 0 | U94: 0 | V94: 0 | W94: 0 | X94: 0 | Y94: 0
T95: 0 | U95: 0 | V95: 0 | W95: 0 | X95: 0 | Y95: 0
T96: 0 | U96: 0 | V96: 0 | W96: 0 | X96: 0 | Y96: 0
T97: 0 | U97: 0 | V97: 0 | W97: 0 | X97: 0 | Y97: 0
T98: 0 | U98: 0 | V98: 0 | W98: 0 | X98: 0 | Y98: 0
T99: 0 | U99: 0 | V99: 0 | W99: 0 | X99: 0 | Y99: 0
T100: 0 | U100: 0 | V100: 0 | W100: 0 | X100: 0 | Y100: 0
T101: 0 | U101: 0 | V101: 0 | W101: 0 | X101: 0 | Y101: 0
T102: 0 | U102: 0 | V102: 0 | W102: 0 | X102: 0 | Y102: 0
T103: 0 | U103: 0 | V103: 0 | W103: 0 | X103: 0 | Y103: 0
T104: 0 | U104: 0 | V104: 0 | W104: 0 | X104: 0 | Y104: 0
T105: 0 | U105: 0 | V105: 0 | W105: 0 | X105: 0 | Y105: 0
T106: 0 | U106: 0 | V106: 0 | W106: 0 | X106: 0 | Y106: 0
S108: TOTALS | T108: =SUM(T7:T106) -> 6228000 | U108: 6228000 | V108: 6228000 | W108: 0 | X108: 0 | Y108: 18684000
T110: =T6 -> Cost estimate 2024 | U110: Cost estimate 2025 | V110: Cost estimate 2026 | W110: Cost estimate 2027 | X110: Cost estimate 2028 | Y110: TotalOver5Years | Z110: =SUM(Y111:Y133) -> 18684000
S111: ='Basic Input for Tool'!$D65 -> Meeting | T111: =SUMIF($Z$7:$Z$106,$S111,T$7:T$106) -> 0 | U111: 0 | V111: 0 | W111: 0 | X111: 0 | Y111: 0
S112: ='Basic Input for Tool'!$D66 -> Training | T112: 0 | U112: 0 | V112: 0 | W112: 0 | X112: 0 | Y112: 0
S113: ='Basic Input for Tool'!$D67 -> Workshop | T113: 0 | U113: 0 | V113: 0 | W113: 0 | X113: 0 | Y113: 0
S114: ='Basic Input for Tool'!$D68 -> SOP development | T114: 0 | U114: 0 | V114: 0 | W114: 0 | X114: 0 | Y114: 0
S115: ='Basic Input for Tool'!$D69 -> Communication | T115: 0 | U115: 0 | V115: 0 | W115: 0 | X115: 0 | Y115: 0
S116: ='Basic Input for Tool'!$D70 -> Construction | T116: 0 | U116: 0 | V116: 0 | W116: 0 | X116: 0 | Y116: 0
S117: ='Basic Input for Tool'!$D71 -> Consultancy | T117: 0 | U117: 0 | V117: 0 | W117: 0 | X117: 0 | Y117: 0
S118: ='Basic Input for Tool'!$D72 -> Evaluation | T118: 0 | U118: 0 | V118: 0 | W118: 0 | X118: 0 | Y118: 0
S119: ='Basic Input for Tool'!$D73 -> Field visit | T119: 0 | U119: 0 | V119: 0 | W119: 0 | X119: 0 | Y119: 0
S120: ='Basic Input for Tool'!$D74 -> Human resources | T120: 6228000 | U120: 6228000 | V120: 6228000 | W120: 0 | X120: 0 | Y120: 18684000
S121: ='Basic Input for Tool'!$D75 -> Infrastructure | T121: 0 | U121: 0 | V121: 0 | W121: 0 | X121: 0 | Y121: 0
S122: ='Basic Input for Tool'!$D76 -> Document reproduction/printing | T122: 0 | U122: 0 | V122: 0 | W122: 0 | X122: 0 | Y122: 0
S123: ='Basic Input for Tool'!$D77 -> Procurement | T123: 0 | U123: 0 | V123: 0 | W123: 0 | X123: 0 | Y123: 0
S124: ='Basic Input for Tool'!$D78 -> Services | T124: 0 | U124: 0 | V124: 0 | W124: 0 | X124: 0 | Y124: 0
S125: ='Basic Input for Tool'!$D79 -> Simulation exercises | T125: 0 | U125: 0 | V125: 0 | W125: 0 | X125: 0 | Y125: 0
S126: ='Basic Input for Tool'!$D80 -> Advocacy | T126: =SUMIF($Z$7:$Z$106,$S126,T$7:T$106) -> 0 | U126: 0 | V126: 0 | W126: 0 | X126: 0 | Y126: 0
S127: ='Basic Input for Tool'!$D81 -> Study | T127: 0 | U127: 0 | V127: 0 | W127: 0 | X127: 0 | Y127: 0
S128: ='Basic Input for Tool'!$D82 -> Campaign | T128: 0 | U128: 0 | V128: 0 | W128: 0 | X128: 0 | Y128: 0
S129: ='Basic Input for Tool'!$D83 -> Other | T129: 0 | U129: 0 | V129: 0 | W129: 0 | X129: 0 | Y129: 0
S130: ='Basic Input for Tool'!$D84 -> Other 2 | T130: 0 | U130: 0 | V130: 0 | W130: 0 | X130: 0 | Y130: 0
S131: ='Basic Input for Tool'!$D85 -> Other 3 | T131: 0 | U131: 0 | V131: 0 | W131: 0 | X131: 0 | Y131: 0
S132: ='Basic Input for Tool'!$D86 -> Other 4 | T132: 0 | U132: 0 | V132: 0 | W132: 0 | X132: 0 | Y132: 0
S133: ='Basic Input for Tool'!$D87 -> Other 5 | T133: 0 | U133: 0 | V133: 0 | W133: 0 | X133: 0 | Y133: 0
T136: =T6 -> Cost estimate 2024 | U136: Cost estimate 2025 | V136: Cost estimate 2026 | W136: Cost estimate 2027 | X136: Cost estimate 2028 | Y136: TotalOver5Years | Z136: =SUM(Y137:Y146) -> 18684000
S137: ='Basic Input for Tool'!$C$65 -> Capital | T137: =SUMIF($AA$7:$AA$106,$S137,T$7:T$106) -> 0 | U137: 0 | V137: 0 | W137: 0 | X137: 0 | Y137: 0
S138: ='Basic Input for Tool'!$C$66 -> Recurrent | T138: 6228000 | U138: 6228000 | V138: 6228000 | W138: 0 | X138: 0 | Y138: 18684000
S139: ='Basic Input for Tool'!$C$67 -> Other 1 | T139: 0 | U139: 0 | V139: 0 | W139: 0 | X139: 0 | Y139: 0
S140: ='Basic Input for Tool'!$C$68 -> Other 2 | T140: 0 | U140: 0 | V140: 0 | W140: 0 | X140: 0 | Y140: 0
S141: ='Basic Input for Tool'!$C$69 -> 0 | T141: 0 | U141: 0 | V141: 0 | W141: 0 | X141: 0 | Y141: 0
S142: ='Basic Input for Tool'!$C$70 -> 0 | T142: 0 | U142: 0 | V142: 0 | W142: 0 | X142: 0 | Y142: 0
S143: ='Basic Input for Tool'!$C$71 -> 0 | T143: 0 | U143: 0 | V143: 0 | W143: 0 | X143: 0 | Y143: 0
S144: ='Basic Input for Tool'!$C$72 -> 0 | T144: 0 | U144: 0 | V144: 0 | W144: 0 | X144: 0 | Y144: 0
S145: ='Basic Input for Tool'!$C$73 -> 0 | T145: 0 | U145: 0 | V145: 0 | W145: 0 | X145: 0 | Y145: 0
S146: ='Basic Input for Tool'!$C$74 -> 0 | T146: 0 | U146: 0 | V146: 0 | W146: 0 | X146: 0 | Y146: 0
T149: =T6 -> Cost estimate 2024 | U149: Cost estimate 2025 | V149: Cost estimate 2026 | W149: Cost estimate 2027 | X149: Cost estimate 2028 | Y149: TotalOver5Years | Z149: =SUM(Y150:Y153) -> 18684000
S150: ='Basic Input for Tool'!$B$65 -> National | T150: =SUMIF($H$7:$H$106,$S150,T$7:T$106) -> 6228000 | U150: 6228000 | V150: 6228000 | W150: 0 | X150: 0 | Y150: 18684000
S151: ='Basic Input for Tool'!$B$66 -> Central | T151: 0 | U151: 0 | V151: 0 | W151: 0 | X151: 0 | Y151: 0
S152: ='Basic Input for Tool'!$B$67 -> SNU1 (province/region/etat) | T152: 0 | U152: 0 | V152: 0 | W152: 0 | X152: 0 | Y152: 0
S153: ='Basic Input for Tool'!$B$68 -> SNU2 (district/county) | T153: 0 | U153: 0 | V153: 0 | W153: 0 | X153: 0 | Y153: 0
T156: =T6 -> Cost estimate 2024 | U156: Cost estimate 2025 | V156: Cost estimate 2026 | W156: Cost estimate 2027 | X156: Cost estimate 2028 | Y156: TotalOver5Years | Z156: =SUM(Y157:Y179) -> 18684000
S157: ='Basic Input for Tool'!$E$65 -> Ministry of Health | T157: =SUMIF($G$7:$G$106,$S157,T$7:T$106) -> 6228000 | U157: 6228000 | V157: 6228000 | W157: 0 | X157: 0 | Y157: 18684000
S158: ='Basic Input for Tool'!$E$66 -> Ministry of Finance | T158: 0 | U158: 0 | V158: 0 | W158: 0 | X158: 0 | Y158: 0
S159: ='Basic Input for Tool'!$E$67 -> Ministry of Agriculture | T159: 0 | U159: 0 | V159: 0 | W159: 0 | X159: 0 | Y159: 0
S160: ='Basic Input for Tool'!$E$68 -> Ministry of Environment | T160: 0 | U160: 0 | V160: 0 | W160: 0 | X160: 0 | Y160: 0
S161: ='Basic Input for Tool'!$E$69 -> Other 2 | T161: 0 | U161: 0 | V161: 0 | W161: 0 | X161: 0 | Y161: 0
S162: ='Basic Input for Tool'!$E$70 -> Other 3 | T162: 0 | U162: 0 | V162: 0 | W162: 0 | X162: 0 | Y162: 0
S163: ='Basic Input for Tool'!$E$71 -> Other 4 | T163: 0 | U163: 0 | V163: 0 | W163: 0 | X163: 0 | Y163: 0
S164: ='Basic Input for Tool'!$E$72 -> Other 5 | T164: 0 | U164: 0 | V164: 0 | W164: 0 | X164: 0 | Y164: 0
